Workbook

Sheet Sumário
A1: OM Apoiadas | B1: Total em Reais
B2: Consumo | C2: Permanente | D2: Serviço
A3: BASE | B3: =SUM(B$23:B$70) -> 1623466.56 | C3: =SUM(B$75:B$110) -> 1652982.76 | D3: =SUM(B$115:B$182) -> 1470297
A4: 5DE | B4: =SUM(C$23:C$70) -> 169820 | C4: =SUM(C$75:C$110) -> 198440 | D4: =SUM(C$115:C$182) -> 25000
A5: AD5 | B5: =SUM(D$23:D$70) -> 54528 | C5: =SUM(D$75:D$110) -> 575100 | D5: =SUM(D$115:D$182) -> 154225
A6: 11CT | B6: =SUM(E$23:E$70) -> 411 | C6: =SUM(E$75:E$110) -> 2825 | D6: =SUM(E$115:E$182) -> 0
A7: 5CIAPE | B7: =SUM(F$23:F$70) -> 41153 | C7: =SUM(F$75:F$110) -> 12000 | D7: =SUM(F$115:F$182) -> 25000
A8: CIMH | B8: =SUM(G$23:G$70) -> 163898.8 | C8: =SUM(G$75:G$110) -> 20790 | D8: =SUM(G$115:G$182) -> 20100
A9: Cia Ap | B9: =SUM(H$23:H$70) -> 0 | C9: =SUM(H$75:H$110) -> 93220.06 | D9: =SUM(H$115:H$182) -> 11650
A10: 5RM | B10: =SUM(I$23:I$70) -> 374260 | C10: =SUM(I$75:I$110) -> 1373700 | D10: =SUM(I$115:I$182) -> 1116260
A11: 5BCOM | B11: =SUM(J$23:J$70) -> 0 | C11: =SUM(J$75:J$110) -> 0 | D11: =SUM(J$115:J$182) -> 0
A12: TOTAL | B12: =SUM(B3:B11) -> 2427537.36 | C12: =SUM(C3:C11) -> 3929057.82 | D12: 2822532
A21: Material de Consumo
A22: Descrição – Subitem | B22: BASE | C22: 5DE | D22: AD5 | E22: 11CT | F22: 5CIAPE | G22: CIMH | H22: CCIAAP | I22: 5RM | J22: 5BCOM
A23: COMBUSTIVEIS E LUBRIFICANTES AUTOMOTIVOS | B23: =SUMIFS(Consumo!$T$6:$T$50000,Consumo!$A$6:$A$50000,Sumário!B$22,Consumo!$D$6:$D$50000,Sumário!$A23) -> 0 | C23: =SUMIFS(Consumo!$T$6:$T$50000,Consumo!$A$6:$A$50000,Sumário!C$22,Consumo!$D$6:$D$50000,Sumário!$A23) -> 0 | D23: =SUMIFS(Consumo!$T$6:$T$50000,Consumo!$A$6:$A$50000,Sumário!D$22,Consumo!$D$6:$D$50000,Sumário!$A23) -> 0 | E23: =SUMIFS(Consumo!$T$6:$T$50000,Consumo!$A$6:$A$50000,Sumário!E$22,Consumo!$D$6:$D$50000,Sumário!$A23) -> 0 | F23: =SUMIFS(Consumo!$T$6:$T$50000,Consumo!$A$6:$A$50000,Sumário!F$22,Consumo!$D$6:$D$50000,Sumário!$A23) -> 0 | G23: =SUMIFS(Consumo!$T$6:$T$50000,Consumo!$A$6:$A$50000,Sumário!G$22,Consumo!$D$6:$D$50000,Sumário!$A23) -> 3220 | H23: =SUMIFS(Consumo!$T$6:$T$50000,Consumo!$A$6:$A$50000,Sumário!H$22,Consumo!$D$6:$D$50000,Sumário!$A23) -> 0 | I23: =SUMIFS(Consumo!$T$6:$T$50000,Consumo!$A$6:$A$50000,Sumário!I$22,Consumo!$D$6:$D$50000,Sumário!$A23) -> 0 | J23: =SUMIFS(Consumo!$T$6:$T$50000,Consumo!$A$6:$A$50000,Sumário!J$22,Consumo!$D$6:$D$50000,Sumário!$A23) -> 0
A24: COMBUSTIVEIS E LUBRIFICANTES DE AVIAÇÃO | B24: =SUMIFS(Consumo!$T$6:$T$50000,Consumo!$A$6:$A$50000,Sumário!B$22,Consumo!$D$6:$D$50000,Sumário!$A24) -> 0 | C24: =SUMIFS(Consumo!$T$6:$T$50000,Consumo!$A$6:$A$50000,Sumário!C$22,Consumo!$D$6:$D$50000,Sumário!$A24) -> 0 | D24: =SUMIFS(Consumo!$T$6:$T$50000,Consumo!$A$6:$A$50000,Sumário!D$22,Consumo!$D$6:$D$50000,Sumário!$A24) -> 0 | E24: =SUMIFS(Consumo!$T$6:$T$50000,Consumo!$A$6:$A$50000,Sumário!E$22,Consumo!$D$6:$D$50000,Sumário!$A24) -> 0 | F24: =SUMIFS(Consumo!$T$6:$T$50000,Consumo!$A$6:$A$50000,Sumário!F$22,Consumo!$D$6:$D$50000,Sumário!$A24) -> 0 | G24: =SUMIFS(Consumo!$T$6:$T$50000,Consumo!$A$6:$A$50000,Sumário!G$22,Consumo!$D$6:$D$50000,Sumário!$A24) -> 0 | H24: =SUMIFS(Consumo!$T$6:$T$50000,Consumo!$A$6:$A$50000,Sumário!H$22,Consumo!$D$6:$D$50000,Sumário!$A24) -> 0 | I24: =SUMIFS(Consumo!$T$6:$T$50000,Consumo!$A$6:$A$50000,Sumário!I$22,Consumo!$D$6:$D$50000,Sumário!$A24) -> 0 | J24: =SUMIFS(Consumo!$T$6:$T$50000,Consumo!$A$6:$A$50000,Sumário!J$22,Consumo!$D$6:$D$50000,Sumário!$A24) -> 0
A25: COMBUSTIVEIS E LUBRIF. P/ OUTRAS FINALIDADES | B25: =SUMIFS(Consumo!$T$6:$T$50000,Consumo!$A$6:$A$50000,Sumário!B$22,Consumo!$D$6:$D$50000,Sumário!$A25) -> 0 | C25: =SUMIFS(Consumo!$T$6:$T$50000,Consumo!$A$6:$A$50000,Sumário!C$22,Consumo!$D$6:$D$50000,Sumário!$A25) -> 0 | D25: =SUMIFS(Consumo!$T$6:$T$50000,Consumo!$A$6:$A$50000,Sumário!D$22,Consumo!$D$6:$D$50000,Sumário!$A25) -> 0 | E25: =SUMIFS(Consumo!$T$6:$T$50000,Consumo!$A$6:$A$50000,Sumário!E$22,Consumo!$D$6:$D$50000,Sumário!$A25) -> 0 | F25: =SUMIFS(Consumo!$T$6:$T$50000,Consumo!$A$6:$A$50000,Sumário!F$22,Consumo!$D$6:$D$50000,Sumário!$A25) -> 0 | G25: =SUMIFS(Consumo!$T$6:$T$50000,Consumo!$A$6:$A$50000,Sumário!G$22,Consumo!$D$6:$D$50000,Sumário!$A25) -> 600 | H25: =SUMIFS(Consumo!$T$6:$T$50000,Consumo!$A$6:$A$50000,Sumário!H$22,Consumo!$D$6:$D$50000,Sumário!$A25) -> 0 | I25: =SUMIFS(Consumo!$T$6:$T$50000,Consumo!$A$6:$A$50000,Sumário!I$22,Consumo!$D$6:$D$50000,Sumário!$A25) -> 0 | J25: =SUMIFS(Consumo!$T$6:$T$50000,Consumo!$A$6:$A$50000,Sumário!J$22,Consumo!$D$6:$D$50000,Sumário!$A25) -> 0
A26: GAS E OUTROS MATERIAIS ENGARRAFADOS | B26: =SUMIFS(Consumo!$T$6:$T$50000,Consumo!$A$6:$A$50000,Sumário!B$22,Consumo!$D$6:$D$50000,Sumário!$A26) -> 1950 | C26: =SUMIFS(Consumo!$T$6:$T$50000,Consumo!$A$6:$A$50000,Sumário!C$22,Consumo!$D$6:$D$50000,Sumário!$A26) -> 0 | D26: =SUMIFS(Consumo!$T$6:$T$50000,Consumo!$A$6:$A$50000,Sumário!D$22,Consumo!$D$6:$D$50000,Sumário!$A26) -> 1950 | E26: =SUMIFS(Consumo!$T$6:$T$50000,Consumo!$A$6:$A$50000,Sumário!E$22,Consumo!$D$6:$D$50000,Sumário!$A26) -> 0 | F26: =SUMIFS(Consumo!$T$6:$T$50000,Consumo!$A$6:$A$50000,Sumário!F$22,Consumo!$D$6:$D$50000,Sumário!$A26) -> 1950 | G26: =SUMIFS(Consumo!$T$6:$T$50000,Consumo!$A$6:$A$50000,Sumário!G$22,Consumo!$D$6:$D$50000,Sumário!$A26) -> 9975 | H26: =SUMIFS(Consumo!$T$6:$T$50000,Consumo!$A$6:$A$50000,Sumário!H$22,Consumo!$D$6:$D$50000,Sumário!$A26) -> 0 | I26: =SUMIFS(Consumo!$T$6:$T$50000,Consumo!$A$6:$A$50000,Sumário!I$22,Consumo!$D$6:$D$50000,Sumário!$A26) -> 0 | J26: =SUMIFS(Consumo!$T$6:$T$50000,Consumo!$A$6:$A$50000,Sumário!J$22,Consumo!$D$6:$D$50000,Sumário!$A26) -> 0
A27: ALIMENTOS PARA ANIMAIS | B27: =SUMIFS(Consumo!$T$6:$T$50000,Consumo!$A$6:$A$50000,Sumário!B$22,Consumo!$D$6:$D$50000,Sumário!$A27) -> 0 | C27: =SUMIFS(Consumo!$T$6:$T$50000,Consumo!$A$6:$A$50000,Sumário!C$22,Consumo!$D$6:$D$50000,Sumário!$A27) -> 0 | D27: =SUMIFS(Consumo!$T$6:$T$50000,Consumo!$A$6:$A$50000,Sumário!D$22,Consumo!$D$6:$D$50000,Sumário!$A27) -> 0 | E27: =SUMIFS(Consumo!$T$6:$T$50000,Consumo!$A$6:$A$50000,Sumário!E$22,Consumo!$D$6:$D$50000,Sumário!$A27) -> 0 | F27: =SUMIFS(Consumo!$T$6:$T$50000,Consumo!$A$6:$A$50000,Sumário!F$22,Consumo!$D$6:$D$50000,Sumário!$A27) -> 0 | G27: =SUMIFS(Consumo!$T$6:$T$50000,Consumo!$A$6:$A$50000,Sumário!G$22,Consumo!$D$6:$D$50000,Sumário!$A27) -> 0 | H27: =SUMIFS(Consumo!$T$6:$T$50000,Consumo!$A$6:$A$50000,Sumário!H$22,Consumo!$D$6:$D$50000,Sumário!$A27) -> 0 | I27: =SUMIFS(Consumo!$T$6:$T$50000,Consumo!$A$6:$A$50000,Sumário!I$22,Consumo!$D$6:$D$50000,Sumário!$A27) -> 0 | J27: =SUMIFS(Consumo!$T$6:$T$50000,Consumo!$A$6:$A$50000,Sumário!J$22,Consumo!$D$6:$D$50000,Sumário!$A27) -> 0
A28: GENEROS DE ALIMENTAÇÃO | B28: =SUMIFS(Consumo!$T$6:$T$50000,Consumo!$A$6:$A$50000,Sumário!B$22,Consumo!$D$6:$D$50000,Sumário!$A28) -> 0 | C28: =SUMIFS(Consumo!$T$6:$T$50000,Consumo!$A$6:$A$50000,Sumário!C$22,Consumo!$D$6:$D$50000,Sumário!$A28) -> 0 | D28: =SUMIFS(Consumo!$T$6:$T$50000,Consumo!$A$6:$A$50000,Sumário!D$22,Consumo!$D$6:$D$50000,Sumário!$A28) -> 0 | E28: =SUMIFS(Consumo!$T$6:$T$50000,Consumo!$A$6:$A$50000,Sumário!E$22,Consumo!$D$6:$D$50000,Sumário!$A28) -> 0 | F28: =SUMIFS(Consumo!$T$6:$T$50000,Consumo!$A$6:$A$50000,Sumário!F$22,Consumo!$D$6:$D$50000,Sumário!$A28) -> 0 | G28: =SUMIFS(Consumo!$T$6:$T$50000,Consumo!$A$6:$A$50000,Sumário!G$22,Consumo!$D$6:$D$50000,Sumário!$A28) -> 5218.1 | H28: =SUMIFS(Consumo!$T$6:$T$50000,Consumo!$A$6:$A$50000,Sumário!H$22,Consumo!$D$6:$D$50000,Sumário!$A28) -> 0 | I28: =SUMIFS(Consumo!$T$6:$T$50000,Consumo!$A$6:$A$50000,Sumário!I$22,Consumo!$D$6:$D$50000,Sumário!$A28) -> 0 | J28: =SUMIFS(Consumo!$T$6:$T$50000,Consumo!$A$6:$A$50000,Sumário!J$22,Consumo!$D$6:$D$50000,Sumário!$A28) -> 0
A29: MATERIAL FARMACOLOGICO | B29: =SUMIFS(Consumo!$T$6:$T$50000,Consumo!$A$6:$A$50000,Sumário!B$22,Consumo!$D$6:$D$50000,Sumário!$A29) -> 23203.8 | C29: =SUMIFS(Consumo!$T$6:$T$50000,Consumo!$A$6:$A$50000,Sumário!C$22,Consumo!$D$6:$D$50000,Sumário!$A29) -> 0 | D29: =SUMIFS(Consumo!$T$6:$T$50000,Consumo!$A$6:$A$50000,Sumário!D$22,Consumo!$D$6:$D$50000,Sumário!$A29) -> 0 | E29: =SUMIFS(Consumo!$T$6:$T$50000,Consumo!$A$6:$A$50000,Sumário!E$22,Consumo!$D$6:$D$50000,Sumário!$A29) -> 0 | F29: =SUMIFS(Consumo!$T$6:$T$50000,Consumo!$A$6:$A$50000,Sumário!F$22,Consumo!$D$6:$D$50000,Sumário!$A29) -> 0 | G29: =SUMIFS(Consumo!$T$6:$T$50000,Consumo!$A$6:$A$50000,Sumário!G$22,Consumo!$D$6:$D$50000,Sumário!$A29) -> 0 | H29: =SUMIFS(Consumo!$T$6:$T$50000,Consumo!$A$6:$A$50000,Sumário!H$22,Consumo!$D$6:$D$50000,Sumário!$A29) -> 0 | I29: =SUMIFS(Consumo!$T$6:$T$50000,Consumo!$A$6:$A$50000,Sumário!I$22,Consumo!$D$6:$D$50000,Sumário!$A29) -> 0 | J29: =SUMIFS(Consumo!$T$6:$T$50000,Consumo!$A$6:$A$50000,Sumário!J$22,Consumo!$D$6:$D$50000,Sumário!$A29) -> 0
A30: MATERIAL ODONTOLOGICO | B30: =SUMIFS(Consumo!$T$6:$T$50000,Consumo!$A$6:$A$50000,Sumário!B$22,Consumo!$D$6:$D$50000,Sumário!$A30) -> 84232.16 | C30: =SUMIFS(Consumo!$T$6:$T$50000,Consumo!$A$6:$A$50000,Sumário!C$22,Consumo!$D$6:$D$50000,Sumário!$A30) -> 0 | D30: =SUMIFS(Consumo!$T$6:$T$50000,Consumo!$A$6:$A$50000,Sumário!D$22,Consumo!$D$6:$D$50000,Sumário!$A30) -> 0 | E30: =SUMIFS(Consumo!$T$6:$T$50000,Consumo!$A$6:$A$50000,Sumário!E$22,Consumo!$D$6:$D$50000,Sumário!$A30) -> 0 | F30: =SUMIFS(Consumo!$T$6:$T$50000,Consumo!$A$6:$A$50000,Sumário!F$22,Consumo!$D$6:$D$50000,Sumário!$A30) -> 0 | G30: =SUMIFS(Consumo!$T$6:$T$50000,Consumo!$A$6:$A$50000,Sumário!G$22,Consumo!$D$6:$D$50000,Sumário!$A30) -> 0 | H30: =SUMIFS(Consumo!$T$6:$T$50000,Consumo!$A$6:$A$50000,Sumário!H$22,Consumo!$D$6:$D$50000,Sumário!$A30) -> 0 | I30: =SUMIFS(Consumo!$T$6:$T$50000,Consumo!$A$6:$A$50000,Sumário!I$22,Consumo!$D$6:$D$50000,Sumário!$A30) -> 0 | J30: =SUMIFS(Consumo!$T$6:$T$50000,Consumo!$A$6:$A$50000,Sumário!J$22,Consumo!$D$6:$D$50000,Sumário!$A30) -> 0
A31: MATERIAL QUIMICO | B31: =SUMIFS(Consumo!$T$6:$T$50000,Consumo!$A$6:$A$50000,Sumário!B$22,Consumo!$D$6:$D$50000,Sumário!$A31) -> 0 | C31: =SUMIFS(Consumo!$T$6:$T$50000,Consumo!$A$6:$A$50000,Sumário!C$22,Consumo!$D$6:$D$50000,Sumário!$A31) -> 0 | D31: =SUMIFS(Consumo!$T$6:$T$50000,Consumo!$A$6:$A$50000,Sumário!D$22,Consumo!$D$6:$D$50000,Sumário!$A31) -> 0 | E31: =SUMIFS(Consumo!$T$6:$T$50000,Consumo!$A$6:$A$50000,Sumário!E$22,Consumo!$D$6:$D$50000,Sumário!$A31) -> 0 | F31: =SUMIFS(Consumo!$T$6:$T$50000,Consumo!$A$6:$A$50000,Sumário!F$22,Consumo!$D$6:$D$50000,Sumário!$A31) -> 0 | G31: =SUMIFS(Consumo!$T$6:$T$50000,Consumo!$A$6:$A$50000,Sumário!G$22,Consumo!$D$6:$D$50000,Sumário!$A31) -> 0 | H31: =SUMIFS(Consumo!$T$6:$T$50000,Consumo!$A$6:$A$50000,Sumário!H$22,Consumo!$D$6:$D$50000,Sumário!$A31) -> 0 | I31: =SUMIFS(Consumo!$T$6:$T$50000,Consumo!$A$6:$A$50000,Sumário!I$22,Consumo!$D$6:$D$50000,Sumário!$A31) -> 0 | J31: =SUMIFS(Consumo!$T$6:$T$50000,Consumo!$A$6:$A$50000,Sumário!J$22,Consumo!$D$6:$D$50000,Sumário!$A31) -> 0
A32: MATERIAL DE COUDELARIA OU DE USO ZOOTECNICO | B32: =SUMIFS(Consumo!$T$6:$T$50000,Consumo!$A$6:$A$50000,Sumário!B$22,Consumo!$D$6:$D$50000,Sumário!$A32) -> 0 | C32: =SUMIFS(Consumo!$T$6:$T$50000,Consumo!$A$6:$A$50000,Sumário!C$22,Consumo!$D$6:$D$50000,Sumário!$A32) -> 0 | D32: =SUMIFS(Consumo!$T$6:$T$50000,Consumo!$A$6:$A$50000,Sumário!D$22,Consumo!$D$6:$D$50000,Sumário!$A32) -> 0 | E32: =SUMIFS(Consumo!$T$6:$T$50000,Consumo!$A$6:$A$50000,Sumário!E$22,Consumo!$D$6:$D$50000,Sumário!$A32) -> 0 | F32: =SUMIFS(Consumo!$T$6:$T$50000,Consumo!$A$6:$A$50000,Sumário!F$22,Consumo!$D$6:$D$50000,Sumário!$A32) -> 0 | G32: =SUMIFS(Consumo!$T$6:$T$50000,Consumo!$A$6:$A$50000,Sumário!G$22,Consumo!$D$6:$D$50000,Sumário!$A32) -> 0 | H32: =SUMIFS(Consumo!$T$6:$T$50000,Consumo!$A$6:$A$50000,Sumário!H$22,Consumo!$D$6:$D$50000,Sumário!$A32) -> 0 | I32: =SUMIFS(Consumo!$T$6:$T$50000,Consumo!$A$6:$A$50000,Sumário!I$22,Consumo!$D$6:$D$50000,Sumário!$A32) -> 0 | J32: =SUMIFS(Consumo!$T$6:$T$50000,Consumo!$A$6:$A$50000,Sumário!J$22,Consumo!$D$6:$D$50000,Sumário!$A32) -> 0
A33: MATERIAL DE CACA E PESCA | B33: =SUMIFS(Consumo!$T$6:$T$50000,Consumo!$A$6:$A$50000,Sumário!B$22,Consumo!$D$6:$D$50000,Sumário!$A33) -> 0 | C33: =SUMIFS(Consumo!$T$6:$T$50000,Consumo!$A$6:$A$50000,Sumário!C$22,Consumo!$D$6:$D$50000,Sumário!$A33) -> 0 | D33: =SUMIFS(Consumo!$T$6:$T$50000,Consumo!$A$6:$A$50000,Sumário!D$22,Consumo!$D$6:$D$50000,Sumário!$A33) -> 0 | E33: =SUMIFS(Consumo!$T$6:$T$50000,Consumo!$A$6:$A$50000,Sumário!E$22,Consumo!$D$6:$D$50000,Sumário!$A33) -> 0 | F33: =SUMIFS(Consumo!$T$6:$T$50000,Consumo!$A$6:$A$50000,Sumário!F$22,Consumo!$D$6:$D$50000,Sumário!$A33) -> 0 | G33: =SUMIFS(Consumo!$T$6:$T$50000,Consumo!$A$6:$A$50000,Sumário!G$22,Consumo!$D$6:$D$50000,Sumário!$A33) -> 0 | H33: =SUMIFS(Consumo!$T$6:$T$50000,Consumo!$A$6:$A$50000,Sumário!H$22,Consumo!$D$6:$D$50000,Sumário!$A33) -> 0 | I33: =SUMIFS(Consumo!$T$6:$T$50000,Consumo!$A$6:$A$50000,Sumário!I$22,Consumo!$D$6:$D$50000,Sumário!$A33) -> 0 | J33: =SUMIFS(Consumo!$T$6:$T$50000,Consumo!$A$6:$A$50000,Sumário!J$22,Consumo!$D$6:$D$50000,Sumário!$A33) -> 0
A34: MATERIAL EDUCATIVO E ESPORTIVO | B34: =SUMIFS(Consumo!$T$6:$T$50000,Consumo!$A$6:$A$50000,Sumário!B$22,Consumo!$D$6:$D$50000,Sumário!$A34) -> 0 | C34: =SUMIFS(Consumo!$T$6:$T$50000,Consumo!$A$6:$A$50000,Sumário!C$22,Consumo!$D$6:$D$50000,Sumário!$A34) -> 0 | D34: =SUMIFS(Consumo!$T$6:$T$50000,Consumo!$A$6:$A$50000,Sumário!D$22,Consumo!$D$6:$D$50000,Sumário!$A34) -> 0 | E34: =SUMIFS(Consumo!$T$6:$T$50000,Consumo!$A$6:$A$50000,Sumário!E$22,Consumo!$D$6:$D$50000,Sumário!$A34) -> 0 | F34: =SUMIFS(Consumo!$T$6:$T$50000,Consumo!$A$6:$A$50000,Sumário!F$22,Consumo!$D$6:$D$50000,Sumário!$A34) -> 0 | G34: =SUMIFS(Consumo!$T$6:$T$50000,Consumo!$A$6:$A$50000,Sumário!G$22,Consumo!$D$6:$D$50000,Sumário!$A34) -> 0 | H34: =SUMIFS(Consumo!$T$6:$T$50000,Consumo!$A$6:$A$50000,Sumário!H$22,Consumo!$D$6:$D$50000,Sumário!$A34) -> 0 | I34: =SUMIFS(Consumo!$T$6:$T$50000,Consumo!$A$6:$A$50000,Sumário!I$22,Consumo!$D$6:$D$50000,Sumário!$A34) -> 0 | J34: =SUMIFS(Consumo!$T$6:$T$50000,Consumo!$A$6:$A$50000,Sumário!J$22,Consumo!$D$6:$D$50000,Sumário!$A34) -> 0
A35: MATERIAL P/ FESTIVIDADES E HOMENAGENS | B35: =SUMIFS(Consumo!$T$6:$T$50000,Consumo!$A$6:$A$50000,Sumário!B$22,Consumo!$D$6:$D$50000,Sumário!$A35) -> 0 | C35: =SUMIFS(Consumo!$T$6:$T$50000,Consumo!$A$6:$A$50000,Sumário!C$22,Consumo!$D$6:$D$50000,Sumário!$A35) -> 0 | D35: =SUMIFS(Consumo!$T$6:$T$50000,Consumo!$A$6:$A$50000,Sumário!D$22,Consumo!$D$6:$D$50000,Sumário!$A35) -> 0 | E35: =SUMIFS(Consumo!$T$6:$T$50000,Consumo!$A$6:$A$50000,Sumário!E$22,Consumo!$D$6:$D$50000,Sumário!$A35) -> 0 | F35: =SUMIFS(Consumo!$T$6:$T$50000,Consumo!$A$6:$A$50000,Sumário!F$22,Consumo!$D$6:$D$50000,Sumário!$A35) -> 0 | G35: =SUMIFS(Consumo!$T$6:$T$50000,Consumo!$A$6:$A$50000,Sumário!G$22,Consumo!$D$6:$D$50000,Sumário!$A35) -> 0 | H35: =SUMIFS(Consumo!$T$6:$T$50000,Consumo!$A$6:$A$50000,Sumário!H$22,Consumo!$D$6:$D$50000,Sumário!$A35) -> 0 | I35: =SUMIFS(Consumo!$T$6:$T$50000,Consumo!$A$6:$A$50000,Sumário!I$22,Consumo!$D$6:$D$50000,Sumário!$A35) -> 0 | J35: =SUMIFS(Consumo!$T$6:$T$50000,Consumo!$A$6:$A$50000,Sumário!J$22,Consumo!$D$6:$D$50000,Sumário!$A35) -> 0
A36: MATERIAL DE EXPEDIENTE | B36: =SUMIFS(Consumo!$T$6:$T$50000,Consumo!$A$6:$A$50000,Sumário!B$22,Consumo!$D$6:$D$50000,Sumário!$A36) -> 400 | C36: =SUMIFS(Consumo!$T$6:$T$50000,Consumo!$A$6:$A$50000,Sumário!C$22,Consumo!$D$6:$D$50000,Sumário!$A36) -> 122028 | D36: =SUMIFS(Consumo!$T$6:$T$50000,Consumo!$A$6:$A$50000,Sumário!D$22,Consumo!$D$6:$D$50000,Sumário!$A36) -> 583 | E36: =SUMIFS(Consumo!$T$6:$T$50000,Consumo!$A$6:$A$50000,Sumário!E$22,Consumo!$D$6:$D$50000,Sumário!$A36) -> 21 | F36: =SUMIFS(Consumo!$T$6:$T$50000,Consumo!$A$6:$A$50000,Sumário!F$22,Consumo!$D$6:$D$50000,Sumário!$A36) -> 583 | G36: =SUMIFS(Consumo!$T$6:$T$50000,Consumo!$A$6:$A$50000,Sumário!G$22,Consumo!$D$6:$D$50000,Sumário!$A36) -> 2300 | H36: =SUMIFS(Consumo!$T$6:$T$50000,Consumo!$A$6:$A$50000,Sumário!H$22,Consumo!$D$6:$D$50000,Sumário!$A36) -> 0 | I36: =SUMIFS(Consumo!$T$6:$T$50000,Consumo!$A$6:$A$50000,Sumário!I$22,Consumo!$D$6:$D$50000,Sumário!$A36) -> 0 | J36: =SUMIFS(Consumo!$T$6:$T$50000,Consumo!$A$6:$A$50000,Sumário!J$22,Consumo!$D$6:$D$50000,Sumário!$A36) -> 0
A37: MATERIAL DE PROCESSAMENTO DE DADOS | B37: =SUMIFS(Consumo!$T$6:$T$50000,Consumo!$A$6:$A$50000,Sumário!B$22,Consumo!$D$6:$D$50000,Sumário!$A37) -> 374260 | C37: =SUMIFS(Consumo!$T$6:$T$50000,Consumo!$A$6:$A$50000,Sumário!C$22,Consumo!$D$6:$D$50000,Sumário!$A37) -> 0 | D37: =SUMIFS(Consumo!$T$6:$T$50000,Consumo!$A$6:$A$50000,Sumário!D$22,Consumo!$D$6:$D$50000,Sumário!$A37) -> 13375 | E37: =SUMIFS(Consumo!$T$6:$T$50000,Consumo!$A$6:$A$50000,Sumário!E$22,Consumo!$D$6:$D$50000,Sumário!$A37) -> 0 | F37: =SUMIFS(Consumo!$T$6:$T$50000,Consumo!$A$6:$A$50000,Sumário!F$22,Consumo!$D$6:$D$50000,Sumário!$A37) -> 0 | G37: =SUMIFS(Consumo!$T$6:$T$50000,Consumo!$A$6:$A$50000,Sumário!G$22,Consumo!$D$6:$D$50000,Sumário!$A37) -> 0 | H37: =SUMIFS(Consumo!$T$6:$T$50000,Consumo!$A$6:$A$50000,Sumário!H$22,Consumo!$D$6:$D$50000,Sumário!$A37) -> 0 | I37: =SUMIFS(Consumo!$T$6:$T$50000,Consumo!$A$6:$A$50000,Sumário!I$22,Consumo!$D$6:$D$50000,Sumário!$A37) -> 374260 | J37: =SUMIFS(Consumo!$T$6:$T$50000,Consumo!$A$6:$A$50000,Sumário!J$22,Consumo!$D$6:$D$50000,Sumário!$A37) -> 0
A38: MATERIAIS E MEDICAMENTOS P/ USO VETERINARIO | B38: =SUMIFS(Consumo!$T$6:$T$50000,Consumo!$A$6:$A$50000,Sumário!B$22,Consumo!$D$6:$D$50000,Sumário!$A38) -> 0 | C38: =SUMIFS(Consumo!$T$6:$T$50000,Consumo!$A$6:$A$50000,Sumário!C$22,Consumo!$D$6:$D$50000,Sumário!$A38) -> 0 | D38: =SUMIFS(Consumo!$T$6:$T$50000,Consumo!$A$6:$A$50000,Sumário!D$22,Consumo!$D$6:$D$50000,Sumário!$A38) -> 0 | E38: =SUMIFS(Consumo!$T$6:$T$50000,Consumo!$A$6:$A$50000,Sumário!E$22,Consumo!$D$6:$D$50000,Sumário!$A38) -> 0 | F38: =SUMIFS(Consumo!$T$6:$T$50000,Consumo!$A$6:$A$50000,Sumário!F$22,Consumo!$D$6:$D$50000,Sumário!$A38) -> 0 | G38: =SUMIFS(Consumo!$T$6:$T$50000,Consumo!$A$6:$A$50000,Sumário!G$22,Consumo!$D$6:$D$50000,Sumário!$A38) -> 0 | H38: =SUMIFS(Consumo!$T$6:$T$50000,Consumo!$A$6:$A$50000,Sumário!H$22,Consumo!$D$6:$D$50000,Sumário!$A38) -> 0 | I38: =SUMIFS(Consumo!$T$6:$T$50000,Consumo!$A$6:$A$50000,Sumário!I$22,Consumo!$D$6:$D$50000,Sumário!$A38) -> 0 | J38: =SUMIFS(Consumo!$T$6:$T$50000,Consumo!$A$6:$A$50000,Sumário!J$22,Consumo!$D$6:$D$50000,Sumário!$A38) -> 0
A39: MATERIAL DE ACONDICIONAMENTO E EMBALAGEM | B39: =SUMIFS(Consumo!$T$6:$T$50000,Consumo!$A$6:$A$50000,Sumário!B$22,Consumo!$D$6:$D$50000,Sumário!$A39) -> 0 | C39: =SUMIFS(Consumo!$T$6:$T$50000,Consumo!$A$6:$A$50000,Sumário!C$22,Consumo!$D$6:$D$50000,Sumário!$A39) -> 14722 | D39: =SUMIFS(Consumo!$T$6:$T$50000,Consumo!$A$6:$A$50000,Sumário!D$22,Consumo!$D$6:$D$50000,Sumário!$A39) -> 0 | E39: =SUMIFS(Consumo!$T$6:$T$50000,Consumo!$A$6:$A$50000,Sumário!E$22,Consumo!$D$6:$D$50000,Sumário!$A39) -> 0 | F39: =SUMIFS(Consumo!$T$6:$T$50000,Consumo!$A$6:$A$50000,Sumário!F$22,Consumo!$D$6:$D$50000,Sumário!$A39) -> 0 | G39: =SUMIFS(Consumo!$T$6:$T$50000,Consumo!$A$6:$A$50000,Sumário!G$22,Consumo!$D$6:$D$50000,Sumário!$A39) -> 540 | H39: =SUMIFS(Consumo!$T$6:$T$50000,Consumo!$A$6:$A$50000,Sumário!H$22,Consumo!$D$6:$D$50000,Sumário!$A39) -> 0 | I39: =SUMIFS(Consumo!$T$6:$T$50000,Consumo!$A$6:$A$50000,Sumário!I$22,Consumo!$D$6:$D$50000,Sumário!$A39) -> 0 | J39: =SUMIFS(Consumo!$T$6:$T$50000,Consumo!$A$6:$A$50000,Sumário!J$22,Consumo!$D$6:$D$50000,Sumário!$A39) -> 0
A40: MATERIAL DE CAMA, MESA E BANHO | B40: =SUMIFS(Consumo!$T$6:$T$50000,Consumo!$A$6:$A$50000,Sumário!B$22,Consumo!$D$6:$D$50000,Sumário!$A40) -> 0 | C40: =SUMIFS(Consumo!$T$6:$T$50000,Consumo!$A$6:$A$50000,Sumário!C$22,Consumo!$D$6:$D$50000,Sumário!$A40) -> 0 | D40: =SUMIFS(Consumo!$T$6:$T$50000,Consumo!$A$6:$A$50000,Sumário!D$22,Consumo!$D$6:$D$50000,Sumário!$A40) -> 0 | E40: =SUMIFS(Consumo!$T$6:$T$50000,Consumo!$A$6:$A$50000,Sumário!E$22,Consumo!$D$6:$D$50000,Sumário!$A40) -> 0 | F40: =SUMIFS(Consumo!$T$6:$T$50000,Consumo!$A$6:$A$50000,Sumário!F$22,Consumo!$D$6:$D$50000,Sumário!$A40) -> 0 | G40: =SUMIFS(Consumo!$T$6:$T$50000,Consumo!$A$6:$A$50000,Sumário!G$22,Consumo!$D$6:$D$50000,Sumário!$A40) -> 0 | H40: =SUMIFS(Consumo!$T$6:$T$50000,Consumo!$A$6:$A$50000,Sumário!H$22,Consumo!$D$6:$D$50000,Sumário!$A40) -> 0 | I40: =SUMIFS(Consumo!$T$6:$T$50000,Consumo!$A$6:$A$50000,Sumário!I$22,Consumo!$D$6:$D$50000,Sumário!$A40) -> 0 | J40: =SUMIFS(Consumo!$T$6:$T$50000,Consumo!$A$6:$A$50000,Sumário!J$22,Consumo!$D$6:$D$50000,Sumário!$A40) -> 0
A41: MATERIAL DE COPA E COZINHA | B41: =SUMIFS(Consumo!$T$6:$T$50000,Consumo!$A$6:$A$50000,Sumário!B$22,Consumo!$D$6:$D$50000,Sumário!$A41) -> 0 | C41: =SUMIFS(Consumo!$T$6:$T$50000,Consumo!$A$6:$A$50000,Sumário!C$22,Consumo!$D$6:$D$50000,Sumário!$A41) -> 0 | D41: =SUMIFS(Consumo!$T$6:$T$50000,Consumo!$A$6:$A$50000,Sumário!D$22,Consumo!$D$6:$D$50000,Sumário!$A41) -> 0 | E41: =SUMIFS(Consumo!$T$6:$T$50000,Consumo!$A$6:$A$50000,Sumário!E$22,Consumo!$D$6:$D$50000,Sumário!$A41) -> 0 | F41: =SUMIFS(Consumo!$T$6:$T$50000,Consumo!$A$6:$A$50000,Sumário!F$22,Consumo!$D$6:$D$50000,Sumário!$A41) -> 0 | G41: =SUMIFS(Consumo!$T$6:$T$50000,Consumo!$A$6:$A$50000,Sumário!G$22,Consumo!$D$6:$D$50000,Sumário!$A41) -> 0 | H41: =SUMIFS(Consumo!$T$6:$T$50000,Consumo!$A$6:$A$50000,Sumário!H$22,Consumo!$D$6:$D$50000,Sumário!$A41) -> 0 | I41: =SUMIFS(Consumo!$T$6:$T$50000,Consumo!$A$6:$A$50000,Sumário!I$22,Consumo!$D$6:$D$50000,Sumário!$A41) -> 0 | J41: =SUMIFS(Consumo!$T$6:$T$50000,Consumo!$A$6:$A$50000,Sumário!J$22,Consumo!$D$6:$D$50000,Sumário!$A41) -> 0
A42: MATERIAL DE LIMPEZA E PROD. DE HIGIENIZAÇÃO | B42: =SUMIFS(Consumo!$T$6:$T$50000,Consumo!$A$6:$A$50000,Sumário!B$22,Consumo!$D$6:$D$50000,Sumário!$A42) -> 45334.1 | C42: =SUMIFS(Consumo!$T$6:$T$50000,Consumo!$A$6:$A$50000,Sumário!C$22,Consumo!$D$6:$D$50000,Sumário!$A42) -> 0 | D42: =SUMIFS(Consumo!$T$6:$T$50000,Consumo!$A$6:$A$50000,Sumário!D$22,Consumo!$D$6:$D$50000,Sumário!$A42) -> 16835 | E42: =SUMIFS(Consumo!$T$6:$T$50000,Consumo!$A$6:$A$50000,Sumário!E$22,Consumo!$D$6:$D$50000,Sumário!$A42) -> 0 | F42: =SUMIFS(Consumo!$T$6:$T$50000,Consumo!$A$6:$A$50000,Sumário!F$22,Consumo!$D$6:$D$50000,Sumário!$A42) -> 16835 | G42: =SUMIFS(Consumo!$T$6:$T$50000,Consumo!$A$6:$A$50000,Sumário!G$22,Consumo!$D$6:$D$50000,Sumário!$A42) -> 10285.7 | H42: =SUMIFS(Consumo!$T$6:$T$50000,Consumo!$A$6:$A$50000,Sumário!H$22,Consumo!$D$6:$D$50000,Sumário!$A42) -> 0 | I42: =SUMIFS(Consumo!$T$6:$T$50000,Consumo!$A$6:$A$50000,Sumário!I$22,Consumo!$D$6:$D$50000,Sumário!$A42) -> 0 | J42: =SUMIFS(Consumo!$T$6:$T$50000,Consumo!$A$6:$A$50000,Sumário!J$22,Consumo!$D$6:$D$50000,Sumário!$A42) -> 0
A43: UNIFORMES, TECIDOS E AVIAMENTOS | B43: =SUMIFS(Consumo!$T$6:$T$50000,Consumo!$A$6:$A$50000,Sumário!B$22,Consumo!$D$6:$D$50000,Sumário!$A43) -> 126700 | C43: =SUMIFS(Consumo!$T$6:$T$50000,Consumo!$A$6:$A$50000,Sumário!C$22,Consumo!$D$6:$D$50000,Sumário!$A43) -> 0 | D43: =SUMIFS(Consumo!$T$6:$T$50000,Consumo!$A$6:$A$50000,Sumário!D$22,Consumo!$D$6:$D$50000,Sumário!$A43) -> 0 | E43: =SUMIFS(Consumo!$T$6:$T$50000,Consumo!$A$6:$A$50000,Sumário!E$22,Consumo!$D$6:$D$50000,Sumário!$A43) -> 0 | F43: =SUMIFS(Consumo!$T$6:$T$50000,Consumo!$A$6:$A$50000,Sumário!F$22,Consumo!$D$6:$D$50000,Sumário!$A43) -> 0 | G43: =SUMIFS(Consumo!$T$6:$T$50000,Consumo!$A$6:$A$50000,Sumário!G$22,Consumo!$D$6:$D$50000,Sumário!$A43) -> 0 | H43: =SUMIFS(Consumo!$T$6:$T$50000,Consumo!$A$6:$A$50000,Sumário!H$22,Consumo!$D$6:$D$50000,Sumário!$A43) -> 0 | I43: =SUMIFS(Consumo!$T$6:$T$50000,Consumo!$A$6:$A$50000,Sumário!I$22,Consumo!$D$6:$D$50000,Sumário!$A43) -> 0 | J43: =SUMIFS(Consumo!$T$6:$T$50000,Consumo!$A$6:$A$50000,Sumário!J$22,Consumo!$D$6:$D$50000,Sumário!$A43) -> 0
A44: MATERIAL P/ MANUT.DE BENS IMOVEIS/INSTALACOES | B44: =SUMIFS(Consumo!$T$6:$T$50000,Consumo!$A$6:$A$50000,Sumário!B$22,Consumo!$D$6:$D$50000,Sumário!$A44) -> 847822.18 | C44: =SUMIFS(Consumo!$T$6:$T$50000,Consumo!$A$6:$A$50000,Sumário!C$22,Consumo!$D$6:$D$50000,Sumário!$A44) -> 0 | D44: =SUMIFS(Consumo!$T$6:$T$50000,Consumo!$A$6:$A$50000,Sumário!D$22,Consumo!$D$6:$D$50000,Sumário!$A44) -> 0 | E44: =SUMIFS(Consumo!$T$6:$T$50000,Consumo!$A$6:$A$50000,Sumário!E$22,Consumo!$D$6:$D$50000,Sumário!$A44) -> 15 | F44: =SUMIFS(Consumo!$T$6:$T$50000,Consumo!$A$6:$A$50000,Sumário!F$22,Consumo!$D$6:$D$50000,Sumário!$A44) -> 0 | G44: =SUMIFS(Consumo!$T$6:$T$50000,Consumo!$A$6:$A$50000,Sumário!G$22,Consumo!$D$6:$D$50000,Sumário!$A44) -> 54710 | H44: =SUMIFS(Consumo!$T$6:$T$50000,Consumo!$A$6:$A$50000,Sumário!H$22,Consumo!$D$6:$D$50000,Sumário!$A44) -> 0 | I44: =SUMIFS(Consumo!$T$6:$T$50000,Consumo!$A$6:$A$50000,Sumário!I$22,Consumo!$D$6:$D$50000,Sumário!$A44) -> 0 | J44: =SUMIFS(Consumo!$T$6:$T$50000,Consumo!$A$6:$A$50000,Sumário!J$22,Consumo!$D$6:$D$50000,Sumário!$A44) -> 0
A45: MATERIAL P/ MANUTENCAO DE BENS MOVEIS | B45: =SUMIFS(Consumo!$T$6:$T$50000,Consumo!$A$6:$A$50000,Sumário!B$22,Consumo!$D$6:$D$50000,Sumário!$A45) -> 1560 | C45: =SUMIFS(Consumo!$T$6:$T$50000,Consumo!$A$6:$A$50000,Sumário!C$22,Consumo!$D$6:$D$50000,Sumário!$A45) -> 0 | D45: =SUMIFS(Consumo!$T$6:$T$50000,Consumo!$A$6:$A$50000,Sumário!D$22,Consumo!$D$6:$D$50000,Sumário!$A45) -> 0 | E45: =SUMIFS(Consumo!$T$6:$T$50000,Consumo!$A$6:$A$50000,Sumário!E$22,Consumo!$D$6:$D$50000,Sumário!$A45) -> 0 | F45: =SUMIFS(Consumo!$T$6:$T$50000,Consumo!$A$6:$A$50000,Sumário!F$22,Consumo!$D$6:$D$50000,Sumário!$A45) -> 0 | G45: =SUMIFS(Consumo!$T$6:$T$50000,Consumo!$A$6:$A$50000,Sumário!G$22,Consumo!$D$6:$D$50000,Sumário!$A45) -> 150 | H45: =SUMIFS(Consumo!$T$6:$T$50000,Consumo!$A$6:$A$50000,Sumário!H$22,Consumo!$D$6:$D$50000,Sumário!$A45) -> 0 | I45: =SUMIFS(Consumo!$T$6:$T$50000,Consumo!$A$6:$A$50000,Sumário!I$22,Consumo!$D$6:$D$50000,Sumário!$A45) -> 0 | J45: =SUMIFS(Consumo!$T$6:$T$50000,Consumo!$A$6:$A$50000,Sumário!J$22,Consumo!$D$6:$D$50000,Sumário!$A45) -> 0
A46: MATERIAL ELETRICO E ELETRONICO | B46: =SUMIFS(Consumo!$T$6:$T$50000,Consumo!$A$6:$A$50000,Sumário!B$22,Consumo!$D$6:$D$50000,Sumário!$A46) -> 1560 | C46: =SUMIFS(Consumo!$T$6:$T$50000,Consumo!$A$6:$A$50000,Sumário!C$22,Consumo!$D$6:$D$50000,Sumário!$A46) -> 10600 | D46: =SUMIFS(Consumo!$T$6:$T$50000,Consumo!$A$6:$A$50000,Sumário!D$22,Consumo!$D$6:$D$50000,Sumário!$A46) -> 4060 | E46: =SUMIFS(Consumo!$T$6:$T$50000,Consumo!$A$6:$A$50000,Sumário!E$22,Consumo!$D$6:$D$50000,Sumário!$A46) -> 375 | F46: =SUMIFS(Consumo!$T$6:$T$50000,Consumo!$A$6:$A$50000,Sumário!F$22,Consumo!$D$6:$D$50000,Sumário!$A46) -> 4060 | G46: =SUMIFS(Consumo!$T$6:$T$50000,Consumo!$A$6:$A$50000,Sumário!G$22,Consumo!$D$6:$D$50000,Sumário!$A46) -> 0 | H46: =SUMIFS(Consumo!$T$6:$T$50000,Consumo!$A$6:$A$50000,Sumário!H$22,Consumo!$D$6:$D$50000,Sumário!$A46) -> 0 | I46: =SUMIFS(Consumo!$T$6:$T$50000,Consumo!$A$6:$A$50000,Sumário!I$22,Consumo!$D$6:$D$50000,Sumário!$A46) -> 0 | J46: =SUMIFS(Consumo!$T$6:$T$50000,Consumo!$A$6:$A$50000,Sumário!J$22,Consumo!$D$6:$D$50000,Sumário!$A46) -> 0
A47: MATERIAL DE PROTECAO E SEGURANCA | B47: =SUMIFS(Consumo!$T$6:$T$50000,Consumo!$A$6:$A$50000,Sumário!B$22,Consumo!$D$6:$D$50000,Sumário!$A47) -> 0 | C47: =SUMIFS(Consumo!$T$6:$T$50000,Consumo!$A$6:$A$50000,Sumário!C$22,Consumo!$D$6:$D$50000,Sumário!$A47) -> 0 | D47: =SUMIFS(Consumo!$T$6:$T$50000,Consumo!$A$6:$A$50000,Sumário!D$22,Consumo!$D$6:$D$50000,Sumário!$A47) -> 0 | E47: =SUMIFS(Consumo!$T$6:$T$50000,Consumo!$A$6:$A$50000,Sumário!E$22,Consumo!$D$6:$D$50000,Sumário!$A47) -> 0 | F47: =SUMIFS(Consumo!$T$6:$T$50000,Consumo!$A$6:$A$50000,Sumário!F$22,Consumo!$D$6:$D$50000,Sumário!$A47) -> 0 | G47: =SUMIFS(Consumo!$T$6:$T$50000,Consumo!$A$6:$A$50000,Sumário!G$22,Consumo!$D$6:$D$50000,Sumário!$A47) -> 2200 | H47: =SUMIFS(Consumo!$T$6:$T$50000,Consumo!$A$6:$A$50000,Sumário!H$22,Consumo!$D$6:$D$50000,Sumário!$A47) -> 0 | I47: =SUMIFS(Consumo!$T$6:$T$50000,Consumo!$A$6:$A$50000,Sumário!I$22,Consumo!$D$6:$D$50000,Sumário!$A47) -> 0 | J47: =SUMIFS(Consumo!$T$6:$T$50000,Consumo!$A$6:$A$50000,Sumário!J$22,Consumo!$D$6:$D$50000,Sumário!$A47) -> 0
A48: MATERIAL P/ AUDIO, VIDEO E FOTO | B48: =SUMIFS(Consumo!$T$6:$T$50000,Consumo!$A$6:$A$50000,Sumário!B$22,Consumo!$D$6:$D$50000,Sumário!$A48) -> 0 | C48: =SUMIFS(Consumo!$T$6:$T$50000,Consumo!$A$6:$A$50000,Sumário!C$22,Consumo!$D$6:$D$50000,Sumário!$A48) -> 0 | D48: =SUMIFS(Consumo!$T$6:$T$50000,Consumo!$A$6:$A$50000,Sumário!D$22,Consumo!$D$6:$D$50000,Sumário!$A48) -> 0 | E48: =SUMIFS(Consumo!$T$6:$T$50000,Consumo!$A$6:$A$50000,Sumário!E$22,Consumo!$D$6:$D$50000,Sumário!$A48) -> 0 | F48: =SUMIFS(Consumo!$T$6:$T$50000,Consumo!$A$6:$A$50000,Sumário!F$22,Consumo!$D$6:$D$50000,Sumário!$A48) -> 0 | G48: =SUMIFS(Consumo!$T$6:$T$50000,Consumo!$A$6:$A$50000,Sumário!G$22,Consumo!$D$6:$D$50000,Sumário!$A48) -> 0 | H48: =SUMIFS(Consumo!$T$6:$T$50000,Consumo!$A$6:$A$50000,Sumário!H$22,Consumo!$D$6:$D$50000,Sumário!$A48) -> 0 | I48: =SUMIFS(Consumo!$T$6:$T$50000,Consumo!$A$6:$A$50000,Sumário!I$22,Consumo!$D$6:$D$50000,Sumário!$A48) -> 0 | J48: =SUMIFS(Consumo!$T$6:$T$50000,Consumo!$A$6:$A$50000,Sumário!J$22,Consumo!$D$6:$D$50000,Sumário!$A48) -> 0
A49: MATERIAL PARA COMUNICACOES | B49: =SUMIFS(Consumo!$T$6:$T$50000,Consumo!$A$6:$A$50000,Sumário!B$22,Consumo!$D$6:$D$50000,Sumário!$A49) -> 0 | C49: =SUMIFS(Consumo!$T$6:$T$50000,Consumo!$A$6:$A$50000,Sumário!C$22,Consumo!$D$6:$D$50000,Sumário!$A49) -> 0 | D49: =SUMIFS(Consumo!$T$6:$T$50000,Consumo!$A$6:$A$50000,Sumário!D$22,Consumo!$D$6:$D$50000,Sumário!$A49) -> 0 | E49: =SUMIFS(Consumo!$T$6:$T$50000,Consumo!$A$6:$A$50000,Sumário!E$22,Consumo!$D$6:$D$50000,Sumário!$A49) -> 0 | F49: =SUMIFS(Consumo!$T$6:$T$50000,Consumo!$A$6:$A$50000,Sumário!F$22,Consumo!$D$6:$D$50000,Sumário!$A49) -> 0 | G49: =SUMIFS(Consumo!$T$6:$T$50000,Consumo!$A$6:$A$50000,Sumário!G$22,Consumo!$D$6:$D$50000,Sumário!$A49) -> 0 | H49: =SUMIFS(Consumo!$T$6:$T$50000,Consumo!$A$6:$A$50000,Sumário!H$22,Consumo!$D$6:$D$50000,Sumário!$A49) -> 0 | I49: =SUMIFS(Consumo!$T$6:$T$50000,Consumo!$A$6:$A$50000,Sumário!I$22,Consumo!$D$6:$D$50000,Sumário!$A49) -> 0 | J49: =SUMIFS(Consumo!$T$6:$T$50000,Consumo!$A$6:$A$50000,Sumário!J$22,Consumo!$D$6:$D$50000,Sumário!$A49) -> 0
A50: SEMENTES, MUDAS DE PLANTAS E INSUMOS | B50: =SUMIFS(Consumo!$T$6:$T$50000,Consumo!$A$6:$A$50000,Sumário!B$22,Consumo!$D$6:$D$50000,Sumário!$A50) -> 0 | C50: =SUMIFS(Consumo!$T$6:$T$50000,Consumo!$A$6:$A$50000,Sumário!C$22,Consumo!$D$6:$D$50000,Sumário!$A50) -> 0 | D50: =SUMIFS(Consumo!$T$6:$T$50000,Consumo!$A$6:$A$50000,Sumário!D$22,Consumo!$D$6:$D$50000,Sumário!$A50) -> 0 | E50: =SUMIFS(Consumo!$T$6:$T$50000,Consumo!$A$6:$A$50000,Sumário!E$22,Consumo!$D$6:$D$50000,Sumário!$A50) -> 0 | F50: =SUMIFS(Consumo!$T$6:$T$50000,Consumo!$A$6:$A$50000,Sumário!F$22,Consumo!$D$6:$D$50000,Sumário!$A50) -> 0 | G50: =SUMIFS(Consumo!$T$6:$T$50000,Consumo!$A$6:$A$50000,Sumário!G$22,Consumo!$D$6:$D$50000,Sumário!$A50) -> 0 | H50: =SUMIFS(Consumo!$T$6:$T$50000,Consumo!$A$6:$A$50000,Sumário!H$22,Consumo!$D$6:$D$50000,Sumário!$A50) -> 0 | I50: =SUMIFS(Consumo!$T$6:$T$50000,Consumo!$A$6:$A$50000,Sumário!I$22,Consumo!$D$6:$D$50000,Sumário!$A50) -> 0 | J50: =SUMIFS(Consumo!$T$6:$T$50000,Consumo!$A$6:$A$50000,Sumário!J$22,Consumo!$D$6:$D$50000,Sumário!$A50) -> 0
A51: SUPRIMENTO DE AVIACAO | B51: =SUMIFS(Consumo!$T$6:$T$50000,Consumo!$A$6:$A$50000,Sumário!B$22,Consumo!$D$6:$D$50000,Sumário!$A51) -> 0 | C51: =SUMIFS(Consumo!$T$6:$T$50000,Consumo!$A$6:$A$50000,Sumário!C$22,Consumo!$D$6:$D$50000,Sumário!$A51) -> 0 | D51: =SUMIFS(Consumo!$T$6:$T$50000,Consumo!$A$6:$A$50000,Sumário!D$22,Consumo!$D$6:$D$50000,Sumário!$A51) -> 0 | E51: =SUMIFS(Consumo!$T$6:$T$50000,Consumo!$A$6:$A$50000,Sumário!E$22,Consumo!$D$6:$D$50000,Sumário!$A51) -> 0 | F51: =SUMIFS(Consumo!$T$6:$T$50000,Consumo!$A$6:$A$50000,Sumário!F$22,Consumo!$D$6:$D$50000,Sumário!$A51) -> 0 | G51: =SUMIFS(Consumo!$T$6:$T$50000,Consumo!$A$6:$A$50000,Sumário!G$22,Consumo!$D$6:$D$50000,Sumário!$A51) -> 0 | H51: =SUMIFS(Consumo!$T$6:$T$50000,Consumo!$A$6:$A$50000,Sumário!H$22,Consumo!$D$6:$D$50000,Sumário!$A51) -> 0 | I51: =SUMIFS(Consumo!$T$6:$T$50000,Consumo!$A$6:$A$50000,Sumário!I$22,Consumo!$D$6:$D$50000,Sumário!$A51) -> 0 | J51: =SUMIFS(Consumo!$T$6:$T$50000,Consumo!$A$6:$A$50000,Sumário!J$22,Consumo!$D$6:$D$50000,Sumário!$A51) -> 0
A52: MATERIAL P/ PRODUCAO INDUSTRIAL | B52: =SUMIFS(Consumo!$T$6:$T$50000,Consumo!$A$6:$A$50000,Sumário!B$22,Consumo!$D$6:$D$50000,Sumário!$A52) -> 0 | C52: =SUMIFS(Consumo!$T$6:$T$50000,Consumo!$A$6:$A$50000,Sumário!C$22,Consumo!$D$6:$D$50000,Sumário!$A52) -> 0 | D52: =SUMIFS(Consumo!$T$6:$T$50000,Consumo!$A$6:$A$50000,Sumário!D$22,Consumo!$D$6:$D$50000,Sumário!$A52) -> 0 | E52: =SUMIFS(Consumo!$T$6:$T$50000,Consumo!$A$6:$A$50000,Sumário!E$22,Consumo!$D$6:$D$50000,Sumário!$A52) -> 0 | F52: =SUMIFS(Consumo!$T$6:$T$50000,Consumo!$A$6:$A$50000,Sumário!F$22,Consumo!$D$6:$D$50000,Sumário!$A52) -> 0 | G52: =SUMIFS(Consumo!$T$6:$T$50000,Consumo!$A$6:$A$50000,Sumário!G$22,Consumo!$D$6:$D$50000,Sumário!$A52) -> 0 | H52: =SUMIFS(Consumo!$T$6:$T$50000,Consumo!$A$6:$A$50000,Sumário!H$22,Consumo!$D$6:$D$50000,Sumário!$A52) -> 0 | I52: =SUMIFS(Consumo!$T$6:$T$50000,Consumo!$A$6:$A$50000,Sumário!I$22,Consumo!$D$6:$D$50000,Sumário!$A52) -> 0 | J52: =SUMIFS(Consumo!$T$6:$T$50000,Consumo!$A$6:$A$50000,Sumário!J$22,Consumo!$D$6:$D$50000,Sumário!$A52) -> 0
A53: SOBRESSAL. MAQ.E MOTORES NAVIOS E EMBARCACOES | B53: =SUMIFS(Consumo!$T$6:$T$50000,Consumo!$A$6:$A$50000,Sumário!B$22,Consumo!$D$6:$D$50000,Sumário!$A53) -> 0 | C53: =SUMIFS(Consumo!$T$6:$T$50000,Consumo!$A$6:$A$50000,Sumário!C$22,Consumo!$D$6:$D$50000,Sumário!$A53) -> 0 | D53: =SUMIFS(Consumo!$T$6:$T$50000,Consumo!$A$6:$A$50000,Sumário!D$22,Consumo!$D$6:$D$50000,Sumário!$A53) -> 0 | E53: =SUMIFS(Consumo!$T$6:$T$50000,Consumo!$A$6:$A$50000,Sumário!E$22,Consumo!$D$6:$D$50000,Sumário!$A53) -> 0 | F53: =SUMIFS(Consumo!$T$6:$T$50000,Consumo!$A$6:$A$50000,Sumário!F$22,Consumo!$D$6:$D$50000,Sumário!$A53) -> 0 | G53: =SUMIFS(Consumo!$T$6:$T$50000,Consumo!$A$6:$A$50000,Sumário!G$22,Consumo!$D$6:$D$50000,Sumário!$A53) -> 0 | H53: =SUMIFS(Consumo!$T$6:$T$50000,Consumo!$A$6:$A$50000,Sumário!H$22,Consumo!$D$6:$D$50000,Sumário!$A53) -> 0 | I53: =SUMIFS(Consumo!$T$6:$T$50000,Consumo!$A$6:$A$50000,Sumário!I$22,Consumo!$D$6:$D$50000,Sumário!$A53) -> 0 | J53: =SUMIFS(Consumo!$T$6:$T$50000,Consumo!$A$6:$A$50000,Sumário!J$22,Consumo!$D$6:$D$50000,Sumário!$A53) -> 0
A54: MATERIAL LABORATORIAL | B54: =SUMIFS(Consumo!$T$6:$T$50000,Consumo!$A$6:$A$50000,Sumário!B$22,Consumo!$D$6:$D$50000,Sumário!$A54) -> 0 | C54: =SUMIFS(Consumo!$T$6:$T$50000,Consumo!$A$6:$A$50000,Sumário!C$22,Consumo!$D$6:$D$50000,Sumário!$A54) -> 0 | D54: =SUMIFS(Consumo!$T$6:$T$50000,Consumo!$A$6:$A$50000,Sumário!D$22,Consumo!$D$6:$D$50000,Sumário!$A54) -> 0 | E54: =SUMIFS(Consumo!$T$6:$T$50000,Consumo!$A$6:$A$50000,Sumário!E$22,Consumo!$D$6:$D$50000,Sumário!$A54) -> 0 | F54: =SUMIFS(Consumo!$T$6:$T$50000,Consumo!$A$6:$A$50000,Sumário!F$22,Consumo!$D$6:$D$50000,Sumário!$A54) -> 0 | G54: =SUMIFS(Consumo!$T$6:$T$50000,Consumo!$A$6:$A$50000,Sumário!G$22,Consumo!$D$6:$D$50000,Sumário!$A54) -> 0 | H54: =SUMIFS(Consumo!$T$6:$T$50000,Consumo!$A$6:$A$50000,Sumário!H$22,Consumo!$D$6:$D$50000,Sumário!$A54) -> 0 | I54: =SUMIFS(Consumo!$T$6:$T$50000,Consumo!$A$6:$A$50000,Sumário!I$22,Consumo!$D$6:$D$50000,Sumário!$A54) -> 0 | J54: =SUMIFS(Consumo!$T$6:$T$50000,Consumo!$A$6:$A$50000,Sumário!J$22,Consumo!$D$6:$D$50000,Sumário!$A54) -> 0
A55: MATERIAL HOSPITALAR | B55: =SUMIFS(Consumo!$T$6:$T$50000,Consumo!$A$6:$A$50000,Sumário!B$22,Consumo!$D$6:$D$50000,Sumário!$A55) -> 10733.5 | C55: =SUMIFS(Consumo!$T$6:$T$50000,Consumo!$A$6:$A$50000,Sumário!C$22,Consumo!$D$6:$D$50000,Sumário!$A55) -> 0 | D55: =SUMIFS(Consumo!$T$6:$T$50000,Consumo!$A$6:$A$50000,Sumário!D$22,Consumo!$D$6:$D$50000,Sumário!$A55) -> 0 | E55: =SUMIFS(Consumo!$T$6:$T$50000,Consumo!$A$6:$A$50000,Sumário!E$22,Consumo!$D$6:$D$50000,Sumário!$A55) -> 0 | F55: =SUMIFS(Consumo!$T$6:$T$50000,Consumo!$A$6:$A$50000,Sumário!F$22,Consumo!$D$6:$D$50000,Sumário!$A55) -> 0 | G55: =SUMIFS(Consumo!$T$6:$T$50000,Consumo!$A$6:$A$50000,Sumário!G$22,Consumo!$D$6:$D$50000,Sumário!$A55) -> 0 | H55: =SUMIFS(Consumo!$T$6:$T$50000,Consumo!$A$6:$A$50000,Sumário!H$22,Consumo!$D$6:$D$50000,Sumário!$A55) -> 0 | I55: =SUMIFS(Consumo!$T$6:$T$50000,Consumo!$A$6:$A$50000,Sumário!I$22,Consumo!$D$6:$D$50000,Sumário!$A55) -> 0 | J55: =SUMIFS(Consumo!$T$6:$T$50000,Consumo!$A$6:$A$50000,Sumário!J$22,Consumo!$D$6:$D$50000,Sumário!$A55) -> 0
A56: SUPRIMENTO DE PROTECAO AO VOO | B56: =SUMIFS(Consumo!$T$6:$T$50000,Consumo!$A$6:$A$50000,Sumário!B$22,Consumo!$D$6:$D$50000,Sumário!$A56) -> 0 | C56: =SUMIFS(Consumo!$T$6:$T$50000,Consumo!$A$6:$A$50000,Sumário!C$22,Consumo!$D$6:$D$50000,Sumário!$A56) -> 0 | D56: =SUMIFS(Consumo!$T$6:$T$50000,Consumo!$A$6:$A$50000,Sumário!D$22,Consumo!$D$6:$D$50000,Sumário!$A56) -> 0 | E56: =SUMIFS(Consumo!$T$6:$T$50000,Consumo!$A$6:$A$50000,Sumário!E$22,Consumo!$D$6:$D$50000,Sumário!$A56) -> 0 | F56: =SUMIFS(Consumo!$T$6:$T$50000,Consumo!$A$6:$A$50000,Sumário!F$22,Consumo!$D$6:$D$50000,Sumário!$A56) -> 0 | G56: =SUMIFS(Consumo!$T$6:$T$50000,Consumo!$A$6:$A$50000,Sumário!G$22,Consumo!$D$6:$D$50000,Sumário!$A56) -> 0 | H56: =SUMIFS(Consumo!$T$6:$T$50000,Consumo!$A$6:$A$50000,Sumário!H$22,Consumo!$D$6:$D$50000,Sumário!$A56) -> 0 | I56: =SUMIFS(Consumo!$T$6:$T$50000,Consumo!$A$6:$A$50000,Sumário!I$22,Consumo!$D$6:$D$50000,Sumário!$A56) -> 0 | J56: =SUMIFS(Consumo!$T$6:$T$50000,Consumo!$A$6:$A$50000,Sumário!J$22,Consumo!$D$6:$D$50000,Sumário!$A56) -> 0
A57: MATERIAL P/ MANUTENCAO DE VEICULOS | B57: =SUMIFS(Consumo!$T$6:$T$50000,Consumo!$A$6:$A$50000,Sumário!B$22,Consumo!$D$6:$D$50000,Sumário!$A57) -> 87985.82 | C57: =SUMIFS(Consumo!$T$6:$T$50000,Consumo!$A$6:$A$50000,Sumário!C$22,Consumo!$D$6:$D$50000,Sumário!$A57) -> 0 | D57: =SUMIFS(Consumo!$T$6:$T$50000,Consumo!$A$6:$A$50000,Sumário!D$22,Consumo!$D$6:$D$50000,Sumário!$A57) -> 0 | E57: =SUMIFS(Consumo!$T$6:$T$50000,Consumo!$A$6:$A$50000,Sumário!E$22,Consumo!$D$6:$D$50000,Sumário!$A57) -> 0 | F57: =SUMIFS(Consumo!$T$6:$T$50000,Consumo!$A$6:$A$50000,Sumário!F$22,Consumo!$D$6:$D$50000,Sumário!$A57) -> 0 | G57: =SUMIFS(Consumo!$T$6:$T$50000,Consumo!$A$6:$A$50000,Sumário!G$22,Consumo!$D$6:$D$50000,Sumário!$A57) -> 0 | H57: =SUMIFS(Consumo!$T$6:$T$50000,Consumo!$A$6:$A$50000,Sumário!H$22,Consumo!$D$6:$D$50000,Sumário!$A57) -> 0 | I57: =SUMIFS(Consumo!$T$6:$T$50000,Consumo!$A$6:$A$50000,Sumário!I$22,Consumo!$D$6:$D$50000,Sumário!$A57) -> 0 | J57: =SUMIFS(Consumo!$T$6:$T$50000,Consumo!$A$6:$A$50000,Sumário!J$22,Consumo!$D$6:$D$50000,Sumário!$A57) -> 0
A58: MATERIAL BIOLOGICO | B58: =SUMIFS(Consumo!$T$6:$T$50000,Consumo!$A$6:$A$50000,Sumário!B$22,Consumo!$D$6:$D$50000,Sumário!$A58) -> 0 | C58: =SUMIFS(Consumo!$T$6:$T$50000,Consumo!$A$6:$A$50000,Sumário!C$22,Consumo!$D$6:$D$50000,Sumário!$A58) -> 0 | D58: =SUMIFS(Consumo!$T$6:$T$50000,Consumo!$A$6:$A$50000,Sumário!D$22,Consumo!$D$6:$D$50000,Sumário!$A58) -> 0 | E58: =SUMIFS(Consumo!$T$6:$T$50000,Consumo!$A$6:$A$50000,Sumário!E$22,Consumo!$D$6:$D$50000,Sumário!$A58) -> 0 | F58: =SUMIFS(Consumo!$T$6:$T$50000,Consumo!$A$6:$A$50000,Sumário!F$22,Consumo!$D$6:$D$50000,Sumário!$A58) -> 0 | G58: =SUMIFS(Consumo!$T$6:$T$50000,Consumo!$A$6:$A$50000,Sumário!G$22,Consumo!$D$6:$D$50000,Sumário!$A58) -> 0 | H58: =SUMIFS(Consumo!$T$6:$T$50000,Consumo!$A$6:$A$50000,Sumário!H$22,Consumo!$D$6:$D$50000,Sumário!$A58) -> 0 | I58: =SUMIFS(Consumo!$T$6:$T$50000,Consumo!$A$6:$A$50000,Sumário!I$22,Consumo!$D$6:$D$50000,Sumário!$A58) -> 0 | J58: =SUMIFS(Consumo!$T$6:$T$50000,Consumo!$A$6:$A$50000,Sumário!J$22,Consumo!$D$6:$D$50000,Sumário!$A58) -> 0
A59: MATERIAL P/ UTILIZACAO EM GRAFICA | B59: =SUMIFS(Consumo!$T$6:$T$50000,Consumo!$A$6:$A$50000,Sumário!B$22,Consumo!$D$6:$D$50000,Sumário!$A59) -> 4725 | C59: =SUMIFS(Consumo!$T$6:$T$50000,Consumo!$A$6:$A$50000,Sumário!C$22,Consumo!$D$6:$D$50000,Sumário!$A59) -> 0 | D59: =SUMIFS(Consumo!$T$6:$T$50000,Consumo!$A$6:$A$50000,Sumário!D$22,Consumo!$D$6:$D$50000,Sumário!$A59) -> 4725 | E59: =SUMIFS(Consumo!$T$6:$T$50000,Consumo!$A$6:$A$50000,Sumário!E$22,Consumo!$D$6:$D$50000,Sumário!$A59) -> 0 | F59: =SUMIFS(Consumo!$T$6:$T$50000,Consumo!$A$6:$A$50000,Sumário!F$22,Consumo!$D$6:$D$50000,Sumário!$A59) -> 4725 | G59: =SUMIFS(Consumo!$T$6:$T$50000,Consumo!$A$6:$A$50000,Sumário!G$22,Consumo!$D$6:$D$50000,Sumário!$A59) -> 0 | H59: =SUMIFS(Consumo!$T$6:$T$50000,Consumo!$A$6:$A$50000,Sumário!H$22,Consumo!$D$6:$D$50000,Sumário!$A59) -> 0 | I59: =SUMIFS(Consumo!$T$6:$T$50000,Consumo!$A$6:$A$50000,Sumário!I$22,Consumo!$D$6:$D$50000,Sumário!$A59) -> 0 | J59: =SUMIFS(Consumo!$T$6:$T$50000,Consumo!$A$6:$A$50000,Sumário!J$22,Consumo!$D$6:$D$50000,Sumário!$A59) -> 0
A60: FERRAMENTAS | B60: =SUMIFS(Consumo!$T$6:$T$50000,Consumo!$A$6:$A$50000,Sumário!B$22,Consumo!$D$6:$D$50000,Sumário!$A60) -> 0 | C60: =SUMIFS(Consumo!$T$6:$T$50000,Consumo!$A$6:$A$50000,Sumário!C$22,Consumo!$D$6:$D$50000,Sumário!$A60) -> 0 | D60: =SUMIFS(Consumo!$T$6:$T$50000,Consumo!$A$6:$A$50000,Sumário!D$22,Consumo!$D$6:$D$50000,Sumário!$A60) -> 0 | E60: =SUMIFS(Consumo!$T$6:$T$50000,Consumo!$A$6:$A$50000,Sumário!E$22,Consumo!$D$6:$D$50000,Sumário!$A60) -> 0 | F60: =SUMIFS(Consumo!$T$6:$T$50000,Consumo!$A$6:$A$50000,Sumário!F$22,Consumo!$D$6:$D$50000,Sumário!$A60) -> 0 | G60: =SUMIFS(Consumo!$T$6:$T$50000,Consumo!$A$6:$A$50000,Sumário!G$22,Consumo!$D$6:$D$50000,Sumário!$A60) -> 5500 | H60: =SUMIFS(Consumo!$T$6:$T$50000,Consumo!$A$6:$A$50000,Sumário!H$22,Consumo!$D$6:$D$50000,Sumário!$A60) -> 0 | I60: =SUMIFS(Consumo!$T$6:$T$50000,Consumo!$A$6:$A$50000,Sumário!I$22,Consumo!$D$6:$D$50000,Sumário!$A60) -> 0 | J60: =SUMIFS(Consumo!$T$6:$T$50000,Consumo!$A$6:$A$50000,Sumário!J$22,Consumo!$D$6:$D$50000,Sumário!$A60) -> 0
A61: MATERIAL P/ REABILITACAO PROFISSIONAL | B61: =SUMIFS(Consumo!$T$6:$T$50000,Consumo!$A$6:$A$50000,Sumário!B$22,Consumo!$D$6:$D$50000,Sumário!$A61) -> 0 | C61: =SUMIFS(Consumo!$T$6:$T$50000,Consumo!$A$6:$A$50000,Sumário!C$22,Consumo!$D$6:$D$50000,Sumário!$A61) -> 0 | D61: =SUMIFS(Consumo!$T$6:$T$50000,Consumo!$A$6:$A$50000,Sumário!D$22,Consumo!$D$6:$D$50000,Sumário!$A61) -> 0 | E61: =SUMIFS(Consumo!$T$6:$T$50000,Consumo!$A$6:$A$50000,Sumário!E$22,Consumo!$D$6:$D$50000,Sumário!$A61) -> 0 | F61: =SUMIFS(Consumo!$T$6:$T$50000,Consumo!$A$6:$A$50000,Sumário!F$22,Consumo!$D$6:$D$50000,Sumário!$A61) -> 0 | G61: =SUMIFS(Consumo!$T$6:$T$50000,Consumo!$A$6:$A$50000,Sumário!G$22,Consumo!$D$6:$D$50000,Sumário!$A61) -> 0 | H61: =SUMIFS(Consumo!$T$6:$T$50000,Consumo!$A$6:$A$50000,Sumário!H$22,Consumo!$D$6:$D$50000,Sumário!$A61) -> 0 | I61: =SUMIFS(Consumo!$T$6:$T$50000,Consumo!$A$6:$A$50000,Sumário!I$22,Consumo!$D$6:$D$50000,Sumário!$A61) -> 0 | J61: =SUMIFS(Consumo!$T$6:$T$50000,Consumo!$A$6:$A$50000,Sumário!J$22,Consumo!$D$6:$D$50000,Sumário!$A61) -> 0
A62: MATERIAL DE SINALIZACAO VISUAL E OUTROS | B62: =SUMIFS(Consumo!$T$6:$T$50000,Consumo!$A$6:$A$50000,Sumário!B$22,Consumo!$D$6:$D$50000,Sumário!$A62) -> 0 | C62: =SUMIFS(Consumo!$T$6:$T$50000,Consumo!$A$6:$A$50000,Sumário!C$22,Consumo!$D$6:$D$50000,Sumário!$A62) -> 0 | D62: =SUMIFS(Consumo!$T$6:$T$50000,Consumo!$A$6:$A$50000,Sumário!D$22,Consumo!$D$6:$D$50000,Sumário!$A62) -> 0 | E62: =SUMIFS(Consumo!$T$6:$T$50000,Consumo!$A$6:$A$50000,Sumário!E$22,Consumo!$D$6:$D$50000,Sumário!$A62) -> 0 | F62: =SUMIFS(Consumo!$T$6:$T$50000,Consumo!$A$6:$A$50000,Sumário!F$22,Consumo!$D$6:$D$50000,Sumário!$A62) -> 0 | G62: =SUMIFS(Consumo!$T$6:$T$50000,Consumo!$A$6:$A$50000,Sumário!G$22,Consumo!$D$6:$D$50000,Sumário!$A62) -> 0 | H62: =SUMIFS(Consumo!$T$6:$T$50000,Consumo!$A$6:$A$50000,Sumário!H$22,Consumo!$D$6:$D$50000,Sumário!$A62) -> 0 | I62: =SUMIFS(Consumo!$T$6:$T$50000,Consumo!$A$6:$A$50000,Sumário!I$22,Consumo!$D$6:$D$50000,Sumário!$A62) -> 0 | J62: =SUMIFS(Consumo!$T$6:$T$50000,Consumo!$A$6:$A$50000,Sumário!J$22,Consumo!$D$6:$D$50000,Sumário!$A62) -> 0
A63: MATERIAL TECNICO P/ SELECAO E TREINAMENTO | B63: =SUMIFS(Consumo!$T$6:$T$50000,Consumo!$A$6:$A$50000,Sumário!B$22,Consumo!$D$6:$D$50000,Sumário!$A63) -> 0 | C63: =SUMIFS(Consumo!$T$6:$T$50000,Consumo!$A$6:$A$50000,Sumário!C$22,Consumo!$D$6:$D$50000,Sumário!$A63) -> 0 | D63: =SUMIFS(Consumo!$T$6:$T$50000,Consumo!$A$6:$A$50000,Sumário!D$22,Consumo!$D$6:$D$50000,Sumário!$A63) -> 0 | E63: =SUMIFS(Consumo!$T$6:$T$50000,Consumo!$A$6:$A$50000,Sumário!E$22,Consumo!$D$6:$D$50000,Sumário!$A63) -> 0 | F63: =SUMIFS(Consumo!$T$6:$T$50000,Consumo!$A$6:$A$50000,Sumário!F$22,Consumo!$D$6:$D$50000,Sumário!$A63) -> 0 | G63: =SUMIFS(Consumo!$T$6:$T$50000,Consumo!$A$6:$A$50000,Sumário!G$22,Consumo!$D$6:$D$50000,Sumário!$A63) -> 0 | H63: =SUMIFS(Consumo!$T$6:$T$50000,Consumo!$A$6:$A$50000,Sumário!H$22,Consumo!$D$6:$D$50000,Sumário!$A63) -> 0 | I63: =SUMIFS(Consumo!$T$6:$T$50000,Consumo!$A$6:$A$50000,Sumário!I$22,Consumo!$D$6:$D$50000,Sumário!$A63) -> 0 | J63: =SUMIFS(Consumo!$T$6:$T$50000,Consumo!$A$6:$A$50000,Sumário!J$22,Consumo!$D$6:$D$50000,Sumário!$A63) -> 0
A64: MATERIAL BIBLIOGRAFICO | B64: =SUMIFS(Consumo!$T$6:$T$50000,Consumo!$A$6:$A$50000,Sumário!B$22,Consumo!$D$6:$D$50000,Sumário!$A64) -> 0 | C64: =SUMIFS(Consumo!$T$6:$T$50000,Consumo!$A$6:$A$50000,Sumário!C$22,Consumo!$D$6:$D$50000,Sumário!$A64) -> 0 | D64: =SUMIFS(Consumo!$T$6:$T$50000,Consumo!$A$6:$A$50000,Sumário!D$22,Consumo!$D$6:$D$50000,Sumário!$A64) -> 0 | E64: =SUMIFS(Consumo!$T$6:$T$50000,Consumo!$A$6:$A$50000,Sumário!E$22,Consumo!$D$6:$D$50000,Sumário!$A64) -> 0 | F64: =SUMIFS(Consumo!$T$6:$T$50000,Consumo!$A$6:$A$50000,Sumário!F$22,Consumo!$D$6:$D$50000,Sumário!$A64) -> 0 | G64: =SUMIFS(Consumo!$T$6:$T$50000,Consumo!$A$6:$A$50000,Sumário!G$22,Consumo!$D$6:$D$50000,Sumário!$A64) -> 0 | H64: =SUMIFS(Consumo!$T$6:$T$50000,Consumo!$A$6:$A$50000,Sumário!H$22,Consumo!$D$6:$D$50000,Sumário!$A64) -> 0 | I64: =SUMIFS(Consumo!$T$6:$T$50000,Consumo!$A$6:$A$50000,Sumário!I$22,Consumo!$D$6:$D$50000,Sumário!$A64) -> 0 | J64: =SUMIFS(Consumo!$T$6:$T$50000,Consumo!$A$6:$A$50000,Sumário!J$22,Consumo!$D$6:$D$50000,Sumário!$A64) -> 0
A65: AQUISICAO DE SOFTWARES DE BASE | B65: =SUMIFS(Consumo!$T$6:$T$50000,Consumo!$A$6:$A$50000,Sumário!B$22,Consumo!$D$6:$D$50000,Sumário!$A65) -> 13000 | C65: =SUMIFS(Consumo!$T$6:$T$50000,Consumo!$A$6:$A$50000,Sumário!C$22,Consumo!$D$6:$D$50000,Sumário!$A65) -> 22470 | D65: =SUMIFS(Consumo!$T$6:$T$50000,Consumo!$A$6:$A$50000,Sumário!D$22,Consumo!$D$6:$D$50000,Sumário!$A65) -> 13000 | E65: =SUMIFS(Consumo!$T$6:$T$50000,Consumo!$A$6:$A$50000,Sumário!E$22,Consumo!$D$6:$D$50000,Sumário!$A65) -> 0 | F65: =SUMIFS(Consumo!$T$6:$T$50000,Consumo!$A$6:$A$50000,Sumário!F$22,Consumo!$D$6:$D$50000,Sumário!$A65) -> 13000 | G65: =SUMIFS(Consumo!$T$6:$T$50000,Consumo!$A$6:$A$50000,Sumário!G$22,Consumo!$D$6:$D$50000,Sumário!$A65) -> 0 | H65: =SUMIFS(Consumo!$T$6:$T$50000,Consumo!$A$6:$A$50000,Sumário!H$22,Consumo!$D$6:$D$50000,Sumário!$A65) -> 0 | I65: =SUMIFS(Consumo!$T$6:$T$50000,Consumo!$A$6:$A$50000,Sumário!I$22,Consumo!$D$6:$D$50000,Sumário!$A65) -> 0 | J65: =SUMIFS(Consumo!$T$6:$T$50000,Consumo!$A$6:$A$50000,Sumário!J$22,Consumo!$D$6:$D$50000,Sumário!$A65) -> 0
A66: BANDEIRAS, FLAMULAS E INSIGNIAS | B66: =SUMIFS(Consumo!$T$6:$T$50000,Consumo!$A$6:$A$50000,Sumário!B$22,Consumo!$D$6:$D$50000,Sumário!$A66) -> 0 | C66: =SUMIFS(Consumo!$T$6:$T$50000,Consumo!$A$6:$A$50000,Sumário!C$22,Consumo!$D$6:$D$50000,Sumário!$A66) -> 0 | D66: =SUMIFS(Consumo!$T$6:$T$50000,Consumo!$A$6:$A$50000,Sumário!D$22,Consumo!$D$6:$D$50000,Sumário!$A66) -> 0 | E66: =SUMIFS(Consumo!$T$6:$T$50000,Consumo!$A$6:$A$50000,Sumário!E$22,Consumo!$D$6:$D$50000,Sumário!$A66) -> 0 | F66: =SUMIFS(Consumo!$T$6:$T$50000,Consumo!$A$6:$A$50000,Sumário!F$22,Consumo!$D$6:$D$50000,Sumário!$A66) -> 0 | G66: =SUMIFS(Consumo!$T$6:$T$50000,Consumo!$A$6:$A$50000,Sumário!G$22,Consumo!$D$6:$D$50000,Sumário!$A66) -> 1200 | H66: =SUMIFS(Consumo!$T$6:$T$50000,Consumo!$A$6:$A$50000,Sumário!H$22,Consumo!$D$6:$D$50000,Sumário!$A66) -> 0 | I66: =SUMIFS(Consumo!$T$6:$T$50000,Consumo!$A$6:$A$50000,Sumário!I$22,Consumo!$D$6:$D$50000,Sumário!$A66) -> 0 | J66: =SUMIFS(Consumo!$T$6:$T$50000,Consumo!$A$6:$A$50000,Sumário!J$22,Consumo!$D$6:$D$50000,Sumário!$A66) -> 0
A67: DISCOTECAS E FILMOTECAS NAO IMOBILIZAVEL | B67: =SUMIFS(Consumo!$T$6:$T$50000,Consumo!$A$6:$A$50000,Sumário!B$22,Consumo!$D$6:$D$50000,Sumário!$A67) -> 0 | C67: =SUMIFS(Consumo!$T$6:$T$50000,Consumo!$A$6:$A$50000,Sumário!C$22,Consumo!$D$6:$D$50000,Sumário!$A67) -> 0 | D67: =SUMIFS(Consumo!$T$6:$T$50000,Consumo!$A$6:$A$50000,Sumário!D$22,Consumo!$D$6:$D$50000,Sumário!$A67) -> 0 | E67: =SUMIFS(Consumo!$T$6:$T$50000,Consumo!$A$6:$A$50000,Sumário!E$22,Consumo!$D$6:$D$50000,Sumário!$A67) -> 0 | F67: =SUMIFS(Consumo!$T$6:$T$50000,Consumo!$A$6:$A$50000,Sumário!F$22,Consumo!$D$6:$D$50000,Sumário!$A67) -> 0 | G67: =SUMIFS(Consumo!$T$6:$T$50000,Consumo!$A$6:$A$50000,Sumário!G$22,Consumo!$D$6:$D$50000,Sumário!$A67) -> 0 | H67: =SUMIFS(Consumo!$T$6:$T$50000,Consumo!$A$6:$A$50000,Sumário!H$22,Consumo!$D$6:$D$50000,Sumário!$A67) -> 0 | I67: =SUMIFS(Consumo!$T$6:$T$50000,Consumo!$A$6:$A$50000,Sumário!I$22,Consumo!$D$6:$D$50000,Sumário!$A67) -> 0 | J67: =SUMIFS(Consumo!$T$6:$T$50000,Consumo!$A$6:$A$50000,Sumário!J$22,Consumo!$D$6:$D$50000,Sumário!$A67) -> 0
A68: MATERIAL METEOROLOGICO | B68: =SUMIFS(Consumo!$T$6:$T$50000,Consumo!$A$6:$A$50000,Sumário!B$22,Consumo!$D$6:$D$50000,Sumário!$A68) -> 0 | C68: =SUMIFS(Consumo!$T$6:$T$50000,Consumo!$A$6:$A$50000,Sumário!C$22,Consumo!$D$6:$D$50000,Sumário!$A68) -> 0 | D68: =SUMIFS(Consumo!$T$6:$T$50000,Consumo!$A$6:$A$50000,Sumário!D$22,Consumo!$D$6:$D$50000,Sumário!$A68) -> 0 | E68: =SUMIFS(Consumo!$T$6:$T$50000,Consumo!$A$6:$A$50000,Sumário!E$22,Consumo!$D$6:$D$50000,Sumário!$A68) -> 0 | F68: =SUMIFS(Consumo!$T$6:$T$50000,Consumo!$A$6:$A$50000,Sumário!F$22,Consumo!$D$6:$D$50000,Sumário!$A68) -> 0 | G68: =SUMIFS(Consumo!$T$6:$T$50000,Consumo!$A$6:$A$50000,Sumário!G$22,Consumo!$D$6:$D$50000,Sumário!$A68) -> 0 | H68: =SUMIFS(Consumo!$T$6:$T$50000,Consumo!$A$6:$A$50000,Sumário!H$22,Consumo!$D$6:$D$50000,Sumário!$A68) -> 0 | I68: =SUMIFS(Consumo!$T$6:$T$50000,Consumo!$A$6:$A$50000,Sumário!I$22,Consumo!$D$6:$D$50000,Sumário!$A68) -> 0 | J68: =SUMIFS(Consumo!$T$6:$T$50000,Consumo!$A$6:$A$50000,Sumário!J$22,Consumo!$D$6:$D$50000,Sumário!$A68) -> 0
A69: MATERIAL P/MANUT.CONSERV.DE ESTRADAS E VIAS | B69: =SUMIFS(Consumo!$T$6:$T$50000,Consumo!$A$6:$A$50000,Sumário!B$22,Consumo!$D$6:$D$50000,Sumário!$A69) -> 0 | C69: =SUMIFS(Consumo!$T$6:$T$50000,Consumo!$A$6:$A$50000,Sumário!C$22,Consumo!$D$6:$D$50000,Sumário!$A69) -> 0 | D69: =SUMIFS(Consumo!$T$6:$T$50000,Consumo!$A$6:$A$50000,Sumário!D$22,Consumo!$D$6:$D$50000,Sumário!$A69) -> 0 | E69: =SUMIFS(Consumo!$T$6:$T$50000,Consumo!$A$6:$A$50000,Sumário!E$22,Consumo!$D$6:$D$50000,Sumário!$A69) -> 0 | F69: =SUMIFS(Consumo!$T$6:$T$50000,Consumo!$A$6:$A$50000,Sumário!F$22,Consumo!$D$6:$D$50000,Sumário!$A69) -> 0 | G69: =SUMIFS(Consumo!$T$6:$T$50000,Consumo!$A$6:$A$50000,Sumário!G$22,Consumo!$D$6:$D$50000,Sumário!$A69) -> 68000 | H69: =SUMIFS(Consumo!$T$6:$T$50000,Consumo!$A$6:$A$50000,Sumário!H$22,Consumo!$D$6:$D$50000,Sumário!$A69) -> 0 | I69: =SUMIFS(Consumo!$T$6:$T$50000,Consumo!$A$6:$A$50000,Sumário!I$22,Consumo!$D$6:$D$50000,Sumário!$A69) -> 0 | J69: =SUMIFS(Consumo!$T$6:$T$50000,Consumo!$A$6:$A$50000,Sumário!J$22,Consumo!$D$6:$D$50000,Sumário!$A69) -> 0
A70: OUTROS MATERIAIS DE CONSUMO | B70: =SUMIFS(Consumo!$T$6:$T$50000,Consumo!$A$6:$A$50000,Sumário!B$22,Consumo!$D$6:$D$50000,Sumário!$A70) -> 0 | C70: =SUMIFS(Consumo!$T$6:$T$50000,Consumo!$A$6:$A$50000,Sumário!C$22,Consumo!$D$6:$D$50000,Sumário!$A70) -> 0 | D70: =SUMIFS(Consumo!$T$6:$T$50000,Consumo!$A$6:$A$50000,Sumário!D$22,Consumo!$D$6:$D$50000,Sumário!$A70) -> 0 | E70: =SUMIFS(Consumo!$T$6:$T$50000,Consumo!$A$6:$A$50000,Sumário!E$22,Consumo!$D$6:$D$50000,Sumário!$A70) -> 0 | F70: =SUMIFS(Consumo!$T$6:$T$50000,Consumo!$A$6:$A$50000,Sumário!F$22,Consumo!$D$6:$D$50000,Sumário!$A70) -> 0 | G70: =SUMIFS(Consumo!$T$6:$T$50000,Consumo!$A$6:$A$50000,Sumário!G$22,Consumo!$D$6:$D$50000,Sumário!$A70) -> 0 | H70: =SUMIFS(Consumo!$T$6:$T$50000,Consumo!$A$6:$A$50000,Sumário!H$22,Consumo!$D$6:$D$50000,Sumário!$A70) -> 0 | I70: =SUMIFS(Consumo!$T$6:$T$50000,Consumo!$A$6:$A$50000,Sumário!I$22,Consumo!$D$6:$D$50000,Sumário!$A70) -> 0 | J70: =SUMIFS(Consumo!$T$6:$T$50000,Consumo!$A$6:$A$50000,Sumário!J$22,Consumo!$D$6:$D$50000,Sumário!$A70) -> 0
A73: Material de Permanente
A74: Descrição – Subitem | B74: BASE | C74: 5DE | D74: AD5 | E74: 11CT | F74: 5CIAPE | G74: CIMH | H74: CIAAP | I74: 5RM | J74: 5BCOM
A75: AERONAVES | B75: =SUMIFS(Permanente!$T$6:$T$50000,Permanente!$A$6:$A$50000,Sumário!B$74,Permanente!$D$6:$D$50000,Sumário!$A75) -> 0 | C75: =SUMIFS(Permanente!$T$6:$T$50000,Permanente!$A$6:$A$50000,Sumário!C$74,Permanente!$D$6:$D$50000,Sumário!$A75) -> 0 | D75: =SUMIFS(Permanente!$T$6:$T$50000,Permanente!$A$6:$A$50000,Sumário!D$74,Permanente!$D$6:$D$50000,Sumário!$A75) -> 0 | E75: =SUMIFS(Permanente!$T$6:$T$50000,Permanente!$A$6:$A$50000,Sumário!E$74,Permanente!$D$6:$D$50000,Sumário!$A75) -> 0 | F75: =SUMIFS(Permanente!$T$6:$T$50000,Permanente!$A$6:$A$50000,Sumário!F$74,Permanente!$D$6:$D$50000,Sumário!$A75) -> 0 | G75: =SUMIFS(Permanente!$T$6:$T$50000,Permanente!$A$6:$A$50000,Sumário!G$74,Permanente!$D$6:$D$50000,Sumário!$A75) -> 0 | H75: =SUMIFS(Permanente!$T$6:$T$50000,Permanente!$A$6:$A$50000,Sumário!H$74,Permanente!$D$6:$D$50000,Sumário!$A75) -> 0 | I75: =SUMIFS(Permanente!$T$6:$T$50000,Permanente!$A$6:$A$50000,Sumário!I$74,Permanente!$D$6:$D$50000,Sumário!$A75) -> 0 | J75: =SUMIFS(Permanente!$T$6:$T$50000,Permanente!$A$6:$A$50000,Sumário!J$74,Permanente!$D$6:$D$50000,Sumário!$A75) -> 0
A76: APARELHOS DE MEDICAO E ORIENTACAO | B76: =SUMIFS(Permanente!$T$6:$T$50000,Permanente!$A$6:$A$50000,Sumário!B$74,Permanente!$D$6:$D$50000,Sumário!$A76) -> 0 | C76: =SUMIFS(Permanente!$T$6:$T$50000,Permanente!$A$6:$A$50000,Sumário!C$74,Permanente!$D$6:$D$50000,Sumário!$A76) -> 0 | D76: =SUMIFS(Permanente!$T$6:$T$50000,Permanente!$A$6:$A$50000,Sumário!D$74,Permanente!$D$6:$D$50000,Sumário!$A76) -> 0 | E76: =SUMIFS(Permanente!$T$6:$T$50000,Permanente!$A$6:$A$50000,Sumário!E$74,Permanente!$D$6:$D$50000,Sumário!$A76) -> 0 | F76: =SUMIFS(Permanente!$T$6:$T$50000,Permanente!$A$6:$A$50000,Sumário!F$74,Permanente!$D$6:$D$50000,Sumário!$A76) -> 0 | G76: =SUMIFS(Permanente!$T$6:$T$50000,Permanente!$A$6:$A$50000,Sumário!G$74,Permanente!$D$6:$D$50000,Sumário!$A76) -> 0 | H76: =SUMIFS(Permanente!$T$6:$T$50000,Permanente!$A$6:$A$50000,Sumário!H$74,Permanente!$D$6:$D$50000,Sumário!$A76) -> 0 | I76: =SUMIFS(Permanente!$T$6:$T$50000,Permanente!$A$6:$A$50000,Sumário!I$74,Permanente!$D$6:$D$50000,Sumário!$A76) -> 0 | J76: =SUMIFS(Permanente!$T$6:$T$50000,Permanente!$A$6:$A$50000,Sumário!J$74,Permanente!$D$6:$D$50000,Sumário!$A76) -> 0
A77: APARELHOS E EQUIPAMENTOS DE COMUNICACAO | B77: =SUMIFS(Permanente!$T$6:$T$50000,Permanente!$A$6:$A$50000,Sumário!B$74,Permanente!$D$6:$D$50000,Sumário!$A77) -> 0 | C77: =SUMIFS(Permanente!$T$6:$T$50000,Permanente!$A$6:$A$50000,Sumário!C$74,Permanente!$D$6:$D$50000,Sumário!$A77) -> 4000 | D77: =SUMIFS(Permanente!$T$6:$T$50000,Permanente!$A$6:$A$50000,Sumário!D$74,Permanente!$D$6:$D$50000,Sumário!$A77) -> 0 | E77: =SUMIFS(Permanente!$T$6:$T$50000,Permanente!$A$6:$A$50000,Sumário!E$74,Permanente!$D$6:$D$50000,Sumário!$A77) -> 0 | F77: =SUMIFS(Permanente!$T$6:$T$50000,Permanente!$A$6:$A$50000,Sumário!F$74,Permanente!$D$6:$D$50000,Sumário!$A77) -> 0 | G77: =SUMIFS(Permanente!$T$6:$T$50000,Permanente!$A$6:$A$50000,Sumário!G$74,Permanente!$D$6:$D$50000,Sumário!$A77) -> 0 | H77: =SUMIFS(Permanente!$T$6:$T$50000,Permanente!$A$6:$A$50000,Sumário!H$74,Permanente!$D$6:$D$50000,Sumário!$A77) -> 0 | I77: =SUMIFS(Permanente!$T$6:$T$50000,Permanente!$A$6:$A$50000,Sumário!I$74,Permanente!$D$6:$D$50000,Sumário!$A77) -> 0 | J77: =SUMIFS(Permanente!$T$6:$T$50000,Permanente!$A$6:$A$50000,Sumário!J$74,Permanente!$D$6:$D$50000,Sumário!$A77) -> 0
A78: APAR.EQUIP.UTENS.MED.,ODONT,LABOR.HOSPIT. | B78: =SUMIFS(Permanente!$T$6:$T$50000,Permanente!$A$6:$A$50000,Sumário!B$74,Permanente!$D$6:$D$50000,Sumário!$A78) -> 21523.39 | C78: =SUMIFS(Permanente!$T$6:$T$50000,Permanente!$A$6:$A$50000,Sumário!C$74,Permanente!$D$6:$D$50000,Sumário!$A78) -> 0 | D78: =SUMIFS(Permanente!$T$6:$T$50000,Permanente!$A$6:$A$50000,Sumário!D$74,Permanente!$D$6:$D$50000,Sumário!$A78) -> 0 | E78: =SUMIFS(Permanente!$T$6:$T$50000,Permanente!$A$6:$A$50000,Sumário!E$74,Permanente!$D$6:$D$50000,Sumário!$A78) -> 0 | F78: =SUMIFS(Permanente!$T$6:$T$50000,Permanente!$A$6:$A$50000,Sumário!F$74,Permanente!$D$6:$D$50000,Sumário!$A78) -> 0 | G78: =SUMIFS(Permanente!$T$6:$T$50000,Permanente!$A$6:$A$50000,Sumário!G$74,Permanente!$D$6:$D$50000,Sumário!$A78) -> 0 | H78: =SUMIFS(Permanente!$T$6:$T$50000,Permanente!$A$6:$A$50000,Sumário!H$74,Permanente!$D$6:$D$50000,Sumário!$A78) -> 0 | I78: =SUMIFS(Permanente!$T$6:$T$50000,Permanente!$A$6:$A$50000,Sumário!I$74,Permanente!$D$6:$D$50000,Sumário!$A78) -> 0 | J78: =SUMIFS(Permanente!$T$6:$T$50000,Permanente!$A$6:$A$50000,Sumário!J$74,Permanente!$D$6:$D$50000,Sumário!$A78) -> 0
A79: APARELHOS E EQUIP. P/ ESPORTES E DIVERSOES | B79: =SUMIFS(Permanente!$T$6:$T$50000,Permanente!$A$6:$A$50000,Sumário!B$74,Permanente!$D$6:$D$50000,Sumário!$A79) -> 0 | C79: =SUMIFS(Permanente!$T$6:$T$50000,Permanente!$A$6:$A$50000,Sumário!C$74,Permanente!$D$6:$D$50000,Sumário!$A79) -> 0 | D79: =SUMIFS(Permanente!$T$6:$T$50000,Permanente!$A$6:$A$50000,Sumário!D$74,Permanente!$D$6:$D$50000,Sumário!$A79) -> 0 | E79: =SUMIFS(Permanente!$T$6:$T$50000,Permanente!$A$6:$A$50000,Sumário!E$74,Permanente!$D$6:$D$50000,Sumário!$A79) -> 0 | F79: =SUMIFS(Permanente!$T$6:$T$50000,Permanente!$A$6:$A$50000,Sumário!F$74,Permanente!$D$6:$D$50000,Sumário!$A79) -> 0 | G79: =SUMIFS(Permanente!$T$6:$T$50000,Permanente!$A$6:$A$50000,Sumário!G$74,Permanente!$D$6:$D$50000,Sumário!$A79) -> 0 | H79: =SUMIFS(Permanente!$T$6:$T$50000,Permanente!$A$6:$A$50000,Sumário!H$74,Permanente!$D$6:$D$50000,Sumário!$A79) -> 0 | I79: =SUMIFS(Permanente!$T$6:$T$50000,Permanente!$A$6:$A$50000,Sumário!I$74,Permanente!$D$6:$D$50000,Sumário!$A79) -> 0 | J79: =SUMIFS(Permanente!$T$6:$T$50000,Permanente!$A$6:$A$50000,Sumário!J$74,Permanente!$D$6:$D$50000,Sumário!$A79) -> 0
A80: APARELHOS E UTENSILIOS DOMESTICOS | B80: =SUMIFS(Permanente!$T$6:$T$50000,Permanente!$A$6:$A$50000,Sumário!B$74,Permanente!$D$6:$D$50000,Sumário!$A80) -> 11398.19 | C80: =SUMIFS(Permanente!$T$6:$T$50000,Permanente!$A$6:$A$50000,Sumário!C$74,Permanente!$D$6:$D$50000,Sumário!$A80) -> 0 | D80: =SUMIFS(Permanente!$T$6:$T$50000,Permanente!$A$6:$A$50000,Sumário!D$74,Permanente!$D$6:$D$50000,Sumário!$A80) -> 0 | E80: =SUMIFS(Permanente!$T$6:$T$50000,Permanente!$A$6:$A$50000,Sumário!E$74,Permanente!$D$6:$D$50000,Sumário!$A80) -> 840 | F80: =SUMIFS(Permanente!$T$6:$T$50000,Permanente!$A$6:$A$50000,Sumário!F$74,Permanente!$D$6:$D$50000,Sumário!$A80) -> 0 | G80: =SUMIFS(Permanente!$T$6:$T$50000,Permanente!$A$6:$A$50000,Sumário!G$74,Permanente!$D$6:$D$50000,Sumário!$A80) -> 700 | H80: =SUMIFS(Permanente!$T$6:$T$50000,Permanente!$A$6:$A$50000,Sumário!H$74,Permanente!$D$6:$D$50000,Sumário!$A80) -> 11398.19 | I80: =SUMIFS(Permanente!$T$6:$T$50000,Permanente!$A$6:$A$50000,Sumário!I$74,Permanente!$D$6:$D$50000,Sumário!$A80) -> 0 | J80: =SUMIFS(Permanente!$T$6:$T$50000,Permanente!$A$6:$A$50000,Sumário!J$74,Permanente!$D$6:$D$50000,Sumário!$A80) -> 0
A81: COLECOES E MATERIAIS BIBLIOGRAFICOS | B81: =SUMIFS(Permanente!$T$6:$T$50000,Permanente!$A$6:$A$50000,Sumário!B$74,Permanente!$D$6:$D$50000,Sumário!$A81) -> 0 | C81: =SUMIFS(Permanente!$T$6:$T$50000,Permanente!$A$6:$A$50000,Sumário!C$74,Permanente!$D$6:$D$50000,Sumário!$A81) -> 0 | D81: =SUMIFS(Permanente!$T$6:$T$50000,Permanente!$A$6:$A$50000,Sumário!D$74,Permanente!$D$6:$D$50000,Sumário!$A81) -> 0 | E81: =SUMIFS(Permanente!$T$6:$T$50000,Permanente!$A$6:$A$50000,Sumário!E$74,Permanente!$D$6:$D$50000,Sumário!$A81) -> 0 | F81: =SUMIFS(Permanente!$T$6:$T$50000,Permanente!$A$6:$A$50000,Sumário!F$74,Permanente!$D$6:$D$50000,Sumário!$A81) -> 0 | G81: =SUMIFS(Permanente!$T$6:$T$50000,Permanente!$A$6:$A$50000,Sumário!G$74,Permanente!$D$6:$D$50000,Sumário!$A81) -> 0 | H81: =SUMIFS(Permanente!$T$6:$T$50000,Permanente!$A$6:$A$50000,Sumário!H$74,Permanente!$D$6:$D$50000,Sumário!$A81) -> 0 | I81: =SUMIFS(Permanente!$T$6:$T$50000,Permanente!$A$6:$A$50000,Sumário!I$74,Permanente!$D$6:$D$50000,Sumário!$A81) -> 0 | J81: =SUMIFS(Permanente!$T$6:$T$50000,Permanente!$A$6:$A$50000,Sumário!J$74,Permanente!$D$6:$D$50000,Sumário!$A81) -> 0
A82: DISCOTECAS E FILMOTECAS | B82: =SUMIFS(Permanente!$T$6:$T$50000,Permanente!$A$6:$A$50000,Sumário!B$74,Permanente!$D$6:$D$50000,Sumário!$A82) -> 0 | C82: =SUMIFS(Permanente!$T$6:$T$50000,Permanente!$A$6:$A$50000,Sumário!C$74,Permanente!$D$6:$D$50000,Sumário!$A82) -> 0 | D82: =SUMIFS(Permanente!$T$6:$T$50000,Permanente!$A$6:$A$50000,Sumário!D$74,Permanente!$D$6:$D$50000,Sumário!$A82) -> 0 | E82: =SUMIFS(Permanente!$T$6:$T$50000,Permanente!$A$6:$A$50000,Sumário!E$74,Permanente!$D$6:$D$50000,Sumário!$A82) -> 0 | F82: =SUMIFS(Permanente!$T$6:$T$50000,Permanente!$A$6:$A$50000,Sumário!F$74,Permanente!$D$6:$D$50000,Sumário!$A82) -> 0 | G82: =SUMIFS(Permanente!$T$6:$T$50000,Permanente!$A$6:$A$50000,Sumário!G$74,Permanente!$D$6:$D$50000,Sumário!$A82) -> 0 | H82: =SUMIFS(Permanente!$T$6:$T$50000,Permanente!$A$6:$A$50000,Sumário!H$74,Permanente!$D$6:$D$50000,Sumário!$A82) -> 0 | I82: =SUMIFS(Permanente!$T$6:$T$50000,Permanente!$A$6:$A$50000,Sumário!I$74,Permanente!$D$6:$D$50000,Sumário!$A82) -> 0 | J82: =SUMIFS(Permanente!$T$6:$T$50000,Permanente!$A$6:$A$50000,Sumário!J$74,Permanente!$D$6:$D$50000,Sumário!$A82) -> 0
A83: EMBARCACOES | B83: =SUMIFS(Permanente!$T$6:$T$50000,Permanente!$A$6:$A$50000,Sumário!B$74,Permanente!$D$6:$D$50000,Sumário!$A83) -> 0 | C83: =SUMIFS(Permanente!$T$6:$T$50000,Permanente!$A$6:$A$50000,Sumário!C$74,Permanente!$D$6:$D$50000,Sumário!$A83) -> 0 | D83: =SUMIFS(Permanente!$T$6:$T$50000,Permanente!$A$6:$A$50000,Sumário!D$74,Permanente!$D$6:$D$50000,Sumário!$A83) -> 0 | E83: =SUMIFS(Permanente!$T$6:$T$50000,Permanente!$A$6:$A$50000,Sumário!E$74,Permanente!$D$6:$D$50000,Sumário!$A83) -> 0 | F83: =SUMIFS(Permanente!$T$6:$T$50000,Permanente!$A$6:$A$50000,Sumário!F$74,Permanente!$D$6:$D$50000,Sumário!$A83) -> 0 | G83: =SUMIFS(Permanente!$T$6:$T$50000,Permanente!$A$6:$A$50000,Sumário!G$74,Permanente!$D$6:$D$50000,Sumário!$A83) -> 0 | H83: =SUMIFS(Permanente!$T$6:$T$50000,Permanente!$A$6:$A$50000,Sumário!H$74,Permanente!$D$6:$D$50000,Sumário!$A83) -> 0 | I83: =SUMIFS(Permanente!$T$6:$T$50000,Permanente!$A$6:$A$50000,Sumário!I$74,Permanente!$D$6:$D$50000,Sumário!$A83) -> 0 | J83: =SUMIFS(Permanente!$T$6:$T$50000,Permanente!$A$6:$A$50000,Sumário!J$74,Permanente!$D$6:$D$50000,Sumário!$A83) -> 0
A84: EQUIPAMENTO DE PROTECAO, SEGURANCA E SOCORRO | B84: =SUMIFS(Permanente!$T$6:$T$50000,Permanente!$A$6:$A$50000,Sumário!B$74,Permanente!$D$6:$D$50000,Sumário!$A84) -> 0 | C84: =SUMIFS(Permanente!$T$6:$T$50000,Permanente!$A$6:$A$50000,Sumário!C$74,Permanente!$D$6:$D$50000,Sumário!$A84) -> 1950 | D84: =SUMIFS(Permanente!$T$6:$T$50000,Permanente!$A$6:$A$50000,Sumário!D$74,Permanente!$D$6:$D$50000,Sumário!$A84) -> 0 | E84: =SUMIFS(Permanente!$T$6:$T$50000,Permanente!$A$6:$A$50000,Sumário!E$74,Permanente!$D$6:$D$50000,Sumário!$A84) -> 0 | F84: =SUMIFS(Permanente!$T$6:$T$50000,Permanente!$A$6:$A$50000,Sumário!F$74,Permanente!$D$6:$D$50000,Sumário!$A84) -> 0 | G84: =SUMIFS(Permanente!$T$6:$T$50000,Permanente!$A$6:$A$50000,Sumário!G$74,Permanente!$D$6:$D$50000,Sumário!$A84) -> 0 | H84: =SUMIFS(Permanente!$T$6:$T$50000,Permanente!$A$6:$A$50000,Sumário!H$74,Permanente!$D$6:$D$50000,Sumário!$A84) -> 0 | I84: =SUMIFS(Permanente!$T$6:$T$50000,Permanente!$A$6:$A$50000,Sumário!I$74,Permanente!$D$6:$D$50000,Sumário!$A84) -> 0 | J84: =SUMIFS(Permanente!$T$6:$T$50000,Permanente!$A$6:$A$50000,Sumário!J$74,Permanente!$D$6:$D$50000,Sumário!$A84) -> 0
A85: INSTRUMENTOS MUSICAIS E ARTISTICOS | B85: =SUMIFS(Permanente!$T$6:$T$50000,Permanente!$A$6:$A$50000,Sumário!B$74,Permanente!$D$6:$D$50000,Sumário!$A85) -> 0 | C85: =SUMIFS(Permanente!$T$6:$T$50000,Permanente!$A$6:$A$50000,Sumário!C$74,Permanente!$D$6:$D$50000,Sumário!$A85) -> 0 | D85: =SUMIFS(Permanente!$T$6:$T$50000,Permanente!$A$6:$A$50000,Sumário!D$74,Permanente!$D$6:$D$50000,Sumário!$A85) -> 0 | E85: =SUMIFS(Permanente!$T$6:$T$50000,Permanente!$A$6:$A$50000,Sumário!E$74,Permanente!$D$6:$D$50000,Sumário!$A85) -> 0 | F85: =SUMIFS(Permanente!$T$6:$T$50000,Permanente!$A$6:$A$50000,Sumário!F$74,Permanente!$D$6:$D$50000,Sumário!$A85) -> 0 | G85: =SUMIFS(Permanente!$T$6:$T$50000,Permanente!$A$6:$A$50000,Sumário!G$74,Permanente!$D$6:$D$50000,Sumário!$A85) -> 0 | H85: =SUMIFS(Permanente!$T$6:$T$50000,Permanente!$A$6:$A$50000,Sumário!H$74,Permanente!$D$6:$D$50000,Sumário!$A85) -> 0 | I85: =SUMIFS(Permanente!$T$6:$T$50000,Permanente!$A$6:$A$50000,Sumário!I$74,Permanente!$D$6:$D$50000,Sumário!$A85) -> 0 | J85: =SUMIFS(Permanente!$T$6:$T$50000,Permanente!$A$6:$A$50000,Sumário!J$74,Permanente!$D$6:$D$50000,Sumário!$A85) -> 0
A86: MAQUINAS E EQUIPAM. DE NATUREZA INDUSTRIAL | B86: =SUMIFS(Permanente!$T$6:$T$50000,Permanente!$A$6:$A$50000,Sumário!B$74,Permanente!$D$6:$D$50000,Sumário!$A86) -> 0 | C86: =SUMIFS(Permanente!$T$6:$T$50000,Permanente!$A$6:$A$50000,Sumário!C$74,Permanente!$D$6:$D$50000,Sumário!$A86) -> 0 | D86: =SUMIFS(Permanente!$T$6:$T$50000,Permanente!$A$6:$A$50000,Sumário!D$74,Permanente!$D$6:$D$50000,Sumário!$A86) -> 0 | E86: =SUMIFS(Permanente!$T$6:$T$50000,Permanente!$A$6:$A$50000,Sumário!E$74,Permanente!$D$6:$D$50000,Sumário!$A86) -> 0 | F86: =SUMIFS(Permanente!$T$6:$T$50000,Permanente!$A$6:$A$50000,Sumário!F$74,Permanente!$D$6:$D$50000,Sumário!$A86) -> 0 | G86: =SUMIFS(Permanente!$T$6:$T$50000,Permanente!$A$6:$A$50000,Sumário!G$74,Permanente!$D$6:$D$50000,Sumário!$A86) -> 0 | H86: =SUMIFS(Permanente!$T$6:$T$50000,Permanente!$A$6:$A$50000,Sumário!H$74,Permanente!$D$6:$D$50000,Sumário!$A86) -> 0 | I86: =SUMIFS(Permanente!$T$6:$T$50000,Permanente!$A$6:$A$50000,Sumário!I$74,Permanente!$D$6:$D$50000,Sumário!$A86) -> 0 | J86: =SUMIFS(Permanente!$T$6:$T$50000,Permanente!$A$6:$A$50000,Sumário!J$74,Permanente!$D$6:$D$50000,Sumário!$A86) -> 0
A87: MAQUINAS E EQUIPAMENTOS ENERGETICOS | B87: =SUMIFS(Permanente!$T$6:$T$50000,Permanente!$A$6:$A$50000,Sumário!B$74,Permanente!$D$6:$D$50000,Sumário!$A87) -> 0 | C87: =SUMIFS(Permanente!$T$6:$T$50000,Permanente!$A$6:$A$50000,Sumário!C$74,Permanente!$D$6:$D$50000,Sumário!$A87) -> 0 | D87: =SUMIFS(Permanente!$T$6:$T$50000,Permanente!$A$6:$A$50000,Sumário!D$74,Permanente!$D$6:$D$50000,Sumário!$A87) -> 0 | E87: =SUMIFS(Permanente!$T$6:$T$50000,Permanente!$A$6:$A$50000,Sumário!E$74,Permanente!$D$6:$D$50000,Sumário!$A87) -> 0 | F87: =SUMIFS(Permanente!$T$6:$T$50000,Permanente!$A$6:$A$50000,Sumário!F$74,Permanente!$D$6:$D$50000,Sumário!$A87) -> 0 | G87: =SUMIFS(Permanente!$T$6:$T$50000,Permanente!$A$6:$A$50000,Sumário!G$74,Permanente!$D$6:$D$50000,Sumário!$A87) -> 0 | H87: =SUMIFS(Permanente!$T$6:$T$50000,Permanente!$A$6:$A$50000,Sumário!H$74,Permanente!$D$6:$D$50000,Sumário!$A87) -> 0 | I87: =SUMIFS(Permanente!$T$6:$T$50000,Permanente!$A$6:$A$50000,Sumário!I$74,Permanente!$D$6:$D$50000,Sumário!$A87) -> 0 | J87: =SUMIFS(Permanente!$T$6:$T$50000,Permanente!$A$6:$A$50000,Sumário!J$74,Permanente!$D$6:$D$50000,Sumário!$A87) -> 0
A88: MAQUINAS E EQUIPAMENTOS GRAFICOS | B88: =SUMIFS(Permanente!$T$6:$T$50000,Permanente!$A$6:$A$50000,Sumário!B$74,Permanente!$D$6:$D$50000,Sumário!$A88) -> 0 | C88: =SUMIFS(Permanente!$T$6:$T$50000,Permanente!$A$6:$A$50000,Sumário!C$74,Permanente!$D$6:$D$50000,Sumário!$A88) -> 0 | D88: =SUMIFS(Permanente!$T$6:$T$50000,Permanente!$A$6:$A$50000,Sumário!D$74,Permanente!$D$6:$D$50000,Sumário!$A88) -> 0 | E88: =SUMIFS(Permanente!$T$6:$T$50000,Permanente!$A$6:$A$50000,Sumário!E$74,Permanente!$D$6:$D$50000,Sumário!$A88) -> 0 | F88: =SUMIFS(Permanente!$T$6:$T$50000,Permanente!$A$6:$A$50000,Sumário!F$74,Permanente!$D$6:$D$50000,Sumário!$A88) -> 0 | G88: =SUMIFS(Permanente!$T$6:$T$50000,Permanente!$A$6:$A$50000,Sumário!G$74,Permanente!$D$6:$D$50000,Sumário!$A88) -> 0 | H88: =SUMIFS(Permanente!$T$6:$T$50000,Permanente!$A$6:$A$50000,Sumário!H$74,Permanente!$D$6:$D$50000,Sumário!$A88) -> 0 | I88: =SUMIFS(Permanente!$T$6:$T$50000,Permanente!$A$6:$A$50000,Sumário!I$74,Permanente!$D$6:$D$50000,Sumário!$A88) -> 0 | J88: =SUMIFS(Permanente!$T$6:$T$50000,Permanente!$A$6:$A$50000,Sumário!J$74,Permanente!$D$6:$D$50000,Sumário!$A88) -> 0
A89: EQUIPAMENTOS PARA AUDIO, VIDEO E FOTO | B89: =SUMIFS(Permanente!$T$6:$T$50000,Permanente!$A$6:$A$50000,Sumário!B$74,Permanente!$D$6:$D$50000,Sumário!$A89) -> 6000 | C89: =SUMIFS(Permanente!$T$6:$T$50000,Permanente!$A$6:$A$50000,Sumário!C$74,Permanente!$D$6:$D$50000,Sumário!$A89) -> 26050 | D89: =SUMIFS(Permanente!$T$6:$T$50000,Permanente!$A$6:$A$50000,Sumário!D$74,Permanente!$D$6:$D$50000,Sumário!$A89) -> 22000 | E89: =SUMIFS(Permanente!$T$6:$T$50000,Permanente!$A$6:$A$50000,Sumário!E$74,Permanente!$D$6:$D$50000,Sumário!$A89) -> 0 | F89: =SUMIFS(Permanente!$T$6:$T$50000,Permanente!$A$6:$A$50000,Sumário!F$74,Permanente!$D$6:$D$50000,Sumário!$A89) -> 6000 | G89: =SUMIFS(Permanente!$T$6:$T$50000,Permanente!$A$6:$A$50000,Sumário!G$74,Permanente!$D$6:$D$50000,Sumário!$A89) -> 0 | H89: =SUMIFS(Permanente!$T$6:$T$50000,Permanente!$A$6:$A$50000,Sumário!H$74,Permanente!$D$6:$D$50000,Sumário!$A89) -> 0 | I89: =SUMIFS(Permanente!$T$6:$T$50000,Permanente!$A$6:$A$50000,Sumário!I$74,Permanente!$D$6:$D$50000,Sumário!$A89) -> 0 | J89: =SUMIFS(Permanente!$T$6:$T$50000,Permanente!$A$6:$A$50000,Sumário!J$74,Permanente!$D$6:$D$50000,Sumário!$A89) -> 0
A90: MAQUINAS, UTENSILIOS E EQUIPAMENTOS DIVERSOS | B90: =SUMIFS(Permanente!$T$6:$T$50000,Permanente!$A$6:$A$50000,Sumário!B$74,Permanente!$D$6:$D$50000,Sumário!$A90) -> 70595.46 | C90: =SUMIFS(Permanente!$T$6:$T$50000,Permanente!$A$6:$A$50000,Sumário!C$74,Permanente!$D$6:$D$50000,Sumário!$A90) -> 0 | D90: =SUMIFS(Permanente!$T$6:$T$50000,Permanente!$A$6:$A$50000,Sumário!D$74,Permanente!$D$6:$D$50000,Sumário!$A90) -> 0 | E90: =SUMIFS(Permanente!$T$6:$T$50000,Permanente!$A$6:$A$50000,Sumário!E$74,Permanente!$D$6:$D$50000,Sumário!$A90) -> 0 | F90: =SUMIFS(Permanente!$T$6:$T$50000,Permanente!$A$6:$A$50000,Sumário!F$74,Permanente!$D$6:$D$50000,Sumário!$A90) -> 0 | G90: =SUMIFS(Permanente!$T$6:$T$50000,Permanente!$A$6:$A$50000,Sumário!G$74,Permanente!$D$6:$D$50000,Sumário!$A90) -> 0 | H90: =SUMIFS(Permanente!$T$6:$T$50000,Permanente!$A$6:$A$50000,Sumário!H$74,Permanente!$D$6:$D$50000,Sumário!$A90) -> 7136.51 | I90: =SUMIFS(Permanente!$T$6:$T$50000,Permanente!$A$6:$A$50000,Sumário!I$74,Permanente!$D$6:$D$50000,Sumário!$A90) -> 0 | J90: =SUMIFS(Permanente!$T$6:$T$50000,Permanente!$A$6:$A$50000,Sumário!J$74,Permanente!$D$6:$D$50000,Sumário!$A90) -> 0
A91: EQUIPAMENTOS DE PROCESSAMENTO DE DADOS | B91: =SUMIFS(Permanente!$T$6:$T$50000,Permanente!$A$6:$A$50000,Sumário!B$74,Permanente!$D$6:$D$50000,Sumário!$A91) -> 1373700 | C91: =SUMIFS(Permanente!$T$6:$T$50000,Permanente!$A$6:$A$50000,Sumário!C$74,Permanente!$D$6:$D$50000,Sumário!$A91) -> 158440 | D91: =SUMIFS(Permanente!$T$6:$T$50000,Permanente!$A$6:$A$50000,Sumário!D$74,Permanente!$D$6:$D$50000,Sumário!$A91) -> 547100 | E91: =SUMIFS(Permanente!$T$6:$T$50000,Permanente!$A$6:$A$50000,Sumário!E$74,Permanente!$D$6:$D$50000,Sumário!$A91) -> 0 | F91: =SUMIFS(Permanente!$T$6:$T$50000,Permanente!$A$6:$A$50000,Sumário!F$74,Permanente!$D$6:$D$50000,Sumário!$A91) -> 0 | G91: =SUMIFS(Permanente!$T$6:$T$50000,Permanente!$A$6:$A$50000,Sumário!G$74,Permanente!$D$6:$D$50000,Sumário!$A91) -> 0 | H91: =SUMIFS(Permanente!$T$6:$T$50000,Permanente!$A$6:$A$50000,Sumário!H$74,Permanente!$D$6:$D$50000,Sumário!$A91) -> 0 | I91: =SUMIFS(Permanente!$T$6:$T$50000,Permanente!$A$6:$A$50000,Sumário!I$74,Permanente!$D$6:$D$50000,Sumário!$A91) -> 1373700 | J91: =SUMIFS(Permanente!$T$6:$T$50000,Permanente!$A$6:$A$50000,Sumário!J$74,Permanente!$D$6:$D$50000,Sumário!$A91) -> 0
A92: MAQUINAS, INSTALACOES E UTENS. DE ESCRITORIO | B92: =SUMIFS(Permanente!$T$6:$T$50000,Permanente!$A$6:$A$50000,Sumário!B$74,Permanente!$D$6:$D$50000,Sumário!$A92) -> 0 | C92: =SUMIFS(Permanente!$T$6:$T$50000,Permanente!$A$6:$A$50000,Sumário!C$74,Permanente!$D$6:$D$50000,Sumário!$A92) -> 0 | D92: =SUMIFS(Permanente!$T$6:$T$50000,Permanente!$A$6:$A$50000,Sumário!D$74,Permanente!$D$6:$D$50000,Sumário!$A92) -> 0 | E92: =SUMIFS(Permanente!$T$6:$T$50000,Permanente!$A$6:$A$50000,Sumário!E$74,Permanente!$D$6:$D$50000,Sumário!$A92) -> 0 | F92: =SUMIFS(Permanente!$T$6:$T$50000,Permanente!$A$6:$A$50000,Sumário!F$74,Permanente!$D$6:$D$50000,Sumário!$A92) -> 0 | G92: =SUMIFS(Permanente!$T$6:$T$50000,Permanente!$A$6:$A$50000,Sumário!G$74,Permanente!$D$6:$D$50000,Sumário!$A92) -> 3900 | H92: =SUMIFS(Permanente!$T$6:$T$50000,Permanente!$A$6:$A$50000,Sumário!H$74,Permanente!$D$6:$D$50000,Sumário!$A92) -> 0 | I92: =SUMIFS(Permanente!$T$6:$T$50000,Permanente!$A$6:$A$50000,Sumário!I$74,Permanente!$D$6:$D$50000,Sumário!$A92) -> 0 | J92: =SUMIFS(Permanente!$T$6:$T$50000,Permanente!$A$6:$A$50000,Sumário!J$74,Permanente!$D$6:$D$50000,Sumário!$A92) -> 0
A93: MAQ., FERRAMENTAS E UTENSILIOS DE OFICINA | B93: =SUMIFS(Permanente!$T$6:$T$50000,Permanente!$A$6:$A$50000,Sumário!B$74,Permanente!$D$6:$D$50000,Sumário!$A93) -> 4086.17 | C93: =SUMIFS(Permanente!$T$6:$T$50000,Permanente!$A$6:$A$50000,Sumário!C$74,Permanente!$D$6:$D$50000,Sumário!$A93) -> 0 | D93: =SUMIFS(Permanente!$T$6:$T$50000,Permanente!$A$6:$A$50000,Sumário!D$74,Permanente!$D$6:$D$50000,Sumário!$A93) -> 0 | E93: =SUMIFS(Permanente!$T$6:$T$50000,Permanente!$A$6:$A$50000,Sumário!E$74,Permanente!$D$6:$D$50000,Sumário!$A93) -> 1085 | F93: =SUMIFS(Permanente!$T$6:$T$50000,Permanente!$A$6:$A$50000,Sumário!F$74,Permanente!$D$6:$D$50000,Sumário!$A93) -> 0 | G93: =SUMIFS(Permanente!$T$6:$T$50000,Permanente!$A$6:$A$50000,Sumário!G$74,Permanente!$D$6:$D$50000,Sumário!$A93) -> 16190 | H93: =SUMIFS(Permanente!$T$6:$T$50000,Permanente!$A$6:$A$50000,Sumário!H$74,Permanente!$D$6:$D$50000,Sumário!$A93) -> 4086.17 | I93: =SUMIFS(Permanente!$T$6:$T$50000,Permanente!$A$6:$A$50000,Sumário!I$74,Permanente!$D$6:$D$50000,Sumário!$A93) -> 0 | J93: =SUMIFS(Permanente!$T$6:$T$50000,Permanente!$A$6:$A$50000,Sumário!J$74,Permanente!$D$6:$D$50000,Sumário!$A93) -> 0
A94: EQUIP. E UTENSILIOS HIDRAULICOS E ELETRICOS | B94: =SUMIFS(Permanente!$T$6:$T$50000,Permanente!$A$6:$A$50000,Sumário!B$74,Permanente!$D$6:$D$50000,Sumário!$A94) -> 3054.11 | C94: =SUMIFS(Permanente!$T$6:$T$50000,Permanente!$A$6:$A$50000,Sumário!C$74,Permanente!$D$6:$D$50000,Sumário!$A94) -> 8000 | D94: =SUMIFS(Permanente!$T$6:$T$50000,Permanente!$A$6:$A$50000,Sumário!D$74,Permanente!$D$6:$D$50000,Sumário!$A94) -> 0 | E94: =SUMIFS(Permanente!$T$6:$T$50000,Permanente!$A$6:$A$50000,Sumário!E$74,Permanente!$D$6:$D$50000,Sumário!$A94) -> 900 | F94: =SUMIFS(Permanente!$T$6:$T$50000,Permanente!$A$6:$A$50000,Sumário!F$74,Permanente!$D$6:$D$50000,Sumário!$A94) -> 0 | G94: =SUMIFS(Permanente!$T$6:$T$50000,Permanente!$A$6:$A$50000,Sumário!G$74,Permanente!$D$6:$D$50000,Sumário!$A94) -> 0 | H94: =SUMIFS(Permanente!$T$6:$T$50000,Permanente!$A$6:$A$50000,Sumário!H$74,Permanente!$D$6:$D$50000,Sumário!$A94) -> 3054.11 | I94: =SUMIFS(Permanente!$T$6:$T$50000,Permanente!$A$6:$A$50000,Sumário!I$74,Permanente!$D$6:$D$50000,Sumário!$A94) -> 0 | J94: =SUMIFS(Permanente!$T$6:$T$50000,Permanente!$A$6:$A$50000,Sumário!J$74,Permanente!$D$6:$D$50000,Sumário!$A94) -> 0
A95: MAQUINAS E EQUIPAMENTOS AGRIC. E RODOVIARIOS | B95: =SUMIFS(Permanente!$T$6:$T$50000,Permanente!$A$6:$A$50000,Sumário!B$74,Permanente!$D$6:$D$50000,Sumário!$A95) -> 65326.35 | C95: =SUMIFS(Permanente!$T$6:$T$50000,Permanente!$A$6:$A$50000,Sumário!C$74,Permanente!$D$6:$D$50000,Sumário!$A95) -> 0 | D95: =SUMIFS(Permanente!$T$6:$T$50000,Permanente!$A$6:$A$50000,Sumário!D$74,Permanente!$D$6:$D$50000,Sumário!$A95) -> 0 | E95: =SUMIFS(Permanente!$T$6:$T$50000,Permanente!$A$6:$A$50000,Sumário!E$74,Permanente!$D$6:$D$50000,Sumário!$A95) -> 0 | F95: =SUMIFS(Permanente!$T$6:$T$50000,Permanente!$A$6:$A$50000,Sumário!F$74,Permanente!$D$6:$D$50000,Sumário!$A95) -> 0 | G95: =SUMIFS(Permanente!$T$6:$T$50000,Permanente!$A$6:$A$50000,Sumário!G$74,Permanente!$D$6:$D$50000,Sumário!$A95) -> 0 | H95: =SUMIFS(Permanente!$T$6:$T$50000,Permanente!$A$6:$A$50000,Sumário!H$74,Permanente!$D$6:$D$50000,Sumário!$A95) -> 65326.35 | I95: =SUMIFS(Permanente!$T$6:$T$50000,Permanente!$A$6:$A$50000,Sumário!I$74,Permanente!$D$6:$D$50000,Sumário!$A95) -> 0 | J95: =SUMIFS(Permanente!$T$6:$T$50000,Permanente!$A$6:$A$50000,Sumário!J$74,Permanente!$D$6:$D$50000,Sumário!$A95) -> 0
A96: MOBILIARIO EM GERAL | B96: =SUMIFS(Permanente!$T$6:$T$50000,Permanente!$A$6:$A$50000,Sumário!B$74,Permanente!$D$6:$D$50000,Sumário!$A96) -> 73218.73 | C96: =SUMIFS(Permanente!$T$6:$T$50000,Permanente!$A$6:$A$50000,Sumário!C$74,Permanente!$D$6:$D$50000,Sumário!$A96) -> 0 | D96: =SUMIFS(Permanente!$T$6:$T$50000,Permanente!$A$6:$A$50000,Sumário!D$74,Permanente!$D$6:$D$50000,Sumário!$A96) -> 6000 | E96: =SUMIFS(Permanente!$T$6:$T$50000,Permanente!$A$6:$A$50000,Sumário!E$74,Permanente!$D$6:$D$50000,Sumário!$A96) -> 0 | F96: =SUMIFS(Permanente!$T$6:$T$50000,Permanente!$A$6:$A$50000,Sumário!F$74,Permanente!$D$6:$D$50000,Sumário!$A96) -> 6000 | G96: =SUMIFS(Permanente!$T$6:$T$50000,Permanente!$A$6:$A$50000,Sumário!G$74,Permanente!$D$6:$D$50000,Sumário!$A96) -> 0 | H96: =SUMIFS(Permanente!$T$6:$T$50000,Permanente!$A$6:$A$50000,Sumário!H$74,Permanente!$D$6:$D$50000,Sumário!$A96) -> 2218.73 | I96: =SUMIFS(Permanente!$T$6:$T$50000,Permanente!$A$6:$A$50000,Sumário!I$74,Permanente!$D$6:$D$50000,Sumário!$A96) -> 0 | J96: =SUMIFS(Permanente!$T$6:$T$50000,Permanente!$A$6:$A$50000,Sumário!J$74,Permanente!$D$6:$D$50000,Sumário!$A96) -> 0
A97: OBRAS DE ARTE E PECAS PARA EXPOSICAO | B97: =SUMIFS(Permanente!$T$6:$T$50000,Permanente!$A$6:$A$50000,Sumário!B$74,Permanente!$D$6:$D$50000,Sumário!$A97) -> 0 | C97: =SUMIFS(Permanente!$T$6:$T$50000,Permanente!$A$6:$A$50000,Sumário!C$74,Permanente!$D$6:$D$50000,Sumário!$A97) -> 0 | D97: =SUMIFS(Permanente!$T$6:$T$50000,Permanente!$A$6:$A$50000,Sumário!D$74,Permanente!$D$6:$D$50000,Sumário!$A97) -> 0 | E97: =SUMIFS(Permanente!$T$6:$T$50000,Permanente!$A$6:$A$50000,Sumário!E$74,Permanente!$D$6:$D$50000,Sumário!$A97) -> 0 | F97: =SUMIFS(Permanente!$T$6:$T$50000,Permanente!$A$6:$A$50000,Sumário!F$74,Permanente!$D$6:$D$50000,Sumário!$A97) -> 0 | G97: =SUMIFS(Permanente!$T$6:$T$50000,Permanente!$A$6:$A$50000,Sumário!G$74,Permanente!$D$6:$D$50000,Sumário!$A97) -> 0 | H97: =SUMIFS(Permanente!$T$6:$T$50000,Permanente!$A$6:$A$50000,Sumário!H$74,Permanente!$D$6:$D$50000,Sumário!$A97) -> 0 | I97: =SUMIFS(Permanente!$T$6:$T$50000,Permanente!$A$6:$A$50000,Sumário!I$74,Permanente!$D$6:$D$50000,Sumário!$A97) -> 0 | J97: =SUMIFS(Permanente!$T$6:$T$50000,Permanente!$A$6:$A$50000,Sumário!J$74,Permanente!$D$6:$D$50000,Sumário!$A97) -> 0
A98: SEMOVENTES E EQUIPAMENTOS DE MONTARIA | B98: =SUMIFS(Permanente!$T$6:$T$50000,Permanente!$A$6:$A$50000,Sumário!B$74,Permanente!$D$6:$D$50000,Sumário!$A98) -> 0 | C98: =SUMIFS(Permanente!$T$6:$T$50000,Permanente!$A$6:$A$50000,Sumário!C$74,Permanente!$D$6:$D$50000,Sumário!$A98) -> 0 | D98: =SUMIFS(Permanente!$T$6:$T$50000,Permanente!$A$6:$A$50000,Sumário!D$74,Permanente!$D$6:$D$50000,Sumário!$A98) -> 0 | E98: =SUMIFS(Permanente!$T$6:$T$50000,Permanente!$A$6:$A$50000,Sumário!E$74,Permanente!$D$6:$D$50000,Sumário!$A98) -> 0 | F98: =SUMIFS(Permanente!$T$6:$T$50000,Permanente!$A$6:$A$50000,Sumário!F$74,Permanente!$D$6:$D$50000,Sumário!$A98) -> 0 | G98: =SUMIFS(Permanente!$T$6:$T$50000,Permanente!$A$6:$A$50000,Sumário!G$74,Permanente!$D$6:$D$50000,Sumário!$A98) -> 0 | H98: =SUMIFS(Permanente!$T$6:$T$50000,Permanente!$A$6:$A$50000,Sumário!H$74,Permanente!$D$6:$D$50000,Sumário!$A98) -> 0 | I98: =SUMIFS(Permanente!$T$6:$T$50000,Permanente!$A$6:$A$50000,Sumário!I$74,Permanente!$D$6:$D$50000,Sumário!$A98) -> 0 | J98: =SUMIFS(Permanente!$T$6:$T$50000,Permanente!$A$6:$A$50000,Sumário!J$74,Permanente!$D$6:$D$50000,Sumário!$A98) -> 0
A99: VEICULOS DIVERSOS | B99: =SUMIFS(Permanente!$T$6:$T$50000,Permanente!$A$6:$A$50000,Sumário!B$74,Permanente!$D$6:$D$50000,Sumário!$A99) -> 0 | C99: =SUMIFS(Permanente!$T$6:$T$50000,Permanente!$A$6:$A$50000,Sumário!C$74,Permanente!$D$6:$D$50000,Sumário!$A99) -> 0 | D99: =SUMIFS(Permanente!$T$6:$T$50000,Permanente!$A$6:$A$50000,Sumário!D$74,Permanente!$D$6:$D$50000,Sumário!$A99) -> 0 | E99: =SUMIFS(Permanente!$T$6:$T$50000,Permanente!$A$6:$A$50000,Sumário!E$74,Permanente!$D$6:$D$50000,Sumário!$A99) -> 0 | F99: =SUMIFS(Permanente!$T$6:$T$50000,Permanente!$A$6:$A$50000,Sumário!F$74,Permanente!$D$6:$D$50000,Sumário!$A99) -> 0 | G99: =SUMIFS(Permanente!$T$6:$T$50000,Permanente!$A$6:$A$50000,Sumário!G$74,Permanente!$D$6:$D$50000,Sumário!$A99) -> 0 | H99: =SUMIFS(Permanente!$T$6:$T$50000,Permanente!$A$6:$A$50000,Sumário!H$74,Permanente!$D$6:$D$50000,Sumário!$A99) -> 0 | I99: =SUMIFS(Permanente!$T$6:$T$50000,Permanente!$A$6:$A$50000,Sumário!I$74,Permanente!$D$6:$D$50000,Sumário!$A99) -> 0 | J99: =SUMIFS(Permanente!$T$6:$T$50000,Permanente!$A$6:$A$50000,Sumário!J$74,Permanente!$D$6:$D$50000,Sumário!$A99) -> 0
A100: VEICULOS FERROVIARIOS | B100: =SUMIFS(Permanente!$T$6:$T$50000,Permanente!$A$6:$A$50000,Sumário!B$74,Permanente!$D$6:$D$50000,Sumário!$A100) -> 0 | C100: =SUMIFS(Permanente!$T$6:$T$50000,Permanente!$A$6:$A$50000,Sumário!C$74,Permanente!$D$6:$D$50000,Sumário!$A100) -> 0 | D100: =SUMIFS(Permanente!$T$6:$T$50000,Permanente!$A$6:$A$50000,Sumário!D$74,Permanente!$D$6:$D$50000,Sumário!$A100) -> 0 | E100: =SUMIFS(Permanente!$T$6:$T$50000,Permanente!$A$6:$A$50000,Sumário!E$74,Permanente!$D$6:$D$50000,Sumário!$A100) -> 0 | F100: =SUMIFS(Permanente!$T$6:$T$50000,Permanente!$A$6:$A$50000,Sumário!F$74,Permanente!$D$6:$D$50000,Sumário!$A100) -> 0 | G100: =SUMIFS(Permanente!$T$6:$T$50000,Permanente!$A$6:$A$50000,Sumário!G$74,Permanente!$D$6:$D$50000,Sumário!$A100) -> 0 | H100: =SUMIFS(Permanente!$T$6:$T$50000,Permanente!$A$6:$A$50000,Sumário!H$74,Permanente!$D$6:$D$50000,Sumário!$A100) -> 0 | I100: =SUMIFS(Permanente!$T$6:$T$50000,Permanente!$A$6:$A$50000,Sumário!I$74,Permanente!$D$6:$D$50000,Sumário!$A100) -> 0 | J100: =SUMIFS(Permanente!$T$6:$T$50000,Permanente!$A$6:$A$50000,Sumário!J$74,Permanente!$D$6:$D$50000,Sumário!$A100) -> 0
A101: PECAS NAO INCORPORAVEIS A IMOVEIS | B101: =SUMIFS(Permanente!$T$6:$T$50000,Permanente!$A$6:$A$50000,Sumário!B$74,Permanente!$D$6:$D$50000,Sumário!$A101) -> 0 | C101: =SUMIFS(Permanente!$T$6:$T$50000,Permanente!$A$6:$A$50000,Sumário!C$74,Permanente!$D$6:$D$50000,Sumário!$A101) -> 0 | D101: =SUMIFS(Permanente!$T$6:$T$50000,Permanente!$A$6:$A$50000,Sumário!D$74,Permanente!$D$6:$D$50000,Sumário!$A101) -> 0 | E101: =SUMIFS(Permanente!$T$6:$T$50000,Permanente!$A$6:$A$50000,Sumário!E$74,Permanente!$D$6:$D$50000,Sumário!$A101) -> 0 | F101: =SUMIFS(Permanente!$T$6:$T$50000,Permanente!$A$6:$A$50000,Sumário!F$74,Permanente!$D$6:$D$50000,Sumário!$A101) -> 0 | G101: =SUMIFS(Permanente!$T$6:$T$50000,Permanente!$A$6:$A$50000,Sumário!G$74,Permanente!$D$6:$D$50000,Sumário!$A101) -> 0 | H101: =SUMIFS(Permanente!$T$6:$T$50000,Permanente!$A$6:$A$50000,Sumário!H$74,Permanente!$D$6:$D$50000,Sumário!$A101) -> 0 | I101: =SUMIFS(Permanente!$T$6:$T$50000,Permanente!$A$6:$A$50000,Sumário!I$74,Permanente!$D$6:$D$50000,Sumário!$A101) -> 0 | J101: =SUMIFS(Permanente!$T$6:$T$50000,Permanente!$A$6:$A$50000,Sumário!J$74,Permanente!$D$6:$D$50000,Sumário!$A101) -> 0
A102: VEICULOS DE TRACAO MECANICA | B102: =SUMIFS(Permanente!$T$6:$T$50000,Permanente!$A$6:$A$50000,Sumário!B$74,Permanente!$D$6:$D$50000,Sumário!$A102) -> 0 | C102: =SUMIFS(Permanente!$T$6:$T$50000,Permanente!$A$6:$A$50000,Sumário!C$74,Permanente!$D$6:$D$50000,Sumário!$A102) -> 0 | D102: =SUMIFS(Permanente!$T$6:$T$50000,Permanente!$A$6:$A$50000,Sumário!D$74,Permanente!$D$6:$D$50000,Sumário!$A102) -> 0 | E102: =SUMIFS(Permanente!$T$6:$T$50000,Permanente!$A$6:$A$50000,Sumário!E$74,Permanente!$D$6:$D$50000,Sumário!$A102) -> 0 | F102: =SUMIFS(Permanente!$T$6:$T$50000,Permanente!$A$6:$A$50000,Sumário!F$74,Permanente!$D$6:$D$50000,Sumário!$A102) -> 0 | G102: =SUMIFS(Permanente!$T$6:$T$50000,Permanente!$A$6:$A$50000,Sumário!G$74,Permanente!$D$6:$D$50000,Sumário!$A102) -> 0 | H102: =SUMIFS(Permanente!$T$6:$T$50000,Permanente!$A$6:$A$50000,Sumário!H$74,Permanente!$D$6:$D$50000,Sumário!$A102) -> 0 | I102: =SUMIFS(Permanente!$T$6:$T$50000,Permanente!$A$6:$A$50000,Sumário!I$74,Permanente!$D$6:$D$50000,Sumário!$A102) -> 0 | J102: =SUMIFS(Permanente!$T$6:$T$50000,Permanente!$A$6:$A$50000,Sumário!J$74,Permanente!$D$6:$D$50000,Sumário!$A102) -> 0
A103: EQUIPAMENTOS, PECAS E ACESSORIOS AERONAUTICOS | B103: =SUMIFS(Permanente!$T$6:$T$50000,Permanente!$A$6:$A$50000,Sumário!B$74,Permanente!$D$6:$D$50000,Sumário!$A103) -> 0 | C103: =SUMIFS(Permanente!$T$6:$T$50000,Permanente!$A$6:$A$50000,Sumário!C$74,Permanente!$D$6:$D$50000,Sumário!$A103) -> 0 | D103: =SUMIFS(Permanente!$T$6:$T$50000,Permanente!$A$6:$A$50000,Sumário!D$74,Permanente!$D$6:$D$50000,Sumário!$A103) -> 0 | E103: =SUMIFS(Permanente!$T$6:$T$50000,Permanente!$A$6:$A$50000,Sumário!E$74,Permanente!$D$6:$D$50000,Sumário!$A103) -> 0 | F103: =SUMIFS(Permanente!$T$6:$T$50000,Permanente!$A$6:$A$50000,Sumário!F$74,Permanente!$D$6:$D$50000,Sumário!$A103) -> 0 | G103: =SUMIFS(Permanente!$T$6:$T$50000,Permanente!$A$6:$A$50000,Sumário!G$74,Permanente!$D$6:$D$50000,Sumário!$A103) -> 0 | H103: =SUMIFS(Permanente!$T$6:$T$50000,Permanente!$A$6:$A$50000,Sumário!H$74,Permanente!$D$6:$D$50000,Sumário!$A103) -> 0 | I103: =SUMIFS(Permanente!$T$6:$T$50000,Permanente!$A$6:$A$50000,Sumário!I$74,Permanente!$D$6:$D$50000,Sumário!$A103) -> 0 | J103: =SUMIFS(Permanente!$T$6:$T$50000,Permanente!$A$6:$A$50000,Sumário!J$74,Permanente!$D$6:$D$50000,Sumário!$A103) -> 0
A104: EQUIPAMENTOS, PECAS E ACES.DE PROTECAO AO VOO | B104: =SUMIFS(Permanente!$T$6:$T$50000,Permanente!$A$6:$A$50000,Sumário!B$74,Permanente!$D$6:$D$50000,Sumário!$A104) -> 0 | C104: =SUMIFS(Permanente!$T$6:$T$50000,Permanente!$A$6:$A$50000,Sumário!C$74,Permanente!$D$6:$D$50000,Sumário!$A104) -> 0 | D104: =SUMIFS(Permanente!$T$6:$T$50000,Permanente!$A$6:$A$50000,Sumário!D$74,Permanente!$D$6:$D$50000,Sumário!$A104) -> 0 | E104: =SUMIFS(Permanente!$T$6:$T$50000,Permanente!$A$6:$A$50000,Sumário!E$74,Permanente!$D$6:$D$50000,Sumário!$A104) -> 0 | F104: =SUMIFS(Permanente!$T$6:$T$50000,Permanente!$A$6:$A$50000,Sumário!F$74,Permanente!$D$6:$D$50000,Sumário!$A104) -> 0 | G104: =SUMIFS(Permanente!$T$6:$T$50000,Permanente!$A$6:$A$50000,Sumário!G$74,Permanente!$D$6:$D$50000,Sumário!$A104) -> 0 | H104: =SUMIFS(Permanente!$T$6:$T$50000,Permanente!$A$6:$A$50000,Sumário!H$74,Permanente!$D$6:$D$50000,Sumário!$A104) -> 0 | I104: =SUMIFS(Permanente!$T$6:$T$50000,Permanente!$A$6:$A$50000,Sumário!I$74,Permanente!$D$6:$D$50000,Sumário!$A104) -> 0 | J104: =SUMIFS(Permanente!$T$6:$T$50000,Permanente!$A$6:$A$50000,Sumário!J$74,Permanente!$D$6:$D$50000,Sumário!$A104) -> 0
A105: ACESSORIOS PARA VEICULOS | B105: =SUMIFS(Permanente!$T$6:$T$50000,Permanente!$A$6:$A$50000,Sumário!B$74,Permanente!$D$6:$D$50000,Sumário!$A105) -> 0 | C105: =SUMIFS(Permanente!$T$6:$T$50000,Permanente!$A$6:$A$50000,Sumário!C$74,Permanente!$D$6:$D$50000,Sumário!$A105) -> 0 | D105: =SUMIFS(Permanente!$T$6:$T$50000,Permanente!$A$6:$A$50000,Sumário!D$74,Permanente!$D$6:$D$50000,Sumário!$A105) -> 0 | E105: =SUMIFS(Permanente!$T$6:$T$50000,Permanente!$A$6:$A$50000,Sumário!E$74,Permanente!$D$6:$D$50000,Sumário!$A105) -> 0 | F105: =SUMIFS(Permanente!$T$6:$T$50000,Permanente!$A$6:$A$50000,Sumário!F$74,Permanente!$D$6:$D$50000,Sumário!$A105) -> 0 | G105: =SUMIFS(Permanente!$T$6:$T$50000,Permanente!$A$6:$A$50000,Sumário!G$74,Permanente!$D$6:$D$50000,Sumário!$A105) -> 0 | H105: =SUMIFS(Permanente!$T$6:$T$50000,Permanente!$A$6:$A$50000,Sumário!H$74,Permanente!$D$6:$D$50000,Sumário!$A105) -> 0 | I105: =SUMIFS(Permanente!$T$6:$T$50000,Permanente!$A$6:$A$50000,Sumário!I$74,Permanente!$D$6:$D$50000,Sumário!$A105) -> 0 | J105: =SUMIFS(Permanente!$T$6:$T$50000,Permanente!$A$6:$A$50000,Sumário!J$74,Permanente!$D$6:$D$50000,Sumário!$A105) -> 0
A106: EQUIPAMENTOS DE MERGULHO E SALVAMENTO | B106: =SUMIFS(Permanente!$T$6:$T$50000,Permanente!$A$6:$A$50000,Sumário!B$74,Permanente!$D$6:$D$50000,Sumário!$A106) -> 0 | C106: =SUMIFS(Permanente!$T$6:$T$50000,Permanente!$A$6:$A$50000,Sumário!C$74,Permanente!$D$6:$D$50000,Sumário!$A106) -> 0 | D106: =SUMIFS(Permanente!$T$6:$T$50000,Permanente!$A$6:$A$50000,Sumário!D$74,Permanente!$D$6:$D$50000,Sumário!$A106) -> 0 | E106: =SUMIFS(Permanente!$T$6:$T$50000,Permanente!$A$6:$A$50000,Sumário!E$74,Permanente!$D$6:$D$50000,Sumário!$A106) -> 0 | F106: =SUMIFS(Permanente!$T$6:$T$50000,Permanente!$A$6:$A$50000,Sumário!F$74,Permanente!$D$6:$D$50000,Sumário!$A106) -> 0 | G106: =SUMIFS(Permanente!$T$6:$T$50000,Permanente!$A$6:$A$50000,Sumário!G$74,Permanente!$D$6:$D$50000,Sumário!$A106) -> 0 | H106: =SUMIFS(Permanente!$T$6:$T$50000,Permanente!$A$6:$A$50000,Sumário!H$74,Permanente!$D$6:$D$50000,Sumário!$A106) -> 0 | I106: =SUMIFS(Permanente!$T$6:$T$50000,Permanente!$A$6:$A$50000,Sumário!I$74,Permanente!$D$6:$D$50000,Sumário!$A106) -> 0 | J106: =SUMIFS(Permanente!$T$6:$T$50000,Permanente!$A$6:$A$50000,Sumário!J$74,Permanente!$D$6:$D$50000,Sumário!$A106) -> 0
A107: EQUIPAMENTOS, PECAS E ACESSORIOS MARITIMOS | B107: =SUMIFS(Permanente!$T$6:$T$50000,Permanente!$A$6:$A$50000,Sumário!B$74,Permanente!$D$6:$D$50000,Sumário!$A107) -> 0 | C107: =SUMIFS(Permanente!$T$6:$T$50000,Permanente!$A$6:$A$50000,Sumário!C$74,Permanente!$D$6:$D$50000,Sumário!$A107) -> 0 | D107: =SUMIFS(Permanente!$T$6:$T$50000,Permanente!$A$6:$A$50000,Sumário!D$74,Permanente!$D$6:$D$50000,Sumário!$A107) -> 0 | E107: =SUMIFS(Permanente!$T$6:$T$50000,Permanente!$A$6:$A$50000,Sumário!E$74,Permanente!$D$6:$D$50000,Sumário!$A107) -> 0 | F107: =SUMIFS(Permanente!$T$6:$T$50000,Permanente!$A$6:$A$50000,Sumário!F$74,Permanente!$D$6:$D$50000,Sumário!$A107) -> 0 | G107: =SUMIFS(Permanente!$T$6:$T$50000,Permanente!$A$6:$A$50000,Sumário!G$74,Permanente!$D$6:$D$50000,Sumário!$A107) -> 0 | H107: =SUMIFS(Permanente!$T$6:$T$50000,Permanente!$A$6:$A$50000,Sumário!H$74,Permanente!$D$6:$D$50000,Sumário!$A107) -> 0 | I107: =SUMIFS(Permanente!$T$6:$T$50000,Permanente!$A$6:$A$50000,Sumário!I$74,Permanente!$D$6:$D$50000,Sumário!$A107) -> 0 | J107: =SUMIFS(Permanente!$T$6:$T$50000,Permanente!$A$6:$A$50000,Sumário!J$74,Permanente!$D$6:$D$50000,Sumário!$A107) -> 0
A108: EQUIPAMENTOS E SISTEMA DE PROT.VIG.AMBIENTAL | B108: =SUMIFS(Permanente!$T$6:$T$50000,Permanente!$A$6:$A$50000,Sumário!B$74,Permanente!$D$6:$D$50000,Sumário!$A108) -> 0 | C108: =SUMIFS(Permanente!$T$6:$T$50000,Permanente!$A$6:$A$50000,Sumário!C$74,Permanente!$D$6:$D$50000,Sumário!$A108) -> 0 | D108: =SUMIFS(Permanente!$T$6:$T$50000,Permanente!$A$6:$A$50000,Sumário!D$74,Permanente!$D$6:$D$50000,Sumário!$A108) -> 0 | E108: =SUMIFS(Permanente!$T$6:$T$50000,Permanente!$A$6:$A$50000,Sumário!E$74,Permanente!$D$6:$D$50000,Sumário!$A108) -> 0 | F108: =SUMIFS(Permanente!$T$6:$T$50000,Permanente!$A$6:$A$50000,Sumário!F$74,Permanente!$D$6:$D$50000,Sumário!$A108) -> 0 | G108: =SUMIFS(Permanente!$T$6:$T$50000,Permanente!$A$6:$A$50000,Sumário!G$74,Permanente!$D$6:$D$50000,Sumário!$A108) -> 0 | H108: =SUMIFS(Permanente!$T$6:$T$50000,Permanente!$A$6:$A$50000,Sumário!H$74,Permanente!$D$6:$D$50000,Sumário!$A108) -> 0 | I108: =SUMIFS(Permanente!$T$6:$T$50000,Permanente!$A$6:$A$50000,Sumário!I$74,Permanente!$D$6:$D$50000,Sumário!$A108) -> 0 | J108: =SUMIFS(Permanente!$T$6:$T$50000,Permanente!$A$6:$A$50000,Sumário!J$74,Permanente!$D$6:$D$50000,Sumário!$A108) -> 0
A109: MATERIAL DE CONSUMO DE USO DURADOURO | B109: =SUMIFS(Permanente!$T$6:$T$50000,Permanente!$A$6:$A$50000,Sumário!B$74,Permanente!$D$6:$D$50000,Sumário!$A109) -> 0 | C109: =SUMIFS(Permanente!$T$6:$T$50000,Permanente!$A$6:$A$50000,Sumário!C$74,Permanente!$D$6:$D$50000,Sumário!$A109) -> 0 | D109: =SUMIFS(Permanente!$T$6:$T$50000,Permanente!$A$6:$A$50000,Sumário!D$74,Permanente!$D$6:$D$50000,Sumário!$A109) -> 0 | E109: =SUMIFS(Permanente!$T$6:$T$50000,Permanente!$A$6:$A$50000,Sumário!E$74,Permanente!$D$6:$D$50000,Sumário!$A109) -> 0 | F109: =SUMIFS(Permanente!$T$6:$T$50000,Permanente!$A$6:$A$50000,Sumário!F$74,Permanente!$D$6:$D$50000,Sumário!$A109) -> 0 | G109: =SUMIFS(Permanente!$T$6:$T$50000,Permanente!$A$6:$A$50000,Sumário!G$74,Permanente!$D$6:$D$50000,Sumário!$A109) -> 0 | H109: =SUMIFS(Permanente!$T$6:$T$50000,Permanente!$A$6:$A$50000,Sumário!H$74,Permanente!$D$6:$D$50000,Sumário!$A109) -> 0 | I109: =SUMIFS(Permanente!$T$6:$T$50000,Permanente!$A$6:$A$50000,Sumário!I$74,Permanente!$D$6:$D$50000,Sumário!$A109) -> 0 | J109: =SUMIFS(Permanente!$T$6:$T$50000,Permanente!$A$6:$A$50000,Sumário!J$74,Permanente!$D$6:$D$50000,Sumário!$A109) -> 0
A110: OUTROS MATERIAIS PERMANENTES | B110: =SUMIFS(Permanente!$T$6:$T$50000,Permanente!$A$6:$A$50000,Sumário!B$74,Permanente!$D$6:$D$50000,Sumário!$A110) -> 24080.36 | C110: =SUMIFS(Permanente!$T$6:$T$50000,Permanente!$A$6:$A$50000,Sumário!C$74,Permanente!$D$6:$D$50000,Sumário!$A110) -> 0 | D110: =SUMIFS(Permanente!$T$6:$T$50000,Permanente!$A$6:$A$50000,Sumário!D$74,Permanente!$D$6:$D$50000,Sumário!$A110) -> 0 | E110: =SUMIFS(Permanente!$T$6:$T$50000,Permanente!$A$6:$A$50000,Sumário!E$74,Permanente!$D$6:$D$50000,Sumário!$A110) -> 0 | F110: =SUMIFS(Permanente!$T$6:$T$50000,Permanente!$A$6:$A$50000,Sumário!F$74,Permanente!$D$6:$D$50000,Sumário!$A110) -> 0 | G110: =SUMIFS(Permanente!$T$6:$T$50000,Permanente!$A$6:$A$50000,Sumário!G$74,Permanente!$D$6:$D$50000,Sumário!$A110) -> 0 | H110: =SUMIFS(Permanente!$T$6:$T$50000,Permanente!$A$6:$A$50000,Sumário!H$74,Permanente!$D$6:$D$50000,Sumário!$A110) -> 0 | I110: =SUMIFS(Permanente!$T$6:$T$50000,Permanente!$A$6:$A$50000,Sumário!I$74,Permanente!$D$6:$D$50000,Sumário!$A110) -> 0 | J110: =SUMIFS(Permanente!$T$6:$T$50000,Permanente!$A$6:$A$50000,Sumário!J$74,Permanente!$D$6:$D$50000,Sumário!$A110) -> 0
A113: Material de Serviço
A114: Descrição – Subitem | B114: BASE | C114: 5DE | D114: AD5 | E114: 11CT | F114: 5CIAPE | G114: CIMH | H114: CIAAP | I114: 5RM | J114: 5BCOM
A115: ASSINATURAS DE PERIODICOS E ANUIDADES | B115: =SUMIFS(Serviço!$T$6:$T$50000,Serviço!$A$6:$A$50000,Sumário!B$114,Serviço!$D$6:$D$50000,Sumário!$A115) -> 0 | C115: =SUMIFS(Serviço!$T$6:$T$50000,Serviço!$A$6:$A$50000,Sumário!C$114,Serviço!$D$6:$D$50000,Sumário!$A115) -> 0 | D115: =SUMIFS(Serviço!$T$6:$T$50000,Serviço!$A$6:$A$50000,Sumário!D$114,Serviço!$D$6:$D$50000,Sumário!$A115) -> 0 | E115: =SUMIFS(Serviço!$T$6:$T$50000,Serviço!$A$6:$A$50000,Sumário!E$114,Serviço!$D$6:$D$50000,Sumário!$A115) -> 0 | F115: =SUMIFS(Serviço!$T$6:$T$50000,Serviço!$A$6:$A$50000,Sumário!F$114,Serviço!$D$6:$D$50000,Sumário!$A115) -> 0 | G115: =SUMIFS(Serviço!$T$6:$T$50000,Serviço!$A$6:$A$50000,Sumário!G$114,Serviço!$D$6:$D$50000,Sumário!$A115) -> 0 | H115: =SUMIFS(Serviço!$T$6:$T$50000,Serviço!$A$6:$A$50000,Sumário!H$114,Serviço!$D$6:$D$50000,Sumário!$A115) -> 0 | I115: =SUMIFS(Serviço!$T$6:$T$50000,Serviço!$A$6:$A$50000,Sumário!I$114,Serviço!$D$6:$D$50000,Sumário!$A115) -> 0 | J115: =SUMIFS(Serviço!$T$6:$T$50000,Serviço!$A$6:$A$50000,Sumário!J$114,Serviço!$D$6:$D$50000,Sumário!$A115) -> 0
A116: CONDOMINIOS | B116: =SUMIFS(Serviço!$T$6:$T$50000,Serviço!$A$6:$A$50000,Sumário!B$114,Serviço!$D$6:$D$50000,Sumário!$A116) -> 0 | C116: =SUMIFS(Serviço!$T$6:$T$50000,Serviço!$A$6:$A$50000,Sumário!C$114,Serviço!$D$6:$D$50000,Sumário!$A116) -> 0 | D116: =SUMIFS(Serviço!$T$6:$T$50000,Serviço!$A$6:$A$50000,Sumário!D$114,Serviço!$D$6:$D$50000,Sumário!$A116) -> 0 | E116: =SUMIFS(Serviço!$T$6:$T$50000,Serviço!$A$6:$A$50000,Sumário!E$114,Serviço!$D$6:$D$50000,Sumário!$A116) -> 0 | F116: =SUMIFS(Serviço!$T$6:$T$50000,Serviço!$A$6:$A$50000,Sumário!F$114,Serviço!$D$6:$D$50000,Sumário!$A116) -> 0 | G116: =SUMIFS(Serviço!$T$6:$T$50000,Serviço!$A$6:$A$50000,Sumário!G$114,Serviço!$D$6:$D$50000,Sumário!$A116) -> 0 | H116: =SUMIFS(Serviço!$T$6:$T$50000,Serviço!$A$6:$A$50000,Sumário!H$114,Serviço!$D$6:$D$50000,Sumário!$A116) -> 0 | I116: =SUMIFS(Serviço!$T$6:$T$50000,Serviço!$A$6:$A$50000,Sumário!I$114,Serviço!$D$6:$D$50000,Sumário!$A116) -> 0 | J116: =SUMIFS(Serviço!$T$6:$T$50000,Serviço!$A$6:$A$50000,Sumário!J$114,Serviço!$D$6:$D$50000,Sumário!$A116) -> 0
A117: DIREITOS AUTORAIS | B117: =SUMIFS(Serviço!$T$6:$T$50000,Serviço!$A$6:$A$50000,Sumário!B$114,Serviço!$D$6:$D$50000,Sumário!$A117) -> 600 | C117: =SUMIFS(Serviço!$T$6:$T$50000,Serviço!$A$6:$A$50000,Sumário!C$114,Serviço!$D$6:$D$50000,Sumário!$A117) -> 0 | D117: =SUMIFS(Serviço!$T$6:$T$50000,Serviço!$A$6:$A$50000,Sumário!D$114,Serviço!$D$6:$D$50000,Sumário!$A117) -> 600 | E117: =SUMIFS(Serviço!$T$6:$T$50000,Serviço!$A$6:$A$50000,Sumário!E$114,Serviço!$D$6:$D$50000,Sumário!$A117) -> 0 | F117: =SUMIFS(Serviço!$T$6:$T$50000,Serviço!$A$6:$A$50000,Sumário!F$114,Serviço!$D$6:$D$50000,Sumário!$A117) -> 0 | G117: =SUMIFS(Serviço!$T$6:$T$50000,Serviço!$A$6:$A$50000,Sumário!G$114,Serviço!$D$6:$D$50000,Sumário!$A117) -> 0 | H117: =SUMIFS(Serviço!$T$6:$T$50000,Serviço!$A$6:$A$50000,Sumário!H$114,Serviço!$D$6:$D$50000,Sumário!$A117) -> 0 | I117: =SUMIFS(Serviço!$T$6:$T$50000,Serviço!$A$6:$A$50000,Sumário!I$114,Serviço!$D$6:$D$50000,Sumário!$A117) -> 0 | J117: =SUMIFS(Serviço!$T$6:$T$50000,Serviço!$A$6:$A$50000,Sumário!J$114,Serviço!$D$6:$D$50000,Sumário!$A117) -> 0
A118: SERVICOS TECNICOS PROFISSIONAIS | B118: =SUMIFS(Serviço!$T$6:$T$50000,Serviço!$A$6:$A$50000,Sumário!B$114,Serviço!$D$6:$D$50000,Sumário!$A118) -> 0 | C118: =SUMIFS(Serviço!$T$6:$T$50000,Serviço!$A$6:$A$50000,Sumário!C$114,Serviço!$D$6:$D$50000,Sumário!$A118) -> 0 | D118: =SUMIFS(Serviço!$T$6:$T$50000,Serviço!$A$6:$A$50000,Sumário!D$114,Serviço!$D$6:$D$50000,Sumário!$A118) -> 0 | E118: =SUMIFS(Serviço!$T$6:$T$50000,Serviço!$A$6:$A$50000,Sumário!E$114,Serviço!$D$6:$D$50000,Sumário!$A118) -> 0 | F118: =SUMIFS(Serviço!$T$6:$T$50000,Serviço!$A$6:$A$50000,Sumário!F$114,Serviço!$D$6:$D$50000,Sumário!$A118) -> 0 | G118: =SUMIFS(Serviço!$T$6:$T$50000,Serviço!$A$6:$A$50000,Sumário!G$114,Serviço!$D$6:$D$50000,Sumário!$A118) -> 0 | H118: =SUMIFS(Serviço!$T$6:$T$50000,Serviço!$A$6:$A$50000,Sumário!H$114,Serviço!$D$6:$D$50000,Sumário!$A118) -> 0 | I118: =SUMIFS(Serviço!$T$6:$T$50000,Serviço!$A$6:$A$50000,Sumário!I$114,Serviço!$D$6:$D$50000,Sumário!$A118) -> 0 | J118: =SUMIFS(Serviço!$T$6:$T$50000,Serviço!$A$6:$A$50000,Sumário!J$114,Serviço!$D$6:$D$50000,Sumário!$A118) -> 0
A119: CAPATAZIA, ESTIVA E PESAGEM | B119: =SUMIFS(Serviço!$T$6:$T$50000,Serviço!$A$6:$A$50000,Sumário!B$114,Serviço!$D$6:$D$50000,Sumário!$A119) -> 0 | C119: =SUMIFS(Serviço!$T$6:$T$50000,Serviço!$A$6:$A$50000,Sumário!C$114,Serviço!$D$6:$D$50000,Sumário!$A119) -> 0 | D119: =SUMIFS(Serviço!$T$6:$T$50000,Serviço!$A$6:$A$50000,Sumário!D$114,Serviço!$D$6:$D$50000,Sumário!$A119) -> 0 | E119: =SUMIFS(Serviço!$T$6:$T$50000,Serviço!$A$6:$A$50000,Sumário!E$114,Serviço!$D$6:$D$50000,Sumário!$A119) -> 0 | F119: =SUMIFS(Serviço!$T$6:$T$50000,Serviço!$A$6:$A$50000,Sumário!F$114,Serviço!$D$6:$D$50000,Sumário!$A119) -> 0 | G119: =SUMIFS(Serviço!$T$6:$T$50000,Serviço!$A$6:$A$50000,Sumário!G$114,Serviço!$D$6:$D$50000,Sumário!$A119) -> 0 | H119: =SUMIFS(Serviço!$T$6:$T$50000,Serviço!$A$6:$A$50000,Sumário!H$114,Serviço!$D$6:$D$50000,Sumário!$A119) -> 0 | I119: =SUMIFS(Serviço!$T$6:$T$50000,Serviço!$A$6:$A$50000,Sumário!I$114,Serviço!$D$6:$D$50000,Sumário!$A119) -> 0 | J119: =SUMIFS(Serviço!$T$6:$T$50000,Serviço!$A$6:$A$50000,Sumário!J$114,Serviço!$D$6:$D$50000,Sumário!$A119) -> 0
A120: MANUTENCAO DE SOFTWARE | B120: =SUMIFS(Serviço!$T$6:$T$50000,Serviço!$A$6:$A$50000,Sumário!B$114,Serviço!$D$6:$D$50000,Sumário!$A120) -> 0 | C120: =SUMIFS(Serviço!$T$6:$T$50000,Serviço!$A$6:$A$50000,Sumário!C$114,Serviço!$D$6:$D$50000,Sumário!$A120) -> 0 | D120: =SUMIFS(Serviço!$T$6:$T$50000,Serviço!$A$6:$A$50000,Sumário!D$114,Serviço!$D$6:$D$50000,Sumário!$A120) -> 0 | E120: =SUMIFS(Serviço!$T$6:$T$50000,Serviço!$A$6:$A$50000,Sumário!E$114,Serviço!$D$6:$D$50000,Sumário!$A120) -> 0 | F120: =SUMIFS(Serviço!$T$6:$T$50000,Serviço!$A$6:$A$50000,Sumário!F$114,Serviço!$D$6:$D$50000,Sumário!$A120) -> 0 | G120: =SUMIFS(Serviço!$T$6:$T$50000,Serviço!$A$6:$A$50000,Sumário!G$114,Serviço!$D$6:$D$50000,Sumário!$A120) -> 0 | H120: =SUMIFS(Serviço!$T$6:$T$50000,Serviço!$A$6:$A$50000,Sumário!H$114,Serviço!$D$6:$D$50000,Sumário!$A120) -> 0 | I120: =SUMIFS(Serviço!$T$6:$T$50000,Serviço!$A$6:$A$50000,Sumário!I$114,Serviço!$D$6:$D$50000,Sumário!$A120) -> 0 | J120: =SUMIFS(Serviço!$T$6:$T$50000,Serviço!$A$6:$A$50000,Sumário!J$114,Serviço!$D$6:$D$50000,Sumário!$A120) -> 0
A121: ARMAZENAGEM | B121: =SUMIFS(Serviço!$T$6:$T$50000,Serviço!$A$6:$A$50000,Sumário!B$114,Serviço!$D$6:$D$50000,Sumário!$A121) -> 0 | C121: =SUMIFS(Serviço!$T$6:$T$50000,Serviço!$A$6:$A$50000,Sumário!C$114,Serviço!$D$6:$D$50000,Sumário!$A121) -> 0 | D121: =SUMIFS(Serviço!$T$6:$T$50000,Serviço!$A$6:$A$50000,Sumário!D$114,Serviço!$D$6:$D$50000,Sumário!$A121) -> 30000 | E121: =SUMIFS(Serviço!$T$6:$T$50000,Serviço!$A$6:$A$50000,Sumário!E$114,Serviço!$D$6:$D$50000,Sumário!$A121) -> 0 | F121: =SUMIFS(Serviço!$T$6:$T$50000,Serviço!$A$6:$A$50000,Sumário!F$114,Serviço!$D$6:$D$50000,Sumário!$A121) -> 0 | G121: =SUMIFS(Serviço!$T$6:$T$50000,Serviço!$A$6:$A$50000,Sumário!G$114,Serviço!$D$6:$D$50000,Sumário!$A121) -> 0 | H121: =SUMIFS(Serviço!$T$6:$T$50000,Serviço!$A$6:$A$50000,Sumário!H$114,Serviço!$D$6:$D$50000,Sumário!$A121) -> 0 | I121: =SUMIFS(Serviço!$T$6:$T$50000,Serviço!$A$6:$A$50000,Sumário!I$114,Serviço!$D$6:$D$50000,Sumário!$A121) -> 0 | J121: =SUMIFS(Serviço!$T$6:$T$50000,Serviço!$A$6:$A$50000,Sumário!J$114,Serviço!$D$6:$D$50000,Sumário!$A121) -> 0
A122: LOCACAO DE IMOVEIS | B122: =SUMIFS(Serviço!$T$6:$T$50000,Serviço!$A$6:$A$50000,Sumário!B$114,Serviço!$D$6:$D$50000,Sumário!$A122) -> 0 | C122: =SUMIFS(Serviço!$T$6:$T$50000,Serviço!$A$6:$A$50000,Sumário!C$114,Serviço!$D$6:$D$50000,Sumário!$A122) -> 0 | D122: =SUMIFS(Serviço!$T$6:$T$50000,Serviço!$A$6:$A$50000,Sumário!D$114,Serviço!$D$6:$D$50000,Sumário!$A122) -> 0 | E122: =SUMIFS(Serviço!$T$6:$T$50000,Serviço!$A$6:$A$50000,Sumário!E$114,Serviço!$D$6:$D$50000,Sumário!$A122) -> 0 | F122: =SUMIFS(Serviço!$T$6:$T$50000,Serviço!$A$6:$A$50000,Sumário!F$114,Serviço!$D$6:$D$50000,Sumário!$A122) -> 0 | G122: =SUMIFS(Serviço!$T$6:$T$50000,Serviço!$A$6:$A$50000,Sumário!G$114,Serviço!$D$6:$D$50000,Sumário!$A122) -> 0 | H122: =SUMIFS(Serviço!$T$6:$T$50000,Serviço!$A$6:$A$50000,Sumário!H$114,Serviço!$D$6:$D$50000,Sumário!$A122) -> 0 | I122: =SUMIFS(Serviço!$T$6:$T$50000,Serviço!$A$6:$A$50000,Sumário!I$114,Serviço!$D$6:$D$50000,Sumário!$A122) -> 0 | J122: =SUMIFS(Serviço!$T$6:$T$50000,Serviço!$A$6:$A$50000,Sumário!J$114,Serviço!$D$6:$D$50000,Sumário!$A122) -> 0
A123: LOCACAO DE SOFTWARES | B123: =SUMIFS(Serviço!$T$6:$T$50000,Serviço!$A$6:$A$50000,Sumário!B$114,Serviço!$D$6:$D$50000,Sumário!$A123) -> 0 | C123: =SUMIFS(Serviço!$T$6:$T$50000,Serviço!$A$6:$A$50000,Sumário!C$114,Serviço!$D$6:$D$50000,Sumário!$A123) -> 0 | D123: =SUMIFS(Serviço!$T$6:$T$50000,Serviço!$A$6:$A$50000,Sumário!D$114,Serviço!$D$6:$D$50000,Sumário!$A123) -> 0 | E123: =SUMIFS(Serviço!$T$6:$T$50000,Serviço!$A$6:$A$50000,Sumário!E$114,Serviço!$D$6:$D$50000,Sumário!$A123) -> 0 | F123: =SUMIFS(Serviço!$T$6:$T$50000,Serviço!$A$6:$A$50000,Sumário!F$114,Serviço!$D$6:$D$50000,Sumário!$A123) -> 0 | G123: =SUMIFS(Serviço!$T$6:$T$50000,Serviço!$A$6:$A$50000,Sumário!G$114,Serviço!$D$6:$D$50000,Sumário!$A123) -> 0 | H123: =SUMIFS(Serviço!$T$6:$T$50000,Serviço!$A$6:$A$50000,Sumário!H$114,Serviço!$D$6:$D$50000,Sumário!$A123) -> 0 | I123: =SUMIFS(Serviço!$T$6:$T$50000,Serviço!$A$6:$A$50000,Sumário!I$114,Serviço!$D$6:$D$50000,Sumário!$A123) -> 0 | J123: =SUMIFS(Serviço!$T$6:$T$50000,Serviço!$A$6:$A$50000,Sumário!J$114,Serviço!$D$6:$D$50000,Sumário!$A123) -> 0
A124: LOCACAO DE MAQUINAS E EQUIPAMENTOS | B124: =SUMIFS(Serviço!$T$6:$T$50000,Serviço!$A$6:$A$50000,Sumário!B$114,Serviço!$D$6:$D$50000,Sumário!$A124) -> 0 | C124: =SUMIFS(Serviço!$T$6:$T$50000,Serviço!$A$6:$A$50000,Sumário!C$114,Serviço!$D$6:$D$50000,Sumário!$A124) -> 0 | D124: =SUMIFS(Serviço!$T$6:$T$50000,Serviço!$A$6:$A$50000,Sumário!D$114,Serviço!$D$6:$D$50000,Sumário!$A124) -> 0 | E124: =SUMIFS(Serviço!$T$6:$T$50000,Serviço!$A$6:$A$50000,Sumário!E$114,Serviço!$D$6:$D$50000,Sumário!$A124) -> 0 | F124: =SUMIFS(Serviço!$T$6:$T$50000,Serviço!$A$6:$A$50000,Sumário!F$114,Serviço!$D$6:$D$50000,Sumário!$A124) -> 0 | G124: =SUMIFS(Serviço!$T$6:$T$50000,Serviço!$A$6:$A$50000,Sumário!G$114,Serviço!$D$6:$D$50000,Sumário!$A124) -> 0 | H124: =SUMIFS(Serviço!$T$6:$T$50000,Serviço!$A$6:$A$50000,Sumário!H$114,Serviço!$D$6:$D$50000,Sumário!$A124) -> 0 | I124: =SUMIFS(Serviço!$T$6:$T$50000,Serviço!$A$6:$A$50000,Sumário!I$114,Serviço!$D$6:$D$50000,Sumário!$A124) -> 0 | J124: =SUMIFS(Serviço!$T$6:$T$50000,Serviço!$A$6:$A$50000,Sumário!J$114,Serviço!$D$6:$D$50000,Sumário!$A124) -> 0
A125: LOCACAO BENS MOV. OUT.NATUREZAS E INTANGIVEIS | B125: =SUMIFS(Serviço!$T$6:$T$50000,Serviço!$A$6:$A$50000,Sumário!B$114,Serviço!$D$6:$D$50000,Sumário!$A125) -> 0 | C125: =SUMIFS(Serviço!$T$6:$T$50000,Serviço!$A$6:$A$50000,Sumário!C$114,Serviço!$D$6:$D$50000,Sumário!$A125) -> 0 | D125: =SUMIFS(Serviço!$T$6:$T$50000,Serviço!$A$6:$A$50000,Sumário!D$114,Serviço!$D$6:$D$50000,Sumário!$A125) -> 0 | E125: =SUMIFS(Serviço!$T$6:$T$50000,Serviço!$A$6:$A$50000,Sumário!E$114,Serviço!$D$6:$D$50000,Sumário!$A125) -> 0 | F125: =SUMIFS(Serviço!$T$6:$T$50000,Serviço!$A$6:$A$50000,Sumário!F$114,Serviço!$D$6:$D$50000,Sumário!$A125) -> 0 | G125: =SUMIFS(Serviço!$T$6:$T$50000,Serviço!$A$6:$A$50000,Sumário!G$114,Serviço!$D$6:$D$50000,Sumário!$A125) -> 0 | H125: =SUMIFS(Serviço!$T$6:$T$50000,Serviço!$A$6:$A$50000,Sumário!H$114,Serviço!$D$6:$D$50000,Sumário!$A125) -> 0 | I125: =SUMIFS(Serviço!$T$6:$T$50000,Serviço!$A$6:$A$50000,Sumário!I$114,Serviço!$D$6:$D$50000,Sumário!$A125) -> 0 | J125: =SUMIFS(Serviço!$T$6:$T$50000,Serviço!$A$6:$A$50000,Sumário!J$114,Serviço!$D$6:$D$50000,Sumário!$A125) -> 0
A126: MANUTENCAO E CONSERV. DE BENS IMOVEIS | B126: =SUMIFS(Serviço!$T$6:$T$50000,Serviço!$A$6:$A$50000,Sumário!B$114,Serviço!$D$6:$D$50000,Sumário!$A126) -> 300000 | C126: =SUMIFS(Serviço!$T$6:$T$50000,Serviço!$A$6:$A$50000,Sumário!C$114,Serviço!$D$6:$D$50000,Sumário!$A126) -> 0 | D126: =SUMIFS(Serviço!$T$6:$T$50000,Serviço!$A$6:$A$50000,Sumário!D$114,Serviço!$D$6:$D$50000,Sumário!$A126) -> 0 | E126: =SUMIFS(Serviço!$T$6:$T$50000,Serviço!$A$6:$A$50000,Sumário!E$114,Serviço!$D$6:$D$50000,Sumário!$A126) -> 0 | F126: =SUMIFS(Serviço!$T$6:$T$50000,Serviço!$A$6:$A$50000,Sumário!F$114,Serviço!$D$6:$D$50000,Sumário!$A126) -> 0 | G126: =SUMIFS(Serviço!$T$6:$T$50000,Serviço!$A$6:$A$50000,Sumário!G$114,Serviço!$D$6:$D$50000,Sumário!$A126) -> 17000 | H126: =SUMIFS(Serviço!$T$6:$T$50000,Serviço!$A$6:$A$50000,Sumário!H$114,Serviço!$D$6:$D$50000,Sumário!$A126) -> 0 | I126: =SUMIFS(Serviço!$T$6:$T$50000,Serviço!$A$6:$A$50000,Sumário!I$114,Serviço!$D$6:$D$50000,Sumário!$A126) -> 0 | J126: =SUMIFS(Serviço!$T$6:$T$50000,Serviço!$A$6:$A$50000,Sumário!J$114,Serviço!$D$6:$D$50000,Sumário!$A126) -> 0
A127: MANUT. E CONSERV. DE MAQUINAS E EQUIPAMENTOS | B127: =SUMIFS(Serviço!$T$6:$T$50000,Serviço!$A$6:$A$50000,Sumário!B$114,Serviço!$D$6:$D$50000,Sumário!$A127) -> 6662 | C127: =SUMIFS(Serviço!$T$6:$T$50000,Serviço!$A$6:$A$50000,Sumário!C$114,Serviço!$D$6:$D$50000,Sumário!$A127) -> 0 | D127: =SUMIFS(Serviço!$T$6:$T$50000,Serviço!$A$6:$A$50000,Sumário!D$114,Serviço!$D$6:$D$50000,Sumário!$A127) -> 0 | E127: =SUMIFS(Serviço!$T$6:$T$50000,Serviço!$A$6:$A$50000,Sumário!E$114,Serviço!$D$6:$D$50000,Sumário!$A127) -> 0 | F127: =SUMIFS(Serviço!$T$6:$T$50000,Serviço!$A$6:$A$50000,Sumário!F$114,Serviço!$D$6:$D$50000,Sumário!$A127) -> 0 | G127: =SUMIFS(Serviço!$T$6:$T$50000,Serviço!$A$6:$A$50000,Sumário!G$114,Serviço!$D$6:$D$50000,Sumário!$A127) -> 0 | H127: =SUMIFS(Serviço!$T$6:$T$50000,Serviço!$A$6:$A$50000,Sumário!H$114,Serviço!$D$6:$D$50000,Sumário!$A127) -> 0 | I127: =SUMIFS(Serviço!$T$6:$T$50000,Serviço!$A$6:$A$50000,Sumário!I$114,Serviço!$D$6:$D$50000,Sumário!$A127) -> 0 | J127: =SUMIFS(Serviço!$T$6:$T$50000,Serviço!$A$6:$A$50000,Sumário!J$114,Serviço!$D$6:$D$50000,Sumário!$A127) -> 0
A128: SERVICOS DE ESTACIONAMENTO DE VEICULOS | B128: =SUMIFS(Serviço!$T$6:$T$50000,Serviço!$A$6:$A$50000,Sumário!B$114,Serviço!$D$6:$D$50000,Sumário!$A128) -> 0 | C128: =SUMIFS(Serviço!$T$6:$T$50000,Serviço!$A$6:$A$50000,Sumário!C$114,Serviço!$D$6:$D$50000,Sumário!$A128) -> 0 | D128: =SUMIFS(Serviço!$T$6:$T$50000,Serviço!$A$6:$A$50000,Sumário!D$114,Serviço!$D$6:$D$50000,Sumário!$A128) -> 0 | E128: =SUMIFS(Serviço!$T$6:$T$50000,Serviço!$A$6:$A$50000,Sumário!E$114,Serviço!$D$6:$D$50000,Sumário!$A128) -> 0 | F128: =SUMIFS(Serviço!$T$6:$T$50000,Serviço!$A$6:$A$50000,Sumário!F$114,Serviço!$D$6:$D$50000,Sumário!$A128) -> 0 | G128: =SUMIFS(Serviço!$T$6:$T$50000,Serviço!$A$6:$A$50000,Sumário!G$114,Serviço!$D$6:$D$50000,Sumário!$A128) -> 0 | H128: =SUMIFS(Serviço!$T$6:$T$50000,Serviço!$A$6:$A$50000,Sumário!H$114,Serviço!$D$6:$D$50000,Sumário!$A128) -> 0 | I128: =SUMIFS(Serviço!$T$6:$T$50000,Serviço!$A$6:$A$50000,Sumário!I$114,Serviço!$D$6:$D$50000,Sumário!$A128) -> 0 | J128: =SUMIFS(Serviço!$T$6:$T$50000,Serviço!$A$6:$A$50000,Sumário!J$114,Serviço!$D$6:$D$50000,Sumário!$A128) -> 0
A129: MANUTENCAO E CONSERV. DE VEICULOS | B129: =SUMIFS(Serviço!$T$6:$T$50000,Serviço!$A$6:$A$50000,Sumário!B$114,Serviço!$D$6:$D$50000,Sumário!$A129) -> 0 | C129: =SUMIFS(Serviço!$T$6:$T$50000,Serviço!$A$6:$A$50000,Sumário!C$114,Serviço!$D$6:$D$50000,Sumário!$A129) -> 0 | D129: =SUMIFS(Serviço!$T$6:$T$50000,Serviço!$A$6:$A$50000,Sumário!D$114,Serviço!$D$6:$D$50000,Sumário!$A129) -> 0 | E129: =SUMIFS(Serviço!$T$6:$T$50000,Serviço!$A$6:$A$50000,Sumário!E$114,Serviço!$D$6:$D$50000,Sumário!$A129) -> 0 | F129: =SUMIFS(Serviço!$T$6:$T$50000,Serviço!$A$6:$A$50000,Sumário!F$114,Serviço!$D$6:$D$50000,Sumário!$A129) -> 0 | G129: =SUMIFS(Serviço!$T$6:$T$50000,Serviço!$A$6:$A$50000,Sumário!G$114,Serviço!$D$6:$D$50000,Sumário!$A129) -> 0 | H129: =SUMIFS(Serviço!$T$6:$T$50000,Serviço!$A$6:$A$50000,Sumário!H$114,Serviço!$D$6:$D$50000,Sumário!$A129) -> 0 | I129: =SUMIFS(Serviço!$T$6:$T$50000,Serviço!$A$6:$A$50000,Sumário!I$114,Serviço!$D$6:$D$50000,Sumário!$A129) -> 0 | J129: =SUMIFS(Serviço!$T$6:$T$50000,Serviço!$A$6:$A$50000,Sumário!J$114,Serviço!$D$6:$D$50000,Sumário!$A129) -> 0
A130: MANUT.E CONS.DE B.MOVEIS DE OUTRAS NATUREZAS | B130: =SUMIFS(Serviço!$T$6:$T$50000,Serviço!$A$6:$A$50000,Sumário!B$114,Serviço!$D$6:$D$50000,Sumário!$A130) -> 0 | C130: =SUMIFS(Serviço!$T$6:$T$50000,Serviço!$A$6:$A$50000,Sumário!C$114,Serviço!$D$6:$D$50000,Sumário!$A130) -> 0 | D130: =SUMIFS(Serviço!$T$6:$T$50000,Serviço!$A$6:$A$50000,Sumário!D$114,Serviço!$D$6:$D$50000,Sumário!$A130) -> 0 | E130: =SUMIFS(Serviço!$T$6:$T$50000,Serviço!$A$6:$A$50000,Sumário!E$114,Serviço!$D$6:$D$50000,Sumário!$A130) -> 0 | F130: =SUMIFS(Serviço!$T$6:$T$50000,Serviço!$A$6:$A$50000,Sumário!F$114,Serviço!$D$6:$D$50000,Sumário!$A130) -> 0 | G130: =SUMIFS(Serviço!$T$6:$T$50000,Serviço!$A$6:$A$50000,Sumário!G$114,Serviço!$D$6:$D$50000,Sumário!$A130) -> 0 | H130: =SUMIFS(Serviço!$T$6:$T$50000,Serviço!$A$6:$A$50000,Sumário!H$114,Serviço!$D$6:$D$50000,Sumário!$A130) -> 0 | I130: =SUMIFS(Serviço!$T$6:$T$50000,Serviço!$A$6:$A$50000,Sumário!I$114,Serviço!$D$6:$D$50000,Sumário!$A130) -> 0 | J130: =SUMIFS(Serviço!$T$6:$T$50000,Serviço!$A$6:$A$50000,Sumário!J$114,Serviço!$D$6:$D$50000,Sumário!$A130) -> 0
A131: MANUTENCAO E CONSERV. DE ESTRADAS E VIAS | B131: =SUMIFS(Serviço!$T$6:$T$50000,Serviço!$A$6:$A$50000,Sumário!B$114,Serviço!$D$6:$D$50000,Sumário!$A131) -> 0 | C131: =SUMIFS(Serviço!$T$6:$T$50000,Serviço!$A$6:$A$50000,Sumário!C$114,Serviço!$D$6:$D$50000,Sumário!$A131) -> 0 | D131: =SUMIFS(Serviço!$T$6:$T$50000,Serviço!$A$6:$A$50000,Sumário!D$114,Serviço!$D$6:$D$50000,Sumário!$A131) -> 0 | E131: =SUMIFS(Serviço!$T$6:$T$50000,Serviço!$A$6:$A$50000,Sumário!E$114,Serviço!$D$6:$D$50000,Sumário!$A131) -> 0 | F131: =SUMIFS(Serviço!$T$6:$T$50000,Serviço!$A$6:$A$50000,Sumário!F$114,Serviço!$D$6:$D$50000,Sumário!$A131) -> 0 | G131: =SUMIFS(Serviço!$T$6:$T$50000,Serviço!$A$6:$A$50000,Sumário!G$114,Serviço!$D$6:$D$50000,Sumário!$A131) -> 0 | H131: =SUMIFS(Serviço!$T$6:$T$50000,Serviço!$A$6:$A$50000,Sumário!H$114,Serviço!$D$6:$D$50000,Sumário!$A131) -> 0 | I131: =SUMIFS(Serviço!$T$6:$T$50000,Serviço!$A$6:$A$50000,Sumário!I$114,Serviço!$D$6:$D$50000,Sumário!$A131) -> 0 | J131: =SUMIFS(Serviço!$T$6:$T$50000,Serviço!$A$6:$A$50000,Sumário!J$114,Serviço!$D$6:$D$50000,Sumário!$A131) -> 0
A132: EXPOSICOES, CONGRESSOS E CONFERENCIAS | B132: =SUMIFS(Serviço!$T$6:$T$50000,Serviço!$A$6:$A$50000,Sumário!B$114,Serviço!$D$6:$D$50000,Sumário!$A132) -> 0 | C132: =SUMIFS(Serviço!$T$6:$T$50000,Serviço!$A$6:$A$50000,Sumário!C$114,Serviço!$D$6:$D$50000,Sumário!$A132) -> 0 | D132: =SUMIFS(Serviço!$T$6:$T$50000,Serviço!$A$6:$A$50000,Sumário!D$114,Serviço!$D$6:$D$50000,Sumário!$A132) -> 0 | E132: =SUMIFS(Serviço!$T$6:$T$50000,Serviço!$A$6:$A$50000,Sumário!E$114,Serviço!$D$6:$D$50000,Sumário!$A132) -> 0 | F132: =SUMIFS(Serviço!$T$6:$T$50000,Serviço!$A$6:$A$50000,Sumário!F$114,Serviço!$D$6:$D$50000,Sumário!$A132) -> 0 | G132: =SUMIFS(Serviço!$T$6:$T$50000,Serviço!$A$6:$A$50000,Sumário!G$114,Serviço!$D$6:$D$50000,Sumário!$A132) -> 0 | H132: =SUMIFS(Serviço!$T$6:$T$50000,Serviço!$A$6:$A$50000,Sumário!H$114,Serviço!$D$6:$D$50000,Sumário!$A132) -> 0 | I132: =SUMIFS(Serviço!$T$6:$T$50000,Serviço!$A$6:$A$50000,Sumário!I$114,Serviço!$D$6:$D$50000,Sumário!$A132) -> 0 | J132: =SUMIFS(Serviço!$T$6:$T$50000,Serviço!$A$6:$A$50000,Sumário!J$114,Serviço!$D$6:$D$50000,Sumário!$A132) -> 0
A133: FESTIVIDADES E HOMENAGENS | B133: =SUMIFS(Serviço!$T$6:$T$50000,Serviço!$A$6:$A$50000,Sumário!B$114,Serviço!$D$6:$D$50000,Sumário!$A133) -> 0 | C133: =SUMIFS(Serviço!$T$6:$T$50000,Serviço!$A$6:$A$50000,Sumário!C$114,Serviço!$D$6:$D$50000,Sumário!$A133) -> 0 | D133: =SUMIFS(Serviço!$T$6:$T$50000,Serviço!$A$6:$A$50000,Sumário!D$114,Serviço!$D$6:$D$50000,Sumário!$A133) -> 0 | E133: =SUMIFS(Serviço!$T$6:$T$50000,Serviço!$A$6:$A$50000,Sumário!E$114,Serviço!$D$6:$D$50000,Sumário!$A133) -> 0 | F133: =SUMIFS(Serviço!$T$6:$T$50000,Serviço!$A$6:$A$50000,Sumário!F$114,Serviço!$D$6:$D$50000,Sumário!$A133) -> 0 | G133: =SUMIFS(Serviço!$T$6:$T$50000,Serviço!$A$6:$A$50000,Sumário!G$114,Serviço!$D$6:$D$50000,Sumário!$A133) -> 0 | H133: =SUMIFS(Serviço!$T$6:$T$50000,Serviço!$A$6:$A$50000,Sumário!H$114,Serviço!$D$6:$D$50000,Sumário!$A133) -> 0 | I133: =SUMIFS(Serviço!$T$6:$T$50000,Serviço!$A$6:$A$50000,Sumário!I$114,Serviço!$D$6:$D$50000,Sumário!$A133) -> 0 | J133: =SUMIFS(Serviço!$T$6:$T$50000,Serviço!$A$6:$A$50000,Sumário!J$114,Serviço!$D$6:$D$50000,Sumário!$A133) -> 0
A134: VISTOS CONSULARES | B134: =SUMIFS(Serviço!$T$6:$T$50000,Serviço!$A$6:$A$50000,Sumário!B$114,Serviço!$D$6:$D$50000,Sumário!$A134) -> 0 | C134: =SUMIFS(Serviço!$T$6:$T$50000,Serviço!$A$6:$A$50000,Sumário!C$114,Serviço!$D$6:$D$50000,Sumário!$A134) -> 0 | D134: =SUMIFS(Serviço!$T$6:$T$50000,Serviço!$A$6:$A$50000,Sumário!D$114,Serviço!$D$6:$D$50000,Sumário!$A134) -> 0 | E134: =SUMIFS(Serviço!$T$6:$T$50000,Serviço!$A$6:$A$50000,Sumário!E$114,Serviço!$D$6:$D$50000,Sumário!$A134) -> 0 | F134: =SUMIFS(Serviço!$T$6:$T$50000,Serviço!$A$6:$A$50000,Sumário!F$114,Serviço!$D$6:$D$50000,Sumário!$A134) -> 0 | G134: =SUMIFS(Serviço!$T$6:$T$50000,Serviço!$A$6:$A$50000,Sumário!G$114,Serviço!$D$6:$D$50000,Sumário!$A134) -> 0 | H134: =SUMIFS(Serviço!$T$6:$T$50000,Serviço!$A$6:$A$50000,Sumário!H$114,Serviço!$D$6:$D$50000,Sumário!$A134) -> 0 | I134: =SUMIFS(Serviço!$T$6:$T$50000,Serviço!$A$6:$A$50000,Sumário!I$114,Serviço!$D$6:$D$50000,Sumário!$A134) -> 0 | J134: =SUMIFS(Serviço!$T$6:$T$50000,Serviço!$A$6:$A$50000,Sumário!J$114,Serviço!$D$6:$D$50000,Sumário!$A134) -> 0
A135: LOCACAO DE EQUIPAMENTOS DE PROC. DE DADOS | B135: =SUMIFS(Serviço!$T$6:$T$50000,Serviço!$A$6:$A$50000,Sumário!B$114,Serviço!$D$6:$D$50000,Sumário!$A135) -> 0 | C135: =SUMIFS(Serviço!$T$6:$T$50000,Serviço!$A$6:$A$50000,Sumário!C$114,Serviço!$D$6:$D$50000,Sumário!$A135) -> 0 | D135: =SUMIFS(Serviço!$T$6:$T$50000,Serviço!$A$6:$A$50000,Sumário!D$114,Serviço!$D$6:$D$50000,Sumário!$A135) -> 60000 | E135: =SUMIFS(Serviço!$T$6:$T$50000,Serviço!$A$6:$A$50000,Sumário!E$114,Serviço!$D$6:$D$50000,Sumário!$A135) -> 0 | F135: =SUMIFS(Serviço!$T$6:$T$50000,Serviço!$A$6:$A$50000,Sumário!F$114,Serviço!$D$6:$D$50000,Sumário!$A135) -> 0 | G135: =SUMIFS(Serviço!$T$6:$T$50000,Serviço!$A$6:$A$50000,Sumário!G$114,Serviço!$D$6:$D$50000,Sumário!$A135) -> 0 | H135: =SUMIFS(Serviço!$T$6:$T$50000,Serviço!$A$6:$A$50000,Sumário!H$114,Serviço!$D$6:$D$50000,Sumário!$A135) -> 0 | I135: =SUMIFS(Serviço!$T$6:$T$50000,Serviço!$A$6:$A$50000,Sumário!I$114,Serviço!$D$6:$D$50000,Sumário!$A135) -> 0 | J135: =SUMIFS(Serviço!$T$6:$T$50000,Serviço!$A$6:$A$50000,Sumário!J$114,Serviço!$D$6:$D$50000,Sumário!$A135) -> 0
A136: PROGRAMA DE ALIMENTACAO DO TRABALHADOR | B136: =SUMIFS(Serviço!$T$6:$T$50000,Serviço!$A$6:$A$50000,Sumário!B$114,Serviço!$D$6:$D$50000,Sumário!$A136) -> 0 | C136: =SUMIFS(Serviço!$T$6:$T$50000,Serviço!$A$6:$A$50000,Sumário!C$114,Serviço!$D$6:$D$50000,Sumário!$A136) -> 0 | D136: =SUMIFS(Serviço!$T$6:$T$50000,Serviço!$A$6:$A$50000,Sumário!D$114,Serviço!$D$6:$D$50000,Sumário!$A136) -> 0 | E136: =SUMIFS(Serviço!$T$6:$T$50000,Serviço!$A$6:$A$50000,Sumário!E$114,Serviço!$D$6:$D$50000,Sumário!$A136) -> 0 | F136: =SUMIFS(Serviço!$T$6:$T$50000,Serviço!$A$6:$A$50000,Sumário!F$114,Serviço!$D$6:$D$50000,Sumário!$A136) -> 0 | G136: =SUMIFS(Serviço!$T$6:$T$50000,Serviço!$A$6:$A$50000,Sumário!G$114,Serviço!$D$6:$D$50000,Sumário!$A136) -> 0 | H136: =SUMIFS(Serviço!$T$6:$T$50000,Serviço!$A$6:$A$50000,Sumário!H$114,Serviço!$D$6:$D$50000,Sumário!$A136) -> 0 | I136: =SUMIFS(Serviço!$T$6:$T$50000,Serviço!$A$6:$A$50000,Sumário!I$114,Serviço!$D$6:$D$50000,Sumário!$A136) -> 0 | J136: =SUMIFS(Serviço!$T$6:$T$50000,Serviço!$A$6:$A$50000,Sumário!J$114,Serviço!$D$6:$D$50000,Sumário!$A136) -> 0
A137: FORNECIMENTO DE ALIMENTACAO | B137: =SUMIFS(Serviço!$T$6:$T$50000,Serviço!$A$6:$A$50000,Sumário!B$114,Serviço!$D$6:$D$50000,Sumário!$A137) -> 0 | C137: =SUMIFS(Serviço!$T$6:$T$50000,Serviço!$A$6:$A$50000,Sumário!C$114,Serviço!$D$6:$D$50000,Sumário!$A137) -> 0 | D137: =SUMIFS(Serviço!$T$6:$T$50000,Serviço!$A$6:$A$50000,Sumário!D$114,Serviço!$D$6:$D$50000,Sumário!$A137) -> 0 | E137: =SUMIFS(Serviço!$T$6:$T$50000,Serviço!$A$6:$A$50000,Sumário!E$114,Serviço!$D$6:$D$50000,Sumário!$A137) -> 0 | F137: =SUMIFS(Serviço!$T$6:$T$50000,Serviço!$A$6:$A$50000,Sumário!F$114,Serviço!$D$6:$D$50000,Sumário!$A137) -> 0 | G137: =SUMIFS(Serviço!$T$6:$T$50000,Serviço!$A$6:$A$50000,Sumário!G$114,Serviço!$D$6:$D$50000,Sumário!$A137) -> 0 | H137: =SUMIFS(Serviço!$T$6:$T$50000,Serviço!$A$6:$A$50000,Sumário!H$114,Serviço!$D$6:$D$50000,Sumário!$A137) -> 0 | I137: =SUMIFS(Serviço!$T$6:$T$50000,Serviço!$A$6:$A$50000,Sumário!I$114,Serviço!$D$6:$D$50000,Sumário!$A137) -> 0 | J137: =SUMIFS(Serviço!$T$6:$T$50000,Serviço!$A$6:$A$50000,Sumário!J$114,Serviço!$D$6:$D$50000,Sumário!$A137) -> 0
A138: SERVICOS DE ENERGIA ELETRICA | B138: =SUMIFS(Serviço!$T$6:$T$50000,Serviço!$A$6:$A$50000,Sumário!B$114,Serviço!$D$6:$D$50000,Sumário!$A138) -> 0 | C138: =SUMIFS(Serviço!$T$6:$T$50000,Serviço!$A$6:$A$50000,Sumário!C$114,Serviço!$D$6:$D$50000,Sumário!$A138) -> 0 | D138: =SUMIFS(Serviço!$T$6:$T$50000,Serviço!$A$6:$A$50000,Sumário!D$114,Serviço!$D$6:$D$50000,Sumário!$A138) -> 0 | E138: =SUMIFS(Serviço!$T$6:$T$50000,Serviço!$A$6:$A$50000,Sumário!E$114,Serviço!$D$6:$D$50000,Sumário!$A138) -> 0 | F138: =SUMIFS(Serviço!$T$6:$T$50000,Serviço!$A$6:$A$50000,Sumário!F$114,Serviço!$D$6:$D$50000,Sumário!$A138) -> 0 | G138: =SUMIFS(Serviço!$T$6:$T$50000,Serviço!$A$6:$A$50000,Sumário!G$114,Serviço!$D$6:$D$50000,Sumário!$A138) -> 0 | H138: =SUMIFS(Serviço!$T$6:$T$50000,Serviço!$A$6:$A$50000,Sumário!H$114,Serviço!$D$6:$D$50000,Sumário!$A138) -> 0 | I138: =SUMIFS(Serviço!$T$6:$T$50000,Serviço!$A$6:$A$50000,Sumário!I$114,Serviço!$D$6:$D$50000,Sumário!$A138) -> 0 | J138: =SUMIFS(Serviço!$T$6:$T$50000,Serviço!$A$6:$A$50000,Sumário!J$114,Serviço!$D$6:$D$50000,Sumário!$A138) -> 0
A139: SERVICOS DE AGUA E ESGOTO | B139: =SUMIFS(Serviço!$T$6:$T$50000,Serviço!$A$6:$A$50000,Sumário!B$114,Serviço!$D$6:$D$50000,Sumário!$A139) -> 0 | C139: =SUMIFS(Serviço!$T$6:$T$50000,Serviço!$A$6:$A$50000,Sumário!C$114,Serviço!$D$6:$D$50000,Sumário!$A139) -> 0 | D139: =SUMIFS(Serviço!$T$6:$T$50000,Serviço!$A$6:$A$50000,Sumário!D$114,Serviço!$D$6:$D$50000,Sumário!$A139) -> 0 | E139: =SUMIFS(Serviço!$T$6:$T$50000,Serviço!$A$6:$A$50000,Sumário!E$114,Serviço!$D$6:$D$50000,Sumário!$A139) -> 0 | F139: =SUMIFS(Serviço!$T$6:$T$50000,Serviço!$A$6:$A$50000,Sumário!F$114,Serviço!$D$6:$D$50000,Sumário!$A139) -> 0 | G139: =SUMIFS(Serviço!$T$6:$T$50000,Serviço!$A$6:$A$50000,Sumário!G$114,Serviço!$D$6:$D$50000,Sumário!$A139) -> 0 | H139: =SUMIFS(Serviço!$T$6:$T$50000,Serviço!$A$6:$A$50000,Sumário!H$114,Serviço!$D$6:$D$50000,Sumário!$A139) -> 0 | I139: =SUMIFS(Serviço!$T$6:$T$50000,Serviço!$A$6:$A$50000,Sumário!I$114,Serviço!$D$6:$D$50000,Sumário!$A139) -> 0 | J139: =SUMIFS(Serviço!$T$6:$T$50000,Serviço!$A$6:$A$50000,Sumário!J$114,Serviço!$D$6:$D$50000,Sumário!$A139) -> 0
A140: SERVICOS DE GAS | B140: =SUMIFS(Serviço!$T$6:$T$50000,Serviço!$A$6:$A$50000,Sumário!B$114,Serviço!$D$6:$D$50000,Sumário!$A140) -> 0 | C140: =SUMIFS(Serviço!$T$6:$T$50000,Serviço!$A$6:$A$50000,Sumário!C$114,Serviço!$D$6:$D$50000,Sumário!$A140) -> 0 | D140: =SUMIFS(Serviço!$T$6:$T$50000,Serviço!$A$6:$A$50000,Sumário!D$114,Serviço!$D$6:$D$50000,Sumário!$A140) -> 0 | E140: =SUMIFS(Serviço!$T$6:$T$50000,Serviço!$A$6:$A$50000,Sumário!E$114,Serviço!$D$6:$D$50000,Sumário!$A140) -> 0 | F140: =SUMIFS(Serviço!$T$6:$T$50000,Serviço!$A$6:$A$50000,Sumário!F$114,Serviço!$D$6:$D$50000,Sumário!$A140) -> 0 | G140: =SUMIFS(Serviço!$T$6:$T$50000,Serviço!$A$6:$A$50000,Sumário!G$114,Serviço!$D$6:$D$50000,Sumário!$A140) -> 0 | H140: =SUMIFS(Serviço!$T$6:$T$50000,Serviço!$A$6:$A$50000,Sumário!H$114,Serviço!$D$6:$D$50000,Sumário!$A140) -> 0 | I140: =SUMIFS(Serviço!$T$6:$T$50000,Serviço!$A$6:$A$50000,Sumário!I$114,Serviço!$D$6:$D$50000,Sumário!$A140) -> 0 | J140: =SUMIFS(Serviço!$T$6:$T$50000,Serviço!$A$6:$A$50000,Sumário!J$114,Serviço!$D$6:$D$50000,Sumário!$A140) -> 0
A141: SERVICOS DOMESTICOS | B141: =SUMIFS(Serviço!$T$6:$T$50000,Serviço!$A$6:$A$50000,Sumário!B$114,Serviço!$D$6:$D$50000,Sumário!$A141) -> 0 | C141: =SUMIFS(Serviço!$T$6:$T$50000,Serviço!$A$6:$A$50000,Sumário!C$114,Serviço!$D$6:$D$50000,Sumário!$A141) -> 0 | D141: =SUMIFS(Serviço!$T$6:$T$50000,Serviço!$A$6:$A$50000,Sumário!D$114,Serviço!$D$6:$D$50000,Sumário!$A141) -> 0 | E141: =SUMIFS(Serviço!$T$6:$T$50000,Serviço!$A$6:$A$50000,Sumário!E$114,Serviço!$D$6:$D$50000,Sumário!$A141) -> 0 | F141: =SUMIFS(Serviço!$T$6:$T$50000,Serviço!$A$6:$A$50000,Sumário!F$114,Serviço!$D$6:$D$50000,Sumário!$A141) -> 0 | G141: =SUMIFS(Serviço!$T$6:$T$50000,Serviço!$A$6:$A$50000,Sumário!G$114,Serviço!$D$6:$D$50000,Sumário!$A141) -> 0 | H141: =SUMIFS(Serviço!$T$6:$T$50000,Serviço!$A$6:$A$50000,Sumário!H$114,Serviço!$D$6:$D$50000,Sumário!$A141) -> 0 | I141: =SUMIFS(Serviço!$T$6:$T$50000,Serviço!$A$6:$A$50000,Sumário!I$114,Serviço!$D$6:$D$50000,Sumário!$A141) -> 0 | J141: =SUMIFS(Serviço!$T$6:$T$50000,Serviço!$A$6:$A$50000,Sumário!J$114,Serviço!$D$6:$D$50000,Sumário!$A141) -> 0
A142: SERVICOS DE COMUNICACAO EM GERAL | B142: =SUMIFS(Serviço!$T$6:$T$50000,Serviço!$A$6:$A$50000,Sumário!B$114,Serviço!$D$6:$D$50000,Sumário!$A142) -> 0 | C142: =SUMIFS(Serviço!$T$6:$T$50000,Serviço!$A$6:$A$50000,Sumário!C$114,Serviço!$D$6:$D$50000,Sumário!$A142) -> 0 | D142: =SUMIFS(Serviço!$T$6:$T$50000,Serviço!$A$6:$A$50000,Sumário!D$114,Serviço!$D$6:$D$50000,Sumário!$A142) -> 0 | E142: =SUMIFS(Serviço!$T$6:$T$50000,Serviço!$A$6:$A$50000,Sumário!E$114,Serviço!$D$6:$D$50000,Sumário!$A142) -> 0 | F142: =SUMIFS(Serviço!$T$6:$T$50000,Serviço!$A$6:$A$50000,Sumário!F$114,Serviço!$D$6:$D$50000,Sumário!$A142) -> 0 | G142: =SUMIFS(Serviço!$T$6:$T$50000,Serviço!$A$6:$A$50000,Sumário!G$114,Serviço!$D$6:$D$50000,Sumário!$A142) -> 0 | H142: =SUMIFS(Serviço!$T$6:$T$50000,Serviço!$A$6:$A$50000,Sumário!H$114,Serviço!$D$6:$D$50000,Sumário!$A142) -> 0 | I142: =SUMIFS(Serviço!$T$6:$T$50000,Serviço!$A$6:$A$50000,Sumário!I$114,Serviço!$D$6:$D$50000,Sumário!$A142) -> 0 | J142: =SUMIFS(Serviço!$T$6:$T$50000,Serviço!$A$6:$A$50000,Sumário!J$114,Serviço!$D$6:$D$50000,Sumário!$A142) -> 0
A143: SERVICO DE SELECAO E TREINAMENTO | B143: =SUMIFS(Serviço!$T$6:$T$50000,Serviço!$A$6:$A$50000,Sumário!B$114,Serviço!$D$6:$D$50000,Sumário!$A143) -> 0 | C143: =SUMIFS(Serviço!$T$6:$T$50000,Serviço!$A$6:$A$50000,Sumário!C$114,Serviço!$D$6:$D$50000,Sumário!$A143) -> 0 | D143: =SUMIFS(Serviço!$T$6:$T$50000,Serviço!$A$6:$A$50000,Sumário!D$114,Serviço!$D$6:$D$50000,Sumário!$A143) -> 0 | E143: =SUMIFS(Serviço!$T$6:$T$50000,Serviço!$A$6:$A$50000,Sumário!E$114,Serviço!$D$6:$D$50000,Sumário!$A143) -> 0 | F143: =SUMIFS(Serviço!$T$6:$T$50000,Serviço!$A$6:$A$50000,Sumário!F$114,Serviço!$D$6:$D$50000,Sumário!$A143) -> 0 | G143: =SUMIFS(Serviço!$T$6:$T$50000,Serviço!$A$6:$A$50000,Sumário!G$114,Serviço!$D$6:$D$50000,Sumário!$A143) -> 0 | H143: =SUMIFS(Serviço!$T$6:$T$50000,Serviço!$A$6:$A$50000,Sumário!H$114,Serviço!$D$6:$D$50000,Sumário!$A143) -> 0 | I143: =SUMIFS(Serviço!$T$6:$T$50000,Serviço!$A$6:$A$50000,Sumário!I$114,Serviço!$D$6:$D$50000,Sumário!$A143) -> 0 | J143: =SUMIFS(Serviço!$T$6:$T$50000,Serviço!$A$6:$A$50000,Sumário!J$114,Serviço!$D$6:$D$50000,Sumário!$A143) -> 0
A144: PRODUCOES JORNALISTICAS | B144: =SUMIFS(Serviço!$T$6:$T$50000,Serviço!$A$6:$A$50000,Sumário!B$114,Serviço!$D$6:$D$50000,Sumário!$A144) -> 0 | C144: =SUMIFS(Serviço!$T$6:$T$50000,Serviço!$A$6:$A$50000,Sumário!C$114,Serviço!$D$6:$D$50000,Sumário!$A144) -> 0 | D144: =SUMIFS(Serviço!$T$6:$T$50000,Serviço!$A$6:$A$50000,Sumário!D$114,Serviço!$D$6:$D$50000,Sumário!$A144) -> 0 | E144: =SUMIFS(Serviço!$T$6:$T$50000,Serviço!$A$6:$A$50000,Sumário!E$114,Serviço!$D$6:$D$50000,Sumário!$A144) -> 0 | F144: =SUMIFS(Serviço!$T$6:$T$50000,Serviço!$A$6:$A$50000,Sumário!F$114,Serviço!$D$6:$D$50000,Sumário!$A144) -> 0 | G144: =SUMIFS(Serviço!$T$6:$T$50000,Serviço!$A$6:$A$50000,Sumário!G$114,Serviço!$D$6:$D$50000,Sumário!$A144) -> 0 | H144: =SUMIFS(Serviço!$T$6:$T$50000,Serviço!$A$6:$A$50000,Sumário!H$114,Serviço!$D$6:$D$50000,Sumário!$A144) -> 0 | I144: =SUMIFS(Serviço!$T$6:$T$50000,Serviço!$A$6:$A$50000,Sumário!I$114,Serviço!$D$6:$D$50000,Sumário!$A144) -> 0 | J144: =SUMIFS(Serviço!$T$6:$T$50000,Serviço!$A$6:$A$50000,Sumário!J$114,Serviço!$D$6:$D$50000,Sumário!$A144) -> 0
A145: SERV.MEDICO | B145: =SUMIFS(Serviço!$T$6:$T$50000,Serviço!$A$6:$A$50000,Sumário!B$114,Serviço!$D$6:$D$50000,Sumário!$A145) -> 0 | C145: =SUMIFS(Serviço!$T$6:$T$50000,Serviço!$A$6:$A$50000,Sumário!C$114,Serviço!$D$6:$D$50000,Sumário!$A145) -> 0 | D145: =SUMIFS(Serviço!$T$6:$T$50000,Serviço!$A$6:$A$50000,Sumário!D$114,Serviço!$D$6:$D$50000,Sumário!$A145) -> 0 | E145: =SUMIFS(Serviço!$T$6:$T$50000,Serviço!$A$6:$A$50000,Sumário!E$114,Serviço!$D$6:$D$50000,Sumário!$A145) -> 0 | F145: =SUMIFS(Serviço!$T$6:$T$50000,Serviço!$A$6:$A$50000,Sumário!F$114,Serviço!$D$6:$D$50000,Sumário!$A145) -> 0 | G145: =SUMIFS(Serviço!$T$6:$T$50000,Serviço!$A$6:$A$50000,Sumário!G$114,Serviço!$D$6:$D$50000,Sumário!$A145) -> 0 | H145: =SUMIFS(Serviço!$T$6:$T$50000,Serviço!$A$6:$A$50000,Sumário!H$114,Serviço!$D$6:$D$50000,Sumário!$A145) -> 0 | I145: =SUMIFS(Serviço!$T$6:$T$50000,Serviço!$A$6:$A$50000,Sumário!I$114,Serviço!$D$6:$D$50000,Sumário!$A145) -> 0 | J145: =SUMIFS(Serviço!$T$6:$T$50000,Serviço!$A$6:$A$50000,Sumário!J$114,Serviço!$D$6:$D$50000,Sumário!$A145) -> 0
A146: SERVICOS DE ANALISES E PESQUISAS CIENTIFICAS | B146: =SUMIFS(Serviço!$T$6:$T$50000,Serviço!$A$6:$A$50000,Sumário!B$114,Serviço!$D$6:$D$50000,Sumário!$A146) -> 0 | C146: =SUMIFS(Serviço!$T$6:$T$50000,Serviço!$A$6:$A$50000,Sumário!C$114,Serviço!$D$6:$D$50000,Sumário!$A146) -> 0 | D146: =SUMIFS(Serviço!$T$6:$T$50000,Serviço!$A$6:$A$50000,Sumário!D$114,Serviço!$D$6:$D$50000,Sumário!$A146) -> 0 | E146: =SUMIFS(Serviço!$T$6:$T$50000,Serviço!$A$6:$A$50000,Sumário!E$114,Serviço!$D$6:$D$50000,Sumário!$A146) -> 0 | F146: =SUMIFS(Serviço!$T$6:$T$50000,Serviço!$A$6:$A$50000,Sumário!F$114,Serviço!$D$6:$D$50000,Sumário!$A146) -> 0 | G146: =SUMIFS(Serviço!$T$6:$T$50000,Serviço!$A$6:$A$50000,Sumário!G$114,Serviço!$D$6:$D$50000,Sumário!$A146) -> 0 | H146: =SUMIFS(Serviço!$T$6:$T$50000,Serviço!$A$6:$A$50000,Sumário!H$114,Serviço!$D$6:$D$50000,Sumário!$A146) -> 0 | I146: =SUMIFS(Serviço!$T$6:$T$50000,Serviço!$A$6:$A$50000,Sumário!I$114,Serviço!$D$6:$D$50000,Sumário!$A146) -> 0 | J146: =SUMIFS(Serviço!$T$6:$T$50000,Serviço!$A$6:$A$50000,Sumário!J$114,Serviço!$D$6:$D$50000,Sumário!$A146) -> 0
A147: SERVICOS DE REABILITACAO PROFISSIONAL | B147: =SUMIFS(Serviço!$T$6:$T$50000,Serviço!$A$6:$A$50000,Sumário!B$114,Serviço!$D$6:$D$50000,Sumário!$A147) -> 0 | C147: =SUMIFS(Serviço!$T$6:$T$50000,Serviço!$A$6:$A$50000,Sumário!C$114,Serviço!$D$6:$D$50000,Sumário!$A147) -> 0 | D147: =SUMIFS(Serviço!$T$6:$T$50000,Serviço!$A$6:$A$50000,Sumário!D$114,Serviço!$D$6:$D$50000,Sumário!$A147) -> 0 | E147: =SUMIFS(Serviço!$T$6:$T$50000,Serviço!$A$6:$A$50000,Sumário!E$114,Serviço!$D$6:$D$50000,Sumário!$A147) -> 0 | F147: =SUMIFS(Serviço!$T$6:$T$50000,Serviço!$A$6:$A$50000,Sumário!F$114,Serviço!$D$6:$D$50000,Sumário!$A147) -> 0 | G147: =SUMIFS(Serviço!$T$6:$T$50000,Serviço!$A$6:$A$50000,Sumário!G$114,Serviço!$D$6:$D$50000,Sumário!$A147) -> 0 | H147: =SUMIFS(Serviço!$T$6:$T$50000,Serviço!$A$6:$A$50000,Sumário!H$114,Serviço!$D$6:$D$50000,Sumário!$A147) -> 0 | I147: =SUMIFS(Serviço!$T$6:$T$50000,Serviço!$A$6:$A$50000,Sumário!I$114,Serviço!$D$6:$D$50000,Sumário!$A147) -> 0 | J147: =SUMIFS(Serviço!$T$6:$T$50000,Serviço!$A$6:$A$50000,Sumário!J$114,Serviço!$D$6:$D$50000,Sumário!$A147) -> 0
A148: SERVICOS DE ASSISTENCIA SOCIAL | B148: =SUMIFS(Serviço!$T$6:$T$50000,Serviço!$A$6:$A$50000,Sumário!B$114,Serviço!$D$6:$D$50000,Sumário!$A148) -> 0 | C148: =SUMIFS(Serviço!$T$6:$T$50000,Serviço!$A$6:$A$50000,Sumário!C$114,Serviço!$D$6:$D$50000,Sumário!$A148) -> 0 | D148: =SUMIFS(Serviço!$T$6:$T$50000,Serviço!$A$6:$A$50000,Sumário!D$114,Serviço!$D$6:$D$50000,Sumário!$A148) -> 0 | E148: =SUMIFS(Serviço!$T$6:$T$50000,Serviço!$A$6:$A$50000,Sumário!E$114,Serviço!$D$6:$D$50000,Sumário!$A148) -> 0 | F148: =SUMIFS(Serviço!$T$6:$T$50000,Serviço!$A$6:$A$50000,Sumário!F$114,Serviço!$D$6:$D$50000,Sumário!$A148) -> 0 | G148: =SUMIFS(Serviço!$T$6:$T$50000,Serviço!$A$6:$A$50000,Sumário!G$114,Serviço!$D$6:$D$50000,Sumário!$A148) -> 0 | H148: =SUMIFS(Serviço!$T$6:$T$50000,Serviço!$A$6:$A$50000,Sumário!H$114,Serviço!$D$6:$D$50000,Sumário!$A148) -> 0 | I148: =SUMIFS(Serviço!$T$6:$T$50000,Serviço!$A$6:$A$50000,Sumário!I$114,Serviço!$D$6:$D$50000,Sumário!$A148) -> 0 | J148: =SUMIFS(Serviço!$T$6:$T$50000,Serviço!$A$6:$A$50000,Sumário!J$114,Serviço!$D$6:$D$50000,Sumário!$A148) -> 0
A149: SERVICOS DE CRECHES E ASSIST. PRE ESCOLAR | B149: =SUMIFS(Serviço!$T$6:$T$50000,Serviço!$A$6:$A$50000,Sumário!B$114,Serviço!$D$6:$D$50000,Sumário!$A149) -> 0 | C149: =SUMIFS(Serviço!$T$6:$T$50000,Serviço!$A$6:$A$50000,Sumário!C$114,Serviço!$D$6:$D$50000,Sumário!$A149) -> 0 | D149: =SUMIFS(Serviço!$T$6:$T$50000,Serviço!$A$6:$A$50000,Sumário!D$114,Serviço!$D$6:$D$50000,Sumário!$A149) -> 0 | E149: =SUMIFS(Serviço!$T$6:$T$50000,Serviço!$A$6:$A$50000,Sumário!E$114,Serviço!$D$6:$D$50000,Sumário!$A149) -> 0 | F149: =SUMIFS(Serviço!$T$6:$T$50000,Serviço!$A$6:$A$50000,Sumário!F$114,Serviço!$D$6:$D$50000,Sumário!$A149) -> 0 | G149: =SUMIFS(Serviço!$T$6:$T$50000,Serviço!$A$6:$A$50000,Sumário!G$114,Serviço!$D$6:$D$50000,Sumário!$A149) -> 0 | H149: =SUMIFS(Serviço!$T$6:$T$50000,Serviço!$A$6:$A$50000,Sumário!H$114,Serviço!$D$6:$D$50000,Sumário!$A149) -> 0 | I149: =SUMIFS(Serviço!$T$6:$T$50000,Serviço!$A$6:$A$50000,Sumário!I$114,Serviço!$D$6:$D$50000,Sumário!$A149) -> 0 | J149: =SUMIFS(Serviço!$T$6:$T$50000,Serviço!$A$6:$A$50000,Sumário!J$114,Serviço!$D$6:$D$50000,Sumário!$A149) -> 0
A150: SERVICOS DE PROC. DE DADOS | B150: =SUMIFS(Serviço!$T$6:$T$50000,Serviço!$A$6:$A$50000,Sumário!B$114,Serviço!$D$6:$D$50000,Sumário!$A150) -> 1116260 | C150: =SUMIFS(Serviço!$T$6:$T$50000,Serviço!$A$6:$A$50000,Sumário!C$114,Serviço!$D$6:$D$50000,Sumário!$A150) -> 0 | D150: =SUMIFS(Serviço!$T$6:$T$50000,Serviço!$A$6:$A$50000,Sumário!D$114,Serviço!$D$6:$D$50000,Sumário!$A150) -> 0 | E150: =SUMIFS(Serviço!$T$6:$T$50000,Serviço!$A$6:$A$50000,Sumário!E$114,Serviço!$D$6:$D$50000,Sumário!$A150) -> 0 | F150: =SUMIFS(Serviço!$T$6:$T$50000,Serviço!$A$6:$A$50000,Sumário!F$114,Serviço!$D$6:$D$50000,Sumário!$A150) -> 0 | G150: =SUMIFS(Serviço!$T$6:$T$50000,Serviço!$A$6:$A$50000,Sumário!G$114,Serviço!$D$6:$D$50000,Sumário!$A150) -> 0 | H150: =SUMIFS(Serviço!$T$6:$T$50000,Serviço!$A$6:$A$50000,Sumário!H$114,Serviço!$D$6:$D$50000,Sumário!$A150) -> 0 | I150: =SUMIFS(Serviço!$T$6:$T$50000,Serviço!$A$6:$A$50000,Sumário!I$114,Serviço!$D$6:$D$50000,Sumário!$A150) -> 1116260 | J150: =SUMIFS(Serviço!$T$6:$T$50000,Serviço!$A$6:$A$50000,Sumário!J$114,Serviço!$D$6:$D$50000,Sumário!$A150) -> 0
A151: SERVICOS DE TELECOMUNICACOES | B151: =SUMIFS(Serviço!$T$6:$T$50000,Serviço!$A$6:$A$50000,Sumário!B$114,Serviço!$D$6:$D$50000,Sumário!$A151) -> 0 | C151: =SUMIFS(Serviço!$T$6:$T$50000,Serviço!$A$6:$A$50000,Sumário!C$114,Serviço!$D$6:$D$50000,Sumário!$A151) -> 0 | D151: =SUMIFS(Serviço!$T$6:$T$50000,Serviço!$A$6:$A$50000,Sumário!D$114,Serviço!$D$6:$D$50000,Sumário!$A151) -> 0 | E151: =SUMIFS(Serviço!$T$6:$T$50000,Serviço!$A$6:$A$50000,Sumário!E$114,Serviço!$D$6:$D$50000,Sumário!$A151) -> 0 | F151: =SUMIFS(Serviço!$T$6:$T$50000,Serviço!$A$6:$A$50000,Sumário!F$114,Serviço!$D$6:$D$50000,Sumário!$A151) -> 0 | G151: =SUMIFS(Serviço!$T$6:$T$50000,Serviço!$A$6:$A$50000,Sumário!G$114,Serviço!$D$6:$D$50000,Sumário!$A151) -> 0 | H151: =SUMIFS(Serviço!$T$6:$T$50000,Serviço!$A$6:$A$50000,Sumário!H$114,Serviço!$D$6:$D$50000,Sumário!$A151) -> 0 | I151: =SUMIFS(Serviço!$T$6:$T$50000,Serviço!$A$6:$A$50000,Sumário!I$114,Serviço!$D$6:$D$50000,Sumário!$A151) -> 0 | J151: =SUMIFS(Serviço!$T$6:$T$50000,Serviço!$A$6:$A$50000,Sumário!J$114,Serviço!$D$6:$D$50000,Sumário!$A151) -> 0
A152: SERVICOS DE AUDIO, VIDEO E FOTO | B152: =SUMIFS(Serviço!$T$6:$T$50000,Serviço!$A$6:$A$50000,Sumário!B$114,Serviço!$D$6:$D$50000,Sumário!$A152) -> 0 | C152: =SUMIFS(Serviço!$T$6:$T$50000,Serviço!$A$6:$A$50000,Sumário!C$114,Serviço!$D$6:$D$50000,Sumário!$A152) -> 0 | D152: =SUMIFS(Serviço!$T$6:$T$50000,Serviço!$A$6:$A$50000,Sumário!D$114,Serviço!$D$6:$D$50000,Sumário!$A152) -> 0 | E152: =SUMIFS(Serviço!$T$6:$T$50000,Serviço!$A$6:$A$50000,Sumário!E$114,Serviço!$D$6:$D$50000,Sumário!$A152) -> 0 | F152: =SUMIFS(Serviço!$T$6:$T$50000,Serviço!$A$6:$A$50000,Sumário!F$114,Serviço!$D$6:$D$50000,Sumário!$A152) -> 0 | G152: =SUMIFS(Serviço!$T$6:$T$50000,Serviço!$A$6:$A$50000,Sumário!G$114,Serviço!$D$6:$D$50000,Sumário!$A152) -> 0 | H152: =SUMIFS(Serviço!$T$6:$T$50000,Serviço!$A$6:$A$50000,Sumário!H$114,Serviço!$D$6:$D$50000,Sumário!$A152) -> 0 | I152: =SUMIFS(Serviço!$T$6:$T$50000,Serviço!$A$6:$A$50000,Sumário!I$114,Serviço!$D$6:$D$50000,Sumário!$A152) -> 0 | J152: =SUMIFS(Serviço!$T$6:$T$50000,Serviço!$A$6:$A$50000,Sumário!J$114,Serviço!$D$6:$D$50000,Sumário!$A152) -> 0
A153: SERVICOS DE PRODUCAO INDUSTRIAL | B153: =SUMIFS(Serviço!$T$6:$T$50000,Serviço!$A$6:$A$50000,Sumário!B$114,Serviço!$D$6:$D$50000,Sumário!$A153) -> 0 | C153: =SUMIFS(Serviço!$T$6:$T$50000,Serviço!$A$6:$A$50000,Sumário!C$114,Serviço!$D$6:$D$50000,Sumário!$A153) -> 0 | D153: =SUMIFS(Serviço!$T$6:$T$50000,Serviço!$A$6:$A$50000,Sumário!D$114,Serviço!$D$6:$D$50000,Sumário!$A153) -> 0 | E153: =SUMIFS(Serviço!$T$6:$T$50000,Serviço!$A$6:$A$50000,Sumário!E$114,Serviço!$D$6:$D$50000,Sumário!$A153) -> 0 | F153: =SUMIFS(Serviço!$T$6:$T$50000,Serviço!$A$6:$A$50000,Sumário!F$114,Serviço!$D$6:$D$50000,Sumário!$A153) -> 0 | G153: =SUMIFS(Serviço!$T$6:$T$50000,Serviço!$A$6:$A$50000,Sumário!G$114,Serviço!$D$6:$D$50000,Sumário!$A153) -> 0 | H153: =SUMIFS(Serviço!$T$6:$T$50000,Serviço!$A$6:$A$50000,Sumário!H$114,Serviço!$D$6:$D$50000,Sumário!$A153) -> 0 | I153: =SUMIFS(Serviço!$T$6:$T$50000,Serviço!$A$6:$A$50000,Sumário!I$114,Serviço!$D$6:$D$50000,Sumário!$A153) -> 0 | J153: =SUMIFS(Serviço!$T$6:$T$50000,Serviço!$A$6:$A$50000,Sumário!J$114,Serviço!$D$6:$D$50000,Sumário!$A153) -> 0
A154: SERVICOS GRAFICOS E EDITORIAIS | B154: =SUMIFS(Serviço!$T$6:$T$50000,Serviço!$A$6:$A$50000,Sumário!B$114,Serviço!$D$6:$D$50000,Sumário!$A154) -> 0 | C154: =SUMIFS(Serviço!$T$6:$T$50000,Serviço!$A$6:$A$50000,Sumário!C$114,Serviço!$D$6:$D$50000,Sumário!$A154) -> 0 | D154: =SUMIFS(Serviço!$T$6:$T$50000,Serviço!$A$6:$A$50000,Sumário!D$114,Serviço!$D$6:$D$50000,Sumário!$A154) -> 0 | E154: =SUMIFS(Serviço!$T$6:$T$50000,Serviço!$A$6:$A$50000,Sumário!E$114,Serviço!$D$6:$D$50000,Sumário!$A154) -> 0 | F154: =SUMIFS(Serviço!$T$6:$T$50000,Serviço!$A$6:$A$50000,Sumário!F$114,Serviço!$D$6:$D$50000,Sumário!$A154) -> 0 | G154: =SUMIFS(Serviço!$T$6:$T$50000,Serviço!$A$6:$A$50000,Sumário!G$114,Serviço!$D$6:$D$50000,Sumário!$A154) -> 0 | H154: =SUMIFS(Serviço!$T$6:$T$50000,Serviço!$A$6:$A$50000,Sumário!H$114,Serviço!$D$6:$D$50000,Sumário!$A154) -> 0 | I154: =SUMIFS(Serviço!$T$6:$T$50000,Serviço!$A$6:$A$50000,Sumário!I$114,Serviço!$D$6:$D$50000,Sumário!$A154) -> 0 | J154: =SUMIFS(Serviço!$T$6:$T$50000,Serviço!$A$6:$A$50000,Sumário!J$114,Serviço!$D$6:$D$50000,Sumário!$A154) -> 0
A155: SERVICOS DE APOIO AO ENSINO | B155: =SUMIFS(Serviço!$T$6:$T$50000,Serviço!$A$6:$A$50000,Sumário!B$114,Serviço!$D$6:$D$50000,Sumário!$A155) -> 0 | C155: =SUMIFS(Serviço!$T$6:$T$50000,Serviço!$A$6:$A$50000,Sumário!C$114,Serviço!$D$6:$D$50000,Sumário!$A155) -> 0 | D155: =SUMIFS(Serviço!$T$6:$T$50000,Serviço!$A$6:$A$50000,Sumário!D$114,Serviço!$D$6:$D$50000,Sumário!$A155) -> 0 | E155: =SUMIFS(Serviço!$T$6:$T$50000,Serviço!$A$6:$A$50000,Sumário!E$114,Serviço!$D$6:$D$50000,Sumário!$A155) -> 0 | F155: =SUMIFS(Serviço!$T$6:$T$50000,Serviço!$A$6:$A$50000,Sumário!F$114,Serviço!$D$6:$D$50000,Sumário!$A155) -> 0 | G155: =SUMIFS(Serviço!$T$6:$T$50000,Serviço!$A$6:$A$50000,Sumário!G$114,Serviço!$D$6:$D$50000,Sumário!$A155) -> 0 | H155: =SUMIFS(Serviço!$T$6:$T$50000,Serviço!$A$6:$A$50000,Sumário!H$114,Serviço!$D$6:$D$50000,Sumário!$A155) -> 0 | I155: =SUMIFS(Serviço!$T$6:$T$50000,Serviço!$A$6:$A$50000,Sumário!I$114,Serviço!$D$6:$D$50000,Sumário!$A155) -> 0 | J155: =SUMIFS(Serviço!$T$6:$T$50000,Serviço!$A$6:$A$50000,Sumário!J$114,Serviço!$D$6:$D$50000,Sumário!$A155) -> 0
A156: SERVICOS JUDICIARIOS | B156: =SUMIFS(Serviço!$T$6:$T$50000,Serviço!$A$6:$A$50000,Sumário!B$114,Serviço!$D$6:$D$50000,Sumário!$A156) -> 0 | C156: =SUMIFS(Serviço!$T$6:$T$50000,Serviço!$A$6:$A$50000,Sumário!C$114,Serviço!$D$6:$D$50000,Sumário!$A156) -> 0 | D156: =SUMIFS(Serviço!$T$6:$T$50000,Serviço!$A$6:$A$50000,Sumário!D$114,Serviço!$D$6:$D$50000,Sumário!$A156) -> 0 | E156: =SUMIFS(Serviço!$T$6:$T$50000,Serviço!$A$6:$A$50000,Sumário!E$114,Serviço!$D$6:$D$50000,Sumário!$A156) -> 0 | F156: =SUMIFS(Serviço!$T$6:$T$50000,Serviço!$A$6:$A$50000,Sumário!F$114,Serviço!$D$6:$D$50000,Sumário!$A156) -> 0 | G156: =SUMIFS(Serviço!$T$6:$T$50000,Serviço!$A$6:$A$50000,Sumário!G$114,Serviço!$D$6:$D$50000,Sumário!$A156) -> 0 | H156: =SUMIFS(Serviço!$T$6:$T$50000,Serviço!$A$6:$A$50000,Sumário!H$114,Serviço!$D$6:$D$50000,Sumário!$A156) -> 0 | I156: =SUMIFS(Serviço!$T$6:$T$50000,Serviço!$A$6:$A$50000,Sumário!I$114,Serviço!$D$6:$D$50000,Sumário!$A156) -> 0 | J156: =SUMIFS(Serviço!$T$6:$T$50000,Serviço!$A$6:$A$50000,Sumário!J$114,Serviço!$D$6:$D$50000,Sumário!$A156) -> 0
A157: SERVICOS FUNERARIOS | B157: =SUMIFS(Serviço!$T$6:$T$50000,Serviço!$A$6:$A$50000,Sumário!B$114,Serviço!$D$6:$D$50000,Sumário!$A157) -> 0 | C157: =SUMIFS(Serviço!$T$6:$T$50000,Serviço!$A$6:$A$50000,Sumário!C$114,Serviço!$D$6:$D$50000,Sumário!$A157) -> 0 | D157: =SUMIFS(Serviço!$T$6:$T$50000,Serviço!$A$6:$A$50000,Sumário!D$114,Serviço!$D$6:$D$50000,Sumário!$A157) -> 0 | E157: =SUMIFS(Serviço!$T$6:$T$50000,Serviço!$A$6:$A$50000,Sumário!E$114,Serviço!$D$6:$D$50000,Sumário!$A157) -> 0 | F157: =SUMIFS(Serviço!$T$6:$T$50000,Serviço!$A$6:$A$50000,Sumário!F$114,Serviço!$D$6:$D$50000,Sumário!$A157) -> 0 | G157: =SUMIFS(Serviço!$T$6:$T$50000,Serviço!$A$6:$A$50000,Sumário!G$114,Serviço!$D$6:$D$50000,Sumário!$A157) -> 0 | H157: =SUMIFS(Serviço!$T$6:$T$50000,Serviço!$A$6:$A$50000,Sumário!H$114,Serviço!$D$6:$D$50000,Sumário!$A157) -> 0 | I157: =SUMIFS(Serviço!$T$6:$T$50000,Serviço!$A$6:$A$50000,Sumário!I$114,Serviço!$D$6:$D$50000,Sumário!$A157) -> 0 | J157: =SUMIFS(Serviço!$T$6:$T$50000,Serviço!$A$6:$A$50000,Sumário!J$114,Serviço!$D$6:$D$50000,Sumário!$A157) -> 0
A158: SERV. DE CONSERV. E REBENEF. DE MERCADORIAS | B158: =SUMIFS(Serviço!$T$6:$T$50000,Serviço!$A$6:$A$50000,Sumário!B$114,Serviço!$D$6:$D$50000,Sumário!$A158) -> 0 | C158: =SUMIFS(Serviço!$T$6:$T$50000,Serviço!$A$6:$A$50000,Sumário!C$114,Serviço!$D$6:$D$50000,Sumário!$A158) -> 0 | D158: =SUMIFS(Serviço!$T$6:$T$50000,Serviço!$A$6:$A$50000,Sumário!D$114,Serviço!$D$6:$D$50000,Sumário!$A158) -> 0 | E158: =SUMIFS(Serviço!$T$6:$T$50000,Serviço!$A$6:$A$50000,Sumário!E$114,Serviço!$D$6:$D$50000,Sumário!$A158) -> 0 | F158: =SUMIFS(Serviço!$T$6:$T$50000,Serviço!$A$6:$A$50000,Sumário!F$114,Serviço!$D$6:$D$50000,Sumário!$A158) -> 0 | G158: =SUMIFS(Serviço!$T$6:$T$50000,Serviço!$A$6:$A$50000,Sumário!G$114,Serviço!$D$6:$D$50000,Sumário!$A158) -> 0 | H158: =SUMIFS(Serviço!$T$6:$T$50000,Serviço!$A$6:$A$50000,Sumário!H$114,Serviço!$D$6:$D$50000,Sumário!$A158) -> 0 | I158: =SUMIFS(Serviço!$T$6:$T$50000,Serviço!$A$6:$A$50000,Sumário!I$114,Serviço!$D$6:$D$50000,Sumário!$A158) -> 0 | J158: =SUMIFS(Serviço!$T$6:$T$50000,Serviço!$A$6:$A$50000,Sumário!J$114,Serviço!$D$6:$D$50000,Sumário!$A158) -> 0
A159: SEGUROS EM GERAL | B159: =SUMIFS(Serviço!$T$6:$T$50000,Serviço!$A$6:$A$50000,Sumário!B$114,Serviço!$D$6:$D$50000,Sumário!$A159) -> 0 | C159: =SUMIFS(Serviço!$T$6:$T$50000,Serviço!$A$6:$A$50000,Sumário!C$114,Serviço!$D$6:$D$50000,Sumário!$A159) -> 0 | D159: =SUMIFS(Serviço!$T$6:$T$50000,Serviço!$A$6:$A$50000,Sumário!D$114,Serviço!$D$6:$D$50000,Sumário!$A159) -> 0 | E159: =SUMIFS(Serviço!$T$6:$T$50000,Serviço!$A$6:$A$50000,Sumário!E$114,Serviço!$D$6:$D$50000,Sumário!$A159) -> 0 | F159: =SUMIFS(Serviço!$T$6:$T$50000,Serviço!$A$6:$A$50000,Sumário!F$114,Serviço!$D$6:$D$50000,Sumário!$A159) -> 0 | G159: =SUMIFS(Serviço!$T$6:$T$50000,Serviço!$A$6:$A$50000,Sumário!G$114,Serviço!$D$6:$D$50000,Sumário!$A159) -> 0 | H159: =SUMIFS(Serviço!$T$6:$T$50000,Serviço!$A$6:$A$50000,Sumário!H$114,Serviço!$D$6:$D$50000,Sumário!$A159) -> 0 | I159: =SUMIFS(Serviço!$T$6:$T$50000,Serviço!$A$6:$A$50000,Sumário!I$114,Serviço!$D$6:$D$50000,Sumário!$A159) -> 0 | J159: =SUMIFS(Serviço!$T$6:$T$50000,Serviço!$A$6:$A$50000,Sumário!J$114,Serviço!$D$6:$D$50000,Sumário!$A159) -> 0
A160: CONFECCAO DE UNIFORMES, BANDEIRAS E FLAMULAS | B160: =SUMIFS(Serviço!$T$6:$T$50000,Serviço!$A$6:$A$50000,Sumário!B$114,Serviço!$D$6:$D$50000,Sumário!$A160) -> 11650 | C160: =SUMIFS(Serviço!$T$6:$T$50000,Serviço!$A$6:$A$50000,Sumário!C$114,Serviço!$D$6:$D$50000,Sumário!$A160) -> 0 | D160: =SUMIFS(Serviço!$T$6:$T$50000,Serviço!$A$6:$A$50000,Sumário!D$114,Serviço!$D$6:$D$50000,Sumário!$A160) -> 0 | E160: =SUMIFS(Serviço!$T$6:$T$50000,Serviço!$A$6:$A$50000,Sumário!E$114,Serviço!$D$6:$D$50000,Sumário!$A160) -> 0 | F160: =SUMIFS(Serviço!$T$6:$T$50000,Serviço!$A$6:$A$50000,Sumário!F$114,Serviço!$D$6:$D$50000,Sumário!$A160) -> 0 | G160: =SUMIFS(Serviço!$T$6:$T$50000,Serviço!$A$6:$A$50000,Sumário!G$114,Serviço!$D$6:$D$50000,Sumário!$A160) -> 0 | H160: =SUMIFS(Serviço!$T$6:$T$50000,Serviço!$A$6:$A$50000,Sumário!H$114,Serviço!$D$6:$D$50000,Sumário!$A160) -> 11650 | I160: =SUMIFS(Serviço!$T$6:$T$50000,Serviço!$A$6:$A$50000,Sumário!I$114,Serviço!$D$6:$D$50000,Sumário!$A160) -> 0 | J160: =SUMIFS(Serviço!$T$6:$T$50000,Serviço!$A$6:$A$50000,Sumário!J$114,Serviço!$D$6:$D$50000,Sumário!$A160) -> 0
A161: CONFECCAO DE MATERIAL DE ACONDIC. E EMBALAGEM | B161: =SUMIFS(Serviço!$T$6:$T$50000,Serviço!$A$6:$A$50000,Sumário!B$114,Serviço!$D$6:$D$50000,Sumário!$A161) -> 0 | C161: =SUMIFS(Serviço!$T$6:$T$50000,Serviço!$A$6:$A$50000,Sumário!C$114,Serviço!$D$6:$D$50000,Sumário!$A161) -> 0 | D161: =SUMIFS(Serviço!$T$6:$T$50000,Serviço!$A$6:$A$50000,Sumário!D$114,Serviço!$D$6:$D$50000,Sumário!$A161) -> 0 | E161: =SUMIFS(Serviço!$T$6:$T$50000,Serviço!$A$6:$A$50000,Sumário!E$114,Serviço!$D$6:$D$50000,Sumário!$A161) -> 0 | F161: =SUMIFS(Serviço!$T$6:$T$50000,Serviço!$A$6:$A$50000,Sumário!F$114,Serviço!$D$6:$D$50000,Sumário!$A161) -> 0 | G161: =SUMIFS(Serviço!$T$6:$T$50000,Serviço!$A$6:$A$50000,Sumário!G$114,Serviço!$D$6:$D$50000,Sumário!$A161) -> 0 | H161: =SUMIFS(Serviço!$T$6:$T$50000,Serviço!$A$6:$A$50000,Sumário!H$114,Serviço!$D$6:$D$50000,Sumário!$A161) -> 0 | I161: =SUMIFS(Serviço!$T$6:$T$50000,Serviço!$A$6:$A$50000,Sumário!I$114,Serviço!$D$6:$D$50000,Sumário!$A161) -> 0 | J161: =SUMIFS(Serviço!$T$6:$T$50000,Serviço!$A$6:$A$50000,Sumário!J$114,Serviço!$D$6:$D$50000,Sumário!$A161) -> 0
A162: VALE TRANSPORTE | B162: =SUMIFS(Serviço!$T$6:$T$50000,Serviço!$A$6:$A$50000,Sumário!B$114,Serviço!$D$6:$D$50000,Sumário!$A162) -> 0 | C162: =SUMIFS(Serviço!$T$6:$T$50000,Serviço!$A$6:$A$50000,Sumário!C$114,Serviço!$D$6:$D$50000,Sumário!$A162) -> 0 | D162: =SUMIFS(Serviço!$T$6:$T$50000,Serviço!$A$6:$A$50000,Sumário!D$114,Serviço!$D$6:$D$50000,Sumário!$A162) -> 0 | E162: =SUMIFS(Serviço!$T$6:$T$50000,Serviço!$A$6:$A$50000,Sumário!E$114,Serviço!$D$6:$D$50000,Sumário!$A162) -> 0 | F162: =SUMIFS(Serviço!$T$6:$T$50000,Serviço!$A$6:$A$50000,Sumário!F$114,Serviço!$D$6:$D$50000,Sumário!$A162) -> 0 | G162: =SUMIFS(Serviço!$T$6:$T$50000,Serviço!$A$6:$A$50000,Sumário!G$114,Serviço!$D$6:$D$50000,Sumário!$A162) -> 0 | H162: =SUMIFS(Serviço!$T$6:$T$50000,Serviço!$A$6:$A$50000,Sumário!H$114,Serviço!$D$6:$D$50000,Sumário!$A162) -> 0 | I162: =SUMIFS(Serviço!$T$6:$T$50000,Serviço!$A$6:$A$50000,Sumário!I$114,Serviço!$D$6:$D$50000,Sumário!$A162) -> 0 | J162: =SUMIFS(Serviço!$T$6:$T$50000,Serviço!$A$6:$A$50000,Sumário!J$114,Serviço!$D$6:$D$50000,Sumário!$A162) -> 0
A163: TRANSPORTE DE SERVIDORES | B163: =SUMIFS(Serviço!$T$6:$T$50000,Serviço!$A$6:$A$50000,Sumário!B$114,Serviço!$D$6:$D$50000,Sumário!$A163) -> 0 | C163: =SUMIFS(Serviço!$T$6:$T$50000,Serviço!$A$6:$A$50000,Sumário!C$114,Serviço!$D$6:$D$50000,Sumário!$A163) -> 0 | D163: =SUMIFS(Serviço!$T$6:$T$50000,Serviço!$A$6:$A$50000,Sumário!D$114,Serviço!$D$6:$D$50000,Sumário!$A163) -> 0 | E163: =SUMIFS(Serviço!$T$6:$T$50000,Serviço!$A$6:$A$50000,Sumário!E$114,Serviço!$D$6:$D$50000,Sumário!$A163) -> 0 | F163: =SUMIFS(Serviço!$T$6:$T$50000,Serviço!$A$6:$A$50000,Sumário!F$114,Serviço!$D$6:$D$50000,Sumário!$A163) -> 0 | G163: =SUMIFS(Serviço!$T$6:$T$50000,Serviço!$A$6:$A$50000,Sumário!G$114,Serviço!$D$6:$D$50000,Sumário!$A163) -> 0 | H163: =SUMIFS(Serviço!$T$6:$T$50000,Serviço!$A$6:$A$50000,Sumário!H$114,Serviço!$D$6:$D$50000,Sumário!$A163) -> 0 | I163: =SUMIFS(Serviço!$T$6:$T$50000,Serviço!$A$6:$A$50000,Sumário!I$114,Serviço!$D$6:$D$50000,Sumário!$A163) -> 0 | J163: =SUMIFS(Serviço!$T$6:$T$50000,Serviço!$A$6:$A$50000,Sumário!J$114,Serviço!$D$6:$D$50000,Sumário!$A163) -> 0
A164: FRETES E TRANSP. DE ENCOMENDAS | B164: =SUMIFS(Serviço!$T$6:$T$50000,Serviço!$A$6:$A$50000,Sumário!B$114,Serviço!$D$6:$D$50000,Sumário!$A164) -> 0 | C164: =SUMIFS(Serviço!$T$6:$T$50000,Serviço!$A$6:$A$50000,Sumário!C$114,Serviço!$D$6:$D$50000,Sumário!$A164) -> 0 | D164: =SUMIFS(Serviço!$T$6:$T$50000,Serviço!$A$6:$A$50000,Sumário!D$114,Serviço!$D$6:$D$50000,Sumário!$A164) -> 0 | E164: =SUMIFS(Serviço!$T$6:$T$50000,Serviço!$A$6:$A$50000,Sumário!E$114,Serviço!$D$6:$D$50000,Sumário!$A164) -> 0 | F164: =SUMIFS(Serviço!$T$6:$T$50000,Serviço!$A$6:$A$50000,Sumário!F$114,Serviço!$D$6:$D$50000,Sumário!$A164) -> 0 | G164: =SUMIFS(Serviço!$T$6:$T$50000,Serviço!$A$6:$A$50000,Sumário!G$114,Serviço!$D$6:$D$50000,Sumário!$A164) -> 0 | H164: =SUMIFS(Serviço!$T$6:$T$50000,Serviço!$A$6:$A$50000,Sumário!H$114,Serviço!$D$6:$D$50000,Sumário!$A164) -> 0 | I164: =SUMIFS(Serviço!$T$6:$T$50000,Serviço!$A$6:$A$50000,Sumário!I$114,Serviço!$D$6:$D$50000,Sumário!$A164) -> 0 | J164: =SUMIFS(Serviço!$T$6:$T$50000,Serviço!$A$6:$A$50000,Sumário!J$114,Serviço!$D$6:$D$50000,Sumário!$A164) -> 0
A165: CLASSIFICACAO DE PRODUTOS | B165: =SUMIFS(Serviço!$T$6:$T$50000,Serviço!$A$6:$A$50000,Sumário!B$114,Serviço!$D$6:$D$50000,Sumário!$A165) -> 0 | C165: =SUMIFS(Serviço!$T$6:$T$50000,Serviço!$A$6:$A$50000,Sumário!C$114,Serviço!$D$6:$D$50000,Sumário!$A165) -> 0 | D165: =SUMIFS(Serviço!$T$6:$T$50000,Serviço!$A$6:$A$50000,Sumário!D$114,Serviço!$D$6:$D$50000,Sumário!$A165) -> 0 | E165: =SUMIFS(Serviço!$T$6:$T$50000,Serviço!$A$6:$A$50000,Sumário!E$114,Serviço!$D$6:$D$50000,Sumário!$A165) -> 0 | F165: =SUMIFS(Serviço!$T$6:$T$50000,Serviço!$A$6:$A$50000,Sumário!F$114,Serviço!$D$6:$D$50000,Sumário!$A165) -> 0 | G165: =SUMIFS(Serviço!$T$6:$T$50000,Serviço!$A$6:$A$50000,Sumário!G$114,Serviço!$D$6:$D$50000,Sumário!$A165) -> 0 | H165: =SUMIFS(Serviço!$T$6:$T$50000,Serviço!$A$6:$A$50000,Sumário!H$114,Serviço!$D$6:$D$50000,Sumário!$A165) -> 0 | I165: =SUMIFS(Serviço!$T$6:$T$50000,Serviço!$A$6:$A$50000,Sumário!I$114,Serviço!$D$6:$D$50000,Sumário!$A165) -> 0 | J165: =SUMIFS(Serviço!$T$6:$T$50000,Serviço!$A$6:$A$50000,Sumário!J$114,Serviço!$D$6:$D$50000,Sumário!$A165) -> 0
A166: VIGILANCIA OSTENSIVA/MONITORADA | B166: =SUMIFS(Serviço!$T$6:$T$50000,Serviço!$A$6:$A$50000,Sumário!B$114,Serviço!$D$6:$D$50000,Sumário!$A166) -> 0 | C166: =SUMIFS(Serviço!$T$6:$T$50000,Serviço!$A$6:$A$50000,Sumário!C$114,Serviço!$D$6:$D$50000,Sumário!$A166) -> 0 | D166: =SUMIFS(Serviço!$T$6:$T$50000,Serviço!$A$6:$A$50000,Sumário!D$114,Serviço!$D$6:$D$50000,Sumário!$A166) -> 0 | E166: =SUMIFS(Serviço!$T$6:$T$50000,Serviço!$A$6:$A$50000,Sumário!E$114,Serviço!$D$6:$D$50000,Sumário!$A166) -> 0 | F166: =SUMIFS(Serviço!$T$6:$T$50000,Serviço!$A$6:$A$50000,Sumário!F$114,Serviço!$D$6:$D$50000,Sumário!$A166) -> 0 | G166: =SUMIFS(Serviço!$T$6:$T$50000,Serviço!$A$6:$A$50000,Sumário!G$114,Serviço!$D$6:$D$50000,Sumário!$A166) -> 0 | H166: =SUMIFS(Serviço!$T$6:$T$50000,Serviço!$A$6:$A$50000,Sumário!H$114,Serviço!$D$6:$D$50000,Sumário!$A166) -> 0 | I166: =SUMIFS(Serviço!$T$6:$T$50000,Serviço!$A$6:$A$50000,Sumário!I$114,Serviço!$D$6:$D$50000,Sumário!$A166) -> 0 | J166: =SUMIFS(Serviço!$T$6:$T$50000,Serviço!$A$6:$A$50000,Sumário!J$114,Serviço!$D$6:$D$50000,Sumário!$A166) -> 0
A167: LIMPEZA E CONSERVACAO | B167: =SUMIFS(Serviço!$T$6:$T$50000,Serviço!$A$6:$A$50000,Sumário!B$114,Serviço!$D$6:$D$50000,Sumário!$A167) -> 10125 | C167: =SUMIFS(Serviço!$T$6:$T$50000,Serviço!$A$6:$A$50000,Sumário!C$114,Serviço!$D$6:$D$50000,Sumário!$A167) -> 0 | D167: =SUMIFS(Serviço!$T$6:$T$50000,Serviço!$A$6:$A$50000,Sumário!D$114,Serviço!$D$6:$D$50000,Sumário!$A167) -> 10125 | E167: =SUMIFS(Serviço!$T$6:$T$50000,Serviço!$A$6:$A$50000,Sumário!E$114,Serviço!$D$6:$D$50000,Sumário!$A167) -> 0 | F167: =SUMIFS(Serviço!$T$6:$T$50000,Serviço!$A$6:$A$50000,Sumário!F$114,Serviço!$D$6:$D$50000,Sumário!$A167) -> 0 | G167: =SUMIFS(Serviço!$T$6:$T$50000,Serviço!$A$6:$A$50000,Sumário!G$114,Serviço!$D$6:$D$50000,Sumário!$A167) -> 3100 | H167: =SUMIFS(Serviço!$T$6:$T$50000,Serviço!$A$6:$A$50000,Sumário!H$114,Serviço!$D$6:$D$50000,Sumário!$A167) -> 0 | I167: =SUMIFS(Serviço!$T$6:$T$50000,Serviço!$A$6:$A$50000,Sumário!I$114,Serviço!$D$6:$D$50000,Sumário!$A167) -> 0 | J167: =SUMIFS(Serviço!$T$6:$T$50000,Serviço!$A$6:$A$50000,Sumário!J$114,Serviço!$D$6:$D$50000,Sumário!$A167) -> 0
A168: SERV. DE APOIO ADMIN., TECNICO E OPERACIONAL | B168: =SUMIFS(Serviço!$T$6:$T$50000,Serviço!$A$6:$A$50000,Sumário!B$114,Serviço!$D$6:$D$50000,Sumário!$A168) -> 0 | C168: =SUMIFS(Serviço!$T$6:$T$50000,Serviço!$A$6:$A$50000,Sumário!C$114,Serviço!$D$6:$D$50000,Sumário!$A168) -> 0 | D168: =SUMIFS(Serviço!$T$6:$T$50000,Serviço!$A$6:$A$50000,Sumário!D$114,Serviço!$D$6:$D$50000,Sumário!$A168) -> 0 | E168: =SUMIFS(Serviço!$T$6:$T$50000,Serviço!$A$6:$A$50000,Sumário!E$114,Serviço!$D$6:$D$50000,Sumário!$A168) -> 0 | F168: =SUMIFS(Serviço!$T$6:$T$50000,Serviço!$A$6:$A$50000,Sumário!F$114,Serviço!$D$6:$D$50000,Sumário!$A168) -> 0 | G168: =SUMIFS(Serviço!$T$6:$T$50000,Serviço!$A$6:$A$50000,Sumário!G$114,Serviço!$D$6:$D$50000,Sumário!$A168) -> 0 | H168: =SUMIFS(Serviço!$T$6:$T$50000,Serviço!$A$6:$A$50000,Sumário!H$114,Serviço!$D$6:$D$50000,Sumário!$A168) -> 0 | I168: =SUMIFS(Serviço!$T$6:$T$50000,Serviço!$A$6:$A$50000,Sumário!I$114,Serviço!$D$6:$D$50000,Sumário!$A168) -> 0 | J168: =SUMIFS(Serviço!$T$6:$T$50000,Serviço!$A$6:$A$50000,Sumário!J$114,Serviço!$D$6:$D$50000,Sumário!$A168) -> 0
A169: HOSPEDAGENS | B169: =SUMIFS(Serviço!$T$6:$T$50000,Serviço!$A$6:$A$50000,Sumário!B$114,Serviço!$D$6:$D$50000,Sumário!$A169) -> 0 | C169: =SUMIFS(Serviço!$T$6:$T$50000,Serviço!$A$6:$A$50000,Sumário!C$114,Serviço!$D$6:$D$50000,Sumário!$A169) -> 0 | D169: =SUMIFS(Serviço!$T$6:$T$50000,Serviço!$A$6:$A$50000,Sumário!D$114,Serviço!$D$6:$D$50000,Sumário!$A169) -> 0 | E169: =SUMIFS(Serviço!$T$6:$T$50000,Serviço!$A$6:$A$50000,Sumário!E$114,Serviço!$D$6:$D$50000,Sumário!$A169) -> 0 | F169: =SUMIFS(Serviço!$T$6:$T$50000,Serviço!$A$6:$A$50000,Sumário!F$114,Serviço!$D$6:$D$50000,Sumário!$A169) -> 0 | G169: =SUMIFS(Serviço!$T$6:$T$50000,Serviço!$A$6:$A$50000,Sumário!G$114,Serviço!$D$6:$D$50000,Sumário!$A169) -> 0 | H169: =SUMIFS(Serviço!$T$6:$T$50000,Serviço!$A$6:$A$50000,Sumário!H$114,Serviço!$D$6:$D$50000,Sumário!$A169) -> 0 | I169: =SUMIFS(Serviço!$T$6:$T$50000,Serviço!$A$6:$A$50000,Sumário!I$114,Serviço!$D$6:$D$50000,Sumário!$A169) -> 0 | J169: =SUMIFS(Serviço!$T$6:$T$50000,Serviço!$A$6:$A$50000,Sumário!J$114,Serviço!$D$6:$D$50000,Sumário!$A169) -> 0
A170: SERVICOS DE CONTROLE AMBIENTAL | B170: =SUMIFS(Serviço!$T$6:$T$50000,Serviço!$A$6:$A$50000,Sumário!B$114,Serviço!$D$6:$D$50000,Sumário!$A170) -> 0 | C170: =SUMIFS(Serviço!$T$6:$T$50000,Serviço!$A$6:$A$50000,Sumário!C$114,Serviço!$D$6:$D$50000,Sumário!$A170) -> 0 | D170: =SUMIFS(Serviço!$T$6:$T$50000,Serviço!$A$6:$A$50000,Sumário!D$114,Serviço!$D$6:$D$50000,Sumário!$A170) -> 0 | E170: =SUMIFS(Serviço!$T$6:$T$50000,Serviço!$A$6:$A$50000,Sumário!E$114,Serviço!$D$6:$D$50000,Sumário!$A170) -> 0 | F170: =SUMIFS(Serviço!$T$6:$T$50000,Serviço!$A$6:$A$50000,Sumário!F$114,Serviço!$D$6:$D$50000,Sumário!$A170) -> 0 | G170: =SUMIFS(Serviço!$T$6:$T$50000,Serviço!$A$6:$A$50000,Sumário!G$114,Serviço!$D$6:$D$50000,Sumário!$A170) -> 0 | H170: =SUMIFS(Serviço!$T$6:$T$50000,Serviço!$A$6:$A$50000,Sumário!H$114,Serviço!$D$6:$D$50000,Sumário!$A170) -> 0 | I170: =SUMIFS(Serviço!$T$6:$T$50000,Serviço!$A$6:$A$50000,Sumário!I$114,Serviço!$D$6:$D$50000,Sumário!$A170) -> 0 | J170: =SUMIFS(Serviço!$T$6:$T$50000,Serviço!$A$6:$A$50000,Sumário!J$114,Serviço!$D$6:$D$50000,Sumário!$A170) -> 0
A171: SERVICOS DE COPIAS E REPRODUCAO DE DOCUMENTOS | B171: =SUMIFS(Serviço!$T$6:$T$50000,Serviço!$A$6:$A$50000,Sumário!B$114,Serviço!$D$6:$D$50000,Sumário!$A171) -> 0 | C171: =SUMIFS(Serviço!$T$6:$T$50000,Serviço!$A$6:$A$50000,Sumário!C$114,Serviço!$D$6:$D$50000,Sumário!$A171) -> 0 | D171: =SUMIFS(Serviço!$T$6:$T$50000,Serviço!$A$6:$A$50000,Sumário!D$114,Serviço!$D$6:$D$50000,Sumário!$A171) -> 0 | E171: =SUMIFS(Serviço!$T$6:$T$50000,Serviço!$A$6:$A$50000,Sumário!E$114,Serviço!$D$6:$D$50000,Sumário!$A171) -> 0 | F171: =SUMIFS(Serviço!$T$6:$T$50000,Serviço!$A$6:$A$50000,Sumário!F$114,Serviço!$D$6:$D$50000,Sumário!$A171) -> 0 | G171: =SUMIFS(Serviço!$T$6:$T$50000,Serviço!$A$6:$A$50000,Sumário!G$114,Serviço!$D$6:$D$50000,Sumário!$A171) -> 0 | H171: =SUMIFS(Serviço!$T$6:$T$50000,Serviço!$A$6:$A$50000,Sumário!H$114,Serviço!$D$6:$D$50000,Sumário!$A171) -> 0 | I171: =SUMIFS(Serviço!$T$6:$T$50000,Serviço!$A$6:$A$50000,Sumário!I$114,Serviço!$D$6:$D$50000,Sumário!$A171) -> 0 | J171: =SUMIFS(Serviço!$T$6:$T$50000,Serviço!$A$6:$A$50000,Sumário!J$114,Serviço!$D$6:$D$50000,Sumário!$A171) -> 0
A172: SERVICOS EM ITENS REPARAVEIS DE AVIACAO | B172: =SUMIFS(Serviço!$T$6:$T$50000,Serviço!$A$6:$A$50000,Sumário!B$114,Serviço!$D$6:$D$50000,Sumário!$A172) -> 0 | C172: =SUMIFS(Serviço!$T$6:$T$50000,Serviço!$A$6:$A$50000,Sumário!C$114,Serviço!$D$6:$D$50000,Sumário!$A172) -> 0 | D172: =SUMIFS(Serviço!$T$6:$T$50000,Serviço!$A$6:$A$50000,Sumário!D$114,Serviço!$D$6:$D$50000,Sumário!$A172) -> 0 | E172: =SUMIFS(Serviço!$T$6:$T$50000,Serviço!$A$6:$A$50000,Sumário!E$114,Serviço!$D$6:$D$50000,Sumário!$A172) -> 0 | F172: =SUMIFS(Serviço!$T$6:$T$50000,Serviço!$A$6:$A$50000,Sumário!F$114,Serviço!$D$6:$D$50000,Sumário!$A172) -> 0 | G172: =SUMIFS(Serviço!$T$6:$T$50000,Serviço!$A$6:$A$50000,Sumário!G$114,Serviço!$D$6:$D$50000,Sumário!$A172) -> 0 | H172: =SUMIFS(Serviço!$T$6:$T$50000,Serviço!$A$6:$A$50000,Sumário!H$114,Serviço!$D$6:$D$50000,Sumário!$A172) -> 0 | I172: =SUMIFS(Serviço!$T$6:$T$50000,Serviço!$A$6:$A$50000,Sumário!I$114,Serviço!$D$6:$D$50000,Sumário!$A172) -> 0 | J172: =SUMIFS(Serviço!$T$6:$T$50000,Serviço!$A$6:$A$50000,Sumário!J$114,Serviço!$D$6:$D$50000,Sumário!$A172) -> 0
A173: PATROCINIOS | B173: =SUMIFS(Serviço!$T$6:$T$50000,Serviço!$A$6:$A$50000,Sumário!B$114,Serviço!$D$6:$D$50000,Sumário!$A173) -> 0 | C173: =SUMIFS(Serviço!$T$6:$T$50000,Serviço!$A$6:$A$50000,Sumário!C$114,Serviço!$D$6:$D$50000,Sumário!$A173) -> 0 | D173: =SUMIFS(Serviço!$T$6:$T$50000,Serviço!$A$6:$A$50000,Sumário!D$114,Serviço!$D$6:$D$50000,Sumário!$A173) -> 0 | E173: =SUMIFS(Serviço!$T$6:$T$50000,Serviço!$A$6:$A$50000,Sumário!E$114,Serviço!$D$6:$D$50000,Sumário!$A173) -> 0 | F173: =SUMIFS(Serviço!$T$6:$T$50000,Serviço!$A$6:$A$50000,Sumário!F$114,Serviço!$D$6:$D$50000,Sumário!$A173) -> 0 | G173: =SUMIFS(Serviço!$T$6:$T$50000,Serviço!$A$6:$A$50000,Sumário!G$114,Serviço!$D$6:$D$50000,Sumário!$A173) -> 0 | H173: =SUMIFS(Serviço!$T$6:$T$50000,Serviço!$A$6:$A$50000,Sumário!H$114,Serviço!$D$6:$D$50000,Sumário!$A173) -> 0 | I173: =SUMIFS(Serviço!$T$6:$T$50000,Serviço!$A$6:$A$50000,Sumário!I$114,Serviço!$D$6:$D$50000,Sumário!$A173) -> 0 | J173: =SUMIFS(Serviço!$T$6:$T$50000,Serviço!$A$6:$A$50000,Sumário!J$114,Serviço!$D$6:$D$50000,Sumário!$A173) -> 0
A174: PROMOCAO | B174: =SUMIFS(Serviço!$T$6:$T$50000,Serviço!$A$6:$A$50000,Sumário!B$114,Serviço!$D$6:$D$50000,Sumário!$A174) -> 0 | C174: =SUMIFS(Serviço!$T$6:$T$50000,Serviço!$A$6:$A$50000,Sumário!C$114,Serviço!$D$6:$D$50000,Sumário!$A174) -> 0 | D174: =SUMIFS(Serviço!$T$6:$T$50000,Serviço!$A$6:$A$50000,Sumário!D$114,Serviço!$D$6:$D$50000,Sumário!$A174) -> 0 | E174: =SUMIFS(Serviço!$T$6:$T$50000,Serviço!$A$6:$A$50000,Sumário!E$114,Serviço!$D$6:$D$50000,Sumário!$A174) -> 0 | F174: =SUMIFS(Serviço!$T$6:$T$50000,Serviço!$A$6:$A$50000,Sumário!F$114,Serviço!$D$6:$D$50000,Sumário!$A174) -> 0 | G174: =SUMIFS(Serviço!$T$6:$T$50000,Serviço!$A$6:$A$50000,Sumário!G$114,Serviço!$D$6:$D$50000,Sumário!$A174) -> 0 | H174: =SUMIFS(Serviço!$T$6:$T$50000,Serviço!$A$6:$A$50000,Sumário!H$114,Serviço!$D$6:$D$50000,Sumário!$A174) -> 0 | I174: =SUMIFS(Serviço!$T$6:$T$50000,Serviço!$A$6:$A$50000,Sumário!I$114,Serviço!$D$6:$D$50000,Sumário!$A174) -> 0 | J174: =SUMIFS(Serviço!$T$6:$T$50000,Serviço!$A$6:$A$50000,Sumário!J$114,Serviço!$D$6:$D$50000,Sumário!$A174) -> 0
A175: SERVICOS DE PUBLICIDADE LEGAL | B175: =SUMIFS(Serviço!$T$6:$T$50000,Serviço!$A$6:$A$50000,Sumário!B$114,Serviço!$D$6:$D$50000,Sumário!$A175) -> 0 | C175: =SUMIFS(Serviço!$T$6:$T$50000,Serviço!$A$6:$A$50000,Sumário!C$114,Serviço!$D$6:$D$50000,Sumário!$A175) -> 0 | D175: =SUMIFS(Serviço!$T$6:$T$50000,Serviço!$A$6:$A$50000,Sumário!D$114,Serviço!$D$6:$D$50000,Sumário!$A175) -> 0 | E175: =SUMIFS(Serviço!$T$6:$T$50000,Serviço!$A$6:$A$50000,Sumário!E$114,Serviço!$D$6:$D$50000,Sumário!$A175) -> 0 | F175: =SUMIFS(Serviço!$T$6:$T$50000,Serviço!$A$6:$A$50000,Sumário!F$114,Serviço!$D$6:$D$50000,Sumário!$A175) -> 0 | G175: =SUMIFS(Serviço!$T$6:$T$50000,Serviço!$A$6:$A$50000,Sumário!G$114,Serviço!$D$6:$D$50000,Sumário!$A175) -> 0 | H175: =SUMIFS(Serviço!$T$6:$T$50000,Serviço!$A$6:$A$50000,Sumário!H$114,Serviço!$D$6:$D$50000,Sumário!$A175) -> 0 | I175: =SUMIFS(Serviço!$T$6:$T$50000,Serviço!$A$6:$A$50000,Sumário!I$114,Serviço!$D$6:$D$50000,Sumário!$A175) -> 0 | J175: =SUMIFS(Serviço!$T$6:$T$50000,Serviço!$A$6:$A$50000,Sumário!J$114,Serviço!$D$6:$D$50000,Sumário!$A175) -> 0
A176: SERVICOS DE PUBLICIDADE MERCADOLOGICA | B176: =SUMIFS(Serviço!$T$6:$T$50000,Serviço!$A$6:$A$50000,Sumário!B$114,Serviço!$D$6:$D$50000,Sumário!$A176) -> 0 | C176: =SUMIFS(Serviço!$T$6:$T$50000,Serviço!$A$6:$A$50000,Sumário!C$114,Serviço!$D$6:$D$50000,Sumário!$A176) -> 0 | D176: =SUMIFS(Serviço!$T$6:$T$50000,Serviço!$A$6:$A$50000,Sumário!D$114,Serviço!$D$6:$D$50000,Sumário!$A176) -> 0 | E176: =SUMIFS(Serviço!$T$6:$T$50000,Serviço!$A$6:$A$50000,Sumário!E$114,Serviço!$D$6:$D$50000,Sumário!$A176) -> 0 | F176: =SUMIFS(Serviço!$T$6:$T$50000,Serviço!$A$6:$A$50000,Sumário!F$114,Serviço!$D$6:$D$50000,Sumário!$A176) -> 0 | G176: =SUMIFS(Serviço!$T$6:$T$50000,Serviço!$A$6:$A$50000,Sumário!G$114,Serviço!$D$6:$D$50000,Sumário!$A176) -> 0 | H176: =SUMIFS(Serviço!$T$6:$T$50000,Serviço!$A$6:$A$50000,Sumário!H$114,Serviço!$D$6:$D$50000,Sumário!$A176) -> 0 | I176: =SUMIFS(Serviço!$T$6:$T$50000,Serviço!$A$6:$A$50000,Sumário!I$114,Serviço!$D$6:$D$50000,Sumário!$A176) -> 0 | J176: =SUMIFS(Serviço!$T$6:$T$50000,Serviço!$A$6:$A$50000,Sumário!J$114,Serviço!$D$6:$D$50000,Sumário!$A176) -> 0
A177: SERVICOS DE PUBLICIDADE INSTITUCIONAL | B177: =SUMIFS(Serviço!$T$6:$T$50000,Serviço!$A$6:$A$50000,Sumário!B$114,Serviço!$D$6:$D$50000,Sumário!$A177) -> 0 | C177: =SUMIFS(Serviço!$T$6:$T$50000,Serviço!$A$6:$A$50000,Sumário!C$114,Serviço!$D$6:$D$50000,Sumário!$A177) -> 0 | D177: =SUMIFS(Serviço!$T$6:$T$50000,Serviço!$A$6:$A$50000,Sumário!D$114,Serviço!$D$6:$D$50000,Sumário!$A177) -> 0 | E177: =SUMIFS(Serviço!$T$6:$T$50000,Serviço!$A$6:$A$50000,Sumário!E$114,Serviço!$D$6:$D$50000,Sumário!$A177) -> 0 | F177: =SUMIFS(Serviço!$T$6:$T$50000,Serviço!$A$6:$A$50000,Sumário!F$114,Serviço!$D$6:$D$50000,Sumário!$A177) -> 0 | G177: =SUMIFS(Serviço!$T$6:$T$50000,Serviço!$A$6:$A$50000,Sumário!G$114,Serviço!$D$6:$D$50000,Sumário!$A177) -> 0 | H177: =SUMIFS(Serviço!$T$6:$T$50000,Serviço!$A$6:$A$50000,Sumário!H$114,Serviço!$D$6:$D$50000,Sumário!$A177) -> 0 | I177: =SUMIFS(Serviço!$T$6:$T$50000,Serviço!$A$6:$A$50000,Sumário!I$114,Serviço!$D$6:$D$50000,Sumário!$A177) -> 0 | J177: =SUMIFS(Serviço!$T$6:$T$50000,Serviço!$A$6:$A$50000,Sumário!J$114,Serviço!$D$6:$D$50000,Sumário!$A177) -> 0
A178: SERVICOS DE PUBLICIDADE DE UTILIDADE PUBLICA | B178: =SUMIFS(Serviço!$T$6:$T$50000,Serviço!$A$6:$A$50000,Sumário!B$114,Serviço!$D$6:$D$50000,Sumário!$A178) -> 0 | C178: =SUMIFS(Serviço!$T$6:$T$50000,Serviço!$A$6:$A$50000,Sumário!C$114,Serviço!$D$6:$D$50000,Sumário!$A178) -> 0 | D178: =SUMIFS(Serviço!$T$6:$T$50000,Serviço!$A$6:$A$50000,Sumário!D$114,Serviço!$D$6:$D$50000,Sumário!$A178) -> 0 | E178: =SUMIFS(Serviço!$T$6:$T$50000,Serviço!$A$6:$A$50000,Sumário!E$114,Serviço!$D$6:$D$50000,Sumário!$A178) -> 0 | F178: =SUMIFS(Serviço!$T$6:$T$50000,Serviço!$A$6:$A$50000,Sumário!F$114,Serviço!$D$6:$D$50000,Sumário!$A178) -> 0 | G178: =SUMIFS(Serviço!$T$6:$T$50000,Serviço!$A$6:$A$50000,Sumário!G$114,Serviço!$D$6:$D$50000,Sumário!$A178) -> 0 | H178: =SUMIFS(Serviço!$T$6:$T$50000,Serviço!$A$6:$A$50000,Sumário!H$114,Serviço!$D$6:$D$50000,Sumário!$A178) -> 0 | I178: =SUMIFS(Serviço!$T$6:$T$50000,Serviço!$A$6:$A$50000,Sumário!I$114,Serviço!$D$6:$D$50000,Sumário!$A178) -> 0 | J178: =SUMIFS(Serviço!$T$6:$T$50000,Serviço!$A$6:$A$50000,Sumário!J$114,Serviço!$D$6:$D$50000,Sumário!$A178) -> 0
A179: AQUISICAO DE SOFTWARES DE APLICACAO. | B179: =SUMIFS(Serviço!$T$6:$T$50000,Serviço!$A$6:$A$50000,Sumário!B$114,Serviço!$D$6:$D$50000,Sumário!$A179) -> 25000 | C179: =SUMIFS(Serviço!$T$6:$T$50000,Serviço!$A$6:$A$50000,Sumário!C$114,Serviço!$D$6:$D$50000,Sumário!$A179) -> 0 | D179: =SUMIFS(Serviço!$T$6:$T$50000,Serviço!$A$6:$A$50000,Sumário!D$114,Serviço!$D$6:$D$50000,Sumário!$A179) -> 43500 | E179: =SUMIFS(Serviço!$T$6:$T$50000,Serviço!$A$6:$A$50000,Sumário!E$114,Serviço!$D$6:$D$50000,Sumário!$A179) -> 0 | F179: =SUMIFS(Serviço!$T$6:$T$50000,Serviço!$A$6:$A$50000,Sumário!F$114,Serviço!$D$6:$D$50000,Sumário!$A179) -> 25000 | G179: =SUMIFS(Serviço!$T$6:$T$50000,Serviço!$A$6:$A$50000,Sumário!G$114,Serviço!$D$6:$D$50000,Sumário!$A179) -> 0 | H179: =SUMIFS(Serviço!$T$6:$T$50000,Serviço!$A$6:$A$50000,Sumário!H$114,Serviço!$D$6:$D$50000,Sumário!$A179) -> 0 | I179: =SUMIFS(Serviço!$T$6:$T$50000,Serviço!$A$6:$A$50000,Sumário!I$114,Serviço!$D$6:$D$50000,Sumário!$A179) -> 0 | J179: =SUMIFS(Serviço!$T$6:$T$50000,Serviço!$A$6:$A$50000,Sumário!J$114,Serviço!$D$6:$D$50000,Sumário!$A179) -> 0
A180: MANUT.CONS.EQUIP. DE PROCESSAMENTO DE DADOS | B180: =SUMIFS(Serviço!$T$6:$T$50000,Serviço!$A$6:$A$50000,Sumário!B$114,Serviço!$D$6:$D$50000,Sumário!$A180) -> 0 | C180: =SUMIFS(Serviço!$T$6:$T$50000,Serviço!$A$6:$A$50000,Sumário!C$114,Serviço!$D$6:$D$50000,Sumário!$A180) -> 0 | D180: =SUMIFS(Serviço!$T$6:$T$50000,Serviço!$A$6:$A$50000,Sumário!D$114,Serviço!$D$6:$D$50000,Sumário!$A180) -> 10000 | E180: =SUMIFS(Serviço!$T$6:$T$50000,Serviço!$A$6:$A$50000,Sumário!E$114,Serviço!$D$6:$D$50000,Sumário!$A180) -> 0 | F180: =SUMIFS(Serviço!$T$6:$T$50000,Serviço!$A$6:$A$50000,Sumário!F$114,Serviço!$D$6:$D$50000,Sumário!$A180) -> 0 | G180: =SUMIFS(Serviço!$T$6:$T$50000,Serviço!$A$6:$A$50000,Sumário!G$114,Serviço!$D$6:$D$50000,Sumário!$A180) -> 0 | H180: =SUMIFS(Serviço!$T$6:$T$50000,Serviço!$A$6:$A$50000,Sumário!H$114,Serviço!$D$6:$D$50000,Sumário!$A180) -> 0 | I180: =SUMIFS(Serviço!$T$6:$T$50000,Serviço!$A$6:$A$50000,Sumário!I$114,Serviço!$D$6:$D$50000,Sumário!$A180) -> 0 | J180: =SUMIFS(Serviço!$T$6:$T$50000,Serviço!$A$6:$A$50000,Sumário!J$114,Serviço!$D$6:$D$50000,Sumário!$A180) -> 0
A181: DESPESAS DE TELEPROCESSAMENTO | B181: =SUMIFS(Serviço!$T$6:$T$50000,Serviço!$A$6:$A$50000,Sumário!B$114,Serviço!$D$6:$D$50000,Sumário!$A181) -> 0 | C181: =SUMIFS(Serviço!$T$6:$T$50000,Serviço!$A$6:$A$50000,Sumário!C$114,Serviço!$D$6:$D$50000,Sumário!$A181) -> 0 | D181: =SUMIFS(Serviço!$T$6:$T$50000,Serviço!$A$6:$A$50000,Sumário!D$114,Serviço!$D$6:$D$50000,Sumário!$A181) -> 0 | E181: =SUMIFS(Serviço!$T$6:$T$50000,Serviço!$A$6:$A$50000,Sumário!E$114,Serviço!$D$6:$D$50000,Sumário!$A181) -> 0 | F181: =SUMIFS(Serviço!$T$6:$T$50000,Serviço!$A$6:$A$50000,Sumário!F$114,Serviço!$D$6:$D$50000,Sumário!$A181) -> 0 | G181: =SUMIFS(Serviço!$T$6:$T$50000,Serviço!$A$6:$A$50000,Sumário!G$114,Serviço!$D$6:$D$50000,Sumário!$A181) -> 0 | H181: =SUMIFS(Serviço!$T$6:$T$50000,Serviço!$A$6:$A$50000,Sumário!H$114,Serviço!$D$6:$D$50000,Sumário!$A181) -> 0 | I181: =SUMIFS(Serviço!$T$6:$T$50000,Serviço!$A$6:$A$50000,Sumário!I$114,Serviço!$D$6:$D$50000,Sumário!$A181) -> 0 | J181: =SUMIFS(Serviço!$T$6:$T$50000,Serviço!$A$6:$A$50000,Sumário!J$114,Serviço!$D$6:$D$50000,Sumário!$A181) -> 0
A182: OUTROS SERVICOS DE TERCEIROS | B182: =SUMIFS(Serviço!$T$6:$T$50000,Serviço!$A$6:$A$50000,Sumário!B$114,Serviço!$D$6:$D$50000,Sumário!$A182) -> 0 | C182: =SUMIFS(Serviço!$T$6:$T$50000,Serviço!$A$6:$A$50000,Sumário!C$114,Serviço!$D$6:$D$50000,Sumário!$A182) -> 25000 | D182: =SUMIFS(Serviço!$T$6:$T$50000,Serviço!$A$6:$A$50000,Sumário!D$114,Serviço!$D$6:$D$50000,Sumário!$A182) -> 0 | E182: =SUMIFS(Serviço!$T$6:$T$50000,Serviço!$A$6:$A$50000,Sumário!E$114,Serviço!$D$6:$D$50000,Sumário!$A182) -> 0 | F182: =SUMIFS(Serviço!$T$6:$T$50000,Serviço!$A$6:$A$50000,Sumário!F$114,Serviço!$D$6:$D$50000,Sumário!$A182) -> 0 | G182: =SUMIFS(Serviço!$T$6:$T$50000,Serviço!$A$6:$A$50000,Sumário!G$114,Serviço!$D$6:$D$50000,Sumário!$A182) -> 0 | H182: =SUMIFS(Serviço!$T$6:$T$50000,Serviço!$A$6:$A$50000,Sumário!H$114,Serviço!$D$6:$D$50000,Sumário!$A182) -> 0 | I182: =SUMIFS(Serviço!$T$6:$T$50000,Serviço!$A$6:$A$50000,Sumário!I$114,Serviço!$D$6:$D$50000,Sumário!$A182) -> 0 | J182: =SUMIFS(Serviço!$T$6:$T$50000,Serviço!$A$6:$A$50000,Sumário!J$114,Serviço!$D$6:$D$50000,Sumário!$A182) -> 0

Sheet Permanente
A1: Selecione Para Atualizar:
A3: OM | B3: Prioridade | C3: Subitem da Natureza de Despesa | E3: Retirado do Catálogo de Materiais - Material Permanente
E4: Grupo de Materiais | G4: Classe de Material | I4: Descrição do Material | K4: Descrição Sucinta | L4: Dt Estimada Aquisição | M4: Prioridade Aquisição | N4: Unidade de Fornecimento | O4: Forma Contratação | P4: Custo | Q4: Objetivo Estratégico | R4: Qtde estimada | S4: Valor Unit | T4: Valor Total
C5: Código subitem | D5: Descrição Subitem | E5: Codigo Grupo | F5: Descrição Grupo | G5: Código Classe | H5: Descrição Classe | I5: CATMAT | J5: Descrição Geral
A6: BASE | B6: 11 | C6: 35 | D6: EQUIPAMENTOS DE PROCESSAMENTO DE DADOS | E6: 70 | F6: INFORMÁTICA - EQUIPAMENTOS, PEÇAS, ACESSÓRIOS E SUPRIMENTOSDE TIC | G6: 7050 | H6: EQUIPAMENTOS DE REDE DE TIC - LOCAL E REMOTA | I6: 14081 | J6: MODEM ROTEADOR | K6: Acces Point () | L6: 1º SEMESTRE 2021 | M6: Media | N6: UNIDADE | O6: INTEGRAL | P6: CUSTO FINALÍSTICO - MATERIAL | Q6: PDTI | R6: 1 | S6: 600 | T6: 600
A7: BASE | B7: 10 | C7: 35 | D7: EQUIPAMENTOS DE PROCESSAMENTO DE DADOS | E7: 70 | F7: INFORMÁTICA - EQUIPAMENTOS, PEÇAS, ACESSÓRIOS E SUPRIMENTOSDE TIC | G7: 7010 | H7: COMPUTADORES | I7: 05521 | J7: "COMPUTADOR" | K7: Computador Desktop | L7: 1º SEMESTRE 2021 | M7: Alta | N7: UNIDADE | O7: INTEGRAL | P7: CUSTO FINALÍSTICO - MATERIAL | Q7: PDTI | R7: 170 | S7: 4200 | T7: 714000
A8: BASE | B8: 9 | C8: 35 | D8: EQUIPAMENTOS DE PROCESSAMENTO DE DADOS | E8: 70 | F8: INFORMÁTICA - EQUIPAMENTOS, PEÇAS, ACESSÓRIOS E SUPRIMENTOSDE TIC | G8: 7060 | H8: PEÇAS E ACESSÓRIOS PARA COMPUTADORES | I8: 14829 | J8: MEMÓRIA PORTÁTIL MICROCOMPUTADOR | K8: HD Externo 2TB | L8: 1º SEMESTRE 2021 | M8: Baixa | N8: UNIDADE | O8: INTEGRAL | P8: CUSTO FINALÍSTICO - MATERIAL | Q8: PDTI | R8: 60 | S8: 300 | T8: 18000
A9: BASE | B9: 8 | C9: 35 | D9: EQUIPAMENTOS DE PROCESSAMENTO DE DADOS | E9: 70 | F9: INFORMÁTICA - EQUIPAMENTOS, PEÇAS, ACESSÓRIOS E SUPRIMENTOSDE TIC | G9: 7010 | H9: COMPUTADORES | I9: 08435 | J9: NOTEBOOK | K9: Notebook | L9: 1º SEMESTRE 2021 | M9: Alta | N9: UNIDADE | O9: INTEGRAL | P9: CUSTO FINALÍSTICO - MATERIAL | Q9: PDTI | R9: 60 | S9: 5200 | T9: 312000
A10: BASE | B10: 7 | C10: 35 | D10: EQUIPAMENTOS DE PROCESSAMENTO DE DADOS | E10: 61 | F10: CONDUTORES ELÉTRICOS E EQUIPAMENTOS PARA GERAÇÃO E DISTRI-BUIÇÃO DE ENERGIA | G10: 6110 | H10: EQUIPAMENTOS DE CONTROLE ELÉTRICO | I10: 07068 | J10: ESTABILIZADOR TENSÃO | K10: Nobreak 600VA | L10: 1º SEMESTRE 2021 | M10: Alta | N10: UNIDADE | O10: INTEGRAL | P10: CUSTO FINALÍSTICO - MATERIAL | Q10: PDTI | R10: 70 | S10: 300 | T10: 21000
A11: BASE | B11: 6 | C11: 35 | D11: EQUIPAMENTOS DE PROCESSAMENTO DE DADOS | E11: 61 | F11: CONDUTORES ELÉTRICOS E EQUIPAMENTOS PARA GERAÇÃO E DISTRI-BUIÇÃO DE ENERGIA | G11: 6110 | H11: EQUIPAMENTOS DE CONTROLE ELÉTRICO | I11: 07068 | J11: ESTABILIZADOR TENSÃO | K11: Nobreak 3KVA | L11: 1º SEMESTRE 2021 | M11: Media | N11: UNIDADE | O11: INTEGRAL | P11: CUSTO FINALÍSTICO - MATERIAL | Q11: PDTI | R11: 3 | S11: 3200 | T11: 9600
A12: BASE | B12: 5 | C12: 35 | D12: EQUIPAMENTOS DE PROCESSAMENTO DE DADOS | E12: 70 | F12: INFORMÁTICA - EQUIPAMENTOS, PEÇAS, ACESSÓRIOS E SUPRIMENTOSDE TIC | G12: 7050 | H12: EQUIPAMENTOS DE REDE DE TIC - LOCAL E REMOTA | I12: 05522 | J12: SWITCH | K12: Switch 48 Portas | L12: 1º SEMESTRE 2021 | M12: Alta | N12: UNIDADE | O12: INTEGRAL | P12: CUSTO FINALÍSTICO - MATERIAL | Q12: PDTI | R12: 10 | S12: 7000 | T12: 70000
A13: BASE | B13: 4 | C13: 35 | D13: EQUIPAMENTOS DE PROCESSAMENTO DE DADOS | E13: 70 | F13: INFORMÁTICA - EQUIPAMENTOS, PEÇAS, ACESSÓRIOS E SUPRIMENTOSDE TIC | G13: 7050 | H13: EQUIPAMENTOS DE REDE DE TIC - LOCAL E REMOTA | I13: 05522 | J13: SWITCH | K13: Switch 24 Portas | L13: 1º SEMESTRE 2021 | M13: Alta | N13: UNIDADE | O13: INTEGRAL | P13: CUSTO FINALÍSTICO - MATERIAL | Q13: PDTI | R13: 6 | S13: 4000 | T13: 24000
A14: BASE | B14: 3 | C14: 35 | D14: EQUIPAMENTOS DE PROCESSAMENTO DE DADOS | E14: 70 | F14: INFORMÁTICA - EQUIPAMENTOS, PEÇAS, ACESSÓRIOS E SUPRIMENTOSDE TIC | G14: 7050 | H14: EQUIPAMENTOS DE REDE DE TIC - LOCAL E REMOTA | I14: 05522 | J14: SWITCH | K14: Switch 8 portas | L14: 1º SEMESTRE 2021 | M14: Alta | N14: UNIDADE | O14: INTEGRAL | P14: CUSTO FINALÍSTICO - MATERIAL | Q14: PDTI | R14: 15 | S14: 300 | T14: 4500
A15: BASE | B15: 1 | C15: 35 | D15: EQUIPAMENTOS DE PROCESSAMENTO DE DADOS | E15: 70 | F15: INFORMÁTICA - EQUIPAMENTOS, PEÇAS, ACESSÓRIOS E SUPRIMENTOSDE TIC | G15: 7010 | H15: COMPUTADORES | I15: 12050 | J15: "SERVIDOR DE REDE" | K15: Computador Servidor de Rede | L15: 1º SEMESTRE 2021 | M15: Alta | N15: UNIDADE | O15: INTEGRAL | P15: CUSTO FINALÍSTICO - MATERIAL | Q15: PDTI | R15: 2 | S15: 40000 | T15: 80000
A16: BASE | B16: 2 | C16: 35 | D16: EQUIPAMENTOS DE PROCESSAMENTO DE DADOS | E16: 70 | F16: INFORMÁTICA - EQUIPAMENTOS, PEÇAS, ACESSÓRIOS E SUPRIMENTOSDE TIC | G16: 7010 | H16: COMPUTADORES | I16: 14811 | J16: "SERVIDOR ARQUIVO" | K16: Storage SAN | L16: 1º SEMESTRE 2021 | M16: Alta | N16: UNIDADE | O16: INTEGRAL | P16: CUSTO FINALÍSTICO - MATERIAL | Q16: PDTI | R16: 1 | S16: 120000 | T16: 120000
A17: BASE | B17: 1 | C17: 33 | D17: EQUIPAMENTOS PARA AUDIO, VIDEO E FOTO | E17: 67 | F17: EQUIPAMENTOS FOTOGRÁFICOS | G17: 6720 | H17: CÂMARAS FOTOGRÁFICAS | I17: 00993 | J17: MÁQUINA FOTOGRÁFICA | K17: Máquina fotografica | M17: Alta | N17: UNIDADE | O17: INTEGRAL | P17: CUSTO SUPORTE - MATERIAL | R17: 2 | S17: 3000 | T17: 6000
A18: BASE | B18: 2 | C18: 42 | D18: MOBILIARIO EM GERAL | E18: 46 | F18: EQUIPAMENTOS PARA PURIFICAÇÃO DE ÁGUAS E TRATAMENTO DE ESGO-TOS | G18: 4610 | H18: EQUIPAMENTOS PARA PURIFICAÇÃO DE ÁGUA | I18: 15695 | J18: APARELHO PURIFICADOR DE ÁGUA | K18: Aparelho com capacidade para 30 militares | M18: Alta | N18: UNIDADE | O18: INTEGRAL | P18: CUSTO SUPORTE - MATERIAL | R18: 1 | S18: 6000 | T18: 6000
A19: BASE | B19: 1 | C19: 42 | D19: MOBILIARIO EM GERAL | E19: 54 | F19: ESTRUTURAS E ANDAIMES PRÉ-FABRICADOS | G19: 5450 | H19: ESTRUTURAS PRÉ-FABRICADAS DIVERSAS | I19: 07203 | J19: ESTRUTURA METÁLICA | K19: ESTANTE 100% EM AÇO INDUSTRIAL CAPACIDADE 3.6 TON, 900KG POR PRATELEIRA, ESTRUTURA EM AÇO INDUSTRIAL, MONTAGEM SEM PORCAS OU PARAFUSOS, APENAS POR ENCAIXE, ARMAÇÕES EM AÇO E VIGAS REFORÇADAS, LARG 196CM, ALTURA 182CM, PROFUNDIDADE 60 CM ( 25 UNIDADES DE ESTANTE) | L19: 2022 | M19: Alta | N19: UNIDADE | O19: INTEGRAL | P19: CUSTO SUPORTE - MATERIAL | R19: 1 | S19: 65000 | T19: 65000
A20: BASE | B20: 2 | C20: 34 | D20: MAQUINAS, UTENSILIOS E EQUIPAMENTOS DIVERSOS | E20: 54 | F20: ESTRUTURAS E ANDAIMES PRÉ-FABRICADOS | G20: 5450 | H20: ESTRUTURAS PRÉ-FABRICADAS DIVERSAS | I20: 07203 | J20: ESTRUTURA METÁLICA | K20: PALETEIRA MANUAL RODA DUPLA, 25,5 TON 680MM. COMPRIMENTO GARFO, 1150MM | L20: 2022 | M20: Alta | N20: UNIDADE | O20: INTEGRAL | P20: CUSTO SUPORTE - MATERIAL | R20: 1 | S20: 1800 | T20: 1800
A21: BASE | B21: 3 | C21: 34 | D21: MAQUINAS, UTENSILIOS E EQUIPAMENTOS DIVERSOS | E21: 39 | F21: EQUIPAMENTOS PARA MANUSEIO DE MATERIAL | G21: 3910 | H21: TRANSPORTADORES | I21: 12924 | J21: TRANSPORTADOR MECANICO | K21: EMPILHADEIRA ELÉTRICA PATOLADA; AÇO CARBONO, RODA DE POLIURETANO TIPO TANDEM, CAPACIDADE 1.600KG ELEVAÇÃO MÁXIMA 1,6 M. POSIÇÃO OPERADOR EM PÉ ANDANDO. LARG. EXT. GARFO 680MM. LARG. EXT. PATOLA 680MM. | L21: 2022 | M21: Alta | N21: UNIDADE | O21: INTEGRAL | P21: CUSTO SUPORTE - MATERIAL | R21: 1 | S21: 36600 | T21: 36600
A22: BASE | B22: 1 | C22: 8 | D22: APAR.EQUIP.UTENS.MED.,ODONT,LABOR.HOSPIT. | E22: 65 | F22: EQUIPAMENTOS E ARTIGOS PARA USO MÉDICO, DENTÁRIO E VETERINÁ-RIO | G22: 6530 | H22: MOBILIÁRIO, EQUIPAMENTOS, UTENSÍLIOS E SUPRIMENTOS HOSPITALARES | I22: 02770 | J22: APARELHO MONITORAMENTO INTRA-OPERATÓRIO | K22: MONITOR MULTIPARÂMETRO, TIPO: PRÉ CONFIGURADO,MODULAR, PARÂMETROS: ECG, PNI, PI, SPO2, TEMP, RESP, DC, REGISTROS: MÍNIMO 8 CURVAS SIMULTÂNEAS, TIPO DE TELA: TELA LCD CERCA 15", ALTA RESOLUÇÃO, CARACTERÍSTICAS ADICIONAIS: CONECTIVIDADE DE REDE, COMPONENTES: ALARMES, ACESSÓRIOS: COMPLETO COM CABOS E SENSORES, USO: DE NEONATAL A ADULTO | L22: 2022 | M22: Alta | N22: UNIDADE | O22: INTEGRAL | P22: CUSTO FINALÍSTICO - MATERIAL | Q22: COMPOR NOSSA SALA DE URGÊNCIA E EMERGÊNCIA | R22: 1 | S22: 12000 | T22: 12000
A23: BASE | B23: 2 | C23: 8 | D23: APAR.EQUIP.UTENS.MED.,ODONT,LABOR.HOSPIT. | E23: 55 | F23: TÁBUAS, ESQUADRIAS, COMPENSADOS E FOLHEADOS DE MADEIRA | G23: 5520 | H23: ESQUADRIAS | I23: 16285 | J23: PORTA VAI-VEM | K23: PORTA VAI-VEM, MATERIAL: CHAPA DE POLIURETANO DE ALTA DENSIDADE, ACABAMENTO: REVESTIDA COM CHAPA DE ABS EM CADA FACE, TIPO DOBRADIÇA: DOBRADIÇAS EM AÇO INOXIDÁVEL, CARACTERÍSTICAS ADICIONAIS: AMORTECEDORES DE IMPACTO,VISOR EM ACRÍLICO,CAXETAS | L23: 2022 | M23: Alta | N23: UNIDADE | O23: INTEGRAL | P23: CUSTO FINALÍSTICO - MATERIAL | Q23: MANTER FECHADO O CORREDOR PARA SALA DE PRONTO SOCORRO | R23: 1 | S23: 1300 | T23: 1300
A24: BASE | B24: 3 | C24: 8 | D24: APAR.EQUIP.UTENS.MED.,ODONT,LABOR.HOSPIT. | E24: 55 | F24: TÁBUAS, ESQUADRIAS, COMPENSADOS E FOLHEADOS DE MADEIRA | G24: 5520 | H24: ESQUADRIAS | I24: 11071 | J24: PORTA | K24: PORTA, TIPO: DE CORRER DUAS FOLHAS, LARGURA DA PAREDE: 1,64 M, ESPESSURA: 10 MM, MATERIAL: VIDRO TEMPERADO, ALTURA: 2,10 M | L24: 2022 | M24: Alta | N24: UNIDADE | O24: INTEGRAL | P24: CUSTO FINALÍSTICO - MATERIAL | Q24: RESTRINGIR O ACESSO A SECRETARIA DA SEÇÃO DE SAÚDE | R24: 1 | S24: 1300 | T24: 1300
A25: BASE | B25: 4 | C25: 8 | D25: APAR.EQUIP.UTENS.MED.,ODONT,LABOR.HOSPIT. | E25: 65 | F25: EQUIPAMENTOS E ARTIGOS PARA USO MÉDICO, DENTÁRIO E VETERINÁ-RIO | G25: 6515 | H25: INSTRUMENTOS, EQUIPAMENTOS E SUPRIMENTOS MÉDICOS E CIRÚRGICOS | I25: 03681 | J25: MATERIAL HOSPITALAR | K25: TIPOIA ORTOPÉDICA CANADENSE | L25: 2022 | M25: Alta | N25: UNIDADE | O25: INTEGRAL | P25: CUSTO FINALÍSTICO - MATERIAL | Q25: PARA PROPOR IMOBILIZAÇÃO DE UM MEMBRO SUPERIOR | R25: 5 | S25: 32.49 | T25: 162.45
A26: BASE | B26: 5 | C26: 8 | D26: APAR.EQUIP.UTENS.MED.,ODONT,LABOR.HOSPIT. | E26: 65 | F26: EQUIPAMENTOS E ARTIGOS PARA USO MÉDICO, DENTÁRIO E VETERINÁ-RIO | G26: 6515 | H26: INSTRUMENTOS, EQUIPAMENTOS E SUPRIMENTOS MÉDICOS E CIRÚRGICOS | I26: 03681 | J26: MATERIAL HOSPITALAR | K26: MULETA CANADENSE ALUMÍNIO BRAÇADEIRA FIXA ADULTO UNIDADE ALO | L26: 2022 | M26: Alta | N26: UNIDADE | O26: INTEGRAL | P26: CUSTO FINALÍSTICO - MATERIAL | Q26: PARA AUXILIAR A EVITAR COLOCAR UM MEMBRO INFERIOR LESIONADO NO CHÃO | R26: 5 | S26: 37 | T26: 185
A27: BASE | B27: 6 | C27: 8 | D27: APAR.EQUIP.UTENS.MED.,ODONT,LABOR.HOSPIT. | E27: 65 | F27: EQUIPAMENTOS E ARTIGOS PARA USO MÉDICO, DENTÁRIO E VETERINÁ-RIO | G27: 6515 | H27: INSTRUMENTOS, EQUIPAMENTOS E SUPRIMENTOS MÉDICOS E CIRÚRGICOS | I27: 03681 | J27: MATERIAL HOSPITALAR | K27: APARELHO DE PRESSÃO COM BRAÇADEIRA | L27: 2022 | M27: Alta | N27: UNIDADE | O27: INTEGRAL | P27: CUSTO FINALÍSTICO - MATERIAL | Q27: PARA E MEDIÇÃO DE PRESSÃO ARTERIAL | R27: 6 | S27: 379.99 | T27: 2279.94
A28: BASE | B28: 7 | C28: 8 | D28: APAR.EQUIP.UTENS.MED.,ODONT,LABOR.HOSPIT. | E28: 65 | F28: EQUIPAMENTOS E ARTIGOS PARA USO MÉDICO, DENTÁRIO E VETERINÁ-RIO | G28: 6515 | H28: INSTRUMENTOS, EQUIPAMENTOS E SUPRIMENTOS MÉDICOS E CIRÚRGICOS | I28: 00379 | J28: ESTETOSCÓPIO | K28: ESTETOSCÓPIO | L28: 2022 | M28: Alta | N28: UNIDADE | O28: INTEGRAL | P28: CUSTO FINALÍSTICO - MATERIAL | Q28: PARA AUSCULTAR A RESPIRAÇÃO E BATIMENTOS DO CORAÇÃO | R28: 6 | S28: 30 | T28: 180
A29: BASE | B29: 8 | C29: 8 | D29: APAR.EQUIP.UTENS.MED.,ODONT,LABOR.HOSPIT. | E29: 65 | F29: EQUIPAMENTOS E ARTIGOS PARA USO MÉDICO, DENTÁRIO E VETERINÁ-RIO | G29: 6515 | H29: INSTRUMENTOS, EQUIPAMENTOS E SUPRIMENTOS MÉDICOS E CIRÚRGICOS | I29: 03681 | J29: MATERIAL HOSPITALAR | K29: MACA DIVÃ PARA AMBULATÓRIO – SL | L29: 2022 | M29: Alta | N29: UNIDADE | O29: INTEGRAL | P29: CUSTO FINALÍSTICO - MATERIAL | Q29: PARA OS ATENDIMENTOS MÉDICOS NOS CONSULTÓRIOS | R29: 2 | S29: 446 | T29: 892
A30: BASE | B30: 9 | C30: 8 | D30: APAR.EQUIP.UTENS.MED.,ODONT,LABOR.HOSPIT. | E30: 65 | F30: EQUIPAMENTOS E ARTIGOS PARA USO MÉDICO, DENTÁRIO E VETERINÁ-RIO | G30: 6515 | H30: INSTRUMENTOS, EQUIPAMENTOS E SUPRIMENTOS MÉDICOS E CIRÚRGICOS | I30: 03681 | J30: MATERIAL HOSPITALAR | K30: CAMA HOSPITALAR – 2 MOVIMENTOS ARKTUS | L30: 2022 | M30: Alta | N30: UNIDADE | O30: INTEGRAL | P30: CUSTO FINALÍSTICO - MATERIAL | Q30: PARA ATENDIMENTOS MÉDICOS NA SALA DE EMERGÊNCIA | R30: 1 | S30: 2400 | T30: 2400
A31: BASE | B31: 10 | C31: 8 | D31: APAR.EQUIP.UTENS.MED.,ODONT,LABOR.HOSPIT. | E31: 65 | F31: EQUIPAMENTOS E ARTIGOS PARA USO MÉDICO, DENTÁRIO E VETERINÁ-RIO | G31: 6515 | H31: INSTRUMENTOS, EQUIPAMENTOS E SUPRIMENTOS MÉDICOS E CIRÚRGICOS | I31: 03681 | J31: MATERIAL HOSPITALAR | K31: BOTA IMOBILIZADORA | L31: 2022 | M31: Alta | N31: UNIDADE | O31: INTEGRAL | P31: CUSTO FINALÍSTICO - MATERIAL | Q31: PARA IMOBILIZAÇÃO DE TORNOZELO | R31: 4 | S31: 206 | T31: 824
A32: BASE | B32: 1 | C32: 34 | D32: MAQUINAS, UTENSILIOS E EQUIPAMENTOS DIVERSOS | E32: 51 | F32: FERRAMENTAS MANUAIS | G32: 5130 | H32: FERRAMENTAS MANUAIS ACIONADAS POR FORÇA MOTRIZ | I32: 02304 | J32: ALICATE AMPERÍMETRO | K32: Alicate amperímetro digital CAT III 600V – 302+ | M32: Alta | N32: UNIDADE | O32: INTEGRAL | P32: CUSTO SUPORTE - MATERIAL | R32: 1 | S32: 229.9 | T32: 229.9
A33: BASE | B33: 2 | C33: 34 | D33: MAQUINAS, UTENSILIOS E EQUIPAMENTOS DIVERSOS | E33: 51 | F33: FERRAMENTAS MANUAIS | G33: 5130 | H33: FERRAMENTAS MANUAIS ACIONADAS POR FORÇA MOTRIZ | I33: 01355 | J33: CARRO TRANSPORTE | K33: Carrinho de Mão 70 Litros Macrotop Mc-70 com Chapa Reforçada | M33: Alta | N33: UNIDADE | O33: INTEGRAL | P33: CUSTO SUPORTE - MATERIAL | R33: 2 | S33: 546 | T33: 1092
A34: BASE | B34: 3 | C34: 34 | D34: MAQUINAS, UTENSILIOS E EQUIPAMENTOS DIVERSOS | E34: 51 | F34: FERRAMENTAS MANUAIS | G34: 5130 | H34: FERRAMENTAS MANUAIS ACIONADAS POR FORÇA MOTRIZ | I34: 01355 | J34: CARRO TRANSPORTE | K34: Carrinho plataforma assoalho de chapa 800 Kg com pneu maciço | M34: Alta | N34: UNIDADE | O34: INTEGRAL | P34: CUSTO SUPORTE - MATERIAL | R34: 2 | S34: 1332.77 | T34: 2665.54
A35: BASE | B35: 4 | C35: 34 | D35: MAQUINAS, UTENSILIOS E EQUIPAMENTOS DIVERSOS | E35: 51 | F35: FERRAMENTAS MANUAIS | G35: 5130 | H35: FERRAMENTAS MANUAIS ACIONADAS POR FORÇA MOTRIZ | I35: 14029 | J35: LAVADORA ALTA PRESSÃO | K35: Lavadora de Alta Pressão 1500 psi 2200w 220v | M35: Alta | N35: UNIDADE | O35: INTEGRAL | P35: CUSTO SUPORTE - MATERIAL | R35: 1 | S35: 429.9 | T35: 429.9
A36: BASE | B36: 5 | C36: 34 | D36: MAQUINAS, UTENSILIOS E EQUIPAMENTOS DIVERSOS | E36: 51 | F36: FERRAMENTAS MANUAIS | G36: 5130 | H36: FERRAMENTAS MANUAIS ACIONADAS POR FORÇA MOTRIZ | I36: 01054 | J36: LIXADEIRA | K36: Lixadeira Orbital 225W DWE6411 Dewalt – 220V | M36: Alta | N36: UNIDADE | O36: INTEGRAL | P36: CUSTO SUPORTE - MATERIAL | R36: 1 | S36: 399 | T36: 399
A37: BASE | B37: 6 | C37: 34 | D37: MAQUINAS, UTENSILIOS E EQUIPAMENTOS DIVERSOS | E37: 51 | F37: FERRAMENTAS MANUAIS | G37: 5130 | H37: FERRAMENTAS MANUAIS ACIONADAS POR FORÇA MOTRIZ | I37: 12038 | J37: SERRA ELETRICA | K37: Motosserra a Gasolina MS 250 STIHL 2.3Kw 45.4cc | M37: Alta | N37: UNIDADE | O37: INTEGRAL | P37: CUSTO SUPORTE - MATERIAL | R37: 1 | S37: 2683.53 | T37: 2683.53
A38: BASE | B38: 7 | C38: 34 | D38: MAQUINAS, UTENSILIOS E EQUIPAMENTOS DIVERSOS | E38: 51 | F38: FERRAMENTAS MANUAIS | G38: 5130 | H38: FERRAMENTAS MANUAIS ACIONADAS POR FORÇA MOTRIZ | I38: 07868 | J38: FURADEIRA | K38: Furadeira e Parafusadeira Bosch 400W GSR 7-14E 220V Cabo 4mts | M38: Media | N38: UNIDADE | O38: INTEGRAL | P38: CUSTO SUPORTE - MATERIAL | R38: 2 | S38: 330.9 | T38: 661.8
A39: BASE | B39: 8 | C39: 34 | D39: MAQUINAS, UTENSILIOS E EQUIPAMENTOS DIVERSOS | E39: 51 | F39: FERRAMENTAS MANUAIS | G39: 5130 | H39: FERRAMENTAS MANUAIS ACIONADAS POR FORÇA MOTRIZ | I39: 09391 | J39: MARTELETE ELETRICO | K39: Martelete Bosch Perfurador Rompedor GBH 2-24D 220v 2,7J | M39: Alta | N39: UNIDADE | O39: INTEGRAL | P39: CUSTO SUPORTE - MATERIAL | R39: 2 | S39: 949.3 | T39: 1898.6
A40: BASE | B40: 9 | C40: 34 | D40: MAQUINAS, UTENSILIOS E EQUIPAMENTOS DIVERSOS | E40: 51 | F40: FERRAMENTAS MANUAIS | G40: 5130 | H40: FERRAMENTAS MANUAIS ACIONADAS POR FORÇA MOTRIZ | I40: 12038 | J40: SERRA ELETRICA | K40: Serra circular para madeira 7.1/4" 1.800 watts – DWE575-B2 | M40: Alta | N40: UNIDADE | O40: INTEGRAL | P40: CUSTO SUPORTE - MATERIAL | R40: 1 | S40: 1176.68 | T40: 1176.68
A41: BASE | B41: 10 | C41: 34 | D41: MAQUINAS, UTENSILIOS E EQUIPAMENTOS DIVERSOS | E41: 51 | F41: FERRAMENTAS MANUAIS | G41: 5130 | H41: FERRAMENTAS MANUAIS ACIONADAS POR FORÇA MOTRIZ | I41: 12038 | J41: SERRA ELETRICA | K41: Equadrejadeira 3000mm com eixo inclinável 3 CV 2 polos. | M41: Alta | N41: Unidade | O41: INTEGRAL | P41: CUSTO SUPORTE - MATERIAL | R41: 1 | S41: 13822 | T41: 13822
A42: BASE | B42: 1 | C42: 99 | D42: OUTROS MATERIAIS PERMANENTES | E42: 49 | F42: EQUIPAMENTOS PARA OFICINAS DE MANUTENÇÃO E REPAROS | G42: 4940 | H42: EQUIPAMENTO ESPECIALIZADO DIVERSOS PARA OFICINA DE MANUTENÇÃO E REPARO | K42: CARRO COM FERRAMENTA ADVANTAGE COM 136 PEÇAS COM 5 GAVETAS E 1 PORTA. | M42: Baixa | N42: UNIDADE | O42: INTEGRAL | P42: CUSTO FINALÍSTICO - SERVIÇO | Q42: FERRAMENTA PARA MANUTENÇÃO DE VIATURAS | R42: 2 | S42: 5795.57 | T42: 11591.14
A43: BASE | B43: 2 | C43: 99 | D43: OUTROS MATERIAIS PERMANENTES | E43: 49 | F43: EQUIPAMENTOS PARA OFICINAS DE MANUTENÇÃO E REPAROS | G43: 4940 | H43: EQUIPAMENTO ESPECIALIZADO DIVERSOS PARA OFICINA DE MANUTENÇÃO E REPARO | K43: LAVADORA DE ALTA PRESSÃO 3.200W 220V | M43: Alta | N43: UNIDADE | O43: INTEGRAL | P43: CUSTO FINALÍSTICO - SERVIÇO | Q43: PARA LIMPEZA DOS GALPOES DE LONA DA Seç Mnt Trnp | R43: 2 | S43: 4279.06 | T43: 8558.12
A44: BASE | B44: 3 | C44: 99 | D44: OUTROS MATERIAIS PERMANENTES | E44: 49 | F44: EQUIPAMENTOS PARA OFICINAS DE MANUTENÇÃO E REPAROS | G44: 4940 | H44: EQUIPAMENTO ESPECIALIZADO DIVERSOS PARA OFICINA DE MANUTENÇÃO E REPARO | K44: ASPIRADOR DE PÓ E LÍQUIDO 2.000W CAPACIDADE DE 70L 220V | M44: Alta | N44: UNIDADE | O44: INTEGRAL | P44: CUSTO FINALÍSTICO - SERVIÇO | Q44: PARA LIMPEZA INTERNA DAS VIATURAS | R44: 2 | S44: 1965.55 | T44: 3931.1
A45: BASE | B45: 5 | C45: 40 | D45: MAQUINAS E EQUIPAMENTOS AGRIC. E RODOVIARIOS | E45: 37 | F45: MÁQUINAS E EQUIPAMENTOS AGRÍCOLAS | G45: 3750 | H45: IMPLEMENTOS E FERRAMENTAS DE JARDINAGEM | I45: 01367 | J45: SERRA PODA | K45: Moto poda de galhos a gasolina Modelo HT75 Marca stihl | L45: 2º SEMESTRE 2021 | M45: Alta | N45: UNIDADE | O45: PARCELADA | P45: CUSTO SUPORTE - MATERIAL | Q45: Equipamento para manutenção das áreas de vegetação e gramado do Forte do Pinheirinho que compreende uma área total de 1.530.210,28 m². | R45: 2 | S45: 3942 | T45: 7884
A46: BASE | B46: 1 | C46: 40 | D46: MAQUINAS E EQUIPAMENTOS AGRIC. E RODOVIARIOS | E46: 37 | F46: MÁQUINAS E EQUIPAMENTOS AGRÍCOLAS | G46: 3750 | H46: IMPLEMENTOS E FERRAMENTAS DE JARDINAGEM | I46: 01375 | J46: TRATOR JARDIM | K46: Micro trator diesel Modelo TDWT80E | L46: 2º SEMESTRE 2021 | M46: Alta | N46: UNIDADE | O46: INTEGRAL | P46: CUSTO SUPORTE - MATERIAL | Q46: Equipamento para manutenção das áreas de vegetação e gramado do Forte do Pinheirinho que compreende uma área total de 1.530.210,28 m². | R46: 1 | S46: 25602.15 | T46: 25602.15
A47: BASE | B47: 4 | C47: 40 | D47: MAQUINAS E EQUIPAMENTOS AGRIC. E RODOVIARIOS | E47: 37 | F47: MÁQUINAS E EQUIPAMENTOS AGRÍCOLAS | G47: 3750 | H47: IMPLEMENTOS E FERRAMENTAS DE JARDINAGEM | I47: 01354 | J47: APARADOR GRAMA | K47: Roçadeira lateral a gasolina Modelo F220 Marca stihl | L47: 2º SEMESTRE 2021 | M47: Alta | N47: UNIDADE | O47: INTEGRAL | P47: CUSTO SUPORTE - MATERIAL | Q47: Equipamento para manutenção das áreas de vegetação e gramado do Forte do Pinheirinho que compreende uma área total de 1.530.210,28 m². | R47: 3 | S47: 3218.07 | T47: 9654.21
A48: BASE | B48: 2 | C48: 40 | D48: MAQUINAS E EQUIPAMENTOS AGRIC. E RODOVIARIOS | E48: 37 | F48: MÁQUINAS E EQUIPAMENTOS AGRÍCOLAS | G48: 3750 | H48: IMPLEMENTOS E FERRAMENTAS DE JARDINAGEM | I48: 01375 | J48: TRATOR JARDIM | K48: Roçadeira frontal RF-900 P/ MICRO TRATOR | L48: 2º SEMESTRE 2021 | M48: Alta | N48: UNIDADE | O48: INTEGRAL | P48: CUSTO SUPORTE - MATERIAL | Q48: Equipamento para manutenção das áreas de vegetação e gramado do Forte do Pinheirinho que compreende uma área total de 1.530.210,28 m². | R48: 1 | S48: 6089.35 | T48: 6089.35
A49: BASE | B49: 6 | C49: 40 | D49: MAQUINAS E EQUIPAMENTOS AGRIC. E RODOVIARIOS | E49: 37 | F49: MÁQUINAS E EQUIPAMENTOS AGRÍCOLAS | G49: 3750 | H49: IMPLEMENTOS E FERRAMENTAS DE JARDINAGEM | I49: 07274 | J49: EXTRATOR GRAMA / ERVA | K49: Soprador costal BR600 Stihl | L49: 2º SEMESTRE 2021 | M49: Alta | N49: UNIDADE | O49: INTEGRAL | P49: CUSTO SUPORTE - MATERIAL | Q49: Equipamento para manutenção das áreas de vegetação e gramado do Forte do Pinheirinho que compreende uma área total de 1.530.210,28 m². | R49: 2 | S49: 3384.97 | T49: 6769.94
A50: BASE | B50: 3 | C50: 12 | D50: APARELHOS E UTENSILIOS DOMESTICOS | E50: 38 | F50: EQUIPAMENTOS PARA CONSTRUÇÃO, MINERAÇÃO, TERRAPLENAGEM E MA-NUTENÇÃO DE ESTRADAS | G50: 3830 | H50: ACESSÓRIOS PARA CAMINHÕES E TRATORES | I50: 04064 | J50: CAÇAMBA | K50: SL2100 Reboque Agricola | L50: 2º SEMESTRE 2021 | M50: Alta | N50: UNIDADE | O50: INTEGRAL | P50: CUSTO SUPORTE - MATERIAL | Q50: Equipamento para manutenção das áreas de vegetação e gramado do Forte do Pinheirinho que compreende uma área total de 1.530.210,28 m². | R50: 1 | S50: 6065.67 | T50: 6065.67
A51: BASE | B51: 7 | C51: 38 | D51: MAQ., FERRAMENTAS E UTENSILIOS DE OFICINA | E51: 37 | F51: MÁQUINAS E EQUIPAMENTOS AGRÍCOLAS | G51: 3750 | H51: IMPLEMENTOS E FERRAMENTAS DE JARDINAGEM | I51: 09347 | J51: MÁQUINA PODA | K51: Moto serra Modelo 651 | L51: 2º SEMESTRE 2021 | M51: Alta | N51: UNIDADE | O51: INTEGRAL | P51: CUSTO SUPORTE - MATERIAL | Q51: Equipamento para manutenção das áreas de vegetação e gramado do Forte do Pinheirinho que compreende uma área total de 1.530.210,28 m². | R51: 1 | S51: 4086.17 | T51: 4086.17
A52: BASE | B52: 8 | C52: 42 | D52: MOBILIARIO EM GERAL | E52: 37 | F52: MÁQUINAS E EQUIPAMENTOS AGRÍCOLAS | G52: 3750 | H52: IMPLEMENTOS E FERRAMENTAS DE JARDINAGEM | I52: 00596 | J52: ANCINHO JARDINAGEM | K52: Carrinho plataforma 800kg | L52: 2º SEMESTRE 2021 | M52: Alta | N52: UNIDADE | O52: INTEGRAL | P52: CUSTO SUPORTE - MATERIAL | Q52: Material empregado para transporte de material da reserva. | R52: 1 | S52: 2218.73 | T52: 2218.73
A53: BASE | B53: 9 | C53: 39 | D53: EQUIP. E UTENSILIOS HIDRAULICOS E ELETRICOS | E53: 45 | F53: EQUIPAMENTO DE INSTALAÇÕES HIDRÁULICAS E DE AQUECIMENTO | G53: 4510 | H53: DISPOSITIVOS E ACESSÓRIOS PARA INSTALAÇÕES HIDRÁULICAS | I53: 02046 | J53: ACIONAMENTO ELETRICO / MANUAL - TORNEIRA / CHUVEIR | K53: Lavadora de alta pressão Marca Toyama Modelo TPW2700A | L53: 2º SEMESTRE 2021 | M53: Alta | N53: UNIDADE | O53: INTEGRAL | P53: CUSTO SUPORTE - MATERIAL | Q53: Equipamento utilizado para lavagem de equipamentos de acampamento e para limpeza das áreas do Forte do Pinheirinho. | R53: 1 | S53: 3054.11 | T53: 3054.11
A54: BASE | B54: 10 | C54: 40 | D54: MAQUINAS E EQUIPAMENTOS AGRIC. E RODOVIARIOS | E54: 37 | F54: MÁQUINAS E EQUIPAMENTOS AGRÍCOLAS | G54: 3750 | H54: IMPLEMENTOS E FERRAMENTAS DE JARDINAGEM | I54: 01354 | J54: APARADOR GRAMA | K54: Aparador de grama traseiro | L54: 2º SEMESTRE 2021 | M54: Alta | N54: UNIDADE | O54: INTEGRAL | P54: CUSTO SUPORTE - MATERIAL | Q54: Equipamento utilizado para lavagem de equipamentos de acampamento e para limpeza das áreas do Forte do Pinheirinho. | R54: 1 | S54: 9326.7 | T54: 9326.7
A55: BASE | B55: 17 | C55: 12 | D55: APARELHOS E UTENSILIOS DOMESTICOS | E55: 99 | F55: DIVERSOS | G55: 9999 | H55: ITENS DIVERSOS | I55: 13531 | J55: POTE | K55: Botijão Térmico azul 18L | L55: 2º SEMESTRE 2021 | M55: Media | N55: UNIDADE | O55: PARCELADA | P55: CUSTO SUPORTE - MATERIAL | Q55: Material empregado em atividades de campo e operações. | R55: 5 | S55: 308.4 | T55: 1542
A56: BASE | B56: 18 | C56: 12 | D56: APARELHOS E UTENSILIOS DOMESTICOS | E56: 99 | F56: DIVERSOS | G56: 9999 | H56: ITENS DIVERSOS | I56: 13531 | J56: POTE | K56: Garrafão 12L | L56: 2º SEMESTRE 2021 | M56: Media | N56: UNIDADE | O56: PARCELADA | P56: CUSTO SUPORTE - MATERIAL | Q56: Material empregado em atividades de campo e operações. | R56: 5 | S56: 160.58 | T56: 802.9
A57: BASE | B57: 12 | C57: 34 | D57: MAQUINAS, UTENSILIOS E EQUIPAMENTOS DIVERSOS | E57: 99 | F57: DIVERSOS | G57: 9999 | H57: ITENS DIVERSOS | I57: 16898 | J57: PEÇAS / ACESSÓRIOS EQUIPAMENTOS ESPECIALIZADOS | K57: Empilhadeira hidráulica manual | L57: 2º SEMESTRE 2021 | M57: Alta | N57: UNIDADE | O57: INTEGRAL | P57: CUSTO SUPORTE - MATERIAL | Q57: Material empregado para transporte de material da reserva. | R57: 1 | S57: 4989.44 | T57: 4989.44
A58: BASE | B58: 14 | C58: 34 | D58: MAQUINAS, UTENSILIOS E EQUIPAMENTOS DIVERSOS | E58: 51 | F58: FERRAMENTAS MANUAIS | G58: 9999 | H58: ITENS DIVERSOS | I58: 16898 | J58: PEÇAS / ACESSÓRIOS EQUIPAMENTOS ESPECIALIZADOS | K58: Carrinho De Mão Tramontina Caçamba Reforçada 65L Extra Forte | L58: 2º SEMESTRE 2021 | M58: Media | N58: UNIDADE | O58: INTEGRAL | P58: CUSTO SUPORTE - MATERIAL | Q58: Material empregado em atividades de manutenção e campo. | R58: 2 | S58: 323.21 | T58: 646.42
A59: BASE | B59: 13 | C59: 12 | D59: APARELHOS E UTENSILIOS DOMESTICOS | E59: 99 | F59: DIVERSOS | G59: 9999 | H59: ITENS DIVERSOS | I59: 16898 | J59: PEÇAS / ACESSÓRIOS EQUIPAMENTOS ESPECIALIZADOS | K59: Escada 30 degraus | L59: 2º SEMESTRE 2021 | M59: Alta | N59: UNIDADE | O59: INTEGRAL | P59: CUSTO SUPORTE - MATERIAL | Q59: Material empregado em atividades de campo e operações. | R59: 2 | S59: 1262.15 | T59: 2524.3
A60: BASE | B60: 16 | C60: 34 | D60: MAQUINAS, UTENSILIOS E EQUIPAMENTOS DIVERSOS | E60: 99 | F60: DIVERSOS | G60: 9999 | H60: ITENS DIVERSOS | I60: 16898 | J60: PEÇAS / ACESSÓRIOS EQUIPAMENTOS ESPECIALIZADOS | K60: Ventilador de coluna | L60: 2º SEMESTRE 2021 | M60: Alta | N60: UNIDADE | O60: PARCELADA | P60: CUSTO SUPORTE - MATERIAL | Q60: Material empregado em atividades de campo e operações. | R60: 5 | S60: 300.13 | T60: 1500.65
A61: BASE | B61: 15 | C61: 12 | D61: APARELHOS E UTENSILIOS DOMESTICOS | E61: 99 | F61: DIVERSOS | G61: 9999 | H61: ITENS DIVERSOS | I61: 16898 | J61: PEÇAS / ACESSÓRIOS EQUIPAMENTOS ESPECIALIZADOS | K61: Escada 7 degraus | L61: 2º SEMESTRE 2021 | M61: Alta | N61: UNIDADE | O61: PARCELADA | P61: CUSTO SUPORTE - MATERIAL | Q61: Material empregado em atividades de manutenção e campo. | R61: 2 | S61: 231.66 | T61: 463.32
A62: 5RM | B62: 11 | C62: 35 | D62: EQUIPAMENTOS DE PROCESSAMENTO DE DADOS | E62: 70 | F62: INFORMÁTICA - EQUIPAMENTOS, PEÇAS, ACESSÓRIOS E SUPRIMENTOSDE TIC | G62: 7050 | H62: EQUIPAMENTOS DE REDE DE TIC - LOCAL E REMOTA | I62: 14081 | J62: MODEM ROTEADOR | K62: Acces Point () | L62: 1º SEMESTRE 2021 | M62: Media | N62: UNIDADE | O62: INTEGRAL | P62: CUSTO FINALÍSTICO - MATERIAL | Q62: PDTI | R62: 1 | S62: 600 | T62: 600
A63: 5RM | B63: 10 | C63: 35 | D63: EQUIPAMENTOS DE PROCESSAMENTO DE DADOS | E63: 70 | F63: INFORMÁTICA - EQUIPAMENTOS, PEÇAS, ACESSÓRIOS E SUPRIMENTOSDE TIC | G63: 7010 | H63: COMPUTADORES | I63: 05521 | J63: "COMPUTADOR" | K63: Computador Desktop | L63: 1º SEMESTRE 2021 | M63: Alta | N63: UNIDADE | O63: INTEGRAL | P63: CUSTO FINALÍSTICO - MATERIAL | Q63: PDTI | R63: 170 | S63: 4200 | T63: 714000
A64: 5RM | B64: 9 | C64: 35 | D64: EQUIPAMENTOS DE PROCESSAMENTO DE DADOS | E64: 70 | F64: INFORMÁTICA - EQUIPAMENTOS, PEÇAS, ACESSÓRIOS E SUPRIMENTOSDE TIC | G64: 7060 | H64: PEÇAS E ACESSÓRIOS PARA COMPUTADORES | I64: 14829 | J64: MEMÓRIA PORTÁTIL MICROCOMPUTADOR | K64: HD Externo 2TB | L64: 1º SEMESTRE 2021 | M64: Baixa | N64: UNIDADE | O64: INTEGRAL | P64: CUSTO FINALÍSTICO - MATERIAL | Q64: PDTI | R64: 60 | S64: 300 | T64: 18000
A65: 5RM | B65: 8 | C65: 35 | D65: EQUIPAMENTOS DE PROCESSAMENTO DE DADOS | E65: 70 | F65: INFORMÁTICA - EQUIPAMENTOS, PEÇAS, ACESSÓRIOS E SUPRIMENTOSDE TIC | G65: 7010 | H65: COMPUTADORES | I65: 08435 | J65: NOTEBOOK | K65: Notebook | L65: 1º SEMESTRE 2021 | M65: Alta | N65: UNIDADE | O65: INTEGRAL | P65: CUSTO FINALÍSTICO - MATERIAL | Q65: PDTI | R65: 60 | S65: 5200 | T65: 312000
A66: 5RM | B66: 7 | C66: 35 | D66: EQUIPAMENTOS DE PROCESSAMENTO DE DADOS | E66: 61 | F66: CONDUTORES ELÉTRICOS E EQUIPAMENTOS PARA GERAÇÃO E DISTRI-BUIÇÃO DE ENERGIA | G66: 6110 | H66: EQUIPAMENTOS DE CONTROLE ELÉTRICO | I66: 07068 | J66: ESTABILIZADOR TENSÃO | K66: Nobreak 600VA | L66: 1º SEMESTRE 2021 | M66: Alta | N66: UNIDADE | O66: INTEGRAL | P66: CUSTO FINALÍSTICO - MATERIAL | Q66: PDTI | R66: 70 | S66: 300 | T66: 21000
A67: 5RM | B67: 6 | C67: 35 | D67: EQUIPAMENTOS DE PROCESSAMENTO DE DADOS | E67: 61 | F67: CONDUTORES ELÉTRICOS E EQUIPAMENTOS PARA GERAÇÃO E DISTRI-BUIÇÃO DE ENERGIA | G67: 6110 | H67: EQUIPAMENTOS DE CONTROLE ELÉTRICO | I67: 07068 | J67: ESTABILIZADOR TENSÃO | K67: Nobreak 3KVA | L67: 1º SEMESTRE 2021 | M67: Media | N67: UNIDADE | O67: INTEGRAL | P67: CUSTO FINALÍSTICO - MATERIAL | Q67: PDTI | R67: 3 | S67: 3200 | T67: 9600
A68: 5RM | B68: 5 | C68: 35 | D68: EQUIPAMENTOS DE PROCESSAMENTO DE DADOS | E68: 70 | F68: INFORMÁTICA - EQUIPAMENTOS, PEÇAS, ACESSÓRIOS E SUPRIMENTOSDE TIC | G68: 7050 | H68: EQUIPAMENTOS DE REDE DE TIC - LOCAL E REMOTA | I68: 05522 | J68: SWITCH | K68: Switch 48 Portas | L68: 1º SEMESTRE 2021 | M68: Alta | N68: UNIDADE | O68: INTEGRAL | P68: CUSTO FINALÍSTICO - MATERIAL | Q68: PDTI | R68: 10 | S68: 7000 | T68: 70000
A69: 5RM | B69: 4 | C69: 35 | D69: EQUIPAMENTOS DE PROCESSAMENTO DE DADOS | E69: 70 | F69: INFORMÁTICA - EQUIPAMENTOS, PEÇAS, ACESSÓRIOS E SUPRIMENTOSDE TIC | G69: 7050 | H69: EQUIPAMENTOS DE REDE DE TIC - LOCAL E REMOTA | I69: 05522 | J69: SWITCH | K69: Switch 24 Portas | L69: 1º SEMESTRE 2021 | M69: Alta | N69: UNIDADE | O69: INTEGRAL | P69: CUSTO FINALÍSTICO - MATERIAL | Q69: PDTI | R69: 6 | S69: 4000 | T69: 24000
A70: 5RM | B70: 3 | C70: 35 | D70: EQUIPAMENTOS DE PROCESSAMENTO DE DADOS | E70: 70 | F70: INFORMÁTICA - EQUIPAMENTOS, PEÇAS, ACESSÓRIOS E SUPRIMENTOSDE TIC | G70: 7050 | H70: EQUIPAMENTOS DE REDE DE TIC - LOCAL E REMOTA | I70: 05522 | J70: SWITCH | K70: Switch 8 portas | L70: 1º SEMESTRE 2021 | M70: Alta | N70: UNIDADE | O70: INTEGRAL | P70: CUSTO FINALÍSTICO - MATERIAL | Q70: PDTI | R70: 15 | S70: 300 | T70: 4500
A71: 5RM | B71: 1 | C71: 35 | D71: EQUIPAMENTOS DE PROCESSAMENTO DE DADOS | E71: 70 | F71: INFORMÁTICA - EQUIPAMENTOS, PEÇAS, ACESSÓRIOS E SUPRIMENTOSDE TIC | G71: 7010 | H71: COMPUTADORES | I71: 12050 | J71: "SERVIDOR DE REDE" | K71: Computador Servidor de Rede | L71: 1º SEMESTRE 2021 | M71: Alta | N71: UNIDADE | O71: INTEGRAL | P71: CUSTO FINALÍSTICO - MATERIAL | Q71: PDTI | R71: 2 | S71: 40000 | T71: 80000
A72: 5RM | B72: 2 | C72: 35 | D72: EQUIPAMENTOS DE PROCESSAMENTO DE DADOS | E72: 70 | F72: INFORMÁTICA - EQUIPAMENTOS, PEÇAS, ACESSÓRIOS E SUPRIMENTOSDE TIC | G72: 7010 | H72: COMPUTADORES | I72: 14811 | J72: "SERVIDOR ARQUIVO" | K72: Storage SAN | L72: 1º SEMESTRE 2021 | M72: Alta | N72: UNIDADE | O72: INTEGRAL | P72: CUSTO FINALÍSTICO - MATERIAL | Q72: PDTI | R72: 1 | S72: 120000 | T72: 120000
A73: 5DE | C73: 39 | D73: EQUIP. E UTENSILIOS HIDRAULICOS E ELETRICOS | E73: 59 | F73: COMPONENTES DE EQUIPAMENTOS ELÉTRICOS E ELETRÔNICOS | G73: 5999 | H73: COMPONENTES ELÉTRICOS E ELETRÔNICOS DIVERSOS | I73: 15834 | J73: COMPONENTE ELETRÔNICO - DISPLAY 7 SEGMENTOS | K73: notebook para atividades jornalísticas em operaçõestela: tela 15.6" com bordas finas. teclado: teclado em português (padrão abnt2). processador: 10a geração intel® coretm i7-10510u sistema operacional: windows 10 home single language 64 bit – pt(br) placa de vídeo: nvidia® geforce® mx250 2gb gddr5 memória ram: 16gb ddr4 2666mhz (16gbx1) unidade de estado sólido ssd de 256gb m.2 pcie nvme webcam hd widescreen integrada (720p) conectividade: wireless 802.11ac + bluetooth, 1x1 | bateria integrada portas: 1 porta usb 3.1 de 1a geração type-ctm (dp/powerdelivery), 2 portas usb 3.1 de 1a geração, 1 porta usb 2.0, leitor de cartão micro sd | M73: Media | N73: UNIDADE | O73: INTEGRAL | P73: CUSTO FINALÍSTICO - PESSOAL | Q73: em função da pandemia foi criada uma nova demanda de transmissão on line | R73: 1 | S73: 8000 | T73: 8000
A74: 5DE | C74: 6 | D74: APARELHOS E EQUIPAMENTOS DE COMUNICACAO | E74: 59 | F74: COMPONENTES DE EQUIPAMENTOS ELÉTRICOS E ELETRÔNICOS | G74: 5999 | H74: COMPONENTES ELÉTRICOS E ELETRÔNICOS DIVERSOS | I74: 15834 | J74: COMPONENTE ELETRÔNICO - DISPLAY 7 SEGMENTOS | K74: smartphone 128gb ou superior com entrada para cartão microsd com 6gb de ram ou superior | M74: Media | N74: UNIDADE | O74: INTEGRAL | P74: CUSTO FINALÍSTICO - PESSOAL | Q74: em função da pandemia foi criada uma nova demanda de transmissão on line | R74: 2 | S74: 2000 | T74: 4000
A75: 5DE | C75: 33 | D75: EQUIPAMENTOS PARA AUDIO, VIDEO E FOTO | E75: 67 | F75: EQUIPAMENTOS FOTOGRÁFICOS | G75: 6720 | H75: CÂMARAS FOTOGRÁFICAS | I75: 18844 | J75: PEÇA / ACESSÓRIO CÂMARA FOTOGRÁFICA / FILMADORA | K75: bolsa fotográfica para filmadora contando com proteção acolchoada internamente e com rigidez. - medidas interiores: 23 x 50 x 19cm; - medidas exteriores: 26 x 56 x 25cm; - material de confecção: nylon, plástico e espuma; - acompanha alça de ombro. | M75: Media | N75: UNIDADE | O75: INTEGRAL | P75: CUSTO FINALÍSTICO - PESSOAL | Q75: em função da pandemia foi criada uma nova demanda de transmissão on line | R75: 3 | S75: 250 | T75: 750
A76: 5DE | C76: 33 | D76: EQUIPAMENTOS PARA AUDIO, VIDEO E FOTO | E76: 67 | F76: EQUIPAMENTOS FOTOGRÁFICOS | G76: 6720 | H76: CÂMARAS FOTOGRÁFICAS | I76: 18844 | J76: PEÇA / ACESSÓRIO CÂMARA FOTOGRÁFICA / FILMADORA | K76: mochila para transporte de notebook 15”, com material externo revestido em nylon impermeável e material interno em tecido acolchoado para proteção do equipamento (uso em operações). | M76: Media | N76: UNIDADE | O76: INTEGRAL | P76: CUSTO FINALÍSTICO - PESSOAL | Q76: em função da pandemia foi criada uma nova demanda de transmissão on line | R76: 1 | S76: 300 | T76: 300
A77: 5DE | C77: 24 | D77: EQUIPAMENTO DE PROTECAO, SEGURANCA E SOCORRO | E77: 67 | F77: EQUIPAMENTOS FOTOGRÁFICOS | G77: 6750 | H77: SUPRIMENTOS FOTOGRÁFICOS | I77: 17172 | J77: SUPRIMENTOS FOTOGRÁFICOS | K77: amplificador para 8 fones de ouvido todos em um só aparelho. amplificador e distribuidor de mesa para 8 fones, sendo 4 canais com 8 saídas de fones de ouvido. entradas balanceadas estéreo duplas com nível separado e controles de balanço; exibição 6 segmentos de led bargraphs. | M77: Media | N77: UNIDADE | O77: INTEGRAL | P77: CUSTO FINALÍSTICO - PESSOAL | Q77: em função da pandemia foi criada uma nova demanda de transmissão on line | R77: 1 | S77: 1950 | T77: 1950
A78: 5DE | C78: 33 | D78: EQUIPAMENTOS PARA AUDIO, VIDEO E FOTO | E78: 67 | F78: EQUIPAMENTOS FOTOGRÁFICOS | G78: 6751 | H78: SUPRIMENTOS FOTOGRÁFICOS | I78: 17173 | J78: SUPRIMENTOS FOTOGRÁFICOS | K78: drone radiocontrolado mavic pro 2 | M78: Media | N78: UNIDADE | O78: INTEGRAL | P78: CUSTO FINALÍSTICO - PESSOAL | Q78: em função da pandemia foi criada uma nova demanda de transmissão on line | R78: 1 | S78: 25000 | T78: 25000
A79: 5DE | C79: 35 | D79: EQUIPAMENTOS DE PROCESSAMENTO DE DADOS | E79: 67 | F79: EQUIPAMENTOS FOTOGRÁFICOS | G79: 6752 | H79: SUPRIMENTOS FOTOGRÁFICOS | I79: 17174 | J79: SUPRIMENTOS FOTOGRÁFICOS | K79: drone radiocontrolado mavic inspire 2 | M79: Media | N79: UNIDADE | O79: INTEGRAL | P79: CUSTO FINALÍSTICO - PESSOAL | Q79: em função da pandemia foi criada uma nova demanda de transmissão on line | R79: 1 | S79: 20000 | T79: 20000
A80: 5DE | C80: 35 | D80: EQUIPAMENTOS DE PROCESSAMENTO DE DADOS | E80: 67 | F80: EQUIPAMENTOS FOTOGRÁFICOS | G80: 6753 | H80: SUPRIMENTOS FOTOGRÁFICOS | I80: 17175 | J80: SUPRIMENTOS FOTOGRÁFICOS | K80: distribuidor audio 8 ch p2 p10 fones de ouvido p10 p2 – 4 saídas para fones com plug p10 e 4 saídas para fones com plug p2. 1 entrada áudio rca stereo. fonte bivolt. | M80: Media | N80: UNIDADE | O80: INTEGRAL | P80: CUSTO FINALÍSTICO - PESSOAL | Q80: em função da pandemia foi criada uma nova demanda de transmissão on line | R80: 1 | S80: 500 | T80: 500
A81: 5DE | C81: 35 | D81: EQUIPAMENTOS DE PROCESSAMENTO DE DADOS | E81: 67 | F81: EQUIPAMENTOS FOTOGRÁFICOS | G81: 6754 | H81: SUPRIMENTOS FOTOGRÁFICOS | I81: 17176 | J81: SUPRIMENTOS FOTOGRÁFICOS | K81: fone de ouvido overear, 120m w alto-falantes de alta potência. produz sonoridade padrão com graves encorpados over-ear 120mw. | M81: Media | N81: UNIDADE | O81: INTEGRAL | P81: CUSTO FINALÍSTICO - PESSOAL | Q81: em função da pandemia foi criada uma nova demanda de transmissão on line | R81: 1 | S81: 150 | T81: 150
A82: 5DE | C82: 35 | D82: EQUIPAMENTOS DE PROCESSAMENTO DE DADOS | E82: 67 | F82: EQUIPAMENTOS FOTOGRÁFICOS | G82: 6755 | H82: SUPRIMENTOS FOTOGRÁFICOS | I82: 17177 | J82: SUPRIMENTOS FOTOGRÁFICOS | K82: caixa de som potência rms 270w rms cada. dimensões aproximadas 15 x 25 x 180 cm. | M82: Media | N82: UNIDADE | O82: INTEGRAL | P82: CUSTO FINALÍSTICO - PESSOAL | Q82: em função da pandemia foi criada uma nova demanda de transmissão on line | R82: 1 | S82: 900 | T82: 900
A83: 5DE | C83: 35 | D83: EQUIPAMENTOS DE PROCESSAMENTO DE DADOS | E83: 67 | F83: EQUIPAMENTOS FOTOGRÁFICOS | G83: 6756 | H83: SUPRIMENTOS FOTOGRÁFICOS | I83: 17178 | J83: SUPRIMENTOS FOTOGRÁFICOS | K83: pedestal microfone studio rádio pedestal suporte mesa articulado p/ microfone studio rádio | M83: Media | N83: UNIDADE | O83: INTEGRAL | P83: CUSTO FINALÍSTICO - PESSOAL | Q83: em função da pandemia foi criada uma nova demanda de transmissão on line | R83: 1 | S83: 90 | T83: 90
A84: 5DE | C84: 35 | D84: EQUIPAMENTOS DE PROCESSAMENTO DE DADOS | E84: 67 | F84: EQUIPAMENTOS FOTOGRÁFICOS | G84: 6757 | H84: SUPRIMENTOS FOTOGRÁFICOS | I84: 17179 | J84: SUPRIMENTOS FOTOGRÁFICOS | K84: 01 mesa de som yamaha 08 canais 04 entradas xlr:4 entradas de microfone balanceadas com conectores xlr; 2 entradas de microfone balanceadas com conectores trs 1/4#” (p10); 4 entradas de linha balanceadas com conectores trs ¼” (p10). 2 entradas de linha com conectores rca; 1 entrada linha p2.3 bandas de equalização por canal phantom power (+48v). fonte chaveada automática. | M84: Media | N84: UNIDADE | O84: INTEGRAL | P84: CUSTO FINALÍSTICO - PESSOAL | Q84: em função da pandemia foi criada uma nova demanda de transmissão on line | R84: 1 | S84: 2250 | T84: 2250
A85: 5DE | C85: 35 | D85: EQUIPAMENTOS DE PROCESSAMENTO DE DADOS | E85: 67 | F85: EQUIPAMENTOS FOTOGRÁFICOS | G85: 6758 | H85: SUPRIMENTOS FOTOGRÁFICOS | I85: 17180 | J85: SUPRIMENTOS FOTOGRÁFICOS | K85: amplificador som ambiente controle de volume dos canais 1 e 2 separados. entrada: 2 canais independentes. possui estágio de amplificação em classe ab. auxiliar (rca). potência 2x200w rms alimentação: bivolt. | M85: Media | N85: UNIDADE | O85: INTEGRAL | P85: CUSTO FINALÍSTICO - PESSOAL | Q85: em função da pandemia foi criada uma nova demanda de transmissão on line | R85: 1 | S85: 780 | T85: 780
A86: 5DE | C86: 35 | D86: EQUIPAMENTOS DE PROCESSAMENTO DE DADOS | E86: 67 | F86: EQUIPAMENTOS FOTOGRÁFICOS | G86: 6759 | H86: SUPRIMENTOS FOTOGRÁFICOS | I86: 17181 | J86: SUPRIMENTOS FOTOGRÁFICOS | K86: microfone condensador (áudio) resposta de frequência adaptada fornece inteligibilidade vocal. minimizar o ruído ambiente. ideal para estúdio de transmissão de rádio / gravação. | M86: Media | N86: UNIDADE | O86: INTEGRAL | P86: CUSTO FINALÍSTICO - PESSOAL | Q86: em função da pandemia foi criada uma nova demanda de transmissão on line | R86: 1 | S86: 250 | T86: 250
A87: 5DE | C87: 35 | D87: EQUIPAMENTOS DE PROCESSAMENTO DE DADOS | E87: 67 | F87: EQUIPAMENTOS FOTOGRÁFICOS | G87: 6760 | H87: SUPRIMENTOS FOTOGRÁFICOS | I87: 17182 | J87: SUPRIMENTOS FOTOGRÁFICOS | K87: microfone shure sm 58 projetado para uso em performances profissionais de vocal ao vivo, reforço sonoro e gravação em estúdio. tipo cardioide (unidirecional) dinâmico. conector: xlr macho profissional de 3 pinos. | M87: Media | N87: UNIDADE | O87: INTEGRAL | P87: CUSTO FINALÍSTICO - PESSOAL | Q87: em função da pandemia foi criada uma nova demanda de transmissão on line | R87: 1 | S87: 1650 | T87: 1650
A88: 5DE | C88: 35 | D88: EQUIPAMENTOS DE PROCESSAMENTO DE DADOS | E88: 67 | F88: EQUIPAMENTOS FOTOGRÁFICOS | G88: 6761 | H88: SUPRIMENTOS FOTOGRÁFICOS | I88: 17183 | J88: SUPRIMENTOS FOTOGRÁFICOS | K88: pedestal de mesa com cachimbo para microfone de estúdio, articulado e com proteção individual. | M88: Media | N88: UNIDADE | O88: INTEGRAL | P88: CUSTO FINALÍSTICO - PESSOAL | Q88: em função da pandemia foi criada uma nova demanda de transmissão on line | R88: 1 | S88: 150 | T88: 150
A89: 5DE | C89: 35 | D89: EQUIPAMENTOS DE PROCESSAMENTO DE DADOS | E89: 67 | F89: EQUIPAMENTOS FOTOGRÁFICOS | G89: 6762 | H89: SUPRIMENTOS FOTOGRÁFICOS | I89: 17184 | J89: SUPRIMENTOS FOTOGRÁFICOS | K89: power play 04 canais marca behringer, com 04 fones akg. | M89: Media | N89: UNIDADE | O89: INTEGRAL | P89: CUSTO FINALÍSTICO - PESSOAL | Q89: em função da pandemia foi criada uma nova demanda de transmissão on line | R89: 1 | S89: 1600 | T89: 1600
A90: 5DE | C90: 35 | D90: EQUIPAMENTOS DE PROCESSAMENTO DE DADOS | E90: 67 | F90: EQUIPAMENTOS FOTOGRÁFICOS | G90: 6763 | H90: SUPRIMENTOS FOTOGRÁFICOS | I90: 17185 | J90: SUPRIMENTOS FOTOGRÁFICOS | K90: suporte tripé fundo infinito kit com bag; tubos de aço; pintura eletrostática (não risca); pés de borracha; diversos níveis de trava. inclusas lona branca e lona verde para pendurar no suporte / utilização para “choma key”. | M90: Media | N90: UNIDADE | O90: INTEGRAL | P90: CUSTO FINALÍSTICO - PESSOAL | Q90: em função da pandemia foi criada uma nova demanda de transmissão on line | R90: 1 | S90: 380 | T90: 380
A91: 5DE | C91: 35 | D91: EQUIPAMENTOS DE PROCESSAMENTO DE DADOS | E91: 67 | F91: EQUIPAMENTOS FOTOGRÁFICOS | G91: 6764 | H91: SUPRIMENTOS FOTOGRÁFICOS | I91: 17186 | J91: SUPRIMENTOS FOTOGRÁFICOS | K91: kit estúdio luz contínua 4 pontos de luz e 3 pontos 110v. | M91: Media | N91: UNIDADE | O91: INTEGRAL | P91: CUSTO FINALÍSTICO - PESSOAL | Q91: em função da pandemia foi criada uma nova demanda de transmissão on line | R91: 2 | S91: 560 | T91: 1120
A92: 5DE | C92: 35 | D92: EQUIPAMENTOS DE PROCESSAMENTO DE DADOS | E92: 67 | F92: EQUIPAMENTOS FOTOGRÁFICOS | G92: 6765 | H92: SUPRIMENTOS FOTOGRÁFICOS | I92: 17187 | J92: SUPRIMENTOS FOTOGRÁFICOS | K92: carregador de pilhas aa e carregador de pilhas aaa, com carregamento (das pilhas recarregáveis) direto à tomada. | M92: Media | N92: UNIDADE | O92: INTEGRAL | P92: CUSTO FINALÍSTICO - PESSOAL | Q92: em função da pandemia foi criada uma nova demanda de transmissão on line | R92: 2 | S92: 235 | T92: 470
A93: 5DE | C93: 35 | D93: EQUIPAMENTOS DE PROCESSAMENTO DE DADOS | E93: 67 | F93: EQUIPAMENTOS FOTOGRÁFICOS | G93: 6766 | H93: SUPRIMENTOS FOTOGRÁFICOS | I93: 17188 | J93: SUPRIMENTOS FOTOGRÁFICOS | K93: fio de cobre biocolor polarizado para som caixas de 1,5mm com 100m | M93: Media | N93: METRO | O93: INTEGRAL | P93: CUSTO FINALÍSTICO - PESSOAL | Q93: em função da pandemia foi criada uma nova demanda de transmissão on line | R93: 100 | S93: 70 | T93: 7000
A94: 5DE | C94: 35 | D94: EQUIPAMENTOS DE PROCESSAMENTO DE DADOS | E94: 67 | F94: EQUIPAMENTOS FOTOGRÁFICOS | G94: 6767 | H94: SUPRIMENTOS FOTOGRÁFICOS | I94: 17189 | J94: SUPRIMENTOS FOTOGRÁFICOS | K94: adaptador de áudio usb externo placa de som virtual 7.1. equalizador 12 canais. conectores 2x3.5mm (cabo usb incluído) placa de som usb virtual 7.1; ; placa de som equalizador de 12 canais que permite ajustes pessoais. sistema operacional windows 64 bits. | M94: Media | N94: UNIDADE | O94: INTEGRAL | P94: CUSTO FINALÍSTICO - PESSOAL | Q94: em função da pandemia foi criada uma nova demanda de transmissão on line | R94: 1 | S94: 370 | T94: 370
A95: 5DE | C95: 35 | D95: EQUIPAMENTOS DE PROCESSAMENTO DE DADOS | E95: 67 | F95: EQUIPAMENTOS FOTOGRÁFICOS | G95: 6768 | H95: SUPRIMENTOS FOTOGRÁFICOS | I95: 17190 | J95: SUPRIMENTOS FOTOGRÁFICOS | K95: placa de captura externa usb. com a placa de captura externa usb você captura vídeo e áudio de qualidade e perfeição. você pode gravar um vídeo. transfira tudo já para seu notebook ou pc. sistema operacional windows 64bits. | M95: Media | N95: UNIDADE | O95: INTEGRAL | P95: CUSTO FINALÍSTICO - PESSOAL | Q95: em função da pandemia foi criada uma nova demanda de transmissão on line | R95: 1 | S95: 1500 | T95: 1500
A96: 5DE | C96: 35 | D96: EQUIPAMENTOS DE PROCESSAMENTO DE DADOS | E96: 67 | F96: EQUIPAMENTOS FOTOGRÁFICOS | G96: 6769 | H96: SUPRIMENTOS FOTOGRÁFICOS | I96: 17191 | J96: SUPRIMENTOS FOTOGRÁFICOS | K96: plug adaptador de áudio p10 macho (6,35mm) para p2 fêmea (3,5mm) estéreo. entrada p10 saída p2 – tipo estéreo. | M96: Media | N96: UNIDADE | O96: INTEGRAL | P96: CUSTO FINALÍSTICO - PESSOAL | Q96: em função da pandemia foi criada uma nova demanda de transmissão on line | R96: 3 | S96: 15 | T96: 45
A97: 5DE | C97: 35 | D97: EQUIPAMENTOS DE PROCESSAMENTO DE DADOS | E97: 67 | F97: EQUIPAMENTOS FOTOGRÁFICOS | G97: 6770 | H97: SUPRIMENTOS FOTOGRÁFICOS | I97: 17192 | J97: SUPRIMENTOS FOTOGRÁFICOS | K97: cabo microfone xlr canon macho macho e fêmea balanceado 3 metros | M97: Media | N97: UNIDADE | O97: INTEGRAL | P97: CUSTO FINALÍSTICO - PESSOAL | Q97: em função da pandemia foi criada uma nova demanda de transmissão on line | R97: 1 | S97: 380 | T97: 380
A98: 5DE | C98: 35 | D98: EQUIPAMENTOS DE PROCESSAMENTO DE DADOS | E98: 67 | F98: EQUIPAMENTOS FOTOGRÁFICOS | G98: 6771 | H98: SUPRIMENTOS FOTOGRÁFICOS | I98: 17193 | J98: SUPRIMENTOS FOTOGRÁFICOS | K98: plug adaptador de áudio p2 para p10 tipo estéreo | M98: Media | N98: UNIDADE | O98: INTEGRAL | P98: CUSTO FINALÍSTICO - PESSOAL | Q98: em função da pandemia foi criada uma nova demanda de transmissão on line | R98: 3 | S98: 35 | T98: 105
A99: 5DE | C99: 35 | D99: EQUIPAMENTOS DE PROCESSAMENTO DE DADOS | E99: 67 | F99: EQUIPAMENTOS FOTOGRÁFICOS | G99: 6772 | H99: SUPRIMENTOS FOTOGRÁFICOS | I99: 17194 | J99: SUPRIMENTOS FOTOGRÁFICOS | K99: pré-amplificador de microfone com qualidade de som com conversão digital | M99: Media | N99: UNIDADE | O99: INTEGRAL | P99: CUSTO FINALÍSTICO - PESSOAL | Q99: em função da pandemia foi criada uma nova demanda de transmissão on line | R99: 1 | S99: 1300 | T99: 1300
A100: 5DE | C100: 35 | D100: EQUIPAMENTOS DE PROCESSAMENTO DE DADOS | E100: 67 | F100: EQUIPAMENTOS FOTOGRÁFICOS | G100: 6773 | H100: SUPRIMENTOS FOTOGRÁFICOS | I100: 17195 | J100: SUPRIMENTOS FOTOGRÁFICOS | K100: lente objetiva sigma 10-20mm 10/20mm, compatível com as câmeras dslr canon | M100: Media | N100: UNIDADE | O100: INTEGRAL | P100: CUSTO FINALÍSTICO - PESSOAL | Q100: em função da pandemia foi criada uma nova demanda de transmissão on line | R100: 1 | S100: 3500 | T100: 3500
A101: 5DE | C101: 35 | D101: EQUIPAMENTOS DE PROCESSAMENTO DE DADOS | E101: 67 | F101: EQUIPAMENTOS FOTOGRÁFICOS | G101: 6774 | H101: SUPRIMENTOS FOTOGRÁFICOS | I101: 17196 | J101: SUPRIMENTOS FOTOGRÁFICOS | K101: lente objetiva 70/300 mm 70/300 mm, compatível com as câmeras dslr canon | M101: Media | N101: UNIDADE | O101: INTEGRAL | P101: CUSTO FINALÍSTICO - PESSOAL | Q101: em função da pandemia foi criada uma nova demanda de transmissão on line | R101: 1 | S101: 6000 | T101: 6000
A102: 5DE | C102: 35 | D102: EQUIPAMENTOS DE PROCESSAMENTO DE DADOS | E102: 67 | F102: EQUIPAMENTOS FOTOGRÁFICOS | G102: 6775 | H102: SUPRIMENTOS FOTOGRÁFICOS | I102: 17197 | J102: SUPRIMENTOS FOTOGRÁFICOS | K102: lente objetiva ef 100-400mm 100/400 mm, compatível com as câmeras dslr canon | M102: Media | N102: UNIDADE | O102: INTEGRAL | P102: CUSTO FINALÍSTICO - PESSOAL | Q102: em função da pandemia foi criada uma nova demanda de transmissão on line | R102: 1 | S102: 18000 | T102: 18000
A103: 5DE | C103: 35 | D103: EQUIPAMENTOS DE PROCESSAMENTO DE DADOS | E103: 67 | F103: EQUIPAMENTOS FOTOGRÁFICOS | G103: 6776 | H103: SUPRIMENTOS FOTOGRÁFICOS | I103: 17198 | J103: SUPRIMENTOS FOTOGRÁFICOS | K103: espuma acústica anti-chamas - norma nbr9178, modelo “caixa de ovos”, espessura da placa 30mm (3 cm), cor cinza grafite. células abertas (para melhor absorção do som). | M103: Media | N103: METRO | O103: INTEGRAL | P103: CUSTO FINALÍSTICO - PESSOAL | Q103: em função da pandemia foi criada uma nova demanda de transmissão on line | R103: 150 | S103: 450 | T103: 67500
A104: 5DE | C104: 35 | D104: EQUIPAMENTOS DE PROCESSAMENTO DE DADOS | E104: 67 | F104: EQUIPAMENTOS FOTOGRÁFICOS | G104: 6777 | H104: SUPRIMENTOS FOTOGRÁFICOS | I104: 17199 | J104: SUPRIMENTOS FOTOGRÁFICOS | K104: tripê para celular | M104: Media | N104: UNIDADE | O104: INTEGRAL | P104: CUSTO FINALÍSTICO - PESSOAL | Q104: em função da pandemia foi criada uma nova demanda de transmissão on line | R104: 1 | S104: 1500 | T104: 1500
A105: 5DE | C105: 35 | D105: EQUIPAMENTOS DE PROCESSAMENTO DE DADOS | E105: 67 | F105: EQUIPAMENTOS FOTOGRÁFICOS | G105: 6778 | H105: SUPRIMENTOS FOTOGRÁFICOS | I105: 17200 | J105: SUPRIMENTOS FOTOGRÁFICOS | K105: cabeça hidráulica para tripê mvh500 ah manfrotto | M105: Media | N105: UNIDADE | O105: INTEGRAL | P105: CUSTO FINALÍSTICO - PESSOAL | Q105: em função da pandemia foi criada uma nova demanda de transmissão on line | R105: 1 | S105: 2500 | T105: 2500
A106: 5DE | C106: 35 | D106: EQUIPAMENTOS DE PROCESSAMENTO DE DADOS | E106: 67 | F106: EQUIPAMENTOS FOTOGRÁFICOS | G106: 6779 | H106: SUPRIMENTOS FOTOGRÁFICOS | I106: 17201 | J106: SUPRIMENTOS FOTOGRÁFICOS | K106: tripê manfrotto mt 190 x3 | M106: Media | N106: UNIDADE | O106: INTEGRAL | P106: CUSTO FINALÍSTICO - PESSOAL | Q106: em função da pandemia foi criada uma nova demanda de transmissão on line | R106: 1 | S106: 2500 | T106: 2500
A107: 5DE | C107: 35 | D107: EQUIPAMENTOS DE PROCESSAMENTO DE DADOS | E107: 67 | F107: EQUIPAMENTOS FOTOGRÁFICOS | G107: 6780 | H107: SUPRIMENTOS FOTOGRÁFICOS | I107: 17202 | J107: SUPRIMENTOS FOTOGRÁFICOS | K107: go pro hero 5 ou superior | M107: Media | N107: UNIDADE | O107: INTEGRAL | P107: CUSTO FINALÍSTICO - PESSOAL | Q107: em função da pandemia foi criada uma nova demanda de transmissão on line | R107: 1 | S107: 3200 | T107: 3200
A108: 5DE | C108: 35 | D108: EQUIPAMENTOS DE PROCESSAMENTO DE DADOS | E108: 67 | F108: EQUIPAMENTOS FOTOGRÁFICOS | G108: 6781 | H108: SUPRIMENTOS FOTOGRÁFICOS | I108: 17203 | J108: SUPRIMENTOS FOTOGRÁFICOS | K108: estabilizador para camera dslr | M108: Media | N108: UNIDADE | O108: INTEGRAL | P108: CUSTO FINALÍSTICO - PESSOAL | Q108: em função da pandemia foi criada uma nova demanda de transmissão on line | R108: 1 | S108: 3000 | T108: 3000
A109: 5DE | C109: 35 | D109: EQUIPAMENTOS DE PROCESSAMENTO DE DADOS | E109: 67 | F109: EQUIPAMENTOS FOTOGRÁFICOS | G109: 6782 | H109: SUPRIMENTOS FOTOGRÁFICOS | I109: 17204 | J109: SUPRIMENTOS FOTOGRÁFICOS | K109: atem mini blackmagic design switcher | M109: Media | N109: UNIDADE | O109: INTEGRAL | P109: CUSTO FINALÍSTICO - PESSOAL | Q109: em função da pandemia foi criada uma nova demanda de transmissão on line | R109: 1 | S109: 4200 | T109: 4200
A110: 5DE | C110: 35 | D110: EQUIPAMENTOS DE PROCESSAMENTO DE DADOS | E110: 67 | F110: EQUIPAMENTOS FOTOGRÁFICOS | G110: 6783 | H110: SUPRIMENTOS FOTOGRÁFICOS | I110: 17205 | J110: SUPRIMENTOS FOTOGRÁFICOS | K110: filtro polarizador hoya 58mm compativel com lentes canon e nikon | M110: Media | N110: UNIDADE | O110: INTEGRAL | P110: CUSTO FINALÍSTICO - PESSOAL | Q110: em função da pandemia foi criada uma nova demanda de transmissão on line | R110: 1 | S110: 400 | T110: 400
A111: 5DE | C111: 35 | D111: EQUIPAMENTOS DE PROCESSAMENTO DE DADOS | E111: 67 | F111: EQUIPAMENTOS FOTOGRÁFICOS | G111: 6784 | H111: SUPRIMENTOS FOTOGRÁFICOS | I111: 17206 | J111: SUPRIMENTOS FOTOGRÁFICOS | K111: filtro polarizador hoya 82mm compativel com lentes canon e nikon | M111: Media | N111: UNIDADE | O111: INTEGRAL | P111: CUSTO FINALÍSTICO - PESSOAL | Q111: em função da pandemia foi criada uma nova demanda de transmissão on line | R111: 1 | S111: 1000 | T111: 1000
A112: 5DE | C112: 35 | D112: EQUIPAMENTOS DE PROCESSAMENTO DE DADOS | E112: 67 | F112: EQUIPAMENTOS FOTOGRÁFICOS | G112: 6785 | H112: SUPRIMENTOS FOTOGRÁFICOS | I112: 17207 | J112: SUPRIMENTOS FOTOGRÁFICOS | K112: kit de limpeza de câmera para limpeza dslr sensor de lente de câmera acessórios ferramentas de manutenção de câmera com estojo de transporte | M112: Media | N112: UNIDADE | O112: INTEGRAL | P112: CUSTO FINALÍSTICO - PESSOAL | Q112: em função da pandemia foi criada uma nova demanda de transmissão on line | R112: 3 | S112: 350 | T112: 1050
A113: 5DE | C113: 35 | D113: EQUIPAMENTOS DE PROCESSAMENTO DE DADOS | E113: 67 | F113: EQUIPAMENTOS FOTOGRÁFICOS | G113: 6786 | H113: SUPRIMENTOS FOTOGRÁFICOS | I113: 17208 | J113: SUPRIMENTOS FOTOGRÁFICOS | K113: cartão de memória 128g memory card sd comum - cartão de memória flash | M113: Media | N113: UNIDADE | O113: INTEGRAL | P113: CUSTO FINALÍSTICO - PESSOAL | Q113: em função da pandemia foi criada uma nova demanda de transmissão on line | R113: 5 | S113: 460 | T113: 2300
A114: 5DE | C114: 35 | D114: EQUIPAMENTOS DE PROCESSAMENTO DE DADOS | E114: 67 | F114: EQUIPAMENTOS FOTOGRÁFICOS | G114: 6787 | H114: SUPRIMENTOS FOTOGRÁFICOS | I114: 17209 | J114: SUPRIMENTOS FOTOGRÁFICOS | K114: cartão de memória 648g memory card sd comum - cartão de memória flash | M114: Media | N114: UNIDADE | O114: INTEGRAL | P114: CUSTO FINALÍSTICO - PESSOAL | Q114: em função da pandemia foi criada uma nova demanda de transmissão on line | R114: 4 | S114: 200 | T114: 800
A115: 11CT | C115: 12 | D115: APARELHOS E UTENSILIOS DOMESTICOS | E115: 45 | F115: EQUIPAMENTO DE INSTALAÇÕES HIDRÁULICAS E DE AQUECIMENTO | G115: 4510 | H115: DISPOSITIVOS E ACESSÓRIOS PARA INSTALAÇÕES HIDRÁULICAS | I115: 04976 | J115: CHUVEIRO ELÉTRICO | K115: Informações técnicas: Marca: Hydra; Cor: Branca ;Modelo: Fit; Tipo de chuveiro: Eletrônico; Energia de Alimentação: 220 Volts; Potência: 6800 Watts; Fiação Mínima: 4mm²; Pressão de funcionamento:; mínima: 10 k Pa (01 m.c.a.); Máxima: 400 k Pa (40 m.c.a.); Disjuntor: 35 A; Recursos: - Espalhador que oferece uma fácil limpeza.; - Haste de 30 cm para controlar a temperatura.; - Mangueira com ducha manual; - Resistência de troca rápida; - Resistências independentes; - Proteção contra choques; - Compatível com D.R.; - Aprovado pelo INMETRO; - Baixo consumo de energia; - Mangueira com sistema higiênico (antiaderente); Itens inclusos: 01 Ducha Eletrônica; 01 Mangueira; 01 Ducha Manual; 01 Manual de Instruções; 01 Termo de Garantia; 01 Relação de Rede Autorizada. | L115: Segundo Semestre | M115: Media | N115: UNIDADE | O115: INTEGRAL | P115: CUSTO SUPORTE - MATERIAL | Q115: Aquisição de materiais para vida orgânica do 11º CT | R115: 7 | S115: 120 | T115: 840
A116: 11CT | C116: 39 | D116: EQUIP. E UTENSILIOS HIDRAULICOS E ELETRICOS | E116: 51 | F116: FERRAMENTAS MANUAIS | G116: 5120 | H116: FERRAMENTAS MANUAIS SEM CORTE, NÃO ACIONADAS POR FORÇA MOTRIZ | I116: 03553 | J116: BIGORNA | K116: Bigorna 20kg 147x43x71cm | L116: Segundo Semestre | M116: Media | N116: UNIDADE | O116: INTEGRAL | P116: CUSTO SUPORTE - MATERIAL | Q116: Aquisição de materiais para vida orgânica do 11º CT | R116: 1 | S116: 700 | T116: 700
A117: 11CT | C117: 39 | D117: EQUIP. E UTENSILIOS HIDRAULICOS E ELETRICOS | E117: 51 | F117: FERRAMENTAS MANUAIS | G117: 5120 | H117: FERRAMENTAS MANUAIS SEM CORTE, NÃO ACIONADAS POR FORÇA MOTRIZ | I117: 01053 | J117: TORNO BANCADA | K117: Torno morsa nº 8 | L117: Segundo Semestre | M117: Media | N117: UNIDADE | O117: INTEGRAL | P117: CUSTO SUPORTE - MATERIAL | Q117: Aquisição de materiais para vida orgânica do 11º CT | R117: 1 | S117: 200 | T117: 200
A118: 11CT | C118: 38 | D118: MAQ., FERRAMENTAS E UTENSILIOS DE OFICINA | E118: 32 | F118: MÁQUINAS E EQUIPAMENTOS PARA TRABALHOS EM MADEIRA | G118: 3210 | H118: MÁQUINAS PARA SERRARIA E PREPARO DE MADEIRA | I118: 09160 | J118: MAQUINA DE CARPINTARIA MOTORIZADA | K118: Lixadeira ANGULAR 7’’, 127V 2200W | L118: Segundo Semestre | M118: Media | N118: UNIDADE | O118: INTEGRAL | P118: CUSTO SUPORTE - MATERIAL | Q118: Aquisição de materiais para vida orgânica do 11º CT | R118: 1 | S118: 780 | T118: 780
A119: 11CT | C119: 38 | D119: MAQ., FERRAMENTAS E UTENSILIOS DE OFICINA | E119: 32 | F119: MÁQUINAS E EQUIPAMENTOS PARA TRABALHOS EM MADEIRA | G119: 3210 | H119: MÁQUINAS PARA SERRARIA E PREPARO DE MADEIRA | I119: 09160 | J119: MAQUINA DE CARPINTARIA MOTORIZADA | K119: lixadeira orbital ¼ de folha | L119: Segundo Semestre | M119: Media | N119: UNIDADE | O119: INTEGRAL | P119: CUSTO SUPORTE - MATERIAL | Q119: Aquisição de materiais para vida orgânica do 11º CT | R119: 1 | S119: 305 | T119: 305
A120: 5CIAPE | C120: 33 | D120: EQUIPAMENTOS PARA AUDIO, VIDEO E FOTO | E120: 67 | F120: EQUIPAMENTOS FOTOGRÁFICOS | G120: 6720 | H120: CÂMARAS FOTOGRÁFICAS | I120: 00993 | J120: MÁQUINA FOTOGRÁFICA | K120: Máquina fotografica | M120: Alta | N120: UNIDADE | R120: 2 | S120: 3000 | T120: 6000
A121: 5CIAPE | C121: 42 | D121: MOBILIARIO EM GERAL | E121: 46 | F121: EQUIPAMENTOS PARA PURIFICAÇÃO DE ÁGUAS E TRATAMENTO DE ESGO-TOS | G121: 4610 | H121: EQUIPAMENTOS PARA PURIFICAÇÃO DE ÁGUA | I121: 15695 | J121: APARELHO PURIFICADOR DE ÁGUA | K121: Aparelho com capacidade para 30 militares | M121: Alta | N121: UNIDADE | R121: 1 | S121: 6000 | T121: 6000
A122: CIAAP | B122: 5 | C122: 40 | D122: MAQUINAS E EQUIPAMENTOS AGRIC. E RODOVIARIOS | E122: 37 | F122: MÁQUINAS E EQUIPAMENTOS AGRÍCOLAS | G122: 3750 | H122: IMPLEMENTOS E FERRAMENTAS DE JARDINAGEM | I122: 01367 | J122: SERRA PODA | K122: Moto poda de galhos a gasolina Modelo HT75 Marca stihl | L122: 2º SEMESTRE 2021 | M122: Alta | N122: UNIDADE | O122: PARCELADA | P122: CUSTO SUPORTE - MATERIAL | Q122: Equipamento para manutenção das áreas de vegetação e gramado do Forte do Pinheirinho que compreende uma área total de 1.530.210,28 m². | R122: 2 | S122: 3942 | T122: 7884
A123: CIAAP | B123: 1 | C123: 40 | D123: MAQUINAS E EQUIPAMENTOS AGRIC. E RODOVIARIOS | E123: 37 | F123: MÁQUINAS E EQUIPAMENTOS AGRÍCOLAS | G123: 3750 | H123: IMPLEMENTOS E FERRAMENTAS DE JARDINAGEM | I123: 01375 | J123: TRATOR JARDIM | K123: Micro trator diesel Modelo TDWT80E | L123: 2º SEMESTRE 2021 | M123: Alta | N123: UNIDADE | O123: INTEGRAL | P123: CUSTO SUPORTE - MATERIAL | Q123: Equipamento para manutenção das áreas de vegetação e gramado do Forte do Pinheirinho que compreende uma área total de 1.530.210,28 m². | R123: 1 | S123: 25602.15 | T123: 25602.15
A124: CIAAP | B124: 4 | C124: 40 | D124: MAQUINAS E EQUIPAMENTOS AGRIC. E RODOVIARIOS | E124: 37 | F124: MÁQUINAS E EQUIPAMENTOS AGRÍCOLAS | G124: 3750 | H124: IMPLEMENTOS E FERRAMENTAS DE JARDINAGEM | I124: 01354 | J124: APARADOR GRAMA | K124: Roçadeira lateral a gasolina Modelo F220 Marca stihl | L124: 2º SEMESTRE 2021 | M124: Alta | N124: UNIDADE | O124: INTEGRAL | P124: CUSTO SUPORTE - MATERIAL | Q124: Equipamento para manutenção das áreas de vegetação e gramado do Forte do Pinheirinho que compreende uma área total de 1.530.210,28 m². | R124: 3 | S124: 3218.07 | T124: 9654.21
A125: CIAAP | B125: 2 | C125: 40 | D125: MAQUINAS E EQUIPAMENTOS AGRIC. E RODOVIARIOS | E125: 37 | F125: MÁQUINAS E EQUIPAMENTOS AGRÍCOLAS | G125: 3750 | H125: IMPLEMENTOS E FERRAMENTAS DE JARDINAGEM | I125: 01375 | J125: TRATOR JARDIM | K125: Roçadeira frontal RF-900 P/ MICRO TRATOR | L125: 2º SEMESTRE 2021 | M125: Alta | N125: UNIDADE | O125: INTEGRAL | P125: CUSTO SUPORTE - MATERIAL | Q125: Equipamento para manutenção das áreas de vegetação e gramado do Forte do Pinheirinho que compreende uma área total de 1.530.210,28 m². | R125: 1 | S125: 6089.35 | T125: 6089.35
A126: CIAAP | B126: 6 | C126: 40 | D126: MAQUINAS E EQUIPAMENTOS AGRIC. E RODOVIARIOS | E126: 37 | F126: MÁQUINAS E EQUIPAMENTOS AGRÍCOLAS | G126: 3750 | H126: IMPLEMENTOS E FERRAMENTAS DE JARDINAGEM | I126: 07274 | J126: EXTRATOR GRAMA / ERVA | K126: Soprador costal BR600 Stihl | L126: 2º SEMESTRE 2021 | M126: Alta | N126: UNIDADE | O126: INTEGRAL | P126: CUSTO SUPORTE - MATERIAL | Q126: Equipamento para manutenção das áreas de vegetação e gramado do Forte do Pinheirinho que compreende uma área total de 1.530.210,28 m². | R126: 2 | S126: 3384.97 | T126: 6769.94
A127: CIAAP | B127: 3 | C127: 12 | D127: APARELHOS E UTENSILIOS DOMESTICOS | E127: 38 | F127: EQUIPAMENTOS PARA CONSTRUÇÃO, MINERAÇÃO, TERRAPLENAGEM E MA-NUTENÇÃO DE ESTRADAS | G127: 3830 | H127: ACESSÓRIOS PARA CAMINHÕES E TRATORES | I127: 04064 | J127: CAÇAMBA | K127: SL2100 Reboque Agricola | L127: 2º SEMESTRE 2021 | M127: Alta | N127: UNIDADE | O127: INTEGRAL | P127: CUSTO SUPORTE - MATERIAL | Q127: Equipamento para manutenção das áreas de vegetação e gramado do Forte do Pinheirinho que compreende uma área total de 1.530.210,28 m². | R127: 1 | S127: 6065.67 | T127: 6065.67
A128: CIAAP | B128: 7 | C128: 38 | D128: MAQ., FERRAMENTAS E UTENSILIOS DE OFICINA | E128: 37 | F128: MÁQUINAS E EQUIPAMENTOS AGRÍCOLAS | G128: 3750 | H128: IMPLEMENTOS E FERRAMENTAS DE JARDINAGEM | I128: 09347 | J128: MÁQUINA PODA | K128: Moto serra Modelo 651 | L128: 2º SEMESTRE 2021 | M128: Alta | N128: UNIDADE | O128: INTEGRAL | P128: CUSTO SUPORTE - MATERIAL | Q128: Equipamento para manutenção das áreas de vegetação e gramado do Forte do Pinheirinho que compreende uma área total de 1.530.210,28 m². | R128: 1 | S128: 4086.17 | T128: 4086.17
A129: CIAAP | B129: 8 | C129: 42 | D129: MOBILIARIO EM GERAL | E129: 37 | F129: MÁQUINAS E EQUIPAMENTOS AGRÍCOLAS | G129: 3750 | H129: IMPLEMENTOS E FERRAMENTAS DE JARDINAGEM | I129: 00596 | J129: ANCINHO JARDINAGEM | K129: Carrinho plataforma 800kg | L129: 2º SEMESTRE 2021 | M129: Alta | N129: UNIDADE | O129: INTEGRAL | P129: CUSTO SUPORTE - MATERIAL | Q129: Material empregado para transporte de material da reserva. | R129: 1 | S129: 2218.73 | T129: 2218.73
A130: CIAAP | B130: 9 | C130: 39 | D130: EQUIP. E UTENSILIOS HIDRAULICOS E ELETRICOS | E130: 45 | F130: EQUIPAMENTO DE INSTALAÇÕES HIDRÁULICAS E DE AQUECIMENTO | G130: 4510 | H130: DISPOSITIVOS E ACESSÓRIOS PARA INSTALAÇÕES HIDRÁULICAS | I130: 02046 | J130: ACIONAMENTO ELETRICO / MANUAL - TORNEIRA / CHUVEIR | K130: Lavadora de alta pressão Marca Toyama Modelo TPW2700A | L130: 2º SEMESTRE 2021 | M130: Alta | N130: UNIDADE | O130: INTEGRAL | P130: CUSTO SUPORTE - MATERIAL | Q130: Equipamento utilizado para lavagem de equipamentos de acampamento e para limpeza das áreas do Forte do Pinheirinho. | R130: 1 | S130: 3054.11 | T130: 3054.11
A131: CIAAP | B131: 10 | C131: 40 | D131: MAQUINAS E EQUIPAMENTOS AGRIC. E RODOVIARIOS | E131: 37 | F131: MÁQUINAS E EQUIPAMENTOS AGRÍCOLAS | G131: 3750 | H131: IMPLEMENTOS E FERRAMENTAS DE JARDINAGEM | I131: 01354 | J131: APARADOR GRAMA | K131: Aparador de grama traseiro | L131: 2º SEMESTRE 2021 | M131: Alta | N131: UNIDADE | O131: INTEGRAL | P131: CUSTO SUPORTE - MATERIAL | Q131: Equipamento utilizado para lavagem de equipamentos de acampamento e para limpeza das áreas do Forte do Pinheirinho. | R131: 1 | S131: 9326.7 | T131: 9326.7
A132: CIAAP | B132: 17 | C132: 12 | D132: APARELHOS E UTENSILIOS DOMESTICOS | E132: 99 | F132: DIVERSOS | G132: 9999 | H132: ITENS DIVERSOS | I132: 13531 | J132: POTE | K132: Botijão Térmico azul 18L | L132: 2º SEMESTRE 2021 | M132: Media | N132: UNIDADE | O132: PARCELADA | P132: CUSTO SUPORTE - MATERIAL | Q132: Material empregado em atividades de campo e operações. | R132: 5 | S132: 308.4 | T132: 1542
A133: CIAAP | B133: 18 | C133: 12 | D133: APARELHOS E UTENSILIOS DOMESTICOS | E133: 99 | F133: DIVERSOS | G133: 9999 | H133: ITENS DIVERSOS | I133: 13531 | J133: POTE | K133: Garrafão 12L | L133: 2º SEMESTRE 2021 | M133: Media | N133: UNIDADE | O133: PARCELADA | P133: CUSTO SUPORTE - MATERIAL | Q133: Material empregado em atividades de campo e operações. | R133: 5 | S133: 160.58 | T133: 802.9
A134: CIAAP | B134: 12 | C134: 34 | D134: MAQUINAS, UTENSILIOS E EQUIPAMENTOS DIVERSOS | E134: 99 | F134: DIVERSOS | G134: 9999 | H134: ITENS DIVERSOS | I134: 16898 | J134: PEÇAS / ACESSÓRIOS EQUIPAMENTOS ESPECIALIZADOS | K134: Empilhadeira hidráulica manual | L134: 2º SEMESTRE 2021 | M134: Alta | N134: UNIDADE | O134: INTEGRAL | P134: CUSTO SUPORTE - MATERIAL | Q134: Material empregado para transporte de material da reserva. | R134: 1 | S134: 4989.44 | T134: 4989.44
A135: CIAAP | B135: 14 | C135: 34 | D135: MAQUINAS, UTENSILIOS E EQUIPAMENTOS DIVERSOS | E135: 51 | F135: FERRAMENTAS MANUAIS | G135: 9999 | H135: ITENS DIVERSOS | I135: 16898 | J135: PEÇAS / ACESSÓRIOS EQUIPAMENTOS ESPECIALIZADOS | K135: Carrinho De Mão Tramontina Caçamba Reforçada 65L Extra Forte | L135: 2º SEMESTRE 2021 | M135: Media | N135: UNIDADE | O135: INTEGRAL | P135: CUSTO SUPORTE - MATERIAL | Q135: Material empregado em atividades de manutenção e campo. | R135: 2 | S135: 323.21 | T135: 646.42
A136: CIAAP | B136: 13 | C136: 12 | D136: APARELHOS E UTENSILIOS DOMESTICOS | E136: 99 | F136: DIVERSOS | G136: 9999 | H136: ITENS DIVERSOS | I136: 16898 | J136: PEÇAS / ACESSÓRIOS EQUIPAMENTOS ESPECIALIZADOS | K136: Escada 30 degraus | L136: 2º SEMESTRE 2021 | M136: Alta | N136: UNIDADE | O136: INTEGRAL | P136: CUSTO SUPORTE - MATERIAL | Q136: Material empregado em atividades de campo e operações. | R136: 2 | S136: 1262.15 | T136: 2524.3
A137: CIAAP | B137: 16 | C137: 34 | D137: MAQUINAS, UTENSILIOS E EQUIPAMENTOS DIVERSOS | E137: 99 | F137: DIVERSOS | G137: 9999 | H137: ITENS DIVERSOS | I137: 16898 | J137: PEÇAS / ACESSÓRIOS EQUIPAMENTOS ESPECIALIZADOS | K137: Ventilador de coluna | L137: 2º SEMESTRE 2021 | M137: Alta | N137: UNIDADE | O137: PARCELADA | P137: CUSTO SUPORTE - MATERIAL | Q137: Material empregado em atividades de campo e operações. | R137: 5 | S137: 300.13 | T137: 1500.65
A138: CIAAP | B138: 15 | C138: 12 | D138: APARELHOS E UTENSILIOS DOMESTICOS | E138: 99 | F138: DIVERSOS | G138: 9999 | H138: ITENS DIVERSOS | I138: 16898 | J138: PEÇAS / ACESSÓRIOS EQUIPAMENTOS ESPECIALIZADOS | K138: Escada 7 degraus | L138: 2º SEMESTRE 2021 | M138: Alta | N138: UNIDADE | O138: PARCELADA | P138: CUSTO SUPORTE - MATERIAL | Q138: Material empregado em atividades de manutenção e campo. | R138: 2 | S138: 231.66 | T138: 463.32
A139: AD5 | C139: 33 | D139: EQUIPAMENTOS PARA AUDIO, VIDEO E FOTO | E139: 67 | F139: EQUIPAMENTOS FOTOGRÁFICOS | G139: 6720 | H139: CÂMARAS FOTOGRÁFICAS | I139: 00993 | J139: MÁQUINA FOTOGRÁFICA | K139: Máquina fotografica | M139: Alta | N139: UNIDADE | R139: 2 | S139: 3000 | T139: 6000
A140: AD5 | C140: 42 | D140: MOBILIARIO EM GERAL | E140: 46 | F140: EQUIPAMENTOS PARA PURIFICAÇÃO DE ÁGUAS E TRATAMENTO DE ESGO-TOS | G140: 4610 | H140: EQUIPAMENTOS PARA PURIFICAÇÃO DE ÁGUA | I140: 15695 | J140: APARELHO PURIFICADOR DE ÁGUA | K140: Aparelho com capacidade para 30 militares | M140: Alta | N140: UNIDADE | R140: 1 | S140: 6000 | T140: 6000
A141: AD5 | C141: 35 | D141: EQUIPAMENTOS DE PROCESSAMENTO DE DADOS | E141: 70 | F141: INFORMÁTICA - EQUIPAMENTOS, PEÇAS, ACESSÓRIOS E SUPRIMENTOSDE TIC | G141: 7010 | H141: COMPUTADORES | I141: 14176 | J141: "MICROCOMPUTADOR" | K141: MICROCOMPUTADOR, 16GB DDR4, SSD 120GB, HD 1 TERA, GPU GEFORCE GTX 1650 OC 4GB: PROCESSADOR: CPU AMD RYZEN 5 3600 - 3.6 GHZ (4.2 GHZ MAX TURBO) 32MB CACHE SIX CORE OU SUPERIOR, PLACA MÃE: MB CHIPSET AMD A320M SOCKET AM4, MEMÓRIA: 16GB DDR4 CL16 2666 MHZ (1X16GB, EXPANSÍVEL ATÉ 32GB), HARD DISK (HD) SSD M2.2280 120GB + HD 1 TERA, PLACA DE VÍDEO: GPU NVIDIA GEFORCE GTX 1650 OC 4GB OU SUPERIOR, SISTEMA OPERACIONAL: WINDOWS 10 PRO 64 BITS. GARANTIA: 1 ANO DE GARANTIA. | L141: 2º SEMESTRE 2021 | M141: Media | N141: UNIDADE | R141: 5 | S141: 10000 | T141: 50000
A142: AD5 | C142: 35 | D142: EQUIPAMENTOS DE PROCESSAMENTO DE DADOS | E142: 70 | F142: INFORMÁTICA - EQUIPAMENTOS, PEÇAS, ACESSÓRIOS E SUPRIMENTOSDE TIC | G142: 7010 | H142: COMPUTADORES | I142: 08435 | J142: NOTEBOOK | K142: Notebook: Placa de Video Geforce Gtx1650 4gb, HD 1tb + 256gb SSD M2, Processador AMD Ryzem 5 ou superior, tela 15.6”, Memoria RAM 8GB, Processador - Modelo de Referencia: Acer Nitro 5 Nitro AN515-43-R9K7 | L142: 2º SEMESTRE 2021 | M142: Media | N142: UNIDADE | R142: 5 | S142: 8000 | T142: 40000
A143: AD5 | C143: 35 | D143: EQUIPAMENTOS DE PROCESSAMENTO DE DADOS | E143: 70 | F143: INFORMÁTICA - EQUIPAMENTOS, PEÇAS, ACESSÓRIOS E SUPRIMENTOSDE TIC | G143: 7010 | H143: COMPUTADORES | I143: 14176 | J143: "MICROCOMPUTADOR" | K143: MICROCOMPUTADOR, COM MONITOR DE SUPERIOR A 22 POL, MEMÓRIA RAM SUPERIOR A 8 GB, NÚCLEOS POR PROCESSADOR 6 ou +, ARMAZENAMENTO HDD 1TB ou +, ARMAZENAMENTO SSD 480GB ou +, COMPLETO, GARANTIA ON SITE 36 MESES | L143: 2º SEMESTRE 2021 | M143: Alta | N143: UNIDADE | R143: 15 | S143: 8000 | T143: 120000
A144: AD5 | C144: 35 | D144: EQUIPAMENTOS DE PROCESSAMENTO DE DADOS | E144: 70 | F144: INFORMÁTICA - EQUIPAMENTOS, PEÇAS, ACESSÓRIOS E SUPRIMENTOSDE TIC | G144: 7010 | H144: COMPUTADORES | I144: 08435 | J144: NOTEBOOK | K144: NOTEBOOK, TELA SUPERIOR A 14 POL, INTERATIVIDADE DA TELA SEM INTERATIVIDADE, MEMÓRIA RAM SUPERIOR A 8 GB, NÚCLEOS POR PROCESSADOR 6 ou +, ARMAZENAMENTO HDD 1TB ou + ARMAZENAMENTO SSD 480GB ou +, BATERIA DEFINIDO PELO FABRICANTE, ALIMENTAÇÃO BIVOLT AUTOMÁTICA, SISTEMA OPERACIONAL PROPRIETÁRIO, GARANTIA ON SITE 36 MESES | L144: 2º SEMESTRE 2021 | M144: Alta | N144: UNIDADE | R144: 20 | S144: 5000 | T144: 100000
A145: AD5 | C145: 35 | D145: EQUIPAMENTOS DE PROCESSAMENTO DE DADOS | E145: 70 | F145: INFORMÁTICA - EQUIPAMENTOS, PEÇAS, ACESSÓRIOS E SUPRIMENTOSDE TIC | G145: 7050 | H145: EQUIPAMENTOS DE REDE DE TIC - LOCAL E REMOTA | I145: 00212 | J145: CONCENTRADOR | K145: CONVERSOR DE MÍDIA GIGABIT MULTIMODO: 1 PORTA SC/UPC 1000M FÊMEA; 1 PORTA RJ 45 1000M (AUTO/MDI/MDIX) FÊMEA; LED INDICADORES: LIGADO, LINK RJ45, LINK FIBRA; FONTE DE ALIMENTAÇÃO EXTERNA BI-VOLT 100-240 VAC -50/60 HZ; DISTÂNCIA MÍNIMA DE ALCANCE DE 0.5 KM, SUPORTE AOS PADRÕES IEEE 802.3AB, IEEE 802.3Z, IEEE 802.3X; CABEAMENTO SUPORTADO 1000BASE-T CAT 5e, CAT 6; CABEAMENTO SUPORTADO 1000BASE-FX FIBRA MULTIMODO (MMF) DE ATÉ 550M METROS. MODELO DE REFERENCIA: M200CM | L145: 2º SEMESTRE 2021 | M145: Alta | N145: UNIDADE | R145: 4 | S145: 350 | T145: 1400
A146: AD5 | C146: 35 | D146: EQUIPAMENTOS DE PROCESSAMENTO DE DADOS | E146: 70 | F146: INFORMÁTICA - EQUIPAMENTOS, PEÇAS, ACESSÓRIOS E SUPRIMENTOSDE TIC | G146: 7010 | H146: COMPUTADORES | I146: 19246 | J146: TABLET | K146: TABLET, TELA ATÉ 9 POL, MEMÓRIA RAM ATÉ 4 GB, ARMAZENAMENTO INTERNO ATÉ 8 GB, ARMAZENAMENTO EXTERNO ATÉ 32 GB, PROCESSADOR QUAD CORE, CÂMERA FRONTAL ATÉ 8 MPX, CÂMERA TRASEIRA ATÉ 8 MPX, CONECTIVIDADE WI-FI/ 3G/ 4G/ BLUETOOTH, SISTEMA OPERACIONAL OPEN SOURCE. MODELO DE REFERENCIA: SANSUNG GALAXY TAB A T290 | L146: 2º SEMESTRE 2021 | M146: Media | N146: UNIDADE | R146: 5 | S146: 1000 | T146: 5000
A147: AD5 | C147: 33 | D147: EQUIPAMENTOS PARA AUDIO, VIDEO E FOTO | E147: 70 | F147: INFORMÁTICA - EQUIPAMENTOS, PEÇAS, ACESSÓRIOS E SUPRIMENTOSDE TIC | G147: 7060 | H147: PEÇAS E ACESSÓRIOS PARA COMPUTADORES | I147: 00230 | J147: "MONITOR VÍDEO" | K147: MONITOR CURVO 24”. MODELO DE REFERENCIA:Acer Nitro 23,6" (XZ242Q) | L147: 2º SEMESTRE 2021 | M147: Media | N147: UNIDADE | R147: 10 | S147: 1600 | T147: 16000
A148: AD5 | C148: 35 | D148: EQUIPAMENTOS DE PROCESSAMENTO DE DADOS | E148: 70 | F148: INFORMÁTICA - EQUIPAMENTOS, PEÇAS, ACESSÓRIOS E SUPRIMENTOSDE TIC | G148: 7030 | H148: EQUIPAMENTOS DE ARMAZENAMENTO DE DADOS | I148: 17653 | J148: DISCO RÍGIDO REMOVÍVEL | K148: DISCO RÍGIDO REMOVÍVEL, CAPACIDADE MEMÓRIA:12 TB., INTERFACE: USB 3.0, CARACTERÍSTICAS ADICIONAIS: EXTERNO | L148: 2º SEMESTRE 2021 | M148: Media | N148: UNIDADE | R148: 4 | S148: 4000 | T148: 16000
A149: AD5 | C149: 35 | D149: EQUIPAMENTOS DE PROCESSAMENTO DE DADOS | E149: 70 | F149: INFORMÁTICA - EQUIPAMENTOS, PEÇAS, ACESSÓRIOS E SUPRIMENTOSDE TIC | G149: 7030 | H149: EQUIPAMENTOS DE ARMAZENAMENTO DE DADOS | I149: 17653 | J149: DISCO RÍGIDO REMOVÍVEL | K149: DISCO RÍGIDO REMOVÍVEL, CAPACIDADE MEMÓRIA:4 TB., INTERFACE: USB 3.0, CARACTERÍSTICAS ADICIONAIS: EXTERNO | L149: 2º SEMESTRE 2021 | M149: Media | N149: UNIDADE | R149: 25 | S149: 800 | T149: 20000
A150: AD5 | C150: 35 | D150: EQUIPAMENTOS DE PROCESSAMENTO DE DADOS | E150: 70 | F150: INFORMÁTICA - EQUIPAMENTOS, PEÇAS, ACESSÓRIOS E SUPRIMENTOSDE TIC | G150: 7050 | H150: EQUIPAMENTOS DE REDE DE TIC - LOCAL E REMOTA | I150: 05522 | J150: SWITCH | K150: SWITCH/HUB 8 PORTAS 10/100 ou 10/10/1000MBPS – NÃO GERENCIÁVEL. | L150: 2º SEMESTRE 2021 | M150: Media | N150: UNIDADE | R150: 10 | S150: 200 | T150: 2000
A151: AD5 | C151: 35 | D151: EQUIPAMENTOS DE PROCESSAMENTO DE DADOS | E151: 61 | F151: CONDUTORES ELÉTRICOS E EQUIPAMENTOS PARA GERAÇÃO E DISTRI-BUIÇÃO DE ENERGIA | G151: 6110 | H151: EQUIPAMENTOS DE CONTROLE ELÉTRICO | I151: 05807 | J151: CONTROLADOR DEMANDA ENERGIA ELÉTRICA | K151: NOBREAK DE 10KVA. MODELO DE REFERENCIA: NHS EXPERT C ONLINE ISOLADOR 10000VA. A GARANTIA DE FUNCIONAMENTO DEVERA SER DE 12 (DOZE) MESES. INSTALADO E ADAPTAÇÕES NECESSÁRIAS NO QUADRO DE ENERGIA. | L151: 2º SEMESTRE 2021 | M151: Media | N151: UNIDADE | R151: 1 | S151: 20000 | T151: 20000
A152: AD5 | C152: 35 | D152: EQUIPAMENTOS DE PROCESSAMENTO DE DADOS | E152: 70 | F152: INFORMÁTICA - EQUIPAMENTOS, PEÇAS, ACESSÓRIOS E SUPRIMENTOSDE TIC | G152: 7010 | H152: COMPUTADORES | I152: 14811 | J152: "SERVIDOR ARQUIVO" | K152: STORAGE – SERVIDOR, TIPO TORRE, Configuração: 02 (dois) processadores Intel Xeon Quad Core E5400 2.4Ghz ou superior Memória RAM: 16GB Sistema: FreeNAS instalado em Pendrive USB 16GB Discos Rígidos: 04 (quatro) HDs 3.5" SATA 3TB 7200rpm Interfaces de Rede: 04 (quatro) interfaces de rede Gigabit 1000BaseT (RJ45) Alimentação: 02 (duas) fontes de alimentação redundantes de alta performance Sistema operacional: Solução FreeNAS pré-instalada e configurada de acordo com as necessidades. GARANTIA ON SITE 36 MESES. MODELO DE REFERENCIA: Servidor / Storage iSCSI Dell PowerVault MD1200 (12TB) | L152: 2º SEMESTRE 2021 | M152: Media | N152: UNIDADE | R152: 1 | S152: 15000 | T152: 15000
A153: AD5 | C153: 35 | D153: EQUIPAMENTOS DE PROCESSAMENTO DE DADOS | E153: 70 | F153: INFORMÁTICA - EQUIPAMENTOS, PEÇAS, ACESSÓRIOS E SUPRIMENTOSDE TIC | G153: 7010 | H153: COMPUTADORES | I153: 12050 | J153: "SERVIDOR DE REDE" | K153: SERVIDOR DE REDE PARA BACKUP – SERVIDOR, TIPO TORRE, PROCESSADORES FÍSICOS 4, NÚCLEOS POR PROCESSADOR 4 OU SUPERIOR, MEMÓRIA RAM 16 GB OU SUPERIOR, INTERFACE REDE LAN 2, INTERFACE REDE SAN SEM SAN, ARMAZENAMENTO SATA COM DISCOS SATA 8TB OU SUPERIOR, ARMAZENAMENTO SAS SEM DISCOS SAS, ARMAZENAMENTO SSD COM DISCOS SSD 480GB OU SUPERIOR, FONTE ALIMENTAÇÃO REDUNDANTE (SWAP/HOT PLUG), SEM SISTEMA OPERACIONAL, GARANTIA ON SITE 36 MESES. MODELO DE REFERENCIA: DELL PowerEdge T140 | L153: 2º SEMESTRE 2021 | M153: Media | N153: UNIDADE | R153: 2 | S153: 6000 | T153: 12000
A154: AD5 | C154: 35 | D154: EQUIPAMENTOS DE PROCESSAMENTO DE DADOS | E154: 70 | F154: INFORMÁTICA - EQUIPAMENTOS, PEÇAS, ACESSÓRIOS E SUPRIMENTOSDE TIC | G154: 7010 | H154: COMPUTADORES | I154: 12050 | J154: "SERVIDOR DE REDE" | K154: SERVIDOR DE REDE PARA APLICAÇÃO – SERVIDOR, TIPO TORRE, PROCESSADORES FÍSICOS 4, NÚCLEOS POR PROCESSADOR 4 OU SUPERIOR, MEMÓRIA RAM 16 GB OU SUPERIOR, INTERFACE REDE LAN 2, INTERFACE REDE SAN SEM SAN, ARMAZENAMENTO SATA COM DISCOS SATA 8TB OU SUPERIOR, ARMAZENAMENTO SAS SEM DISCOS SAS, ARMAZENAMENTO SSD COM DISCOS SSD 480GB OU SUPERIOR, FONTE ALIMENTAÇÃO REDUNDANTE (SWAP/HOT PLUG), SEM SISTEMA OPERACIONAL, GARANTIA ON SITE 36 MESES. MODELO DE REFERENCIA: DELL PowerEdge T140 | L154: 2º SEMESTRE 2021 | M154: Media | N154: UNIDADE | R154: 2 | S154: 6000 | T154: 12000
A155: AD5 | C155: 35 | D155: EQUIPAMENTOS DE PROCESSAMENTO DE DADOS | E155: 67 | F155: EQUIPAMENTOS FOTOGRÁFICOS | G155: 6730 | H155: EQUIPAMENTO PARA PROJEÇÃO FOTOGRÁFICA | I155: 00907 | J155: PROJETOR MULTIMÍDIA | K155: PROJETOR WIRELESS PORTÁTIL COM MODULO LAN WIFI– 3600 LUMES OU SUPERIOR. MODELODE REFERENCIA: PROJETOR EPSON POWERLITE X41+ | L155: 2º SEMESTRE 2021 | M155: Media | N155: UNIDADE | R155: 5 | S155: 6000 | T155: 30000
A156: AD5 | C156: 35 | D156: EQUIPAMENTOS DE PROCESSAMENTO DE DADOS | E156: 70 | F156: INFORMÁTICA - EQUIPAMENTOS, PEÇAS, ACESSÓRIOS E SUPRIMENTOSDE TIC | G156: 7060 | H156: PEÇAS E ACESSÓRIOS PARA COMPUTADORES | I156: 00230 | J156: "MONITOR VÍDEO" | K156: MONITOR 21,5” OU SUPERIOR COM ENTRADA HDMI. MODELO DE REFERENCIA: MONITOR LED 21,5" LG 22BN550Y | L156: 2º SEMESTRE 2021 | M156: Media | N156: UNIDADE | R156: 30 | S156: 900 | T156: 27000
A157: AD5 | C157: 35 | D157: EQUIPAMENTOS DE PROCESSAMENTO DE DADOS | E157: 70 | F157: INFORMÁTICA - EQUIPAMENTOS, PEÇAS, ACESSÓRIOS E SUPRIMENTOSDE TIC | G157: 7020 | H157: IMPRESSORAS | I157: 00224 | J157: IMPRESSORA LASER | K157: IMPRESSORA WIFI COLORIDA - MULTIFUNCIONAL DE ALTA PERFORMANCE E BAIXO CUSTO DE TINTA POR IMPRESSÃO, COM CONECTIVIDADE WIFI DIRECT QUE FACILITA O USO COMPARTILHADO, E PERMITE ENVIAR DOCUMENTOS PARA IMPRESSÃO DIRETAMENTE DE SEU TABLET OU SMARTPHONE. COM FUNÇÃO DUPLEX, IMPRIME AUTOMATICAMENTE FRENTE E VERSO DA FOLHA, REDUZINDO O CONSUMO DE PAPEL E OTIMIZANDO O RITMO DE TRABALHO. CAPAZ DE IMPRIMIR ATÉ 33 PÁGINAS POR MINUTO COM EXCELENTE RESOLUÇÃO E CORES DURADOURAS. POSSUI RESOLUÇÃO DE ATÉ 5760X1440 DPI, COM TANQUES DE TINTA CAPAZES DE IMPRIMIR ATÉ 7500 PÁGINAS MONO OU 6000 PÁGINAS COLORIDAS COM AS MESMAS GARRAFAS DE TINTA. COM INSTALAÇÃO E CONFIGURAÇÃO FÁCIL, E PAINEL FRONTAL LCD. CONTA COM SCANNER DE BASE PLANA, COM RESOLUÇÃO MÁXIMA DE 5760X1440 DPI, PROPORCIONANDO DIGITALIZAÇÕES DE ÓTIMA QUALIDADE SEJA PARA TEXTOS QUANTO IMAGENS E FOTOGRAFIAS. MODELO DE REFERENCIA: EPSON L4160 ECOTANK. | L157: 2º SEMESTRE 2021 | M157: Media | N157: UNIDADE | R157: 1 | S157: 2000 | T157: 2000
A158: AD5 | C158: 35 | D158: EQUIPAMENTOS DE PROCESSAMENTO DE DADOS | E158: 58 | F158: EQUIPAMENTOS DE COMUNICAÇÕES, DETEÇÃO E RADIAÇÃO COERENTE | G158: 5830 | H158: SISTEMAS DE INTERCOMUNICAÇÃO E AMPLIFICAÇÃO DE VOZ, EXCETOOS DE AERONAVES | I158: 04111 | J158: CAIXA ACÚSTICA | K158: CAIXA DE SOM ATIVA: CAIXA ACÚSTICA AMPLIFICADA - MODELO DE REFERENCIA: LEXSEN LXX-15A POWERFUL – 500W RMS, UM WOOFER DE 15”, 97 DB SPL, RESPOSTA DE FREQUÊNCIA DE 50HZ A 20KHZ, AMPLIFICADOR CLASSE H, IMPEDÂNCIA 4 OHMS, REPRODUZ MP3 VIA USB, SC CARD, BLUETOOTH E POSSUI DISPLAY LCD. TRÊS PALAVRAS DEFINEM O QUE É A LXX-15A POWERFUL “POTÊNCIA, APLICABILIDADE E DESEMPENHO”. COM UM WOOFER DE 15”, UM DRIVE DE COMPRESSÃO DE 34 MM E NADA MAIS NADA MENOS QUE 500W DE POTÊNCIA RMS, A LINHA LXX DA LEXSEN AJUDARÁ VOCÊ EM QUALQUER OCASIÃO, SEJA EM IGREJAS, CASAS DE SHOW, ESCOLAS, EVENTOS AO AR LIVRE, ETC... COM RESPOSTA DE FREQUÊNCIA DE 50HZ A 20KHZ A LXX-15A POWERFUL REPRODUZ COM PERFEIÇÃO AS FREQUÊNCIAS SUBGRAVES E ALTAS, SE TORNANDO UM SISTEMA PODEROSO E COMPLETO PARA TODO E QUALQUER TIPO DE MUSICA AO VIVO OU REPRODUÇÃO. ALÉM DISSO, POSSUI RÁDIO FM, ENTRADA USB, SD CARD E CONEXÃO BLUETOOTH. CONECTIVIDADE A LXX-15A POWERFUL DA LEXSEN CONTA COM A TECNOLOGIA BLUETOOTH, PERMITINDO O USUÁRIO ESCUTAR SUAS PLAYLISTS ATRAVÉS DE CONEXÃO WIRELESS. A CAIXA TAMBÉM CONTA ENTRADA USB E ENTRADA PARA SD CARD. WOOFER: 15”; • RESPOSTA DE FREQUÊNCIA: 50HZ A 20KHZ; • DRIVER DE TITÂNIO: 34 MM; • SENSIBILIDADE: 97DB SPL; • 4 OHMS; • AMPLIFICADOR: CLASSE H; • DISPLAY DE LED; • MP3 PLAYER (USB/SD); • FM; • BLUETOOTH; • ENTRADA DE MICROFONE: XLR & ¼’’ JACK; • ENTRADA DE LINE: 2X RCA & XLR; • SAÍDA DE LINE: XLR & ¼” DE JACK; • CONTROLE REMOTO; • DIMENSÕES: • PESO: 20,5KG; • BI VOLT. | L158: 2º SEMESTRE 2021 | M158: Media | N158: UNIDADE | R158: 1 | S158: 2500 | T158: 2500
A159: AD5 | C159: 35 | D159: EQUIPAMENTOS DE PROCESSAMENTO DE DADOS | E159: 71 | F159: MOBILIÁRIOS | G159: 7110 | H159: MOBILIÁRIO PARA ESCRITÓRIO | I159: 17694 | J159: LOUSA INTERATIVA | K159: LOUSA INTERATIVA PARA O COP. MODELO DE REFERENCIA:LOUSA INTERATIVA TRACE BOARD TB-9088 / 88 | L159: 2º SEMESTRE 2021 | M159: Media | N159: UNIDADE | R159: 1 | S159: 5000 | T159: 5000
A160: AD5 | C160: 35 | D160: EQUIPAMENTOS DE PROCESSAMENTO DE DADOS | E160: 67 | F160: EQUIPAMENTOS FOTOGRÁFICOS | G160: 6730 | H160: EQUIPAMENTO PARA PROJEÇÃO FOTOGRÁFICA | I160: 00915 | J160: TELA PROJEÇÃO | K160: TELÃO PARA PROJEÇÃO - CARACTERÍSTICAS DO PRODUTO: POLEGADAS: 120" (4:3) FORMATO: 4:3 (VÍDEO) COR DAS BORDAS: PRETA COR DO PRODUTO: BRANCA VOLTAGEM: NÃO SE APLICA CONSUMO (EM FUNCIONAMENTO): NÃO SE APLICA COR DA ÁREA DE PROJEÇÃO: BRANCA TECIDO: MATTE WHITE (VERSO PRETO) MEDIDAS DA ÁREA DE PROJEÇÃO APROXIMADAMENTE: 2,34 X 1,80 (A) M (PRODUTO ARTESANAL PODE HAVER VARIAÇÕES NAS MEDIDAS DE ATE 5% PARA MAIS OU PARA MENOS). MEDIDAS DO PRODUTO: 2,40 X 8,3 (L) X 6,7 (A) CM MEDIDAS DA CAIXA: 270 X 11,5 (L) X 11 (A) CM ALTURA DO TRIPÉ: ATÉ 2,80 MT. PESO DO PRODUTO: 18.0 KG PESO DA EMBALAGEM: 18.0 KG MODELO DE REFERENCIA: GTTM120V FORNECEDOR: GRM TECNOLOGIA E SERVIÇOS LTDA. | L160: 2º SEMESTRE 2021 | M160: Media | N160: UNIDADE | R160: 2 | S160: 800 | T160: 1600
A161: AD5 | C161: 35 | D161: EQUIPAMENTOS DE PROCESSAMENTO DE DADOS | E161: 77 | F161: INSTRUMENTOS MUSICAIS, FONÓGRAFOS E RÁDIOS DOMÉSTICOS | G161: 7730 | H161: FONÓGRAFOS, RÁDIOS E TELEVISORES DE TIPO DOMÉSTICO | I161: 12609 | J161: TELEVISOR | K161: TV 75” PARA AUDITORIO. MODELO DE REFERENCIA: SAMSUNG QN75Q60RAG | L161: 2º SEMESTRE 2021 | M161: Media | N161: UNIDADE | R161: 1 | S161: 10000 | T161: 10000
A162: AD5 | C162: 35 | D162: EQUIPAMENTOS DE PROCESSAMENTO DE DADOS | E162: 61 | F162: CONDUTORES ELÉTRICOS E EQUIPAMENTOS PARA GERAÇÃO E DISTRI-BUIÇÃO DE ENERGIA | G162: 6110 | H162: EQUIPAMENTOS DE CONTROLE ELÉTRICO | I162: 17098 | J162: EQUIPAMENTOS DE CONTROLE ELÉTRICO | K162: NOBREAK 3000VA ou SUPERIOR. MODELO DE REFERENCIA: modelo NHS Premium 3000VA | L162: 2º SEMESTRE 2021 | M162: Alta | N162: UNIDADE | R162: 1 | S162: 4500 | T162: 4500
A163: AD5 | C163: 35 | D163: EQUIPAMENTOS DE PROCESSAMENTO DE DADOS | E163: 70 | F163: INFORMÁTICA - EQUIPAMENTOS, PEÇAS, ACESSÓRIOS E SUPRIMENTOSDE TIC | G163: 7050 | H163: EQUIPAMENTOS DE REDE DE TIC - LOCAL E REMOTA | I163: 05522 | J163: SWITCH | K163: SWITCH/HUB 16 PORTAS 10/100Mbps | L163: 2º SEMESTRE 2021 | M163: Media | N163: UNIDADE | R163: 5 | S163: 400 | T163: 2000
A164: AD5 | C164: 35 | D164: EQUIPAMENTOS DE PROCESSAMENTO DE DADOS | E164: 70 | F164: INFORMÁTICA - EQUIPAMENTOS, PEÇAS, ACESSÓRIOS E SUPRIMENTOSDE TIC | G164: 7050 | H164: EQUIPAMENTOS DE REDE DE TIC - LOCAL E REMOTA | I164: 05522 | J164: SWITCH | K164: SWITCH 24PORTAS Gigabit gerenciável | L164: 2º SEMESTRE 2021 | M164: Media | N164: UNIDADE | R164: 4 | S164: 2000 | T164: 8000
A165: AD5 | C165: 35 | D165: EQUIPAMENTOS DE PROCESSAMENTO DE DADOS | E165: 70 | F165: INFORMÁTICA - EQUIPAMENTOS, PEÇAS, ACESSÓRIOS E SUPRIMENTOSDE TIC | G165: 7050 | H165: EQUIPAMENTOS DE REDE DE TIC - LOCAL E REMOTA | I165: 05522 | J165: SWITCH | K165: SWITCH 48PORTAS Gigabit gerenciável | L165: 2º SEMESTRE 2021 | M165: Alta | N165: UNIDADE | R165: 3 | S165: 3000 | T165: 9000
A166: AD5 | C166: 35 | D166: EQUIPAMENTOS DE PROCESSAMENTO DE DADOS | E166: 61 | F166: CONDUTORES ELÉTRICOS E EQUIPAMENTOS PARA GERAÇÃO E DISTRI-BUIÇÃO DE ENERGIA | G166: 6110 | H166: EQUIPAMENTOS DE CONTROLE ELÉTRICO | I166: 07068 | J166: ESTABILIZADOR TENSÃO | K166: ESTABILIZADOR DE TENSÃO 1000VA. MODELO DE REFERECIA: TSHARA POWEREST HOME 1000VA | L166: 2º SEMESTRE 2021 | M166: Media | N166: UNIDADE | R166: 50 | S166: 350 | T166: 17500
A167: AD5 | C167: 35 | D167: EQUIPAMENTOS DE PROCESSAMENTO DE DADOS | E167: 63 | F167: SISTEMAS DE ALARME, SINALIZAÇÃO E DETECÇÃO PARA SEGURANÇA | G167: 6350 | H167: SISTEMAS DIVERSOS DE SINALIZAÇÃO, ALARME E DETECÇÃO PARA SEGURANÇA | I167: 18261 | J167: SISTEMA SEGURANÇA | K167: CAMERA DE VIGILANCIA – CARACTERÍSTICAS: COMPATÍVEL COM 4 TECNOLOGIAS: HDCVI + HDTVI + AHD + ANALÓGICO, RESOLUÇÃO HD (720P), SENSOR MEGAPIXEL ¼”, LENTE DE 2,8, ALCANCE IR DE 20 M, CASE PLÁSTICO, PROTEÇÃO ANTI-UV, IR INTELIGENTE, IP66 (EXCETO PARA OS MODELOS DOME), PROTEÇÃO CONTRA SURTOS DE TENSÃO, 1 ANO DE GARANTIA, PARA REALIZAR A TROCA DESTAS TECNOLOGIAS DEVE-SE UTILIZAR O ACESSÓRIO VHD CONTROL. ESPECIFICAÇÕES: SENSOR: 1/4” MEGAPIXEL CMOS 1, PIXELS EFETIVO:S 1280 (H) X 720 (V) , LINHAS HORIZONTAIS: 1280H, RESOLUÇÃO REAL¹: HD (720P) - MODO HDCVI, AHD E HDTVI, LENTE: 2,8 MM, ÂNGULO DE VISÃO (H)² X (V): 57° X 32°, ALCANCE IR: 20 M, IR INTELIGENTE: SIM , QUANTITADADE DE LED´S: 12 LEDS, COMPRIMENTO DE ONDA LED IR: 850 NM, FORMATO DO VÍDEO: HDCVI / AHD / HDTVI (V2.0) / ANALÓGICO (NTSC), SAÍDA DE VÍDEO: 75 O (BNC) RELAÇÃO SINAL RUÍDO: >65 DB, SENSIBILIDADE: 0.05 LUX / F2.0 (AGC ON), 0 LUX IR ON, VELOCIDADE DO OBTURADOR: 1/30 A 1/100000S, SINCRONISMO: INTERNO, ÍRIS: ELETRÔNICA, DAY NIGHT: AUTOMÁTICO, COLORIDO E PB AUTOMÁTICO, AGC - CONTROLE AUTOMÁTICO DE GANHO: SIM , COMPENSAÇÃO DE LUZ DE FUNDO: BLC / HLC / DWDR / OFF, BALANÇO DE BRANCO ATW / RAST. AUTOM. / MANUAL / LAMP. / SÓDIO / INTERNO / EXT.1 / EXT. 2, CONEXÕES SAÍDA DE VÍDEO: BNC FÊMEA, ALIMENTAÇÃO: CONECTOR P4 FÊMEA , CARACTERISTICAS ELÉTRICAS: CONSUMO MÁXIMO DE CORRENTE: 220 MA, CONSUMO MÁXIMO DE POTÊNCIA: 2,7 W, TENSÃO: 12 VCC 1, PROTEÇÃO ANTISSURTO: 500 V (VÍDEO E ALIMENTAÇÃO), CARACTERISTICAS MECÂNICAS COR CASE: BRANCO , TIPO CASE / MATERIAL: DOME / PLÁSTICO, GRAU DE PROTEÇÃO: NA LOCAL DE INSTALAÇÃO: INTERNO, CARACTERISTICAS AMBIENTAIS: TEMPERATURA DE ARMAZENAMENTO (-)10 °C A 60 °C, TEMPERATURA DE OPERAÇÃO (-)10 °C A 60 °C, UMIDADE RELATIVA DE ARMAZENAMENTO 20% A 90% RH, UMIDADE RELATIVA DE OPERAÇÃO 20% A 90% RH. DIMENSÕES: PESO: 0,100 KG, LARGURA: 9 CM, ALTURA: 9 CM, ROFUNDIDADE: 7 CM. MODELO DE REFERENCIA: VHD 1120 D G3 | L167: 2º SEMESTRE 2021 | M167: Media | N167: UNIDADE | R167: 10 | S167: 200 | T167: 2000
A168: AD5 | C168: 35 | D168: EQUIPAMENTOS DE PROCESSAMENTO DE DADOS | E168: 63 | F168: SISTEMAS DE ALARME, SINALIZAÇÃO E DETECÇÃO PARA SEGURANÇA | G168: 6350 | H168: SISTEMAS DIVERSOS DE SINALIZAÇÃO, ALARME E DETECÇÃO PARA SEGURANÇA | I168: 18261 | J168: SISTEMA SEGURANÇA | K168: POWER BALUN DE 1 CANAL - BALUN COM RESOLUÇÃO ATÉ FULL HD, FUNÇÃO BIDIRECIONAL E COMPATÍVEL COM ASA TECNOLOGIAS HDCVI, HDTVI,AHD E ANALÓGICA (CVBS). MODELO DE REFERENCIA: VB 1001 WP | L168: 2º SEMESTRE 2021 | M168: Media | N168: UNIDADE | R168: 10 | S168: 200 | T168: 2000
A169: AD5 | C169: 35 | D169: EQUIPAMENTOS DE PROCESSAMENTO DE DADOS | E169: 70 | F169: INFORMÁTICA - EQUIPAMENTOS, PEÇAS, ACESSÓRIOS E SUPRIMENTOSDE TIC | G169: 7030 | H169: EQUIPAMENTOS DE ARMAZENAMENTO DE DADOS | I169: 14009 | J169: GAVETA DISCO RÍGIDO | K169: DOCK STATION USB 2 HD CASE 2.5/3.5 SATA HDD COM LEITOR DE CARTOES UNIVERSAL - ESTAÇÃO PORTÁTIL QUE PERMITE CONECTAR HDS AO COMPUTADOR ATRAVÉS DE UMA INTERFACE USB 2.0 OU E-SATA. O DISPOSITIVO POSSIBILITA O USO DE 2 DISCOS RIGIDOS DE 2,5 OU 3,5 QUE UTILIZAM A TECNOLOGIA IDE/SATA QUE TENHAM ATÉ 2 TB DE CAPACIDADE. SUPORTA CARTÕES CF, SD, XD, MS (MINI SD, T-FLASH/MICRO SD). COM O DOCKING STATION O USUÁRIO PODE UTILIZAR UM HD PARA BACKUP, POR EXEMPLO, SEM TER QUE ABRIR A MÁQUINA PARA CONECTÁ-LO À PLACA-MÃE OU SEM A NECESSIDADE DE INSERI-LO EM UM CASE DE HD EXTERNO. ALÉM DISSO, O USUÁRIO NÃO PRECISA DESLIGAR O COMPUTADOR PARA DESCONECTAR O DISPOSITIVO. SUPORTA TODOS OS 2,5 / 3,5 IDE E 2.5 / 3.5 SATA DISCO RÍGIDO DE QUALQUER CAPACIDADE. FUNÇÃO ONE TOUCH BACKUP (OTB) (NA PORTA USB APENAS). SUPORTA ATÉ 64 GB CARTÕES DE MEMÓRIA. USB 1.1, USB 2.0, SATA1 E SATA 2 COMPATÍVEL. USB2.0 VELOCIDADE DE TRANSFERÊNCIA TAXA DE DADOS DE ATÉ 480MB / S (MÁX.), SATA2 TAXA DE TRANSFERÊNCIA ATÉ 1.5GB/3GB/S. APENAS PLUG AND PLAY, HOT-SWAPPABLE. INDICADORES EM LED. APOIO AO WIN 7, WINDOWS 98/98/SE/ME/2000/XP/VISTA E MAC OS 9.X, OU SUPERIOR. ESPECIFICAÇÕES TÉCNICAS: TIPO: DOCKING STATION. ENTRADA: 100-240V, 50/60HZ, 1.0A. OUTPUT: 12.0V-2000MA. 5.0V-3500MA. PADRÃO PLUG: EUA (QP3). INTERFACE DE SAÍDA: USB MINI 5 PINOS. 2 PORT USB 2.0 HUB, 5 CARD READER SLOTS, E-SATA PORTO. 3.5 PORTA IDE, 1/2 PORTAS SATA. SLOT CF: CF 1/CF 2/EXTREME CF/EXTREME3 CF/ULTRA2 CF / HS CF / MD. MS SLOT: MS / MS DUO / MS PRO / MS PRO DUO / MS MAGICGATE / MS MAGICGATE PRO / MS DUO MAGICGATE / MS PRO DUO MAGICGATE / MS EXTREMA. PRO/EXTREME3MS PRO/ULTRA2 MS PRO / HS MS MAGICGATE PRO / HS MS MAGICGATE PRO DUO / MS ROM / MS SELECT. SLOT SD: SD / MINI SD / SD EXTREMA / EXTREMO 3 SD / ULTRA 2 SD / MMC 1/MMC 2/MMC 4.0/RS MMC / HS RS MMC / MICRO SD (T-FLASH). SLOT X-MEMÓRIA: X-MEMÓRIA. F-SLOT: MEMÓRIA TF. TAMANHO: 18CM X 11CM X 10CM. PESO: 262G. MATERIAL UTILIZADO NA FABRICAÇÃO: PLÁSTICO, METAL E CIRCUITO ELETRÔNICO. MODELO DE REFERENCIA: ESTAÇÃO PORTÁTIL PARA HD KP-HD005 - KNUP | L169: 2º SEMESTRE 2021 | M169: Media | N169: UNIDADE | R169: 5 | S169: 300 | T169: 1500
A170: AD5 | C170: 35 | D170: EQUIPAMENTOS DE PROCESSAMENTO DE DADOS | E170: 70 | F170: INFORMÁTICA - EQUIPAMENTOS, PEÇAS, ACESSÓRIOS E SUPRIMENTOSDE TIC | G170: 6350 | H170: SISTEMAS DIVERSOS DE SINALIZAÇÃO, ALARME E DETECÇÃO PARA SEGURANÇA | I170: 18261 | J170: SISTEMA SEGURANÇA | K170: KIT 6 CÂMERAS DE SEGURANÇA FULL HD INTELBRAS VHD 1220 B G6 + DVR INTELBRAS 08 CANAIS FULL HD MHDX 3108 + HD WD PURPLE 1TB + ACESSÓRIOS | L170: 2º SEMESTRE 2021 | M170: Media | N170: UNIDADE | R170: 2 | S170: 2800 | T170: 5600
A171: AD5 | C171: 35 | D171: EQUIPAMENTOS DE PROCESSAMENTO DE DADOS | E171: 70 | F171: INFORMÁTICA - EQUIPAMENTOS, PEÇAS, ACESSÓRIOS E SUPRIMENTOSDE TIC | G171: 6350 | H171: SISTEMAS DIVERSOS DE SINALIZAÇÃO, ALARME E DETECÇÃO PARA SEGURANÇA | I171: 18261 | J171: SISTEMA SEGURANÇA | K171: CAMERA DE VIGILANCIA EXTERNA - ESPECIFICAÇÕES TÉCNICAS: PIXELS EFETIVOS: 1280 (H) X 720 (V) LINHAS HORIZONTAIS: 1280H RESOLUÇÃO REAL: HD (720P) - MODO HDCVI, AHD E HDTVI - 600TVL - MODO ANALÓGICO (CVBS) ALCANCE: IR 20 M IR INTELIGENTE: SIM LENTE: 2,8 MM SAÍDA DE VÍDEO: BNC FÊMEA ALIMENTAÇÃO CONECTOR: P4 FÊMEA TENSÃO: 12 VCC . MODELO DE REFERENCIA: CÂMERA MULTI HD AHD 1 MEGA 2.8 MM VHD 1120 B G3 INTELBRAS | L171: 2º SEMESTRE 2021 | M171: Media | N171: UNIDADE | R171: 5 | S171: 200 | T171: 1000
A172: AD5 | C172: 35 | D172: EQUIPAMENTOS DE PROCESSAMENTO DE DADOS | E172: 70 | F172: INFORMÁTICA - EQUIPAMENTOS, PEÇAS, ACESSÓRIOS E SUPRIMENTOSDE TIC | G172: 7050 | H172: EQUIPAMENTOS DE REDE DE TIC - LOCAL E REMOTA | I172: 00237 | J172: ROTEADOR | K172: ROTEADOR WIRELESS DUAL BAND- ESPECIFICAÇÕES TÉCNICAS TIPO DE DISPOSITIVO ROTEADOR SEM FIO - SWITCH DE 4 PORTAS (INTEGRADO) TIPO DE CAIXA DESKTOP QTD DE PORTAS WAN 1 PROTOCOLO DE LINK DE DADOS ETHERNET, FAST ETHERNET, IEEE 802.11B, IEEE 802.11A, IEEE 802.11G, IEEE 802.11N, IEEE 802.11AC BANDA DE FREQUÊNCIA 2,4 GHZ / 5 GHZ TAXA DE TRANSFERÊNCIA DE DADOS 1.35 GBPS PROTOCOLO DE TRANSPORTE/REDE PPTP, L2TP, IPSEC, PPPOE, FTP, DHCP, DDNS CARACTERÍSTICAS PREVENÇÃO CONTRA ATAQUES DOS, SERVIDOR DA IMPRESSORA, FILTRO DE ENDEREÇOS MAC, SUPORTE IPV6, SUPORTE SISTEMA (WDS) DE DISTRIBUIÇÃO SEM FIO, CONTROLE PARENTAL, FILTRAGEM DE ENDEREÇO DE IP, APOIO DE MULTIMÉDIA WI-FI (WMM), SUPORTE DE SERVIDOR VIRTUAL, WI-FI PROTECTED SETUP (WPS), SERVIDOR DHCP, SUPORTE SAMBA, SERVIDOR FTP, REENCAMINHAMENTO DE PORTA, BOTÃO DE REINÍCIO, CONTROLO DE LARGURA DE BANDA, SUPORTE IPV4, CRIAÇÃO DE ROTAS, STATEFUL PACKET INSPECTION FIREWALL (SPIF), CLIENTE DHCP PADRÕES DE CONFORMIDADE IEEE 802.11B, IEEE 802.11A, IEEE 802.11G, IEEE 802.11N, UPNP, IEEE 802.11AC DIMENSÕES (LXPXA) 23 CM X 14.4 CM X 3.7 CM REQUISITOS DO SISTEMA UNIX, APPLE MACOS, NOVELL NETWARE, LINUX, MICROSOFT WINDOWS XP / VISTA / 7 / 8 / 8.1 / 10. MODELO DE REFERENCIA: TP-LINK AC1350 | L172: 2º SEMESTRE 2021 | M172: Media | N172: UNIDADE | R172: 5 | S172: 500 | T172: 2500
A173: CIMH | B173: 1 | C173: 36 | D173: MAQUINAS, INSTALACOES E UTENS. DE ESCRITORIO | E173: 74 | F173: MÁQUINAS PARA ESCRITÓRIO, SISTEMAS DE PROCESSAMENTO DE TEX-TO E FICHÁRIOS DE CLASSIFICAÇÃO VISÍVEL | G173: 7490 | H173: MÁQUINAS DIVERSAS PARA ESCRITÓRIO | I173: 15875 | J173: FOTOCOPIADORA IMPRESSORA | K173: Impressora multifuncional a lazer 220V | L173: 1º SEMESTRE 2022 | M173: Alta | N173: UNIDADE | O173: INTEGRAL | P173: CUSTO FINALÍSTICO - MATERIAL | Q173: Suprir necessidade das seções dessa OM. | R173: 1 | S173: 3900 | T173: 3900
A174: CIMH | B174: 2 | C174: 38 | D174: MAQ., FERRAMENTAS E UTENSILIOS DE OFICINA | E174: 49 | F174: EQUIPAMENTOS PARA OFICINAS DE MANUTENÇÃO E REPAROS | G174: 4940 | H174: EQUIPAMENTO ESPECIALIZADO DIVERSOS PARA OFICINA DE MANUTENÇÃO E REPARO | I174: 06477 | J174: ELEVADOR ELÉTRICO DE VEÍCULO | K174: Aquisição de elevador automotivo trifásico, Tensão: 220V | L174: 1º SEMESTRE 2022 | M174: Media | N174: UNIDADE | O174: INTEGRAL | P174: CUSTO FINALÍSTICO - MATERIAL | Q174: Suprir necessidade de garagem dessa OM. | R174: 1 | S174: 10200 | T174: 10200
A175: CIMH | B175: 6 | C175: 38 | D175: MAQ., FERRAMENTAS E UTENSILIOS DE OFICINA | E175: 49 | F175: EQUIPAMENTOS PARA OFICINAS DE MANUTENÇÃO E REPAROS | G175: 4910 | H175: EQUIPAMENTO ESPECIALIZADO PARA OFICINA DE MANUTENÇÃO E REPARO DE VEÍCULOS MOTORIZADOS | I175: 04713 | J175: CAVALETE ENSAIO OFICINA | K175: carrinho com ferramentas, 7 Gavetas- 2 Gavetas: 51 x26 x 55 cm- 5 Gavetas: 51 x26 x 85 cm | L175: 2º SEMESTRE 2022 | M175: Media | N175: UNIDADE | O175: INTEGRAL | P175: CUSTO FINALÍSTICO - MATERIAL | Q175: Suprir necessidade de garagem dessa OM. | R175: 1 | S175: 1500 | T175: 1500
A176: CIMH | B176: 5 | C176: 38 | D176: MAQ., FERRAMENTAS E UTENSILIOS DE OFICINA | E176: 73 | F176: EQUIPAMENTOS PARA PREPARAR E SERVIR ALIMENTOS | G176: 7310 | H176: EQUIPAMENTOS PARA COZINHAR, ASSAR E SERVIR ALIMENTOS | I176: 02932 | J176: AQUECEDOR DE XÍCARAS | K176: Aquecedor de louças 220V, estrutura em aço inox | L176: 2º SEMESTRE 2022 | M176: Alta | N176: UNIDADE | O176: INTEGRAL | P176: CUSTO FINALÍSTICO - MATERIAL | Q176: Suprir necessidade de Rancho dessa OM. | R176: 1 | S176: 2900 | T176: 2900
A177: CIMH | B177: 4 | C177: 38 | D177: MAQ., FERRAMENTAS E UTENSILIOS DE OFICINA | E177: 49 | F177: EQUIPAMENTOS PARA OFICINAS DE MANUTENÇÃO E REPAROS | G177: 4910 | H177: EQUIPAMENTO ESPECIALIZADO PARA OFICINA DE MANUTENÇÃO E REPARO DE VEÍCULOS MOTORIZADOS | I177: 16969 | J177: PEÇAS / ACESSÓRIOS EQUIPAMENTOS OFICINA MANUTENÇÃO | K177: Chave de impacto pneumatica | L177: 1º SEMESTRE 2022 | M177: Media | N177: UNIDADE | O177: INTEGRAL | P177: CUSTO FINALÍSTICO - MATERIAL | Q177: Suprir necessidade da da garagem dessa OM. | R177: 1 | S177: 1590 | T177: 1590
A178: CIMH | B178: 3 | C178: 12 | D178: APARELHOS E UTENSILIOS DOMESTICOS | E178: 73 | F178: EQUIPAMENTOS PARA PREPARAR E SERVIR ALIMENTOS | G178: 7310 | H178: EQUIPAMENTOS PARA COZINHAR, ASSAR E SERVIR ALIMENTOS | I178: 08105 | J178: FRITADEIRA | K178: Fritadeira elétrica, 220V 7L | L178: 2º SEMESTRE 2022 | M178: Media | N178: UNIDADE | O178: INTEGRAL | P178: CUSTO FINALÍSTICO - MATERIAL | Q178: Suprir necessidade de Rancho dessa OM. | R178: 1 | S178: 700 | T178: 700

Sheet Consumo
A1: Selecione Para Atualizar:
A3: OM | B3: Prioridade | C3: Subitem da Natureza de Despesa | E3: Retirado do Catálogo de Materiais - Material Consumo
E4: Grupo de Materiais | G4: Classe de Material | I4: Descrição do Material | K4: Descrição Sucinta | L4: Dt Estimada Aquisição | M4: Prioridade Aquisição | N4: Unidade de Fornecimento | O4: Forma Contratação | P4: Custo | Q4: Objetivo Estratégico | R4: Qtde estimada | S4: Valor Unit | T4: Valor Total
C5: Código subitem | D5: Descrição Subitem | E5: Codigo Grupo | F5: Descrição Grupo | G5: Código Classe | H5: Descrição Classe | I5: CATMAT | J5: Descrição Geral
A6: BASE | C6: 17 | D6: MATERIAL DE PROCESSAMENTO DE DADOS | E6: 70 | F6: INFORMÁTICA - EQUIPAMENTOS, PEÇAS, ACESSÓRIOS E SUPRIMENTOSDE TIC | G6: 7080 | H6: PEÇAS, ACESSÓRIOS E FERRAMENTAS PARA REDES DE TIC | I6: 00208 | J6: CABO REDE COMPUTADOR | K6: Caixa de Cabo cat6 | L6: 1º SEMESTRE 2021 | M6: Alta | N6: CAIXA | O6: INTEGRAL | P6: CUSTO SUPORTE - MATERIAL | Q6: PDTI | R6: 10 | S6: 800 | T6: 8000
A7: BASE | C7: 17 | D7: MATERIAL DE PROCESSAMENTO DE DADOS | E7: 70 | F7: INFORMÁTICA - EQUIPAMENTOS, PEÇAS, ACESSÓRIOS E SUPRIMENTOSDE TIC | G7: 7080 | H7: PEÇAS, ACESSÓRIOS E FERRAMENTAS PARA REDES DE TIC | I7: 00208 | J7: CABO REDE COMPUTADOR | K7: Caixa de Cabo cat6 Blindado | L7: 1º SEMESTRE 2021 | M7: Alta | N7: CAIXA | O7: INTEGRAL | P7: CUSTO SUPORTE - MATERIAL | Q7: PDTI | R7: 2 | S7: 1200 | T7: 2400
A8: BASE | C8: 17 | D8: MATERIAL DE PROCESSAMENTO DE DADOS | E8: 70 | F8: INFORMÁTICA - EQUIPAMENTOS, PEÇAS, ACESSÓRIOS E SUPRIMENTOSDE TIC | G8: 7030 | H8: EQUIPAMENTOS DE ARMAZENAMENTO DE DADOS | I8: 00244 | J8: UNIDADE DISCO | K8: Hard Disk (SSD) | L8: 1º SEMESTRE 2021 | M8: Alta | N8: UNIDADE | O8: INTEGRAL | P8: CUSTO SUPORTE - MATERIAL | Q8: PDTI | R8: 250 | S8: 500 | T8: 125000
A9: BASE | C9: 17 | D9: MATERIAL DE PROCESSAMENTO DE DADOS | E9: 70 | F9: INFORMÁTICA - EQUIPAMENTOS, PEÇAS, ACESSÓRIOS E SUPRIMENTOSDE TIC | G9: 7030 | H9: EQUIPAMENTOS DE ARMAZENAMENTO DE DADOS | I9: 00244 | J9: UNIDADE DISCO | K9: Hard Disk (SATA) | L9: 1º SEMESTRE 2021 | M9: Alta | N9: UNIDADE | O9: INTEGRAL | P9: CUSTO SUPORTE - MATERIAL | Q9: PDTI | R9: 15 | S9: 380 | T9: 5700
A10: BASE | C10: 17 | D10: MATERIAL DE PROCESSAMENTO DE DADOS | E10: 70 | F10: INFORMÁTICA - EQUIPAMENTOS, PEÇAS, ACESSÓRIOS E SUPRIMENTOSDE TIC | G10: 7060 | H10: PEÇAS E ACESSÓRIOS PARA COMPUTADORES | I10: 05409 | J10: MOUSE COMPUTADOR | K10: Mouse | L10: 1º SEMESTRE 2021 | M10: Alta | N10: UNIDADE | O10: INTEGRAL | P10: CUSTO FINALÍSTICO - MATERIAL | Q10: PDTI | R10: 300 | S10: 15 | T10: 4500
A11: BASE | C11: 17 | D11: MATERIAL DE PROCESSAMENTO DE DADOS | E11: 70 | F11: INFORMÁTICA - EQUIPAMENTOS, PEÇAS, ACESSÓRIOS E SUPRIMENTOSDE TIC | G11: 7060 | H11: PEÇAS E ACESSÓRIOS PARA COMPUTADORES | I11: 06669 | J11: MONITOR COMPUTADOR | K11: Monitor de Compurador | L11: 1º SEMESTRE 2021 | M11: Alta | N11: UNIDADE | O11: INTEGRAL | P11: CUSTO FINALÍSTICO - MATERIAL | Q11: PDTI | R11: 170 | S11: 1000 | T11: 170000
A12: BASE | C12: 17 | D12: MATERIAL DE PROCESSAMENTO DE DADOS | E12: 70 | F12: INFORMÁTICA - EQUIPAMENTOS, PEÇAS, ACESSÓRIOS E SUPRIMENTOSDE TIC | G12: 7060 | H12: PEÇAS E ACESSÓRIOS PARA COMPUTADORES | I12: 16415 | J12: FONTE ESTAÇÃO TRABALHO | K12: Fonte de Compurador | L12: 1º SEMESTRE 2021 | M12: Alta | N12: UNIDADE | O12: INTEGRAL | P12: CUSTO FINALÍSTICO - MATERIAL | Q12: PDTI | R12: 70 | S12: 110 | T12: 7700
A13: BASE | C13: 17 | D13: MATERIAL DE PROCESSAMENTO DE DADOS | E13: 70 | F13: INFORMÁTICA - EQUIPAMENTOS, PEÇAS, ACESSÓRIOS E SUPRIMENTOSDE TIC | G13: 7060 | H13: PEÇAS E ACESSÓRIOS PARA COMPUTADORES | I13: 00214 | J13: CONVERSOR VÍDEO | K13: Adaptador DVI - VGA | L13: 2º SEMESTRE 2021 | M13: Alta | N13: UNIDADE | O13: INTEGRAL | P13: CUSTO FINALÍSTICO - MATERIAL | Q13: PDTI | R13: 60 | S13: 20 | T13: 1200
A14: BASE | C14: 17 | D14: MATERIAL DE PROCESSAMENTO DE DADOS | E14: 70 | F14: INFORMÁTICA - EQUIPAMENTOS, PEÇAS, ACESSÓRIOS E SUPRIMENTOSDE TIC | G14: 7060 | H14: PEÇAS E ACESSÓRIOS PARA COMPUTADORES | I14: 14256 | J14: PENTE DE MEMÓRIA | K14: Memória DDR2 | L14: 2º SEMESTRE 2021 | M14: Alta | N14: UNIDADE | O14: INTEGRAL | P14: CUSTO FINALÍSTICO - MATERIAL | Q14: PDTI | R14: 20 | S14: 110 | T14: 2200
A15: BASE | C15: 17 | D15: MATERIAL DE PROCESSAMENTO DE DADOS | E15: 70 | F15: INFORMÁTICA - EQUIPAMENTOS, PEÇAS, ACESSÓRIOS E SUPRIMENTOSDE TIC | G15: 7060 | H15: PEÇAS E ACESSÓRIOS PARA COMPUTADORES | I15: 14256 | J15: PENTE DE MEMÓRIA | K15: Memória DDR3 | L15: 1º SEMESTRE 2021 | M15: Alta | N15: UNIDADE | O15: INTEGRAL | P15: CUSTO FINALÍSTICO - MATERIAL | Q15: PDTI | R15: 40 | S15: 130 | T15: 5200
A16: BASE | C16: 17 | D16: MATERIAL DE PROCESSAMENTO DE DADOS | E16: 70 | F16: INFORMÁTICA - EQUIPAMENTOS, PEÇAS, ACESSÓRIOS E SUPRIMENTOSDE TIC | G16: 7060 | H16: PEÇAS E ACESSÓRIOS PARA COMPUTADORES | I16: 14256 | J16: PENTE DE MEMÓRIA | K16: Memória DDR4 | L16: 1º SEMESTRE 2021 | M16: Alta | N16: UNIDADE | O16: INTEGRAL | P16: CUSTO FINALÍSTICO - MATERIAL | Q16: PDTI | R16: 40 | S16: 130 | T16: 5200
A17: BASE | C17: 17 | D17: MATERIAL DE PROCESSAMENTO DE DADOS | E17: 70 | F17: INFORMÁTICA - EQUIPAMENTOS, PEÇAS, ACESSÓRIOS E SUPRIMENTOSDE TIC | G17: 7060 | H17: PEÇAS E ACESSÓRIOS PARA COMPUTADORES | I17: 00235 | J17: PLACA CONTROLADORA VÍDEO | K17: Placa de Vídeo | L17: 2º SEMESTRE 2021 | M17: Alta | N17: UNIDADE | O17: INTEGRAL | P17: CUSTO FINALÍSTICO - MATERIAL | Q17: PDTI | R17: 50 | S17: 160 | T17: 8000
A18: BASE | B18: 1 | C18: 17 | D18: MATERIAL DE PROCESSAMENTO DE DADOS | E18: 70 | F18: INFORMÁTICA - EQUIPAMENTOS, PEÇAS, ACESSÓRIOS E SUPRIMENTOSDE TIC | G18: 7060 | H18: PEÇAS E ACESSÓRIOS PARA COMPUTADORES | I18: 13510 | J18: TECLADO MICROCOMPUTADOR | K18: Teclado | L18: 1º SEMESTRE 2021 | M18: Alta | N18: UNIDADE | O18: INTEGRAL | P18: CUSTO FINALÍSTICO - MATERIAL | Q18: PDTI | R18: 300 | S18: 35 | T18: 10500
A19: BASE | B19: 2 | C19: 17 | D19: MATERIAL DE PROCESSAMENTO DE DADOS | E19: 70 | F19: INFORMÁTICA - EQUIPAMENTOS, PEÇAS, ACESSÓRIOS E SUPRIMENTOSDE TIC | G19: 7060 | H19: PEÇAS E ACESSÓRIOS PARA COMPUTADORES | I19: 15410 | J19: ADAPTADOR CONECTOR | K19: RJ45 | L19: 2º SEMESTRE 2021 | M19: Alta | N19: PACOTE | O19: INTEGRAL | P19: CUSTO FINALÍSTICO - MATERIAL | Q19: PDTI | R19: 2000 | S19: 0.3 | T19: 600
A20: BASE | B20: 3 | C20: 17 | D20: MATERIAL DE PROCESSAMENTO DE DADOS | E20: 70 | F20: INFORMÁTICA - EQUIPAMENTOS, PEÇAS, ACESSÓRIOS E SUPRIMENTOSDE TIC | G20: 7060 | H20: PEÇAS E ACESSÓRIOS PARA COMPUTADORES | I20: 00214 | J20: CONVERSOR VÍDEO | K20: Cabo HDMI | L20: 1º SEMESTRE 2021 | M20: Alta | N20: UNIDADE | O20: INTEGRAL | P20: CUSTO FINALÍSTICO - MATERIAL | Q20: PDTI | R20: 60 | S20: 80 | T20: 4800
A21: BASE | B21: 4 | C21: 17 | D21: MATERIAL DE PROCESSAMENTO DE DADOS | E21: 70 | F21: INFORMÁTICA - EQUIPAMENTOS, PEÇAS, ACESSÓRIOS E SUPRIMENTOSDE TIC | G21: 7080 | H21: PEÇAS, ACESSÓRIOS E FERRAMENTAS PARA REDES DE TIC | I21: 14610 | J21: ANALISADOR CABEAMENTO REDE | K21: Zumbidor | L21: 1º SEMESTRE 2021 | M21: Alta | N21: UNIDADE | O21: INTEGRAL | P21: CUSTO FINALÍSTICO - MATERIAL | Q21: PDTI | R21: 2 | S21: 130 | T21: 260
A22: BASE | B22: 5 | C22: 17 | D22: MATERIAL DE PROCESSAMENTO DE DADOS | E22: 70 | F22: INFORMÁTICA - EQUIPAMENTOS, PEÇAS, ACESSÓRIOS E SUPRIMENTOSDE TIC | G22: 7080 | H22: PEÇAS, ACESSÓRIOS E FERRAMENTAS PARA REDES DE TIC | I22: 14755 | J22: ORGANIZADOR CABOS | K22: "Espiral Tube" | L22: 1º SEMESTRE 2021 | M22: Media | N22: METRO | O22: INTEGRAL | P22: CUSTO FINALÍSTICO - MATERIAL | Q22: PDTI | R22: 200 | S22: 10 | T22: 2000
A23: BASE | B23: 6 | C23: 17 | D23: MATERIAL DE PROCESSAMENTO DE DADOS | E23: 70 | F23: INFORMÁTICA - EQUIPAMENTOS, PEÇAS, ACESSÓRIOS E SUPRIMENTOSDE TIC | G23: 7080 | H23: PEÇAS, ACESSÓRIOS E FERRAMENTAS PARA REDES DE TIC | I23: 11508 | J23: REDE INFORMÁTICA - PEÇA / ACESSÓRIO | K23: Patch Panel | L23: 1º SEMESTRE 2021 | M23: Baixa | N23: UNIDADE | O23: INTEGRAL | P23: CUSTO FINALÍSTICO - MATERIAL | Q23: PDTI | R23: 10 | S23: 300 | T23: 3000
A24: BASE | B24: 7 | C24: 17 | D24: MATERIAL DE PROCESSAMENTO DE DADOS | E24: 70 | F24: INFORMÁTICA - EQUIPAMENTOS, PEÇAS, ACESSÓRIOS E SUPRIMENTOSDE TIC | G24: 7080 | H24: PEÇAS, ACESSÓRIOS E FERRAMENTAS PARA REDES DE TIC | I24: 00231 | J24: PLACA REDE | K24: Placa de Rede | L24: 1º SEMESTRE 2021 | M24: Baixa | N24: UNIDADE | O24: INTEGRAL | P24: CUSTO FINALÍSTICO - MATERIAL | Q24: PDTI | R24: 30 | S24: 100 | T24: 3000
A25: BASE | B25: 8 | C25: 17 | D25: MATERIAL DE PROCESSAMENTO DE DADOS | E25: 59 | F25: COMPONENTES DE EQUIPAMENTOS ELÉTRICOS E ELETRÔNICOS | G25: 5915 | H25: FILTROS E REDES | I25: 07488 | J25: FILTRO LINHA | K25: Filtro e Linha | L25: 1º SEMESTRE 2021 | M25: Alta | N25: UNIDADE | O25: INTEGRAL | P25: CUSTO FINALÍSTICO - MATERIAL | Q25: PDTI | R25: 100 | S25: 50 | T25: 5000
A26: BASE | B26: 4 | C26: 47 | D26: AQUISICAO DE SOFTWARES DE BASE | E26: 70 | F26: INFORMÁTICA - EQUIPAMENTOS, PEÇAS, ACESSÓRIOS E SUPRIMENTOSDE TIC | G26: 7099 | H26: OUTROS | I26: 12100 | J26: SISTEMA ( EQUIPAMENTO / SOFTWARE ) GERENCIAMENTO | K26: ADOBE CREATIVE | L26: 1º SEMESTRE 2021 | M26: Alta | N26: PACOTE | R26: 2 | S26: 6500 | T26: 13000
A27: BASE | B27: 5 | C27: 4 | D27: GAS E OUTROS MATERIAIS ENGARRAFADOS | E27: 45 | F27: EQUIPAMENTO DE INSTALAÇÕES HIDRÁULICAS E DE AQUECIMENTO | G27: 4520 | H27: EQUIPAMENTOS PARA CALEFAÇÃO E AQUECEDORES DOMÉSTICOS DE ÁGUA | I27: 02918 | J27: AQUECEDOR DE AGUA A GAS | K27: Aquecedor dos alojamentos | L27: 1º SEMESTRE 2021 | M27: Alta | N27: METRO CÚBICO | R27: 10 | S27: 195 | T27: 1950
A28: BASE | B28: 6 | C28: 22 | D28: MATERIAL DE LIMPEZA E PROD. DE HIGIENIZAÇÃO | E28: 79 | F28: EQUIPAMENTOS E MATERIAIS PARA LIMPEZA | G28: 7920 | H28: VASSOURAS, ESCOVAS, RODOS, ESPONJAS E ESFREGÕES | I28: 13327 | J28: VASSOURA | K28: Vassoura | L28: 1º SEMESTRE 2021 | M28: Baixa | N28: UNIDADE | R28: 40 | S28: 12 | T28: 480
A29: BASE | B29: 7 | C29: 22 | D29: MATERIAL DE LIMPEZA E PROD. DE HIGIENIZAÇÃO | E29: 79 | F29: EQUIPAMENTOS E MATERIAIS PARA LIMPEZA | G29: 7930 | H29: COMPOSTOS E PREPARADOS PARA LIMPEZA E POLIMENTO | I29: 11865 | J29: SABÃO PÓ | K29: sabão em pó | L29: 1º SEMESTRE 2021 | M29: Media | N29: CAIXA | R29: 50 | S29: 9.5 | T29: 475
A30: BASE | B30: 8 | C30: 22 | D30: MATERIAL DE LIMPEZA E PROD. DE HIGIENIZAÇÃO | E30: 79 | F30: EQUIPAMENTOS E MATERIAIS PARA LIMPEZA | G30: 7930 | H30: COMPOSTOS E PREPARADOS PARA LIMPEZA E POLIMENTO | I30: 14576 | J30: AROMATIZANTE AMBIENTAL | K30: frasco em aerossol | L30: 2º SEMESTRE 2021 | M30: Baixa | N30: UNIDADE | R30: 100 | S30: 6.5 | T30: 650
A31: BASE | B31: 9 | C31: 26 | D31: MATERIAL ELETRICO E ELETRONICO | E31: 70 | F31: INFORMÁTICA - EQUIPAMENTOS, PEÇAS, ACESSÓRIOS E SUPRIMENTOSDE TIC | G31: 7060 | H31: PEÇAS E ACESSÓRIOS PARA COMPUTADORES | I31: 15410 | J31: ADAPTADOR CONECTOR | K31: Adaptador para USB | L31: 2º SEMESTRE 2021 | M31: Media | N31: UNIDADE | R31: 80 | S31: 12 | T31: 960
A32: BASE | B32: 10 | C32: 26 | D32: MATERIAL ELETRICO E ELETRONICO | E32: 46 | F32: EQUIPAMENTOS PARA PURIFICAÇÃO DE ÁGUAS E TRATAMENTO DE ESGO-TOS | G32: 4610 | H32: EQUIPAMENTOS PARA PURIFICAÇÃO DE ÁGUA | I32: 13361 | J32: VELA DE FILTRO | K32: Vela para filtro Libel | L32: 1º SEMESTRE 2021 | M32: Alta | N32: UNIDADE | R32: 12 | S32: 50 | T32: 600
A33: BASE | B33: 11 | C33: 41 | D33: MATERIAL P/ UTILIZACAO EM GRAFICA | E33: 76 | F33: LIVROS, MAPAS E OUTRAS PUBLICAÇÕES | G33: 7690 | H33: IMPRESSOS DIVERSOS | I33: 08306 | J33: IMPRESSO PRONTO | K33: conforme demanda E7 | L33: 1º SEMESTRE 2021 | M33: Media | N33: FOLHA | R33: 20 | S33: 80 | T33: 1600
A34: BASE | B34: 12 | C34: 22 | D34: MATERIAL DE LIMPEZA E PROD. DE HIGIENIZAÇÃO | E34: 79 | F34: EQUIPAMENTOS E MATERIAIS PARA LIMPEZA | G34: 7930 | H34: COMPOSTOS E PREPARADOS PARA LIMPEZA E POLIMENTO | I34: 11200 | J34: SOLUÇÃO LIMPEZA MULTIUSO | K34: Limpeza de vidros | L34: 2º SEMESTRE 2021 | M34: Baixa | N34: VASILHAME | R34: 100 | S34: 5.3 | T34: 530
A35: BASE | B35: 13 | C35: 22 | D35: MATERIAL DE LIMPEZA E PROD. DE HIGIENIZAÇÃO | E35: 79 | F35: EQUIPAMENTOS E MATERIAIS PARA LIMPEZA | G35: 7930 | H35: COMPOSTOS E PREPARADOS PARA LIMPEZA E POLIMENTO | I35: 06136 | J35: DETERGENTE | K35: Líquido 500 ml | L35: 1º SEMESTRE 2021 | M35: Baixa | N35: VASILHAME | R35: 300 | S35: 8 | T35: 2400
A36: BASE | B36: 14 | C36: 16 | D36: MATERIAL DE EXPEDIENTE | E36: 79 | F36: EQUIPAMENTOS E MATERIAIS PARA LIMPEZA | G36: 7930 | H36: COMPOSTOS E PREPARADOS PARA LIMPEZA E POLIMENTO | I36: 16496 | J36: LIMPA PNEU | K36: Líquido 500 ml | L36: 2º SEMESTRE 2021 | M36: Baixa | N36: VASILHAME | R36: 100 | S36: 4 | T36: 400
A37: BASE | B37: 15 | C37: 41 | D37: MATERIAL P/ UTILIZACAO EM GRAFICA | E37: 99 | F37: DIVERSOS | G37: 9999 | H37: ITENS DIVERSOS | I37: 17350 | J37: BRINDE | K37: Impressão gráfica folheto | L37: 1º SEMESTRE 2021 | M37: Media | N37: UNIDADE | R37: 2500 | S37: 1.25 | T37: 3125
A38: BASE | B38: 16 | C38: 22 | D38: MATERIAL DE LIMPEZA E PROD. DE HIGIENIZAÇÃO | E38: 85 | F38: ARTIGOS DE HIGIENE | G38: 8540 | H38: ARTIGOS DE PAPEL PARA HIGIENE | I38: 10383 | J38: PAPEL HIGIÊNICO | L38: 2º SEMESTRE 2021 | M38: Media | N38: FARDO | R38: 1000 | S38: 4.3 | T38: 4300
A39: BASE | B39: 17 | C39: 22 | D39: MATERIAL DE LIMPEZA E PROD. DE HIGIENIZAÇÃO | E39: 85 | F39: ARTIGOS DE HIGIENE | G39: 8540 | H39: ARTIGOS DE PAPEL PARA HIGIENE | I39: 08122 | J39: GUARDANAPO DE PAPEL | L39: 2º SEMESTRE 2021 | M39: Media | N39: FARDO | R39: 1000 | S39: 8 | T39: 8000
A40: BASE | B40: 1 | C40: 22 | D40: MATERIAL DE LIMPEZA E PROD. DE HIGIENIZAÇÃO | E40: 91 | F40: COMBUSTÍVEIS, LUBRIFICANTES, ÓLEOS E CERAS | G40: 7930 | H40: COMPOSTOS E PREPARADOS PARA LIMPEZA E POLIMENTO | K40: QUEROSENE 5L | N40: GALÃO | O40: INTEGRAL | P40: CUSTO SUPORTE - MATERIAL | R40: 300 | S40: 7.5 | T40: 2250
A41: BASE | B41: 2 | C41: 22 | D41: MATERIAL DE LIMPEZA E PROD. DE HIGIENIZAÇÃO | E41: 79 | F41: EQUIPAMENTOS E MATERIAIS PARA LIMPEZA | G41: 7920 | H41: VASSOURAS, ESCOVAS, RODOS, ESPONJAS E ESFREGÕES | I41: 11781 | J41: RODO | K41: RODO | L41: 2022 | N41: UNIDADE | O41: INTEGRAL | P41: CUSTO SUPORTE - MATERIAL | R41: 300 | S41: 3.47 | T41: 1041
A42: BASE | B42: 3 | C42: 22 | D42: MATERIAL DE LIMPEZA E PROD. DE HIGIENIZAÇÃO | E42: 79 | F42: EQUIPAMENTOS E MATERIAIS PARA LIMPEZA | G42: 7930 | H42: COMPOSTOS E PREPARADOS PARA LIMPEZA E POLIMENTO | I42: 11867 | J42: SABAO LIQUIDO | K42: SABONETE LÍQUIDO | L42: 2022 | N42: GALÃO | O42: INTEGRAL | P42: CUSTO SUPORTE - MATERIAL | R42: 300 | S42: 8.5 | T42: 2550
A43: BASE | B43: 4 | C43: 22 | D43: MATERIAL DE LIMPEZA E PROD. DE HIGIENIZAÇÃO | E43: 79 | F43: EQUIPAMENTOS E MATERIAIS PARA LIMPEZA | G43: 7930 | H43: COMPOSTOS E PREPARADOS PARA LIMPEZA E POLIMENTO | I43: 11867 | J43: SABAO LIQUIDO | K43: SABÃO LIQUIDO 5L | L43: 2022 | N43: GALÃO | O43: INTEGRAL | P43: CUSTO SUPORTE - MATERIAL | R43: 200 | S43: 2.74 | T43: 548
A44: BASE | B44: 5 | C44: 22 | D44: MATERIAL DE LIMPEZA E PROD. DE HIGIENIZAÇÃO | E44: 79 | F44: EQUIPAMENTOS E MATERIAIS PARA LIMPEZA | G44: 7930 | H44: COMPOSTOS E PREPARADOS PARA LIMPEZA E POLIMENTO | I44: 11865 | J44: SABÃO PÓ | K44: SABÃO PÓ 1KG | L44: 2022 | N44: GRAMAS | O44: INTEGRAL | P44: CUSTO SUPORTE - MATERIAL | R44: 1500 | S44: 2.6 | T44: 3900
A45: BASE | B45: 6 | C45: 25 | D45: MATERIAL P/ MANUTENCAO DE BENS MOVEIS | E45: 81 | F45: RECIPIENTES E MATERIAIS PARA ACONDICIONAMENTO E EMBALAGEM | G45: 8105 | H45: SACOS E BOLSAS | I45: 11903 | J45: SACO PLÁSTICO LIXO | K45: SACO DE LIXO PRETO 20 L C/ 100UN | L45: 2022 | N45: PACOTE | O45: INTEGRAL | P45: CUSTO SUPORTE - MATERIAL | R45: 1500 | S45: 1.04 | T45: 1560
A46: BASE | B46: 7 | C46: 22 | D46: MATERIAL DE LIMPEZA E PROD. DE HIGIENIZAÇÃO | E46: 79 | F46: EQUIPAMENTOS E MATERIAIS PARA LIMPEZA | G46: 7920 | H46: VASSOURAS, ESCOVAS, RODOS, ESPONJAS E ESFREGÕES | I46: 11903 | J46: SACO PLÁSTICO LIXO | K46: SACO DE LIXO AZUL 20 L C/ 100UN | L46: 2022 | N46: PACOTE | O46: INTEGRAL | P46: CUSTO SUPORTE - MATERIAL | R46: 1500 | S46: 1.02 | T46: 1530
A47: BASE | B47: 8 | C47: 22 | D47: MATERIAL DE LIMPEZA E PROD. DE HIGIENIZAÇÃO | E47: 79 | F47: EQUIPAMENTOS E MATERIAIS PARA LIMPEZA | G47: 7920 | H47: VASSOURAS, ESCOVAS, RODOS, ESPONJAS E ESFREGÕES | I47: 11903 | J47: SACO PLÁSTICO LIXO | K47: SACO DE LIXO PRETO 50 L C/ 100UN | L47: 2022 | N47: PACOTE | O47: INTEGRAL | P47: CUSTO SUPORTE - MATERIAL | R47: 1000 | S47: 1.03 | T47: 1030
A48: BASE | B48: 9 | C48: 22 | D48: MATERIAL DE LIMPEZA E PROD. DE HIGIENIZAÇÃO | E48: 79 | F48: EQUIPAMENTOS E MATERIAIS PARA LIMPEZA | G48: 7920 | H48: VASSOURAS, ESCOVAS, RODOS, ESPONJAS E ESFREGÕES | I48: 11903 | J48: SACO PLÁSTICO LIXO | K48: SACO DE LIXO AZUL 50 L C/ 100UN | L48: 2022 | N48: PACOTE | O48: INTEGRAL | P48: CUSTO SUPORTE - MATERIAL | R48: 1000 | S48: 1.04 | T48: 1040
A49: BASE | B49: 10 | C49: 22 | D49: MATERIAL DE LIMPEZA E PROD. DE HIGIENIZAÇÃO | E49: 79 | F49: EQUIPAMENTOS E MATERIAIS PARA LIMPEZA | G49: 7920 | H49: VASSOURAS, ESCOVAS, RODOS, ESPONJAS E ESFREGÕES | I49: 11903 | J49: SACO PLÁSTICO LIXO | K49: SACO DE LIXO PRETO 100 L C/ 100UN | L49: 2022 | N49: PACOTE | O49: INTEGRAL | P49: CUSTO SUPORTE - MATERIAL | R49: 2000 | S49: 1.2 | T49: 2400
A50: BASE | B50: 11 | C50: 22 | D50: MATERIAL DE LIMPEZA E PROD. DE HIGIENIZAÇÃO | E50: 79 | F50: EQUIPAMENTOS E MATERIAIS PARA LIMPEZA | G50: 7920 | H50: VASSOURAS, ESCOVAS, RODOS, ESPONJAS E ESFREGÕES | I50: 11903 | J50: SACO PLÁSTICO LIXO | K50: SACO DE LIXO AZUL 100 L C/ 100UN | L50: 2022 | N50: PACOTE | O50: INTEGRAL | P50: CUSTO SUPORTE - MATERIAL | R50: 2000 | S50: 1.23 | T50: 2460
A51: BASE | B51: 12 | C51: 22 | D51: MATERIAL DE LIMPEZA E PROD. DE HIGIENIZAÇÃO | E51: 79 | F51: EQUIPAMENTOS E MATERIAIS PARA LIMPEZA | G51: 7920 | H51: VASSOURAS, ESCOVAS, RODOS, ESPONJAS E ESFREGÕES | I51: 04583 | J51: CARRINHO LIMPEZA MULTIFUNÇÃO | K51: TOALHA DE PAPEL PCT C/ 02 ROLOS | L51: 2022 | N51: PACOTE | O51: INTEGRAL | P51: CUSTO SUPORTE - MATERIAL | R51: 2000 | S51: 2.63 | T51: 5260
A52: BASE | B52: 13 | C52: 22 | D52: MATERIAL DE LIMPEZA E PROD. DE HIGIENIZAÇÃO | E52: 79 | F52: EQUIPAMENTOS E MATERIAIS PARA LIMPEZA | G52: 7920 | H52: VASSOURAS, ESCOVAS, RODOS, ESPONJAS E ESFREGÕES | I52: 17729 | J52: PRENDEDOR DE CABELO | K52: TOUCA DESCARTÁVEL TNT CLIPADA / Nº 19 C/ 100 UN | L52: 2022 | N52: PACOTE | O52: INTEGRAL | P52: CUSTO SUPORTE - MATERIAL | R52: 400 | S52: 7.35 | T52: 2940
A53: BASE | B53: 14 | C53: 22 | D53: MATERIAL DE LIMPEZA E PROD. DE HIGIENIZAÇÃO | E53: 79 | F53: EQUIPAMENTOS E MATERIAIS PARA LIMPEZA | G53: 7920 | H53: VASSOURAS, ESCOVAS, RODOS, ESPONJAS E ESFREGÕES | I53: 13327 | J53: VASSOURA | K53: VASSOURA NYLON | L53: 2022 | N53: UNIDADE | O53: INTEGRAL | P53: CUSTO SUPORTE - MATERIAL | R53: 250 | S53: 3.25 | T53: 812.5
A54: BASE | B54: 15 | C54: 22 | D54: MATERIAL DE LIMPEZA E PROD. DE HIGIENIZAÇÃO | E54: 79 | F54: EQUIPAMENTOS E MATERIAIS PARA LIMPEZA | G54: 7920 | H54: VASSOURAS, ESCOVAS, RODOS, ESPONJAS E ESFREGÕES | I54: 13327 | J54: VASSOURA | K54: VASSOURA PELO SINTÉTICO | L54: 2022 | N54: UNIDADE | O54: INTEGRAL | P54: CUSTO SUPORTE - MATERIAL | R54: 80 | S54: 3.85 | T54: 308
A55: BASE | B55: 16 | C55: 22 | D55: MATERIAL DE LIMPEZA E PROD. DE HIGIENIZAÇÃO | E55: 79 | F55: EQUIPAMENTOS E MATERIAIS PARA LIMPEZA | G55: 7920 | H55: VASSOURAS, ESCOVAS, RODOS, ESPONJAS E ESFREGÕES | I55: 13327 | J55: VASSOURA | K55: VASSOURA TIPO PIAÇAVA | L55: 2022 | N55: UNIDADE | O55: INTEGRAL | P55: CUSTO SUPORTE - MATERIAL | R55: 80 | S55: 3.12 | T55: 249.6
A56: BASE | B56: 1 | C56: 9 | D56: MATERIAL FARMACOLOGICO | E56: 65 | F56: EQUIPAMENTOS E ARTIGOS PARA USO MÉDICO, DENTÁRIO E VETERINÁ-RIO | G56: 6505 | H56: DROGAS E MEDICAMENTOS | I56: 18232 | J56: acetilcisteína | K56: Acetilcisteína 40 mg/ml | L56: 1º SEMESTRE 2022 | M56: Alta | N56: FRASCO | O56: INTEGRAL | P56: CUSTO FINALÍSTICO - MATERIAL | Q56: PARA MANTER O ESTOQUE DA ENFERMARIA ABASTECIDO | R56: 50 | S56: 7.8 | T56: 390
A57: BASE | B57: 2 | C57: 9 | D57: MATERIAL FARMACOLOGICO | E57: 65 | F57: EQUIPAMENTOS E ARTIGOS PARA USO MÉDICO, DENTÁRIO E VETERINÁ-RIO | G57: 6505 | H57: DROGAS E MEDICAMENTOS | I57: 01854 | J57: aciclovir | K57: Aciclovir, dosagem 200 mg | L57: 1º SEMESTRE 2022 | M57: Baixa | N57: CÁPSULA | O57: INTEGRAL | P57: CUSTO FINALÍSTICO - MATERIAL | Q57: PARA MANTER O ESTOQUE DA ENFERMARIA ABASTECIDO | R57: 300 | S57: 0.28 | T57: 84
A58: BASE | B58: 3 | C58: 9 | D58: MATERIAL FARMACOLOGICO | E58: 65 | F58: EQUIPAMENTOS E ARTIGOS PARA USO MÉDICO, DENTÁRIO E VETERINÁ-RIO | G58: 6505 | H58: DROGAS E MEDICAMENTOS | I58: 01854 | J58: aciclovir | K58: Aciclovir, dosagem 50 mg/g | L58: 1º SEMESTRE 2022 | M58: Alta | N58: BISNAGA | O58: INTEGRAL | P58: CUSTO FINALÍSTICO - MATERIAL | Q58: PARA MANTER O ESTOQUE DA ENFERMARIA ABASTECIDO | R58: 200 | S58: 2.74 | T58: 548
A59: BASE | B59: 4 | C59: 9 | D59: MATERIAL FARMACOLOGICO | E59: 65 | F59: EQUIPAMENTOS E ARTIGOS PARA USO MÉDICO, DENTÁRIO E VETERINÁ-RIO | G59: 6505 | H59: DROGAS E MEDICAMENTOS | I59: 17914 | J59: ÁCIDO ACETILSALICÍLICO | K59: Ácido acetilsalicitico, dosagem 100mg | L59: 1º SEMESTRE 2022 | M59: Alta | N59: CÁPSULA | O59: INTEGRAL | P59: CUSTO FINALÍSTICO - MATERIAL | Q59: PARA MANTER O ESTOQUE DA ENFERMARIA ABASTECIDO | R59: 200 | S59: 0.06 | T59: 12
A60: BASE | B60: 5 | C60: 9 | D60: MATERIAL FARMACOLOGICO | E60: 65 | F60: EQUIPAMENTOS E ARTIGOS PARA USO MÉDICO, DENTÁRIO E VETERINÁ-RIO | G60: 6505 | H60: DROGAS E MEDICAMENTOS | I60: 19287 | J60: albendazol | K60: Albendazol | L60: 1º SEMESTRE 2022 | M60: Baixa | N60: CÁPSULA | O60: INTEGRAL | P60: CUSTO FINALÍSTICO - MATERIAL | Q60: PARA MANTER O ESTOQUE DA ENFERMARIA ABASTECIDO | R60: 200 | S60: 0.4 | T60: 80
A61: BASE | B61: 6 | C61: 9 | D61: MATERIAL FARMACOLOGICO | E61: 65 | F61: EQUIPAMENTOS E ARTIGOS PARA USO MÉDICO, DENTÁRIO E VETERINÁ-RIO | G61: 6505 | H61: DROGAS E MEDICAMENTOS | I61: 18739 | J61: amoxicilina | K61: Amoxicilina + clavulanato | L61: 1º SEMESTRE 2022 | M61: Baixa | N61: CÁPSULA | O61: INTEGRAL | P61: CUSTO FINALÍSTICO - MATERIAL | Q61: PARA MANTER O ESTOQUE DA ENFERMARIA ABASTECIDO | R61: 1400 | S61: 2.15 | T61: 3010
A62: BASE | B62: 7 | C62: 9 | D62: MATERIAL FARMACOLOGICO | E62: 65 | F62: EQUIPAMENTOS E ARTIGOS PARA USO MÉDICO, DENTÁRIO E VETERINÁ-RIO | G62: 6505 | H62: DROGAS E MEDICAMENTOS | I62: 18739 | J62: amoxicilina | K62: Amoxicilina, dosagem 500mg | L62: 1º SEMESTRE 2022 | M62: Baixa | N62: CÁPSULA | O62: INTEGRAL | P62: CUSTO FINALÍSTICO - MATERIAL | Q62: PARA MANTER O ESTOQUE DA ENFERMARIA ABASTECIDO | R62: 50 | S62: 9.5 | T62: 475
A63: BASE | B63: 8 | C63: 9 | D63: MATERIAL FARMACOLOGICO | E63: 65 | F63: EQUIPAMENTOS E ARTIGOS PARA USO MÉDICO, DENTÁRIO E VETERINÁ-RIO | G63: 6505 | H63: DROGAS E MEDICAMENTOS | K63: Azitromicina, dosagem 500 mg | L63: 1º SEMESTRE 2022 | M63: Baixa | N63: CÁPSULA | O63: INTEGRAL | P63: CUSTO FINALÍSTICO - MATERIAL | Q63: PARA MANTER O ESTOQUE DA ENFERMARIA ABASTECIDO | R63: 400 | S63: 0.53 | T63: 212
A64: BASE | B64: 9 | C64: 9 | D64: MATERIAL FARMACOLOGICO | E64: 65 | F64: EQUIPAMENTOS E ARTIGOS PARA USO MÉDICO, DENTÁRIO E VETERINÁ-RIO | G64: 6505 | H64: DROGAS E MEDICAMENTOS | K64: Benzilpenicilina, dosagem 1.200.000UI | L64: 1º SEMESTRE 2022 | M64: Media | N64: FRASCO | O64: INTEGRAL | P64: CUSTO FINALÍSTICO - MATERIAL | Q64: PARA MANTER O ESTOQUE DA ENFERMARIA ABASTECIDO | R64: 200 | S64: 9.44 | T64: 1888
A65: BASE | B65: 10 | C65: 9 | D65: MATERIAL FARMACOLOGICO | E65: 65 | F65: EQUIPAMENTOS E ARTIGOS PARA USO MÉDICO, DENTÁRIO E VETERINÁ-RIO | G65: 6505 | H65: DROGAS E MEDICAMENTOS | K65: Betametasona, composição: dipropionato, apresentação: associada com betametasona fosfato, dosagem: 5mg + 2mg, uso: injetável | L65: 1º SEMESTRE 2022 | M65: Alta | N65: AMPOLA | O65: INTEGRAL | P65: CUSTO FINALÍSTICO - MATERIAL | Q65: PARA MANTER O ESTOQUE DA ENFERMARIA ABASTECIDO | R65: 200 | S65: 3.82 | T65: 764
A66: BASE | B66: 11 | C66: 9 | D66: MATERIAL FARMACOLOGICO | E66: 65 | F66: EQUIPAMENTOS E ARTIGOS PARA USO MÉDICO, DENTÁRIO E VETERINÁ-RIO | G66: 6505 | H66: DROGAS E MEDICAMENTOS | K66: Bromoprida, dosagem: 10 mg | L66: 1º SEMESTRE 2022 | M66: Alta | N66: AMPOLA | O66: INTEGRAL | P66: CUSTO FINALÍSTICO - MATERIAL | Q66: PARA MANTER O ESTOQUE DA ENFERMARIA ABASTECIDO | R66: 200 | S66: 1.2 | T66: 240
A67: BASE | B67: 12 | C67: 9 | D67: MATERIAL FARMACOLOGICO | E67: 65 | F67: EQUIPAMENTOS E ARTIGOS PARA USO MÉDICO, DENTÁRIO E VETERINÁ-RIO | G67: 6505 | H67: DROGAS E MEDICAMENTOS | K67: Budesonida, apresentação: aerossol nasal, concentração: 32mcg,dose, características adicionais: frasco com válvula dosificadora | L67: 1º SEMESTRE 2022 | M67: Media | N67: FRASCO | O67: INTEGRAL | P67: CUSTO FINALÍSTICO - MATERIAL | Q67: PARA MANTER O ESTOQUE DA ENFERMARIA ABASTECIDO | R67: 50 | S67: 12.8 | T67: 640
A68: BASE | B68: 13 | C68: 9 | D68: MATERIAL FARMACOLOGICO | E68: 65 | F68: EQUIPAMENTOS E ARTIGOS PARA USO MÉDICO, DENTÁRIO E VETERINÁ-RIO | G68: 6505 | H68: DROGAS E MEDICAMENTOS | K68: Butilbrometo de escopolamina + dipirona sódica (buscopan composto), dosagem 4mg/ml + 500mg/ml | L68: 1º SEMESTRE 2022 | M68: Alta | N68: AMPOLA | O68: INTEGRAL | P68: CUSTO FINALÍSTICO - MATERIAL | Q68: PARA MANTER O ESTOQUE DA ENFERMARIA ABASTECIDO | R68: 200 | S68: 1.48 | T68: 296
A69: BASE | B69: 14 | C69: 9 | D69: MATERIAL FARMACOLOGICO | E69: 65 | F69: EQUIPAMENTOS E ARTIGOS PARA USO MÉDICO, DENTÁRIO E VETERINÁ-RIO | G69: 6505 | H69: DROGAS E MEDICAMENTOS | K69: Butilbrometo de escopolamina 20mg/ml | L69: 1º SEMESTRE 2022 | M69: Alta | N69: AMPOLA | O69: INTEGRAL | P69: CUSTO FINALÍSTICO - MATERIAL | Q69: PARA MANTER O ESTOQUE DA ENFERMARIA ABASTECIDO | R69: 200 | S69: 0.9 | T69: 180
A70: BASE | B70: 15 | C70: 9 | D70: MATERIAL FARMACOLOGICO | E70: 65 | F70: EQUIPAMENTOS E ARTIGOS PARA USO MÉDICO, DENTÁRIO E VETERINÁ-RIO | G70: 6505 | H70: DROGAS E MEDICAMENTOS | K70: Captopril, dosagem 25mg | L70: 1º SEMESTRE 2022 | M70: Alta | N70: CÁPSULA | O70: INTEGRAL | P70: CUSTO FINALÍSTICO - MATERIAL | Q70: PARA MANTER O ESTOQUE DA ENFERMARIA ABASTECIDO | R70: 50 | S70: 0.07 | T70: 3.5
A71: BASE | B71: 16 | C71: 9 | D71: MATERIAL FARMACOLOGICO | E71: 65 | F71: EQUIPAMENTOS E ARTIGOS PARA USO MÉDICO, DENTÁRIO E VETERINÁ-RIO | G71: 6505 | H71: DROGAS E MEDICAMENTOS | K71: Cefalexina, dosagem: 500 mg | L71: 1º SEMESTRE 2022 | M71: Alta | N71: CÁPSULA | O71: INTEGRAL | P71: CUSTO FINALÍSTICO - MATERIAL | Q71: PARA MANTER O ESTOQUE DA ENFERMARIA ABASTECIDO | R71: 500 | S71: 0.4 | T71: 200
A72: BASE | B72: 17 | C72: 9 | D72: MATERIAL FARMACOLOGICO | E72: 65 | F72: EQUIPAMENTOS E ARTIGOS PARA USO MÉDICO, DENTÁRIO E VETERINÁ-RIO | G72: 6505 | H72: DROGAS E MEDICAMENTOS | K72: Ceftriaxona sódica, concentração: 1 g, forma farmaceutica: pó p, solução injetável | L72: 1º SEMESTRE 2022 | M72: Media | N72: FRASCO | O72: INTEGRAL | P72: CUSTO FINALÍSTICO - MATERIAL | Q72: PARA MANTER O ESTOQUE DA ENFERMARIA ABASTECIDO | R72: 200 | S72: 8 | T72: 1600
A73: BASE | B73: 18 | C73: 9 | D73: MATERIAL FARMACOLOGICO | E73: 65 | F73: EQUIPAMENTOS E ARTIGOS PARA USO MÉDICO, DENTÁRIO E VETERINÁ-RIO | G73: 6505 | H73: DROGAS E MEDICAMENTOS | K73: Cetoprofeno injetável, intramuscular, dosagem 50mg/2ml | L73: 1º SEMESTRE 2022 | M73: Alta | N73: AMPOLA | O73: INTEGRAL | P73: CUSTO FINALÍSTICO - MATERIAL | Q73: PARA MANTER O ESTOQUE DA ENFERMARIA ABASTECIDO | R73: 400 | S73: 1.43 | T73: 572
A74: BASE | B74: 19 | C74: 9 | D74: MATERIAL FARMACOLOGICO | E74: 65 | F74: EQUIPAMENTOS E ARTIGOS PARA USO MÉDICO, DENTÁRIO E VETERINÁ-RIO | G74: 6505 | H74: DROGAS E MEDICAMENTOS | K74: Cetoprofeno, concentraçao: 100 mg, endovenoso | L74: 1º SEMESTRE 2022 | M74: Baixa | N74: FRASCO | O74: INTEGRAL | P74: CUSTO FINALÍSTICO - MATERIAL | Q74: PARA MANTER O ESTOQUE DA ENFERMARIA ABASTECIDO | R74: 200 | S74: 3.63 | T74: 726
A75: BASE | B75: 20 | C75: 9 | D75: MATERIAL FARMACOLOGICO | E75: 65 | F75: EQUIPAMENTOS E ARTIGOS PARA USO MÉDICO, DENTÁRIO E VETERINÁ-RIO | G75: 6505 | H75: DROGAS E MEDICAMENTOS | K75: Cetoprofeno, dosagem 100 mg | L75: 1º SEMESTRE 2022 | M75: Media | N75: CÁPSULA | O75: INTEGRAL | P75: CUSTO FINALÍSTICO - MATERIAL | Q75: PARA MANTER O ESTOQUE DA ENFERMARIA ABASTECIDO | R75: 500 | S75: 1.21 | T75: 605
A76: BASE | B76: 21 | C76: 9 | D76: MATERIAL FARMACOLOGICO | E76: 65 | F76: EQUIPAMENTOS E ARTIGOS PARA USO MÉDICO, DENTÁRIO E VETERINÁ-RIO | G76: 6505 | H76: DROGAS E MEDICAMENTOS | K76: Ciprofloxacino + desametasona | L76: 1º SEMESTRE 2022 | M76: Media | N76: FRASCO | O76: INTEGRAL | P76: CUSTO FINALÍSTICO - MATERIAL | Q76: PARA MANTER O ESTOQUE DA ENFERMARIA ABASTECIDO | R76: 50 | S76: 10.42 | T76: 521
A77: BASE | B77: 22 | C77: 9 | D77: MATERIAL FARMACOLOGICO | E77: 65 | F77: EQUIPAMENTOS E ARTIGOS PARA USO MÉDICO, DENTÁRIO E VETERINÁ-RIO | G77: 6505 | H77: DROGAS E MEDICAMENTOS | K77: Ciprofloxacino dosagem 500mg | L77: 1º SEMESTRE 2022 | M77: Baixa | N77: CÁPSULA | O77: INTEGRAL | P77: CUSTO FINALÍSTICO - MATERIAL | Q77: PARA MANTER O ESTOQUE DA ENFERMARIA ABASTECIDO | R77: 500 | S77: 0.24 | T77: 120
A78: BASE | B78: 23 | C78: 9 | D78: MATERIAL FARMACOLOGICO | E78: 65 | F78: EQUIPAMENTOS E ARTIGOS PARA USO MÉDICO, DENTÁRIO E VETERINÁ-RIO | G78: 6505 | H78: DROGAS E MEDICAMENTOS | K78: Clonazepam 2mg | L78: 1º SEMESTRE 2022 | M78: Alta | N78: CÁPSULA | O78: INTEGRAL | P78: CUSTO FINALÍSTICO - MATERIAL | Q78: PARA MANTER O ESTOQUE DA ENFERMARIA ABASTECIDO | R78: 60 | S78: 0.08 | T78: 4.8
A79: BASE | B79: 24 | C79: 9 | D79: MATERIAL FARMACOLOGICO | E79: 65 | F79: EQUIPAMENTOS E ARTIGOS PARA USO MÉDICO, DENTÁRIO E VETERINÁ-RIO | G79: 6505 | H79: DROGAS E MEDICAMENTOS | K79: Clopidogrel, dosagem 75 mg | L79: 1º SEMESTRE 2022 | M79: Media | N79: CÁPSULA | O79: INTEGRAL | P79: CUSTO FINALÍSTICO - MATERIAL | Q79: PARA MANTER O ESTOQUE DA ENFERMARIA ABASTECIDO | R79: 200 | S79: 0.62 | T79: 124
A80: BASE | B80: 25 | C80: 9 | D80: MATERIAL FARMACOLOGICO | E80: 65 | F80: EQUIPAMENTOS E ARTIGOS PARA USO MÉDICO, DENTÁRIO E VETERINÁ-RIO | G80: 6505 | H80: DROGAS E MEDICAMENTOS | K80: Cloridrato de Fexofenadina 120mg | L80: 1º SEMESTRE 2022 | M80: Media | N80: CÁPSULA | O80: INTEGRAL | P80: CUSTO FINALÍSTICO - MATERIAL | Q80: PARA MANTER O ESTOQUE DA ENFERMARIA ABASTECIDO | R80: 200 | S80: 0.93 | T80: 186
A81: BASE | B81: 26 | C81: 9 | D81: MATERIAL FARMACOLOGICO | E81: 65 | F81: EQUIPAMENTOS E ARTIGOS PARA USO MÉDICO, DENTÁRIO E VETERINÁ-RIO | G81: 6505 | H81: DROGAS E MEDICAMENTOS | K81: Cloridrato de lidocaína | L81: 1º SEMESTRE 2022 | M81: Media | N81: AMPOLA | O81: INTEGRAL | P81: CUSTO FINALÍSTICO - MATERIAL | Q81: PARA MANTER O ESTOQUE DA ENFERMARIA ABASTECIDO | R81: 100 | S81: 0.8 | T81: 80
A82: BASE | B82: 27 | C82: 9 | D82: MATERIAL FARMACOLOGICO | E82: 65 | F82: EQUIPAMENTOS E ARTIGOS PARA USO MÉDICO, DENTÁRIO E VETERINÁ-RIO | G82: 6505 | H82: DROGAS E MEDICAMENTOS | K82: Cloridrato De Prometazina 25 Mg | L82: 1º SEMESTRE 2022 | M82: Alta | N82: CÁPSULA | O82: INTEGRAL | P82: CUSTO FINALÍSTICO - MATERIAL | Q82: PARA MANTER O ESTOQUE DA ENFERMARIA ABASTECIDO | R82: 100 | S82: 0.21 | T82: 21
A83: BASE | B83: 28 | C83: 9 | D83: MATERIAL FARMACOLOGICO | E83: 65 | F83: EQUIPAMENTOS E ARTIGOS PARA USO MÉDICO, DENTÁRIO E VETERINÁ-RIO | G83: 6505 | H83: DROGAS E MEDICAMENTOS | K83: Cloridrato de ranitida, dosagem 150mg | L83: 1º SEMESTRE 2022 | M83: Alta | N83: CÁPSULA | O83: INTEGRAL | P83: CUSTO FINALÍSTICO - MATERIAL | Q83: PARA MANTER O ESTOQUE DA ENFERMARIA ABASTECIDO | R83: 100 | S83: 0.18 | T83: 18
A84: BASE | B84: 29 | C84: 9 | D84: MATERIAL FARMACOLOGICO | E84: 65 | F84: EQUIPAMENTOS E ARTIGOS PARA USO MÉDICO, DENTÁRIO E VETERINÁ-RIO | G84: 6505 | H84: DROGAS E MEDICAMENTOS | K84: Cloridrato de ranitida, dosagem 50mg/2ml | L84: 1º SEMESTRE 2022 | M84: Alta | N84: AMPOLA | O84: INTEGRAL | P84: CUSTO FINALÍSTICO - MATERIAL | Q84: PARA MANTER O ESTOQUE DA ENFERMARIA ABASTECIDO | R84: 200 | S84: 0.63 | T84: 126
A85: BASE | B85: 30 | C85: 9 | D85: MATERIAL FARMACOLOGICO | E85: 65 | F85: EQUIPAMENTOS E ARTIGOS PARA USO MÉDICO, DENTÁRIO E VETERINÁ-RIO | G85: 6505 | H85: DROGAS E MEDICAMENTOS | K85: Cloridrato de Tramadol, dosagem 50 mg | L85: 1º SEMESTRE 2022 | M85: Media | N85: CÁPSULA | O85: INTEGRAL | P85: CUSTO FINALÍSTICO - MATERIAL | Q85: PARA MANTER O ESTOQUE DA ENFERMARIA ABASTECIDO | R85: 100 | S85: 0.17 | T85: 17
A86: BASE | B86: 31 | C86: 9 | D86: MATERIAL FARMACOLOGICO | E86: 65 | F86: EQUIPAMENTOS E ARTIGOS PARA USO MÉDICO, DENTÁRIO E VETERINÁ-RIO | G86: 6505 | H86: DROGAS E MEDICAMENTOS | K86: Cloridrato de Tramadol, dosagem 50mg/2ml | L86: 1º SEMESTRE 2022 | M86: Media | N86: AMPOLA | O86: INTEGRAL | P86: CUSTO FINALÍSTICO - MATERIAL | Q86: PARA MANTER O ESTOQUE DA ENFERMARIA ABASTECIDO | R86: 200 | S86: 1.21 | T86: 242
A87: BASE | B87: 32 | C87: 9 | D87: MATERIAL FARMACOLOGICO | E87: 65 | F87: EQUIPAMENTOS E ARTIGOS PARA USO MÉDICO, DENTÁRIO E VETERINÁ-RIO | G87: 6505 | H87: DROGAS E MEDICAMENTOS | K87: Dexametasona creme, dosagem 10 g | L87: 1º SEMESTRE 2022 | M87: Media | N87: BISNAGA | O87: INTEGRAL | P87: CUSTO FINALÍSTICO - MATERIAL | Q87: PARA MANTER O ESTOQUE DA ENFERMARIA ABASTECIDO | R87: 100 | S87: 0.3 | T87: 30
A88: BASE | B88: 33 | C88: 9 | D88: MATERIAL FARMACOLOGICO | E88: 65 | F88: EQUIPAMENTOS E ARTIGOS PARA USO MÉDICO, DENTÁRIO E VETERINÁ-RIO | G88: 6505 | H88: DROGAS E MEDICAMENTOS | K88: Dexametasona dosagem 0,5 mg | L88: 1º SEMESTRE 2022 | M88: Alta | N88: CÁPSULA | O88: INTEGRAL | P88: CUSTO FINALÍSTICO - MATERIAL | Q88: PARA MANTER O ESTOQUE DA ENFERMARIA ABASTECIDO | R88: 500 | S88: 0.36 | T88: 180
A89: BASE | B89: 34 | C89: 9 | D89: MATERIAL FARMACOLOGICO | E89: 65 | F89: EQUIPAMENTOS E ARTIGOS PARA USO MÉDICO, DENTÁRIO E VETERINÁ-RIO | G89: 6505 | H89: DROGAS E MEDICAMENTOS | K89: Dexametasona, dosagem: 4 mg,ml, solução injetável | L89: 1º SEMESTRE 2022 | M89: Alta | N89: AMPOLA | O89: INTEGRAL | P89: CUSTO FINALÍSTICO - MATERIAL | Q89: PARA MANTER O ESTOQUE DA ENFERMARIA ABASTECIDO | R89: 200 | S89: 0.79 | T89: 158
A90: BASE | B90: 35 | C90: 9 | D90: MATERIAL FARMACOLOGICO | E90: 65 | F90: EQUIPAMENTOS E ARTIGOS PARA USO MÉDICO, DENTÁRIO E VETERINÁ-RIO | G90: 6505 | H90: DROGAS E MEDICAMENTOS | K90: dexclorfeniramina 2mg | L90: 1º SEMESTRE 2022 | M90: Alta | N90: CÁPSULA | O90: INTEGRAL | P90: CUSTO FINALÍSTICO - MATERIAL | Q90: PARA MANTER O ESTOQUE DA ENFERMARIA ABASTECIDO | R90: 200 | S90: 0.09 | T90: 18
A91: BASE | B91: 36 | C91: 9 | D91: MATERIAL FARMACOLOGICO | E91: 65 | F91: EQUIPAMENTOS E ARTIGOS PARA USO MÉDICO, DENTÁRIO E VETERINÁ-RIO | G91: 6505 | H91: DROGAS E MEDICAMENTOS | K91: Diazepam, dosagem 10 mg | L91: 1º SEMESTRE 2022 | M91: Alta | N91: CÁPSULA | O91: INTEGRAL | P91: CUSTO FINALÍSTICO - MATERIAL | Q91: PARA MANTER O ESTOQUE DA ENFERMARIA ABASTECIDO | R91: 100 | S91: 0.1 | T91: 10
A92: BASE | B92: 37 | C92: 9 | D92: MATERIAL FARMACOLOGICO | E92: 65 | F92: EQUIPAMENTOS E ARTIGOS PARA USO MÉDICO, DENTÁRIO E VETERINÁ-RIO | G92: 6505 | H92: DROGAS E MEDICAMENTOS | K92: Diazepam, Dosagem 5 Mg/Ml | L92: 1º SEMESTRE 2022 | M92: Alta | N92: AMPOLA | O92: INTEGRAL | P92: CUSTO FINALÍSTICO - MATERIAL | Q92: PARA MANTER O ESTOQUE DA ENFERMARIA ABASTECIDO | R92: 50 | S92: 0.7 | T92: 35
A93: BASE | B93: 38 | C93: 9 | D93: MATERIAL FARMACOLOGICO | E93: 65 | F93: EQUIPAMENTOS E ARTIGOS PARA USO MÉDICO, DENTÁRIO E VETERINÁ-RIO | G93: 6505 | H93: DROGAS E MEDICAMENTOS | K93: Diclofenaco dietilamônio gel, dosagem 11,6mg/g | L93: 1º SEMESTRE 2022 | M93: Baixa | N93: BISNAGA | O93: INTEGRAL | P93: CUSTO FINALÍSTICO - MATERIAL | Q93: PARA MANTER O ESTOQUE DA ENFERMARIA ABASTECIDO | R93: 100 | S93: 6.62 | T93: 662
A94: BASE | B94: 39 | C94: 9 | D94: MATERIAL FARMACOLOGICO | E94: 65 | F94: EQUIPAMENTOS E ARTIGOS PARA USO MÉDICO, DENTÁRIO E VETERINÁ-RIO | G94: 6505 | H94: DROGAS E MEDICAMENTOS | K94: Diclofenaco potássico, dosagem 25mg/ml | L94: 1º SEMESTRE 2022 | M94: Alta | N94: AMPOLA | O94: INTEGRAL | P94: CUSTO FINALÍSTICO - MATERIAL | Q94: PARA MANTER O ESTOQUE DA ENFERMARIA ABASTECIDO | R94: 200 | S94: 0.65 | T94: 130
A95: BASE | B95: 40 | C95: 9 | D95: MATERIAL FARMACOLOGICO | E95: 65 | F95: EQUIPAMENTOS E ARTIGOS PARA USO MÉDICO, DENTÁRIO E VETERINÁ-RIO | G95: 6505 | H95: DROGAS E MEDICAMENTOS | K95: Diclofenaco sódico, dosagem 50 mg | L95: 1º SEMESTRE 2022 | M95: Media | N95: CÁPSULA | O95: INTEGRAL | P95: CUSTO FINALÍSTICO - MATERIAL | Q95: PARA MANTER O ESTOQUE DA ENFERMARIA ABASTECIDO | R95: 1000 | S95: 0.09 | T95: 90
A96: BASE | B96: 41 | C96: 9 | D96: MATERIAL FARMACOLOGICO | E96: 65 | F96: EQUIPAMENTOS E ARTIGOS PARA USO MÉDICO, DENTÁRIO E VETERINÁ-RIO | G96: 6505 | H96: DROGAS E MEDICAMENTOS | K96: Dinitrato de Isossorbida 5 mg | L96: 1º SEMESTRE 2022 | M96: Baixa | N96: CÁPSULA | O96: INTEGRAL | P96: CUSTO FINALÍSTICO - MATERIAL | Q96: PARA MANTER O ESTOQUE DA ENFERMARIA ABASTECIDO | R96: 200 | S96: 0.31 | T96: 62
A97: BASE | B97: 42 | C97: 9 | D97: MATERIAL FARMACOLOGICO | E97: 65 | F97: EQUIPAMENTOS E ARTIGOS PARA USO MÉDICO, DENTÁRIO E VETERINÁ-RIO | G97: 6505 | H97: DROGAS E MEDICAMENTOS | K97: Dipirona sódica, dosagem 1g/2ml | L97: 1º SEMESTRE 2022 | M97: Alta | N97: AMPOLA | O97: INTEGRAL | P97: CUSTO FINALÍSTICO - MATERIAL | Q97: PARA MANTER O ESTOQUE DA ENFERMARIA ABASTECIDO | R97: 200 | S97: 0.47 | T97: 94
A98: BASE | B98: 43 | C98: 9 | D98: MATERIAL FARMACOLOGICO | E98: 65 | F98: EQUIPAMENTOS E ARTIGOS PARA USO MÉDICO, DENTÁRIO E VETERINÁ-RIO | G98: 6505 | H98: DROGAS E MEDICAMENTOS | K98: Dipirona sódica, dosagem 500 mg | L98: 1º SEMESTRE 2022 | M98: Alta | N98: CÁPSULA | O98: INTEGRAL | P98: CUSTO FINALÍSTICO - MATERIAL | Q98: PARA MANTER O ESTOQUE DA ENFERMARIA ABASTECIDO | R98: 1000 | S98: 0.1 | T98: 100
